Workbook

Sheet MENU
L4: =+TABLAS!A81 -> 1-2-3-4-5-6-7-8-9-10-11-Total
L5: =+TABLAS!A118 -> 1-2-3-4-5-6-8-7-9-10-11-Total
L6: =+TABLAS!A153 -> 1-2-3-4-5-6-8-7-9-10-11-Total
L7: =+TABLAS!A188 -> 1-2-3-4-5-6-7-8-9-10-11-Total
L8: =+TABLAS!A224 -> 1-2-3-4-5-6-7-8-9-10-11-Total
L9: =+TABLAS!A259 -> 1-2-3-5-4-6-8-7-9-10-11-Total
H27: CONTROL DE MESES
H29: =+TABLAS!A81 -> 1-2-3-4-5-6-7-8-9-10-11-Total
C30: =+INFORME!S15 -> __ENE_NOV_2024

Sheet TABLAS (hidden)
C8: Valores | I8: Tabla | J8: =IF(I9="(Todas)","CUSCO ","") -> 
C9: RED | D9: 03 - LA CONVENCION | I9: =IF(MID(D9,1,2)="99","(All)",MID(D9,1,2)) -> 03 | J9: =IF(I9="(All)"," ",I9) -> 03 | M9: =LEN(MID(D9,5,90)) -> 14 | O9: =IF(MID(D9,6,5)="(All)","",D9) -> 03 - LA CONVENCION
C10: Micro RED | D10: 0399 - (All) | I10: =IF(MID(D10,3,2)="99","(All)",MID(D10,1,4)) -> (All) | M10: =LEN(MID(D10,7,90)) -> 6 | O10: =IF(MID(D10,8,5)="(All)","",D10) -> 
C11: Establecimiento | D11: 999999999 - (All) | I11: =IF(OR(MID(D11,1,9)="999999999",MID(D11,1,9)="000000000"),"(All)",MID(D11,1,9)) -> (All) | M11: =LEN(MID(D11,12,90)) -> 6 | O11: =IF(MID(D11,13,5)="(All)","",D11) -> 
C12: Provincia | D12: 00 - (All) | I12: =IF(MID(D12,1,2)="00","(All)",MID(D12,1,2)) -> (All) | M12: =LEN(MID(D12,6,90)) -> 5 | O12: =IF(MID(D12,6,5)="(All)","",D12) -> 
C13: Distrito | D13: 0000 - (All) | I13: =IF(OR(MID(D13,1,4)="0000",MID(D13,3,2)="00"),"(All)",MID(D13,1,4)) -> (All) | M13: =LEN(MID(D13,8,90)) -> 5 | O13: =IF(MID(D13,8,5)="(All)","",D13) -> 
C14: Ejecutira | D14: 99 - (ALL) | I14: =IF(MID(D14,1,2)="99","(All)",MID(D14,1,2)) -> (All) | M14: =LEN(MID(D14,5,90)) -> 6 | O14: =IF(MID(D14,6,5)="(All)","",D14) -> 
C16: Año | D16: 2024 | I16: =+D16 -> 2024 | J16: =IF(I16="(Todas)"," ",I16) -> 2024
B20: 1 | C20: 1 | D20: 1 | E20: 1 | F20: 1 | G20: 1 | H20: 1 | I20: 1 | J20: 1 | K20: 1 | L20: 1 | M20: 0 | N20: =SUM(B20:M20) -> 11
B21: =IF(B20=1,"ENERO","") -> ENERO | C21: =IF(C20=1,"FEBRERO","") -> FEBRERO | D21: =IF(D20=1,"MARZO","") -> MARZO | E21: =IF(E20=1,"ABRIL","") -> ABRIL | F21: =IF(F20=1,"MAYO","") -> MAYO | G21: =IF(G20=1,"JUNIO","") -> JUNIO | H21: =IF(H20=1,"JULIO","") -> JULIO | I21: =IF(I20=1,"AGOSTO","") -> AGOSTO | J21: =IF(J20=1,"SETIEMBRE","") -> SETIEMBRE | K21: =IF(K20=1,"OCTUBRE","") -> OCTUBRE | L21: =IF(L20=1,"NOVIEMBRE","") -> NOVIEMBRE | M21: =IF(M20=1,"DICIEMBRE","") ->  | N21: =IF(B20=1,B21,IF(C20=1,C21,IF(D20=1,D21,IF(E20=1,E21,IF(F20=1,F21,IF(G20=1,G21,IF(H20=1,H21,IF(I20=1,I21,IF(J20=1,J21,IF(K20=1,K21,IF(L20=1,L21,IF(M20=1,M21,"")))))))))))) -> ENERO
N22: =IF(N20=1,N21,"") -> 
B23: 2 | C23: 4 | D23: 6 | E23: 8 | F23: 10 | G23: 12 | H23: 14 | I23: 16 | J23: 18 | K23: 20 | L23: 22 | N23: =MIN(B23:M23) -> 2 | O23: =MAX(B23:M23) -> 22 | P23: =MAX(C23:N23) -> 22
B24: =IF(B23=2,"ENE","") -> ENE | C24: =IF(C23=4,"FEB","") -> FEB | D24: =IF(D23=6,"MAR","") -> MAR | E24: =IF(E23=8,"ABR","") -> ABR | F24: =IF(F23=10,"MAY","") -> MAY | G24: =IF(G23=12,"JUN","") -> JUN | H24: =IF(H23=14,"JUL","") -> JUL | I24: =IF(I23=16,"AGO","") -> AGO | J24: =IF(J23=18,"SET","") -> SET | K24: =IF(K23=20,"OCT","") -> OCT | L24: =IF(L23=22,"NOV","") -> NOV | M24: =IF(M23=24,"DIC","") ->  | N24: =IF(N23=B23,B24,IF(N23=C23,C24,IF(N23=D23,D24,IF(N23=E23,E24,IF(N23=F23,F24,IF(N23=G23,G24,IF(N23=H23,#REF!,IF(N23=I23,I24,IF(N23=J23,J24,IF(N23=K23,K24,IF(N23=L23,L24,IF(N23=M23,M24,"")))))))))))) -> ENE | O24: =IF(O23=C23,C24,IF(O23=D23,D24,IF(O23=E23,E24,IF(O23=F23,F24,IF(O23=G23,G24,IF(O23=H23,H24,IF(O23=I23,I24,IF(O23=J23,J24,IF(O23=K23,K24,IF(O23=L23,L24,IF(O23=M23,M24,""))))))))))) -> NOV | P24: =IF(P23=D23,D24,IF(P23=E23,E24,IF(P23=F23,F24,IF(P23=G23,G24,IF(P23=H23,H24,IF(P23=I23,I24,IF(P23=J23,J24,IF(P23=K23,K24,IF(P23=L23,L24,IF(P23=M23,M24,IF(P23=N23,N24,""))))))))))) -> NOV
N25: =CONCATENATE(N24," - ",O24) -> ENE - NOV
N26: =IF(N23=O23,N22,N25) -> ENE - NOV
A50: PLANI_01
A51: ANNO | B51: 2024
A52: cod_red | B52: 03
A53: codmic | B53: (Todas)
A54: cod_prov | B54: (Todas)
A55: coddist | B55: (Todas)
A56: cod_estab | B56: (Todas)
A57: cod_eje | B57: (Todas)
B59: Valores
A60: Etiquetas de fila | B60: BAS001 | C60: BAS002 | D60: BAS003 | E60: BAS004 | F60: BAS005 | G60: BAS006 | H60: BAS007 | I60: BAS008 | J60: BAS009 | K60: BAS010 | L60: BAS011 | M60: BAS012 | N60: BAS013 | O60: BAS014 | P60: BAS015 | Q60: BAS016 | R60: BAS017 | S60: BAS018 | T60: BAS019 | U60: BAS020 | V60: BAS021 | W60: BAS022 | X60: BAS023 | Y60: BAS024 | Z60: BAS025 | AA60: BAS026 | AB60: BAS027 | AC60: BAS028 | AD60: BAS029 | AE60: BAS030 | AF60: BAS031 | AG60: BAS032 | AH60: BAS033 | AI60: BAS034 | AJ60: BAS035 | AK60: BAS036 | AL60: BAS037 | AM60: BAS038 | AN60: BAS039 | AO60: BAS040 | AP60: BAS041 | AQ60: BAS042 | AR60: BAS043 | AS60: BAS044 | AT60: BAS045 | AU60: BAS046 | AV60: BAS047 | AW60: BAS048 | AX60: BAS049 | AY60: BAS050 | AZ60: BAS051 | BA60: BAS052 | BB60: BAS053 | BC60: BAS054 | BD60: BAS055 | BE60: BAS056 | BF60: BAS057 | BG60: BAS058 | BH60: BAS059 | BI60: BAS060 | BJ60: BAS061 | BK60: BAS062 | BL60: BAS063 | BM60: BAS064 | BN60: BAS065 | BO60: BAS066 | BP60: BAS067 | BQ60: BAS068 | BR60: BAS069 | BS60: BAS070 | BT60: BAS071 | BU60: BAS072 | BV60: BAS073 | BW60: BAS074 | BX60: BAS075 | BY60: BAS076 | BZ60: BAS077 | CA60: BAS078 | CB60: BAS079 | CC60: BAS080 | CD60: BAS081 | CE60: BAS082 | CF60: BAS083 | CG60: BAS084 | CH60: BAS085 | CI60: BAS086 | CJ60: BAS087 | CK60: BAS088 | CL60: BAS089 | CM60: BAS090 | CN60: BAS091 | CO60: BAS092 | CP60: BAS093 | CQ60: BAS094 | CR60: BAS095 | CS60: BAS096 | CT60: BAS097 | CU60: BAS098 | CV60: BAS099 | CW60: BAS100 | CX60: BAS101 | CY60: BAS102 | CZ60: BAS103 | DA60: BAS104 | DB60: BAS105 | DC60: BAS106 | DD60: BAS107 | DE60: BAS108 | DF60: BAS109 | DG60: BAS110 | DH60: BAS111 | DI60: BAS112 | DJ60: BAS113 | DK60: BAS114 | DL60: BAS115 | DM60: BAS116 | DN60: BAS117 | DO60: BAS118 | DP60: BAS119 | DQ60: BAS120 | DR60: BAS121 | DS60: BAS122 | DT60: BAS123 | DU60: BAS124 | DV60: BAS125 | DW60: BAS126 | DX60: BAS127 | DY60: BAS128 | DZ60: BAS129 | EA60: BAS130 | EB60: BAS131 | EC60: BAS132 | ED60: BAS133 | EE60: BAS134 | EF60: BAS135 | EG60: BAS136 | EH60: BAS137 | EI60: BAS138 | EJ60: BAS139 | EK60: BAS140 | EL60: BAS141 | EM60: BAS142 | EN60: BAS143 | EO60: BAS144 | EP60: BAS145 | EQ60: BAS146 | ER60: BAS147 | ES60: BAS148 | ET60: BAS149 | EU60: BAS150 | EV60: BAS151 | EW60: BAS152 | EX60: BAS153 | EY60: BAS154 | EZ60: BAS155 | FA60: BAS156 | FB60: BAS157 | FC60: BAS158 | FD60: BAS159 | FE60: BAS160 | FF60: BAS161 | FG60: BAS162 | FH60: BAS163 | FI60: BAS164 | FJ60: BAS165 | FK60: BAS166 | FL60: BAS167 | FM60: BAS168 | FN60: BAS169 | FO60: BAS170 | FP60: BAS171 | FQ60: BAS172 | FR60: BAS173 | FS60: BAS174 | FT60: BAS175 | FU60: BAS176 | FV60: BAS177 | FW60: BAS178 | FX60: BAS179 | FY60: BAS180 | FZ60: BAS181 | GA60: BAS182 | GB60: BAS183 | GC60: BAS184 | GD60: BAS185 | GE60: BAS186 | GF60: BAS187 | GG60: BAS188 | GH60: BAS189 | GI60: BAS190 | GJ60: BAS191 | GK60: BAS192 | GL60: BAS193 | GM60: BAS194 | GN60: BAS195 | GO60: BAS196 | GP60: BAS197 | GQ60: BAS198 | GR60: BAS199 | GS60: BAS200 | GT60: BAS201 | GU60: BAS202 | GV60: BAS203 | GW60: BAS204 | GX60: BAS205 | GY60: BAS206 | GZ60: BAS207 | HA60: BAS208 | HB60: BAS209 | HC60: BAS210 | HD60: BAS211 | HE60: BAS212 | HF60: BAS213 | HG60: BAS214 | HH60: BAS215 | HI60: BAS216 | HJ60: BAS217 | HK60: BAS218 | HL60: BAS219 | HM60: BAS220 | HN60: BAS221 | HO60: BAS222 | HP60: BAS223 | HQ60: BAS224 | HR60: BAS225 | HS60: BAS226 | HT60: BAS227 | HU60: BAS228 | HV60: BAS229 | HW60: BAS230
A61: 1 | B61: 0 | C61: 0 | D61: 0 | E61: 0 | F61: 0 | G61: 0 | H61: 0 | I61: 0 | J61: 0 | K61: 0 | L61: 0 | M61: 0 | N61: 0 | O61: 0 | P61: 0 | Q61: 0 | R61: 0 | S61: 0 | T61: 0 | U61: 0 | V61: 1 | W61: 0 | X61: 1 | Y61: 0 | Z61: 0 | AA61: 0 | AB61: 0 | AC61: 0 | AD61: 0 | AE61: 0 | AF61: 0 | AG61: 0 | AH61: 0 | AI61: 0 | AJ61: 0 | AK61: 0 | AL61: 0 | AM61: 0 | AN61: 0 | AO61: 0 | AP61: 0 | AQ61: 0 | AR61: 0 | AS61: 0 | AT61: 0 | AU61: 0 | AV61: 0 | AW61: 0 | AX61: 0 | AY61: 0 | AZ61: 0 | BA61: 0 | BB61: 0 | BC61: 0 | BD61: 0 | BE61: 0 | BF61: 0 | BG61: 0 | BH61: 0 | BI61: 0 | BJ61: 0 | BK61: 0 | BL61: 0 | BM61: 0 | BN61: 0 | BO61: 0 | BP61: 0 | BQ61: 0 | BR61: 0 | BS61: 0 | BT61: 0 | BU61: 0 | BV61: 0 | BW61: 0 | BX61: 0 | BY61: 0 | BZ61: 0 | CA61: 0 | CB61: 0 | CC61: 0 | CD61: 0 | CE61: 0 | CF61: 0 | CG61: 0 | CH61: 0 | CI61: 0 | CJ61: 10 | CK61: 0 | CL61: 2 | CM61: 0 | CN61: 0 | CO61: 0 | CP61: 0 | CQ61: 0 | CR61: 0 | CS61: 0 | CT61: 0 | CU61: 0 | CV61: 0 | CW61: 0 | CX61: 0 | CY61: 0 | CZ61: 0 | DA61: 0 | DB61: 0 | DC61: 0 | DD61: 0 | DE61: 0 | DF61: 0 | DG61: 0 | DH61: 0 | DI61: 0 | DJ61: 0 | DK61: 0 | DL61: 0 | DM61: 0 | DN61: 0 | DO61: 0 | DP61: 0 | DQ61: 0 | DR61: 0 | DS61: 0 | DT61: 0 | DU61: 0 | DV61: 0 | DW61: 0 | DX61: 0 | DY61: 0 | DZ61: 0 | EA61: 0 | EB61: 0 | EC61: 0 | ED61: 0 | EE61: 0 | EF61: 0 | EG61: 0 | EH61: 0 | EI61: 0 | EJ61: 0 | EK61: 0 | EL61: 0 | EM61: 0 | EN61: 0 | EO61: 0 | EP61: 0 | EQ61: 0 | ER61: 0 | ES61: 0 | ET61: 0 | EU61: 0 | EV61: 0 | EW61: 0 | EX61: 0 | EY61: 0 | EZ61: 0 | FA61: 0 | FB61: 0 | FC61: 0 | FD61: 0 | FE61: 0 | FF61: 0 | FG61: 0 | FH61: 0 | FI61: 0 | FJ61: 0 | FK61: 0 | FL61: 0 | FM61: 0 | FN61: 0 | FO61: 0 | FP61: 0 | FQ61: 0 | FR61: 0 | FS61: 0 | FT61: 0 | FU61: 0 | FV61: 0 | FW61: 0 | FX61: 0 | FY61: 0 | FZ61: 0 | GA61: 0 | GB61: 0 | GC61: 0 | GD61: 0 | GE61: 0 | GF61: 0 | GG61: 0 | GH61: 0 | GI61: 0 | GJ61: 0 | GK61: 0 | GL61: 0 | GM61: 0 | GN61: 0 | GO61: 0 | GP61: 0 | GQ61: 0 | GR61: 0 | GS61: 0 | GT61: 0 | GU61: 0 | GV61: 0 | GW61: 0 | GX61: 0 | GY61: 0 | GZ61: 0 | HA61: 0 | HB61: 0 | HC61: 0 | HD61: 0 | HE61: 0 | HF61: 0 | HG61: 0 | HH61: 0 | HI61: 0 | HJ61: 0 | HK61: 0 | HL61: 0 | HM61: 0 | HN61: 0 | HO61: 0 | HP61: 0 | HQ61: 0 | HR61: 0 | HS61: 0 | HT61: 0 | HU61: 0 | HV61: 0 | HW61: 0
A62: 2 | B62: 0 | C62: 0 | D62: 0 | E62: 0 | F62: 0 | G62: 0 | H62: 0 | I62: 0 | J62: 0 | K62: 0 | L62: 0 | M62: 0 | N62: 0 | O62: 0 | P62: 0 | Q62: 0 | R62: 0 | S62: 0 | T62: 0 | U62: 0 | V62: 0 | W62: 0 | X62: 0 | Y62: 0 | Z62: 0 | AA62: 0 | AB62: 0 | AC62: 0 | AD62: 0 | AE62: 0 | AF62: 0 | AG62: 0 | AH62: 0 | AI62: 0 | AJ62: 0 | AK62: 0 | AL62: 0 | AM62: 0 | AN62: 0 | AO62: 0 | AP62: 1 | AQ62: 1 | AR62: 1 | AS62: 1 | AT62: 0 | AU62: 0 | AV62: 0 | AW62: 0 | AX62: 0 | AY62: 0 | AZ62: 0 | BA62: 0 | BB62: 0 | BC62: 0 | BD62: 0 | BE62: 0 | BF62: 0 | BG62: 0 | BH62: 0 | BI62: 0 | BJ62: 0 | BK62: 0 | BL62: 0 | BM62: 0 | BN62: 0 | BO62: 0 | BP62: 0 | BQ62: 0 | BR62: 0 | BS62: 0 | BT62: 0 | BU62: 0 | BV62: 0 | BW62: 0 | BX62: 0 | BY62: 0 | BZ62: 0 | CA62: 0 | CB62: 0 | CC62: 0 | CD62: 0 | CE62: 0 | CF62: 0 | CG62: 0 | CH62: 0 | CI62: 0 | CJ62: 36 | CK62: 0 | CL62: 1 | CM62: 0 | CN62: 1 | CO62: 0 | CP62: 1 | CQ62: 0 | CR62: 1 | CS62: 0 | CT62: 0 | CU62: 0 | CV62: 0 | CW62: 0 | CX62: 0 | CY62: 0 | CZ62: 0 | DA62: 0 | DB62: 0 | DC62: 0 | DD62: 0 | DE62: 0 | DF62: 0 | DG62: 0 | DH62: 0 | DI62: 0 | DJ62: 0 | DK62: 0 | DL62: 0 | DM62: 0 | DN62: 0 | DO62: 0 | DP62: 0 | DQ62: 0 | DR62: 0 | DS62: 0 | DT62: 0 | DU62: 0 | DV62: 0 | DW62: 0 | DX62: 0 | DY62: 0 | DZ62: 0 | EA62: 0 | EB62: 0 | EC62: 0 | ED62: 0 | EE62: 0 | EF62: 0 | EG62: 0 | EH62: 0 | EI62: 0 | EJ62: 0 | EK62: 0 | EL62: 0 | EM62: 0 | EN62: 0 | EO62: 0 | EP62: 0 | EQ62: 0 | ER62: 0 | ES62: 0 | ET62: 0 | EU62: 0 | EV62: 0 | EW62: 0 | EX62: 0 | EY62: 0 | EZ62: 0 | FA62: 0 | FB62: 0 | FC62: 0 | FD62: 0 | FE62: 0 | FF62: 0 | FG62: 0 | FH62: 0 | FI62: 0 | FJ62: 0 | FK62: 0 | FL62: 0 | FM62: 0 | FN62: 0 | FO62: 0 | FP62: 0 | FQ62: 0 | FR62: 0 | FS62: 0 | FT62: 0 | FU62: 0 | FV62: 0 | FW62: 0 | FX62: 0 | FY62: 0 | FZ62: 0 | GA62: 0 | GB62: 0 | GC62: 0 | GD62: 0 | GE62: 0 | GF62: 0 | GG62: 0 | GH62: 0 | GI62: 0 | GJ62: 0 | GK62: 0 | GL62: 0 | GM62: 0 | GN62: 0 | GO62: 0 | GP62: 0 | GQ62: 0 | GR62: 0 | GS62: 0 | GT62: 0 | GU62: 0 | GV62: 0 | GW62: 0 | GX62: 0 | GY62: 0 | GZ62: 0 | HA62: 0 | HB62: 0 | HC62: 0 | HD62: 0 | HE62: 0 | HF62: 0 | HG62: 0 | HH62: 0 | HI62: 0 | HJ62: 0 | HK62: 0 | HL62: 0 | HM62: 0 | HN62: 0 | HO62: 0 | HP62: 0 | HQ62: 0 | HR62: 0 | HS62: 0 | HT62: 0 | HU62: 0 | HV62: 0 | HW62: 0
A63: 3 | B63: 0 | C63: 0 | D63: 0 | E63: 0 | F63: 0 | G63: 0 | H63: 0 | I63: 0 | J63: 0 | K63: 0 | L63: 0 | M63: 0 | N63: 0 | O63: 0 | P63: 0 | Q63: 0 | R63: 0 | S63: 0 | T63: 0 | U63: 0 | V63: 0 | W63: 0 | X63: 0 | Y63: 0 | Z63: 0 | AA63: 0 | AB63: 0 | AC63: 0 | AD63: 0 | AE63: 0 | AF63: 0 | AG63: 0 | AH63: 0 | AI63: 0 | AJ63: 0 | AK63: 0 | AL63: 0 | AM63: 0 | AN63: 0 | AO63: 0 | AP63: 1 | AQ63: 1 | AR63: 0 | AS63: 0 | AT63: 0 | AU63: 0 | AV63: 0 | AW63: 0 | AX63: 0 | AY63: 0 | AZ63: 0 | BA63: 0 | BB63: 0 | BC63: 0 | BD63: 0 | BE63: 0 | BF63: 0 | BG63: 0 | BH63: 0 | BI63: 0 | BJ63: 0 | BK63: 0 | BL63: 0 | BM63: 0 | BN63: 0 | BO63: 0 | BP63: 0 | BQ63: 0 | BR63: 0 | BS63: 0 | BT63: 0 | BU63: 0 | BV63: 0 | BW63: 0 | BX63: 0 | BY63: 0 | BZ63: 0 | CA63: 0 | CB63: 0 | CC63: 0 | CD63: 0 | CE63: 0 | CF63: 1 | CG63: 0 | CH63: 0 | CI63: 0 | CJ63: 16 | CK63: 0 | CL63: 3 | CM63: 0 | CN63: 0 | CO63: 0 | CP63: 0 | CQ63: 0 | CR63: 0 | CS63: 0 | CT63: 0 | CU63: 0 | CV63: 0 | CW63: 0 | CX63: 0 | CY63: 0 | CZ63: 0 | DA63: 0 | DB63: 0 | DC63: 0 | DD63: 0 | DE63: 0 | DF63: 0 | DG63: 0 | DH63: 0 | DI63: 0 | DJ63: 0 | DK63: 0 | DL63: 0 | DM63: 0 | DN63: 0 | DO63: 0 | DP63: 0 | DQ63: 0 | DR63: 0 | DS63: 0 | DT63: 0 | DU63: 0 | DV63: 0 | DW63: 0 | DX63: 0 | DY63: 0 | DZ63: 0 | EA63: 0 | EB63: 0 | EC63: 0 | ED63: 0 | EE63: 0 | EF63: 0 | EG63: 0 | EH63: 0 | EI63: 0 | EJ63: 0 | EK63: 0 | EL63: 0 | EM63: 0 | EN63: 0 | EO63: 0 | EP63: 0 | EQ63: 0 | ER63: 0 | ES63: 0 | ET63: 0 | EU63: 0 | EV63: 0 | EW63: 0 | EX63: 0 | EY63: 0 | EZ63: 0 | FA63: 0 | FB63: 0 | FC63: 0 | FD63: 0 | FE63: 0 | FF63: 0 | FG63: 0 | FH63: 0 | FI63: 0 | FJ63: 0 | FK63: 0 | FL63: 0 | FM63: 0 | FN63: 0 | FO63: 0 | FP63: 0 | FQ63: 0 | FR63: 0 | FS63: 0 | FT63: 0 | FU63: 0 | FV63: 0 | FW63: 0 | FX63: 0 | FY63: 0 | FZ63: 0 | GA63: 0 | GB63: 0 | GC63: 0 | GD63: 0 | GE63: 0 | GF63: 0 | GG63: 0 | GH63: 0 | GI63: 0 | GJ63: 0 | GK63: 0 | GL63: 0 | GM63: 0 | GN63: 0 | GO63: 0 | GP63: 0 | GQ63: 0 | GR63: 0 | GS63: 0 | GT63: 0 | GU63: 0 | GV63: 0 | GW63: 0 | GX63: 0 | GY63: 0 | GZ63: 0 | HA63: 0 | HB63: 0 | HC63: 0 | HD63: 0 | HE63: 0 | HF63: 0 | HG63: 0 | HH63: 0 | HI63: 0 | HJ63: 0 | HK63: 0 | HL63: 0 | HM63: 0 | HN63: 0 | HO63: 0 | HP63: 0 | HQ63: 0 | HR63: 0 | HS63: 0 | HT63: 0 | HU63: 0 | HV63: 0 | HW63: 0
A64: 4 | B64: 0 | C64: 0 | D64: 0 | E64: 0 | F64: 0 | G64: 0 | H64: 0 | I64: 0 | J64: 0 | K64: 0 | L64: 0 | M64: 0 | N64: 0 | O64: 0 | P64: 0 | Q64: 0 | R64: 0 | S64: 0 | T64: 0 | U64: 0 | V64: 0 | W64: 0 | X64: 0 | Y64: 0 | Z64: 1 | AA64: 0 | AB64: 2 | AC64: 0 | AD64: 0 | AE64: 0 | AF64: 0 | AG64: 0 | AH64: 0 | AI64: 0 | AJ64: 0 | AK64: 0 | AL64: 0 | AM64: 0 | AN64: 0 | AO64: 0 | AP64: 0 | AQ64: 0 | AR64: 0 | AS64: 0 | AT64: 0 | AU64: 0 | AV64: 0 | AW64: 0 | AX64: 0 | AY64: 0 | AZ64: 0 | BA64: 0 | BB64: 0 | BC64: 0 | BD64: 0 | BE64: 0 | BF64: 0 | BG64: 0 | BH64: 0 | BI64: 0 | BJ64: 0 | BK64: 0 | BL64: 0 | BM64: 0 | BN64: 0 | BO64: 0 | BP64: 0 | BQ64: 0 | BR64: 0 | BS64: 0 | BT64: 0 | BU64: 0 | BV64: 0 | BW64: 0 | BX64: 0 | BY64: 0 | BZ64: 0 | CA64: 0 | CB64: 0 | CC64: 0 | CD64: 0 | CE64: 0 | CF64: 0 | CG64: 0 | CH64: 0 | CI64: 0 | CJ64: 100 | CK64: 0 | CL64: 2 | CM64: 0 | CN64: 0 | CO64: 0 | CP64: 0 | CQ64: 0 | CR64: 0 | CS64: 0 | CT64: 0 | CU64: 0 | CV64: 0 | CW64: 0 | CX64: 0 | CY64: 0 | CZ64: 0 | DA64: 0 | DB64: 0 | DC64: 0 | DD64: 0 | DE64: 0 | DF64: 0 | DG64: 0 | DH64: 0 | DI64: 0 | DJ64: 0 | DK64: 0 | DL64: 0 | DM64: 0 | DN64: 0 | DO64: 0 | DP64: 0 | DQ64: 0 | DR64: 0 | DS64: 0 | DT64: 0 | DU64: 0 | DV64: 0 | DW64: 0 | DX64: 0 | DY64: 0 | DZ64: 0 | EA64: 0 | EB64: 0 | EC64: 0 | ED64: 0 | EE64: 0 | EF64: 0 | EG64: 0 | EH64: 0 | EI64: 0 | EJ64: 0 | EK64: 0 | EL64: 0 | EM64: 0 | EN64: 0 | EO64: 0 | EP64: 0 | EQ64: 0 | ER64: 0 | ES64: 0 | ET64: 0 | EU64: 0 | EV64: 0 | EW64: 0 | EX64: 0 | EY64: 0 | EZ64: 0 | FA64: 0 | FB64: 0 | FC64: 0 | FD64: 0 | FE64: 0 | FF64: 0 | FG64: 0 | FH64: 0 | FI64: 0 | FJ64: 0 | FK64: 0 | FL64: 0 | FM64: 0 | FN64: 0 | FO64: 0 | FP64: 0 | FQ64: 0 | FR64: 0 | FS64: 0 | FT64: 0 | FU64: 0 | FV64: 0 | FW64: 0 | FX64: 0 | FY64: 0 | FZ64: 0 | GA64: 0 | GB64: 0 | GC64: 0 | GD64: 0 | GE64: 0 | GF64: 0 | GG64: 0 | GH64: 0 | GI64: 0 | GJ64: 0 | GK64: 0 | GL64: 0 | GM64: 0 | GN64: 0 | GO64: 0 | GP64: 0 | GQ64: 0 | GR64: 0 | GS64: 0 | GT64: 0 | GU64: 0 | GV64: 0 | GW64: 0 | GX64: 0 | GY64: 0 | GZ64: 0 | HA64: 0 | HB64: 0 | HC64: 0 | HD64: 0 | HE64: 0 | HF64: 0 | HG64: 0 | HH64: 0 | HI64: 0 | HJ64: 0 | HK64: 0 | HL64: 0 | HM64: 0 | HN64: 0 | HO64: 0 | HP64: 0 | HQ64: 0 | HR64: 0 | HS64: 0 | HT64: 0 | HU64: 0 | HV64: 0 | HW64: 0
A65: 5 | B65: 0 | C65: 0 | D65: 0 | E65: 0 | F65: 0 | G65: 0 | H65: 0 | I65: 0 | J65: 0 | K65: 0 | L65: 0 | M65: 0 | N65: 0 | O65: 0 | P65: 1 | Q65: 0 | R65: 1 | S65: 0 | T65: 1 | U65: 0 | V65: 0 | W65: 0 | X65: 0 | Y65: 0 | Z65: 0 | AA65: 0 | AB65: 0 | AC65: 0 | AD65: 0 | AE65: 0 | AF65: 0 | AG65: 0 | AH65: 0 | AI65: 0 | AJ65: 0 | AK65: 0 | AL65: 0 | AM65: 0 | AN65: 0 | AO65: 0 | AP65: 0 | AQ65: 0 | AR65: 0 | AS65: 0 | AT65: 0 | AU65: 0 | AV65: 0 | AW65: 0 | AX65: 0 | AY65: 0 | AZ65: 0 | BA65: 0 | BB65: 0 | BC65: 0 | BD65: 1 | BE65: 0 | BF65: 0 | BG65: 0 | BH65: 0 | BI65: 0 | BJ65: 0 | BK65: 0 | BL65: 0 | BM65: 0 | BN65: 0 | BO65: 0 | BP65: 0 | BQ65: 0 | BR65: 0 | BS65: 1 | BT65: 0 | BU65: 0 | BV65: 0 | BW65: 0 | BX65: 0 | BY65: 0 | BZ65: 0 | CA65: 0 | CB65: 0 | CC65: 1 | CD65: 0 | CE65: 0 | CF65: 0 | CG65: 0 | CH65: 0 | CI65: 0 | CJ65: 14 | CK65: 0 | CL65: 1 | CM65: 0 | CN65: 0 | CO65: 0 | CP65: 0 | CQ65: 0 | CR65: 0 | CS65: 0 | CT65: 0 | CU65: 0 | CV65: 0 | CW65: 0 | CX65: 0 | CY65: 0 | CZ65: 0 | DA65: 0 | DB65: 0 | DC65: 0 | DD65: 0 | DE65: 0 | DF65: 0 | DG65: 0 | DH65: 0 | DI65: 0 | DJ65: 0 | DK65: 0 | DL65: 0 | DM65: 0 | DN65: 0 | DO65: 0 | DP65: 0 | DQ65: 0 | DR65: 0 | DS65: 0 | DT65: 0 | DU65: 0 | DV65: 0 | DW65: 0 | DX65: 0 | DY65: 0 | DZ65: 0 | EA65: 0 | EB65: 0 | EC65: 0 | ED65: 0 | EE65: 0 | EF65: 0 | EG65: 0 | EH65: 0 | EI65: 0 | EJ65: 0 | EK65: 0 | EL65: 0 | EM65: 0 | EN65: 0 | EO65: 0 | EP65: 0 | EQ65: 0 | ER65: 0 | ES65: 0 | ET65: 0 | EU65: 0 | EV65: 0 | EW65: 0 | EX65: 0 | EY65: 0 | EZ65: 0 | FA65: 0 | FB65: 0 | FC65: 0 | FD65: 0 | FE65: 0 | FF65: 0 | FG65: 0 | FH65: 0 | FI65: 0 | FJ65: 0 | FK65: 0 | FL65: 0 | FM65: 0 | FN65: 0 | FO65: 0 | FP65: 0 | FQ65: 0 | FR65: 0 | FS65: 0 | FT65: 0 | FU65: 0 | FV65: 0 | FW65: 0 | FX65: 0 | FY65: 0 | FZ65: 0 | GA65: 0 | GB65: 0 | GC65: 0 | GD65: 0 | GE65: 0 | GF65: 0 | GG65: 0 | GH65: 0 | GI65: 0 | GJ65: 0 | GK65: 0 | GL65: 0 | GM65: 0 | GN65: 0 | GO65: 0 | GP65: 0 | GQ65: 0 | GR65: 0 | GS65: 0 | GT65: 0 | GU65: 0 | GV65: 0 | GW65: 0 | GX65: 0 | GY65: 0 | GZ65: 0 | HA65: 0 | HB65: 0 | HC65: 0 | HD65: 0 | HE65: 0 | HF65: 0 | HG65: 0 | HH65: 0 | HI65: 0 | HJ65: 0 | HK65: 0 | HL65: 0 | HM65: 0 | HN65: 0 | HO65: 0 | HP65: 0 | HQ65: 0 | HR65: 0 | HS65: 0 | HT65: 0 | HU65: 0 | HV65: 0 | HW65: 0
A66: 6 | B66: 0 | C66: 0 | D66: 0 | E66: 0 | F66: 0 | G66: 0 | H66: 0 | I66: 0 | J66: 0 | K66: 0 | L66: 0 | M66: 0 | N66: 1 | O66: 0 | P66: 1 | Q66: 0 | R66: 0 | S66: 0 | T66: 0 | U66: 0 | V66: 0 | W66: 0 | X66: 0 | Y66: 0 | Z66: 0 | AA66: 0 | AB66: 0 | AC66: 0 | AD66: 0 | AE66: 0 | AF66: 0 | AG66: 0 | AH66: 0 | AI66: 0 | AJ66: 0 | AK66: 0 | AL66: 0 | AM66: 0 | AN66: 0 | AO66: 0 | AP66: 0 | AQ66: 0 | AR66: 0 | AS66: 0 | AT66: 0 | AU66: 0 | AV66: 0 | AW66: 0 | AX66: 0 | AY66: 0 | AZ66: 0 | BA66: 0 | BB66: 0 | BC66: 0 | BD66: 0 | BE66: 0 | BF66: 0 | BG66: 0 | BH66: 0 | BI66: 0 | BJ66: 0 | BK66: 0 | BL66: 0 | BM66: 0 | BN66: 0 | BO66: 0 | BP66: 0 | BQ66: 0 | BR66: 0 | BS66: 0 | BT66: 0 | BU66: 0 | BV66: 0 | BW66: 0 | BX66: 0 | BY66: 0 | BZ66: 0 | CA66: 0 | CB66: 1 | CC66: 0 | CD66: 0 | CE66: 0 | CF66: 0 | CG66: 0 | CH66: 0 | CI66: 0 | CJ66: 18 | CK66: 0 | CL66: 1 | CM66: 0 | CN66: 0 | CO66: 0 | CP66: 0 | CQ66: 0 | CR66: 0 | CS66: 0 | CT66: 0 | CU66: 0 | CV66: 0 | CW66: 0 | CX66: 0 | CY66: 0 | CZ66: 0 | DA66: 0 | DB66: 0 | DC66: 0 | DD66: 0 | DE66: 0 | DF66: 0 | DG66: 0 | DH66: 0 | DI66: 0 | DJ66: 0 | DK66: 0 | DL66: 0 | DM66: 0 | DN66: 0 | DO66: 0 | DP66: 0 | DQ66: 0 | DR66: 0 | DS66: 0 | DT66: 0 | DU66: 0 | DV66: 0 | DW66: 0 | DX66: 0 | DY66: 0 | DZ66: 0 | EA66: 0 | EB66: 0 | EC66: 0 | ED66: 0 | EE66: 0 | EF66: 0 | EG66: 0 | EH66: 0 | EI66: 0 | EJ66: 0 | EK66: 0 | EL66: 0 | EM66: 0 | EN66: 0 | EO66: 0 | EP66: 0 | EQ66: 0 | ER66: 0 | ES66: 0 | ET66: 0 | EU66: 0 | EV66: 0 | EW66: 0 | EX66: 0 | EY66: 0 | EZ66: 0 | FA66: 0 | FB66: 0 | FC66: 0 | FD66: 0 | FE66: 0 | FF66: 0 | FG66: 0 | FH66: 0 | FI66: 0 | FJ66: 0 | FK66: 0 | FL66: 0 | FM66: 0 | FN66: 0 | FO66: 0 | FP66: 0 | FQ66: 0 | FR66: 0 | FS66: 0 | FT66: 0 | FU66: 0 | FV66: 0 | FW66: 0 | FX66: 0 | FY66: 0 | FZ66: 0 | GA66: 0 | GB66: 0 | GC66: 0 | GD66: 0 | GE66: 0 | GF66: 0 | GG66: 0 | GH66: 0 | GI66: 0 | GJ66: 0 | GK66: 0 | GL66: 0 | GM66: 0 | GN66: 0 | GO66: 0 | GP66: 0 | GQ66: 0 | GR66: 0 | GS66: 0 | GT66: 0 | GU66: 0 | GV66: 0 | GW66: 0 | GX66: 0 | GY66: 0 | GZ66: 0 | HA66: 0 | HB66: 0 | HC66: 0 | HD66: 0 | HE66: 0 | HF66: 0 | HG66: 0 | HH66: 0 | HI66: 0 | HJ66: 0 | HK66: 0 | HL66: 0 | HM66: 0 | HN66: 0 | HO66: 0 | HP66: 0 | HQ66: 0 | HR66: 0 | HS66: 0 | HT66: 0 | HU66: 0 | HV66: 0 | HW66: 0
A67: 7 | B67: 0 | C67: 0 | D67: 0 | E67: 0 | F67: 0 | G67: 0 | H67: 0 | I67: 0 | J67: 0 | K67: 0 | L67: 0 | M67: 0 | N67: 0 | O67: 0 | P67: 0 | Q67: 0 | R67: 0 | S67: 0 | T67: 0 | U67: 0 | V67: 0 | W67: 0 | X67: 0 | Y67: 0 | Z67: 0 | AA67: 0 | AB67: 0 | AC67: 0 | AD67: 0 | AE67: 0 | AF67: 0 | AG67: 0 | AH67: 0 | AI67: 0 | AJ67: 0 | AK67: 0 | AL67: 0 | AM67: 0 | AN67: 0 | AO67: 0 | AP67: 0 | AQ67: 0 | AR67: 0 | AS67: 0 | AT67: 0 | AU67: 0 | AV67: 0 | AW67: 0 | AX67: 0 | AY67: 0 | AZ67: 0 | BA67: 0 | BB67: 0 | BC67: 0 | BD67: 0 | BE67: 0 | BF67: 0 | BG67: 0 | BH67: 0 | BI67: 0 | BJ67: 0 | BK67: 0 | BL67: 0 | BM67: 0 | BN67: 0 | BO67: 0 | BP67: 0 | BQ67: 0 | BR67: 0 | BS67: 0 | BT67: 0 | BU67: 0 | BV67: 0 | BW67: 0 | BX67: 0 | BY67: 0 | BZ67: 0 | CA67: 0 | CB67: 0 | CC67: 0 | CD67: 0 | CE67: 0 | CF67: 0 | CG67: 0 | CH67: 0 | CI67: 0 | CJ67: 14 | CK67: 0 | CL67: 1 | CM67: 0 | CN67: 0 | CO67: 0 | CP67: 0 | CQ67: 0 | CR67: 0 | CS67: 0 | CT67: 0 | CU67: 0 | CV67: 0 | CW67: 0 | CX67: 0 | CY67: 0 | CZ67: 0 | DA67: 0 | DB67: 0 | DC67: 0 | DD67: 0 | DE67: 0 | DF67: 0 | DG67: 0 | DH67: 0 | DI67: 0 | DJ67: 0 | DK67: 0 | DL67: 0 | DM67: 0 | DN67: 0 | DO67: 0 | DP67: 0 | DQ67: 0 | DR67: 0 | DS67: 0 | DT67: 0 | DU67: 0 | DV67: 0 | DW67: 0 | DX67: 0 | DY67: 0 | DZ67: 0 | EA67: 0 | EB67: 0 | EC67: 0 | ED67: 0 | EE67: 0 | EF67: 0 | EG67: 0 | EH67: 0 | EI67: 0 | EJ67: 0 | EK67: 0 | EL67: 0 | EM67: 0 | EN67: 0 | EO67: 0 | EP67: 0 | EQ67: 0 | ER67: 0 | ES67: 0 | ET67: 0 | EU67: 0 | EV67: 0 | EW67: 0 | EX67: 0 | EY67: 0 | EZ67: 0 | FA67: 0 | FB67: 0 | FC67: 0 | FD67: 0 | FE67: 0 | FF67: 0 | FG67: 0 | FH67: 0 | FI67: 0 | FJ67: 0 | FK67: 0 | FL67: 0 | FM67: 0 | FN67: 0 | FO67: 0 | FP67: 0 | FQ67: 0 | FR67: 0 | FS67: 0 | FT67: 0 | FU67: 0 | FV67: 0 | FW67: 0 | FX67: 0 | FY67: 0 | FZ67: 0 | GA67: 0 | GB67: 0 | GC67: 0 | GD67: 0 | GE67: 0 | GF67: 0 | GG67: 0 | GH67: 0 | GI67: 0 | GJ67: 0 | GK67: 0 | GL67: 0 | GM67: 0 | GN67: 0 | GO67: 0 | GP67: 0 | GQ67: 0 | GR67: 0 | GS67: 0 | GT67: 0 | GU67: 0 | GV67: 0 | GW67: 0 | GX67: 0 | GY67: 0 | GZ67: 0 | HA67: 0 | HB67: 0 | HC67: 0 | HD67: 0 | HE67: 0 | HF67: 0 | HG67: 0 | HH67: 0 | HI67: 0 | HJ67: 0 | HK67: 0 | HL67: 0 | HM67: 0 | HN67: 0 | HO67: 0 | HP67: 0 | HQ67: 0 | HR67: 0 | HS67: 0 | HT67: 0 | HU67: 0 | HV67: 0 | HW67: 0
A68: 8 | B68: 0 | C68: 0 | D68: 0 | E68: 0 | F68: 0 | G68: 0 | H68: 0 | I68: 0 | J68: 0 | K68: 0 | L68: 0 | M68: 0 | N68: 0 | O68: 0 | P68: 0 | Q68: 0 | R68: 0 | S68: 0 | T68: 0 | U68: 0 | V68: 0 | W68: 0 | X68: 0 | Y68: 0 | Z68: 0 | AA68: 0 | AB68: 0 | AC68: 0 | AD68: 0 | AE68: 0 | AF68: 0 | AG68: 0 | AH68: 0 | AI68: 0 | AJ68: 0 | AK68: 0 | AL68: 0 | AM68: 0 | AN68: 0 | AO68: 0 | AP68: 0 | AQ68: 0 | AR68: 0 | AS68: 0 | AT68: 0 | AU68: 0 | AV68: 0 | AW68: 0 | AX68: 0 | AY68: 0 | AZ68: 0 | BA68: 0 | BB68: 0 | BC68: 0 | BD68: 0 | BE68: 0 | BF68: 0 | BG68: 0 | BH68: 0 | BI68: 0 | BJ68: 0 | BK68: 0 | BL68: 0 | BM68: 0 | BN68: 0 | BO68: 0 | BP68: 0 | BQ68: 0 | BR68: 0 | BS68: 0 | BT68: 0 | BU68: 0 | BV68: 0 | BW68: 0 | BX68: 0 | BY68: 0 | BZ68: 0 | CA68: 0 | CB68: 0 | CC68: 0 | CD68: 0 | CE68: 0 | CF68: 0 | CG68: 0 | CH68: 0 | CI68: 0 | CJ68: 3 | CK68: 0 | CL68: 0 | CM68: 0 | CN68: 0 | CO68: 0 | CP68: 0 | CQ68: 0 | CR68: 0 | CS68: 0 | CT68: 0 | CU68: 0 | CV68: 0 | CW68: 0 | CX68: 0 | CY68: 0 | CZ68: 0 | DA68: 0 | DB68: 0 | DC68: 0 | DD68: 0 | DE68: 0 | DF68: 0 | DG68: 0 | DH68: 0 | DI68: 0 | DJ68: 0 | DK68: 0 | DL68: 0 | DM68: 0 | DN68: 0 | DO68: 0 | DP68: 0 | DQ68: 0 | DR68: 0 | DS68: 0 | DT68: 0 | DU68: 0 | DV68: 0 | DW68: 0 | DX68: 0 | DY68: 0 | DZ68: 0 | EA68: 0 | EB68: 0 | EC68: 0 | ED68: 0 | EE68: 0 | EF68: 0 | EG68: 0 | EH68: 0 | EI68: 0 | EJ68: 0 | EK68: 0 | EL68: 0 | EM68: 0 | EN68: 0 | EO68: 0 | EP68: 0 | EQ68: 0 | ER68: 0 | ES68: 0 | ET68: 0 | EU68: 0 | EV68: 0 | EW68: 0 | EX68: 0 | EY68: 0 | EZ68: 0 | FA68: 0 | FB68: 0 | FC68: 0 | FD68: 0 | FE68: 0 | FF68: 0 | FG68: 0 | FH68: 0 | FI68: 0 | FJ68: 0 | FK68: 0 | FL68: 0 | FM68: 0 | FN68: 0 | FO68: 0 | FP68: 0 | FQ68: 0 | FR68: 0 | FS68: 0 | FT68: 0 | FU68: 0 | FV68: 0 | FW68: 0 | FX68: 0 | FY68: 0 | FZ68: 0 | GA68: 0 | GB68: 0 | GC68: 0 | GD68: 0 | GE68: 0 | GF68: 0 | GG68: 0 | GH68: 0 | GI68: 0 | GJ68: 0 | GK68: 0 | GL68: 0 | GM68: 0 | GN68: 0 | GO68: 0 | GP68: 0 | GQ68: 0 | GR68: 0 | GS68: 0 | GT68: 0 | GU68: 0 | GV68: 0 | GW68: 0 | GX68: 0 | GY68: 0 | GZ68: 0 | HA68: 0 | HB68: 0 | HC68: 0 | HD68: 0 | HE68: 0 | HF68: 0 | HG68: 0 | HH68: 0 | HI68: 0 | HJ68: 0 | HK68: 0 | HL68: 0 | HM68: 0 | HN68: 0 | HO68: 0 | HP68: 0 | HQ68: 0 | HR68: 0 | HS68: 0 | HT68: 0 | HU68: 0 | HV68: 0 | HW68: 0
A69: 9 | B69: 0 | C69: 0 | D69: 0 | E69: 0 | F69: 0 | G69: 0 | H69: 0 | I69: 0 | J69: 0 | K69: 0 | L69: 0 | M69: 0 | N69: 0 | O69: 0 | P69: 0 | Q69: 0 | R69: 1 | S69: 0 | T69: 1 | U69: 0 | V69: 0 | W69: 0 | X69: 0 | Y69: 0 | Z69: 1 | AA69: 0 | AB69: 0 | AC69: 0 | AD69: 0 | AE69: 0 | AF69: 0 | AG69: 0 | AH69: 0 | AI69: 0 | AJ69: 0 | AK69: 0 | AL69: 0 | AM69: 0 | AN69: 0 | AO69: 0 | AP69: 1 | AQ69: 0 | AR69: 1 | AS69: 0 | AT69: 0 | AU69: 0 | AV69: 0 | AW69: 0 | AX69: 0 | AY69: 0 | AZ69: 0 | BA69: 0 | BB69: 0 | BC69: 0 | BD69: 0 | BE69: 0 | BF69: 0 | BG69: 0 | BH69: 0 | BI69: 0 | BJ69: 0 | BK69: 0 | BL69: 0 | BM69: 0 | BN69: 0 | BO69: 0 | BP69: 0 | BQ69: 0 | BR69: 0 | BS69: 0 | BT69: 0 | BU69: 0 | BV69: 0 | BW69: 0 | BX69: 0 | BY69: 0 | BZ69: 0 | CA69: 0 | CB69: 0 | CC69: 0 | CD69: 0 | CE69: 0 | CF69: 1 | CG69: 0 | CH69: 0 | CI69: 0 | CJ69: 7 | CK69: 0 | CL69: 2 | CM69: 0 | CN69: 1 | CO69: 0 | CP69: 1 | CQ69: 0 | CR69: 1 | CS69: 0 | CT69: 0 | CU69: 0 | CV69: 0 | CW69: 0 | CX69: 0 | CY69: 0 | CZ69: 0 | DA69: 0 | DB69: 0 | DC69: 0 | DD69: 0 | DE69: 0 | DF69: 0 | DG69: 0 | DH69: 0 | DI69: 0 | DJ69: 0 | DK69: 0 | DL69: 0 | DM69: 0 | DN69: 0 | DO69: 0 | DP69: 0 | DQ69: 0 | DR69: 0 | DS69: 0 | DT69: 0 | DU69: 0 | DV69: 0 | DW69: 0 | DX69: 0 | DY69: 0 | DZ69: 0 | EA69: 0 | EB69: 0 | EC69: 0 | ED69: 0 | EE69: 0 | EF69: 0 | EG69: 0 | EH69: 0 | EI69: 0 | EJ69: 0 | EK69: 0 | EL69: 0 | EM69: 0 | EN69: 0 | EO69: 0 | EP69: 0 | EQ69: 0 | ER69: 0 | ES69: 0 | ET69: 0 | EU69: 0 | EV69: 0 | EW69: 0 | EX69: 0 | EY69: 0 | EZ69: 0 | FA69: 0 | FB69: 0 | FC69: 0 | FD69: 0 | FE69: 0 | FF69: 0 | FG69: 0 | FH69: 0 | FI69: 0 | FJ69: 0 | FK69: 0 | FL69: 0 | FM69: 0 | FN69: 0 | FO69: 0 | FP69: 0 | FQ69: 0 | FR69: 0 | FS69: 0 | FT69: 0 | FU69: 0 | FV69: 0 | FW69: 0 | FX69: 0 | FY69: 0 | FZ69: 0 | GA69: 0 | GB69: 0 | GC69: 0 | GD69: 0 | GE69: 0 | GF69: 0 | GG69: 0 | GH69: 0 | GI69: 0 | GJ69: 0 | GK69: 0 | GL69: 0 | GM69: 0 | GN69: 0 | GO69: 0 | GP69: 0 | GQ69: 0 | GR69: 0 | GS69: 0 | GT69: 0 | GU69: 0 | GV69: 0 | GW69: 0 | GX69: 0 | GY69: 0 | GZ69: 0 | HA69: 0 | HB69: 0 | HC69: 0 | HD69: 0 | HE69: 0 | HF69: 0 | HG69: 0 | HH69: 0 | HI69: 0 | HJ69: 0 | HK69: 0 | HL69: 0 | HM69: 0 | HN69: 0 | HO69: 0 | HP69: 0 | HQ69: 0 | HR69: 0 | HS69: 0 | HT69: 0 | HU69: 0 | HV69: 0 | HW69: 0
A70: 10 | B70: 0 | C70: 0 | D70: 0 | E70: 0 | F70: 0 | G70: 0 | H70: 0 | I70: 0 | J70: 0 | K70: 0 | L70: 0 | M70: 0 | N70: 0 | O70: 0 | P70: 0 | Q70: 0 | R70: 0 | S70: 0 | T70: 0 | U70: 0 | V70: 0 | W70: 0 | X70: 0 | Y70: 0 | Z70: 0 | AA70: 0 | AB70: 0 | AC70: 0 | AD70: 0 | AE70: 0 | AF70: 0 | AG70: 0 | AH70: 0 | AI70: 0 | AJ70: 0 | AK70: 0 | AL70: 0 | AM70: 0 | AN70: 0 | AO70: 0 | AP70: 0 | AQ70: 0 | AR70: 0 | AS70: 0 | AT70: 0 | AU70: 0 | AV70: 0 | AW70: 0 | AX70: 0 | AY70: 0 | AZ70: 0 | BA70: 0 | BB70: 0 | BC70: 0 | BD70: 0 | BE70: 0 | BF70: 0 | BG70: 0 | BH70: 0 | BI70: 0 | BJ70: 0 | BK70: 0 | BL70: 0 | BM70: 0 | BN70: 0 | BO70: 0 | BP70: 0 | BQ70: 0 | BR70: 0 | BS70: 0 | BT70: 0 | BU70: 0 | BV70: 0 | BW70: 0 | BX70: 0 | BY70: 0 | BZ70: 0 | CA70: 0 | CB70: 0 | CC70: 0 | CD70: 0 | CE70: 0 | CF70: 0 | CG70: 0 | CH70: 0 | CI70: 0 | CJ70: 6 | CK70: 0 | CL70: 1 | CM70: 0 | CN70: 0 | CO70: 0 | CP70: 0 | CQ70: 0 | CR70: 0 | CS70: 0 | CT70: 0 | CU70: 0 | CV70: 0 | CW70: 0 | CX70: 0 | CY70: 0 | CZ70: 0 | DA70: 0 | DB70: 0 | DC70: 0 | DD70: 0 | DE70: 0 | DF70: 0 | DG70: 0 | DH70: 0 | DI70: 0 | DJ70: 0 | DK70: 0 | DL70: 0 | DM70: 0 | DN70: 0 | DO70: 0 | DP70: 0 | DQ70: 0 | DR70: 0 | DS70: 0 | DT70: 0 | DU70: 0 | DV70: 0 | DW70: 0 | DX70: 0 | DY70: 0 | DZ70: 0 | EA70: 0 | EB70: 0 | EC70: 0 | ED70: 0 | EE70: 0 | EF70: 0 | EG70: 0 | EH70: 0 | EI70: 0 | EJ70: 0 | EK70: 0 | EL70: 0 | EM70: 0 | EN70: 0 | EO70: 0 | EP70: 0 | EQ70: 0 | ER70: 0 | ES70: 0 | ET70: 0 | EU70: 0 | EV70: 0 | EW70: 0 | EX70: 0 | EY70: 0 | EZ70: 0 | FA70: 0 | FB70: 0 | FC70: 0 | FD70: 0 | FE70: 0 | FF70: 0 | FG70: 0 | FH70: 0 | FI70: 0 | FJ70: 0 | FK70: 0 | FL70: 0 | FM70: 0 | FN70: 0 | FO70: 0 | FP70: 0 | FQ70: 0 | FR70: 0 | FS70: 0 | FT70: 0 | FU70: 0 | FV70: 0 | FW70: 0 | FX70: 0 | FY70: 0 | FZ70: 0 | GA70: 0 | GB70: 0 | GC70: 0 | GD70: 0 | GE70: 0 | GF70: 0 | GG70: 0 | GH70: 0 | GI70: 0 | GJ70: 0 | GK70: 0 | GL70: 0 | GM70: 0 | GN70: 0 | GO70: 0 | GP70: 0 | GQ70: 0 | GR70: 0 | GS70: 0 | GT70: 0 | GU70: 0 | GV70: 0 | GW70: 0 | GX70: 0 | GY70: 0 | GZ70: 0 | HA70: 0 | HB70: 0 | HC70: 0 | HD70: 0 | HE70: 0 | HF70: 0 | HG70: 0 | HH70: 0 | HI70: 0 | HJ70: 0 | HK70: 0 | HL70: 0 | HM70: 0 | HN70: 0 | HO70: 0 | HP70: 0 | HQ70: 0 | HR70: 0 | HS70: 0 | HT70: 0 | HU70: 0 | HV70: 0 | HW70: 0
A71: 11 | B71: 0 | C71: 0 | D71: 0 | E71: 0 | F71: 0 | G71: 0 | H71: 0 | I71: 0 | J71: 0 | K71: 0 | L71: 0 | M71: 0 | N71: 0 | O71: 0 | P71: 0 | Q71: 0 | R71: 0 | S71: 1 | T71: 0 | U71: 1 | V71: 0 | W71: 0 | X71: 0 | Y71: 0 | Z71: 0 | AA71: 0 | AB71: 0 | AC71: 0 | AD71: 0 | AE71: 0 | AF71: 0 | AG71: 0 | AH71: 0 | AI71: 0 | AJ71: 0 | AK71: 0 | AL71: 0 | AM71: 0 | AN71: 0 | AO71: 0 | AP71: 0 | AQ71: 0 | AR71: 0 | AS71: 0 | AT71: 0 | AU71: 0 | AV71: 0 | AW71: 0 | AX71: 0 | AY71: 0 | AZ71: 0 | BA71: 0 | BB71: 0 | BC71: 0 | BD71: 0 | BE71: 0 | BF71: 0 | BG71: 0 | BH71: 0 | BI71: 0 | BJ71: 0 | BK71: 0 | BL71: 0 | BM71: 0 | BN71: 0 | BO71: 0 | BP71: 0 | BQ71: 0 | BR71: 0 | BS71: 0 | BT71: 0 | BU71: 0 | BV71: 0 | BW71: 0 | BX71: 0 | BY71: 0 | BZ71: 0 | CA71: 0 | CB71: 1 | CC71: 0 | CD71: 0 | CE71: 0 | CF71: 0 | CG71: 0 | CH71: 0 | CI71: 0 | CJ71: 19 | CK71: 0 | CL71: 0 | CM71: 0 | CN71: 0 | CO71: 0 | CP71: 0 | CQ71: 0 | CR71: 0 | CS71: 0 | CT71: 0 | CU71: 0 | CV71: 0 | CW71: 0 | CX71: 0 | CY71: 0 | CZ71: 0 | DA71: 0 | DB71: 0 | DC71: 0 | DD71: 0 | DE71: 0 | DF71: 0 | DG71: 0 | DH71: 0 | DI71: 0 | DJ71: 0 | DK71: 0 | DL71: 0 | DM71: 0 | DN71: 0 | DO71: 0 | DP71: 0 | DQ71: 0 | DR71: 0 | DS71: 0 | DT71: 0 | DU71: 0 | DV71: 0 | DW71: 0 | DX71: 0 | DY71: 0 | DZ71: 0 | EA71: 0 | EB71: 0 | EC71: 0 | ED71: 0 | EE71: 0 | EF71: 0 | EG71: 0 | EH71: 0 | EI71: 0 | EJ71: 0 | EK71: 0 | EL71: 0 | EM71: 0 | EN71: 0 | EO71: 0 | EP71: 0 | EQ71: 0 | ER71: 0 | ES71: 0 | ET71: 0 | EU71: 0 | EV71: 0 | EW71: 0 | EX71: 0 | EY71: 0 | EZ71: 0 | FA71: 0 | FB71: 0 | FC71: 0 | FD71: 0 | FE71: 0 | FF71: 0 | FG71: 0 | FH71: 0 | FI71: 0 | FJ71: 0 | FK71: 0 | FL71: 0 | FM71: 0 | FN71: 0 | FO71: 0 | FP71: 0 | FQ71: 0 | FR71: 0 | FS71: 0 | FT71: 0 | FU71: 0 | FV71: 0 | FW71: 0 | FX71: 0 | FY71: 0 | FZ71: 0 | GA71: 0 | GB71: 0 | GC71: 0 | GD71: 0 | GE71: 0 | GF71: 0 | GG71: 0 | GH71: 0 | GI71: 0 | GJ71: 0 | GK71: 0 | GL71: 0 | GM71: 0 | GN71: 0 | GO71: 0 | GP71: 0 | GQ71: 0 | GR71: 0 | GS71: 0 | GT71: 0 | GU71: 0 | GV71: 0 | GW71: 0 | GX71: 0 | GY71: 0 | GZ71: 0 | HA71: 0 | HB71: 0 | HC71: 0 | HD71: 0 | HE71: 0 | HF71: 0 | HG71: 0 | HH71: 0 | HI71: 0 | HJ71: 0 | HK71: 0 | HL71: 0 | HM71: 0 | HN71: 0 | HO71: 0 | HP71: 0 | HQ71: 0 | HR71: 0 | HS71: 0 | HT71: 0 | HU71: 0 | HV71: 0 | HW71: 0
A72: Total | B72: 0 | C72: 0 | D72: 0 | E72: 0 | F72: 0 | G72: 0 | H72: 0 | I72: 0 | J72: 0 | K72: 0 | L72: 0 | M72: 0 | N72: 1 | O72: 0 | P72: 2 | Q72: 0 | R72: 2 | S72: 1 | T72: 2 | U72: 1 | V72: 1 | W72: 0 | X72: 1 | Y72: 0 | Z72: 2 | AA72: 0 | AB72: 2 | AC72: 0 | AD72: 0 | AE72: 0 | AF72: 0 | AG72: 0 | AH72: 0 | AI72: 0 | AJ72: 0 | AK72: 0 | AL72: 0 | AM72: 0 | AN72: 0 | AO72: 0 | AP72: 3 | AQ72: 2 | AR72: 2 | AS72: 1 | AT72: 0 | AU72: 0 | AV72: 0 | AW72: 0 | AX72: 0 | AY72: 0 | AZ72: 0 | BA72: 0 | BB72: 0 | BC72: 0 | BD72: 1 | BE72: 0 | BF72: 0 | BG72: 0 | BH72: 0 | BI72: 0 | BJ72: 0 | BK72: 0 | BL72: 0 | BM72: 0 | BN72: 0 | BO72: 0 | BP72: 0 | BQ72: 0 | BR72: 0 | BS72: 1 | BT72: 0 | BU72: 0 | BV72: 0 | BW72: 0 | BX72: 0 | BY72: 0 | BZ72: 0 | CA72: 0 | CB72: 2 | CC72: 1 | CD72: 0 | CE72: 0 | CF72: 2 | CG72: 0 | CH72: 0 | CI72: 0 | CJ72: 243 | CK72: 0 | CL72: 14 | CM72: 0 | CN72: 2 | CO72: 0 | CP72: 2 | CQ72: 0 | CR72: 2 | CS72: 0 | CT72: 0 | CU72: 0 | CV72: 0 | CW72: 0 | CX72: 0 | CY72: 0 | CZ72: 0 | DA72: 0 | DB72: 0 | DC72: 0 | DD72: 0 | DE72: 0 | DF72: 0 | DG72: 0 | DH72: 0 | DI72: 0 | DJ72: 0 | DK72: 0 | DL72: 0 | DM72: 0 | DN72: 0 | DO72: 0 | DP72: 0 | DQ72: 0 | DR72: 0 | DS72: 0 | DT72: 0 | DU72: 0 | DV72: 0 | DW72: 0 | DX72: 0 | DY72: 0 | DZ72: 0 | EA72: 0 | EB72: 0 | EC72: 0 | ED72: 0 | EE72: 0 | EF72: 0 | EG72: 0 | EH72: 0 | EI72: 0 | EJ72: 0 | EK72: 0 | EL72: 0 | EM72: 0 | EN72: 0 | EO72: 0 | EP72: 0 | EQ72: 0 | ER72: 0 | ES72: 0 | ET72: 0 | EU72: 0 | EV72: 0 | EW72: 0 | EX72: 0 | EY72: 0 | EZ72: 0 | FA72: 0 | FB72: 0 | FC72: 0 | FD72: 0 | FE72: 0 | FF72: 0 | FG72: 0 | FH72: 0 | FI72: 0 | FJ72: 0 | FK72: 0 | FL72: 0 | FM72: 0 | FN72: 0 | FO72: 0 | FP72: 0 | FQ72: 0 | FR72: 0 | FS72: 0 | FT72: 0 | FU72: 0 | FV72: 0 | FW72: 0 | FX72: 0 | FY72: 0 | FZ72: 0 | GA72: 0 | GB72: 0 | GC72: 0 | GD72: 0 | GE72: 0 | GF72: 0 | GG72: 0 | GH72: 0 | GI72: 0 | GJ72: 0 | GK72: 0 | GL72: 0 | GM72: 0 | GN72: 0 | GO72: 0 | GP72: 0 | GQ72: 0 | GR72: 0 | GS72: 0 | GT72: 0 | GU72: 0 | GV72: 0 | GW72: 0 | GX72: 0 | GY72: 0 | GZ72: 0 | HA72: 0 | HB72: 0 | HC72: 0 | HD72: 0 | HE72: 0 | HF72: 0 | HG72: 0 | HH72: 0 | HI72: 0 | HJ72: 0 | HK72: 0 | HL72: 0 | HM72: 0 | HN72: 0 | HO72: 0 | HP72: 0 | HQ72: 0 | HR72: 0 | HS72: 0 | HT72: 0 | HU72: 0 | HV72: 0 | HW72: 0
A79: TOTAL
A80: =COUNT(A61:A77) -> 11 | B80: =SUM(B61:B77) -> 0 | C80: =SUM(C61:C77) -> 0 | D80: 0 | E80: 0 | F80: 0 | G80: 0 | H80: 0 | I80: 0 | J80: 0 | K80: 0 | L80: 0 | M80: 0 | N80: 2 | O80: 0 | P80: 4 | Q80: 0 | R80: 4 | S80: 2 | T80: 4 | U80: 2 | V80: 2 | W80: 0 | X80: 2 | Y80: 0 | Z80: 4 | AA80: 0 | AB80: 4 | AC80: 0 | AD80: 0 | AE80: 0 | AF80: 0 | AG80: 0 | AH80: 0 | AI80: 0 | AJ80: 0 | AK80: 0 | AL80: 0 | AM80: 0 | AN80: 0 | AO80: 0 | AP80: 6 | AQ80: 4 | AR80: 4 | AS80: 2 | AT80: 0 | AU80: 0 | AV80: 0 | AW80: 0 | AX80: 0 | AY80: 0 | AZ80: 0 | BA80: 0 | BB80: 0 | BC80: 0 | BD80: 2 | BE80: 0 | BF80: 0 | BG80: 0 | BH80: 0 | BI80: 0 | BJ80: 0 | BK80: 0 | BL80: 0 | BM80: 0 | BN80: 0 | BO80: =SUM(BO61:BO77) -> 0 | BP80: 0 | BQ80: 0 | BR80: 0 | BS80: 2 | BT80: 0 | BU80: 0 | BV80: 0 | BW80: 0 | BX80: 0 | BY80: 0 | BZ80: 0 | CA80: 0 | CB80: 4 | CC80: 2 | CD80: 0 | CE80: 0 | CF80: 4 | CG80: 0 | CH80: 0 | CI80: 0 | CJ80: 486 | CK80: 0 | CL80: 28 | CM80: 0 | CN80: 4 | CO80: 0 | CP80: 4 | CQ80: 0 | CR80: 4 | CS80: 0 | CT80: 0 | CU80: 0 | CV80: 0 | CW80: 0 | CX80: 0 | CY80: 0 | CZ80: 0 | DA80: 0 | DB80: 0 | DC80: 0 | DD80: 0 | DE80: 0 | DF80: 0 | DG80: 0 | DH80: 0 | DI80: 0 | DJ80: 0 | DK80: 0 | DL80: 0 | DM80: 0 | DN80: 0 | DO80: 0 | DP80: 0 | DQ80: 0 | DR80: 0 | DS80: 0 | DT80: 0 | DU80: 0 | DV80: 0 | DW80: 0 | DX80: 0 | DY80: 0 | DZ80: 0 | EA80: =SUM(EA61:EA77) -> 0 | EB80: 0 | EC80: 0 | ED80: 0 | EE80: 0 | EF80: 0 | EG80: 0 | EH80: 0 | EI80: 0 | EJ80: 0 | EK80: 0 | EL80: 0 | EM80: 0 | EN80: 0 | EO80: 0 | EP80: 0 | EQ80: 0 | ER80: 0 | ES80: 0 | ET80: 0 | EU80: 0 | EV80: 0 | EW80: 0 | EX80: 0 | EY80: 0 | EZ80: 0 | FA80: 0 | FB80: 0 | FC80: 0 | FD80: 0 | FE80: 0 | FF80: 0 | FG80: 0 | FH80: 0 | FI80: 0 | FJ80: 0 | FK80: 0 | FL80: 0 | FM80: 0 | FN80: 0 | FO80: 0 | FP80: 0 | FQ80: 0 | FR80: 0 | FS80: 0 | FT80: 0 | FU80: 0 | FV80: 0 | FW80: 0 | FX80: 0 | FY80: 0 | FZ80: 0 | GA80: 0 | GB80: 0 | GC80: 0 | GD80: 0 | GE80: 0 | GF80: 0 | GG80: 0 | GH80: 0 | GI80: 0 | GJ80: 0 | GK80: 0 | GL80: 0 | GM80: =SUM(GM61:GM77) -> 0 | GN80: 0 | GO80: 0 | GP80: 0 | GQ80: 0 | GR80: 0 | GS80: 0 | GT80: 0 | GU80: 0 | GV80: 0 | GW80: 0 | GX80: 0 | GY80: 0 | GZ80: 0 | HA80: 0 | HB80: 0 | HC80: 0 | HD80: 0 | HE80: 0 | HF80: 0 | HG80: 0 | HH80: 0 | HI80: 0 | HJ80: 0 | HK80: 0 | HL80: 0 | HM80: 0 | HN80: 0 | HO80: 0 | HP80: 0 | HQ80: 0 | HR80: 0 | HS80: 0 | HT80: 0 | HU80: 0 | HV80: 0 | HW80: 0 | HX80: 0
A81: =CONCATENATE(A61,"-",A62,"-",A63,"-",A64,"-",A65,"-",A66,"-",A67,"-",A68,"-",A69,"-",A70,"-",A71,"-",A72) -> 1-2-3-4-5-6-7-8-9-10-11-Total
B82: BAS001 | C82: BAS002 | D82: BAS003 | E82: BAS004 | F82: BAS005 | G82: BAS006 | H82: BAS007 | I82: BAS008 | J82: BAS009 | K82: BAS010 | L82: BAS011 | M82: BAS012 | N82: BAS013 | O82: BAS014 | P82: BAS015 | Q82: BAS016 | R82: BAS017 | S82: BAS018 | T82: BAS019 | U82: BAS020 | V82: BAS021 | W82: BAS022 | X82: BAS023 | Y82: BAS024 | Z82: BAS025 | AA82: BAS026 | AB82: BAS027 | AC82: BAS028 | AD82: BAS029 | AE82: BAS030 | AF82: BAS031 | AG82: BAS032 | AH82: BAS033 | AI82: BAS034 | AJ82: BAS035 | AK82: BAS036 | AL82: BAS037 | AM82: BAS038 | AN82: BAS039 | AO82: BAS040 | AP82: BAS041 | AQ82: BAS042 | AR82: BAS043 | AS82: BAS044 | AT82: BAS045 | AU82: BAS046 | AV82: BAS047 | AW82: BAS048 | AX82: BAS049 | AY82: BAS050 | AZ82: BAS051 | BA82: BAS052 | BB82: BAS053 | BC82: BAS054 | BD82: BAS055 | BE82: BAS056 | BF82: BAS057 | BG82: BAS058 | BH82: BAS059 | BI82: BAS060 | BJ82: BAS061 | BK82: BAS062 | BL82: BAS063 | BM82: BAS064 | BN82: BAS065 | BO82: BAS066 | BP82: BAS067 | BQ82: BAS068 | BR82: BAS069 | BS82: BAS070 | BT82: BAS071 | BU82: BAS072 | BV82: BAS073 | BW82: BAS074 | BX82: BAS075 | BY82: BAS076 | BZ82: BAS077 | CA82: BAS078 | CB82: BAS079 | CC82: BAS080 | CD82: BAS081 | CE82: BAS082 | CF82: BAS083 | CG82: BAS084 | CH82: BAS085 | CI82: BAS086 | CJ82: BAS087 | CK82: BAS088 | CL82: BAS089 | CM82: BAS090 | CN82: BAS091 | CO82: BAS092 | CP82: BAS093 | CQ82: BAS094 | CR82: BAS095 | CS82: BAS096 | CT82: BAS097 | CU82: BAS098 | CV82: BAS099 | CW82: BAS100 | CX82: BAS101 | CY82: BAS102 | CZ82: BAS103 | DA82: BAS104 | DB82: BAS105 | DC82: BAS106 | DD82: BAS107 | DE82: BAS108 | DF82: BAS109 | DG82: BAS110 | DH82: BAS111 | DI82: BAS112 | DJ82: BAS113 | DK82: BAS114 | DL82: BAS115 | DM82: BAS116 | DN82: BAS117 | DO82: BAS118 | DP82: BAS119 | DQ82: BAS120 | DR82: BAS121 | DS82: BAS122 | DT82: BAS123 | DU82: BAS124 | DV82: BAS125 | DW82: BAS126 | DX82: BAS127 | DY82: BAS128 | DZ82: BAS129 | EA82: BAS130 | EB82: BAS131 | EC82: BAS132 | ED82: BAS133 | EE82: BAS134 | EF82: BAS135 | EG82: BAS136 | EH82: BAS137 | EI82: BAS138 | EJ82: BAS139 | EK82: BAS140 | EL82: BAS141 | EM82: BAS142 | EN82: BAS143 | EO82: BAS144 | EP82: BAS145 | EQ82: BAS146 | ER82: BAS147 | ES82: BAS148 | ET82: BAS149 | EU82: BAS150 | EV82: BAS151 | EW82: BAS152 | EX82: BAS153 | EY82: BAS154 | EZ82: BAS155 | FA82: BAS156 | FB82: BAS157 | FC82: BAS158 | FD82: BAS159 | FE82: BAS160 | FF82: BAS161 | FG82: BAS162 | FH82: BAS163 | FI82: BAS164 | FJ82: BAS165 | FK82: BAS166 | FL82: BAS167 | FM82: BAS168 | FN82: BAS169 | FO82: BAS170 | FP82: BAS171 | FQ82: BAS172 | FR82: BAS173 | FS82: BAS174 | FT82: BAS175 | FU82: BAS176 | FV82: BAS177 | FW82: BAS178 | FX82: BAS179 | FY82: BAS180 | FZ82: BAS181 | GA82: BAS182 | GB82: BAS183 | GC82: BAS184 | GD82: BAS185 | GE82: BAS186 | GF82: BAS187 | GG82: BAS188 | GH82: BAS189 | GI82: BAS190 | GJ82: BAS191 | GK82: BAS192 | GL82: BAS193 | GM82: BAS194 | GN82: BAS195 | GO82: BAS196 | GP82: BAS197 | GQ82: BAS198 | GR82: BAS199 | GS82: BAS200 | GT82: BAS201 | GU82: BAS202 | GV82: BAS203 | GW82: BAS204 | GX82: BAS205 | GY82: BAS206 | GZ82: BAS207 | HA82: BAS208 | HB82: BAS209 | HC82: BAS210 | HD82: BAS211 | HE82: BAS212 | HF82: BAS213 | HG82: BAS214 | HH82: BAS215 | HI82: BAS216 | HJ82: BAS217 | HK82: BAS218 | HL82: BAS219 | HM82: BAS220 | HN82: BAS221 | HO82: BAS222 | HP82: BAS223 | HQ82: BAS224 | HR82: BAS225 | HS82: BAS226 | HT82: BAS227 | HU82: BAS228 | HV82: BAS229 | HW82: BAS230
B83: =IF(B82=B60,"SI","NO") -> SI | C83: =IF(C82=C60,"SI","NO") -> SI | D83: SI | E83: SI | F83: SI | G83: SI | H83: SI | I83: SI | J83: SI | K83: SI | L83: SI | M83: SI | N83: SI | O83: SI | P83: SI | Q83: SI | R83: SI | S83: SI | T83: SI | U83: SI | V83: SI | W83: SI | X83: SI | Y83: SI | Z83: SI | AA83: SI | AB83: SI | AC83: SI | AD83: SI | AE83: SI | AF83: SI | AG83: SI | AH83: SI | AI83: SI | AJ83: SI | AK83: SI | AL83: SI | AM83: SI | AN83: SI | AO83: SI | AP83: SI | AQ83: SI | AR83: SI | AS83: SI | AT83: SI | AU83: SI | AV83: SI | AW83: SI | AX83: SI | AY83: SI | AZ83: SI | BA83: SI | BB83: SI | BC83: SI | BD83: SI | BE83: SI | BF83: SI | BG83: SI | BH83: SI | BI83: SI | BJ83: SI | BK83: SI | BL83: SI | BM83: SI | BN83: SI | BO83: =IF(BO82=BO60,"SI","NO") -> SI | BP83: SI | BQ83: SI | BR83: SI | BS83: SI | BT83: SI | BU83: SI | BV83: SI | BW83: SI | BX83: SI | BY83: SI | BZ83: SI | CA83: SI | CB83: SI | CC83: SI | CD83: SI | CE83: SI | CF83: SI | CG83: SI | CH83: SI | CI83: SI | CJ83: SI | CK83: SI | CL83: SI | CM83: SI | CN83: SI | CO83: SI | CP83: SI | CQ83: SI | CR83: SI | CS83: SI | CT83: SI | CU83: SI | CV83: SI | CW83: SI | CX83: SI | CY83: SI | CZ83: SI | DA83: SI | DB83: SI | DC83: SI | DD83: SI | DE83: SI | DF83: SI | DG83: SI | DH83: SI | DI83: SI | DJ83: SI | DK83: SI | DL83: SI | DM83: SI | DN83: SI | DO83: SI | DP83: SI | DQ83: SI | DR83: SI | DS83: SI | DT83: SI | DU83: SI | DV83: SI | DW83: SI | DX83: SI | DY83: SI | DZ83: SI | EA83: =IF(EA82=EA60,"SI","NO") -> SI | EB83: SI | EC83: SI | ED83: SI | EE83: SI | EF83: SI | EG83: SI | EH83: SI | EI83: SI | EJ83: SI | EK83: SI | EL83: SI | EM83: SI | EN83: SI | EO83: SI | EP83: SI | EQ83: SI | ER83: SI | ES83: SI | ET83: SI | EU83: SI | EV83: SI | EW83: SI | EX83: SI | EY83: SI | EZ83: SI | FA83: SI | FB83: SI | FC83: SI | FD83: SI | FE83: SI | FF83: SI | FG83: SI | FH83: SI | FI83: SI | FJ83: SI | FK83: SI | FL83: SI | FM83: SI | FN83: SI | FO83: SI | FP83: SI | FQ83: SI | FR83: SI | FS83: SI | FT83: SI | FU83: SI | FV83: SI | FW83: SI | FX83: SI | FY83: SI | FZ83: SI | GA83: SI | GB83: SI | GC83: SI | GD83: SI | GE83: SI | GF83: SI | GG83: SI | GH83: SI | GI83: SI | GJ83: SI | GK83: SI | GL83: SI | GM83: =IF(GM82=GM60,"SI","NO") -> SI | GN83: SI | GO83: SI | GP83: SI | GQ83: SI | GR83: SI | GS83: SI | GT83: SI | GU83: SI | GV83: SI | GW83: SI | GX83: SI | GY83: SI | GZ83: SI | HA83: SI | HB83: SI | HC83: SI | HD83: SI | HE83: SI | HF83: SI | HG83: SI | HH83: SI | HI83: SI | HJ83: SI | HK83: SI | HL83: SI | HM83: SI | HN83: SI | HO83: SI | HP83: SI | HQ83: SI | HR83: SI | HS83: SI | HT83: SI | HU83: SI | HV83: SI | HW83: SI
A88: PLANI_02
A89: ANNO | B89: 2024
A90: cod_red | B90: 03
A91: codmic | B91: (Todas)
A92: cod_prov | B92: (Todas)
A93: coddist | B93: (Todas)
A94: cod_estab | B94: (Todas)
A95: cod_eje | B95: (Todas)
B97: Valores
A98: Etiquetas de fila | B98: BAS001 | C98: BAS002 | D98: BAS003 | E98: BAS004 | F98: BAS005 | G98: BAS006 | H98: BAS007 | I98: BAS008 | J98: BAS009 | K98: BAS010 | L98: BAS011 | M98: BAS012 | N98: BAS013 | O98: BAS014 | P98: BAS015 | Q98: BAS016 | R98: BAS017 | S98: BAS018 | T98: BAS019 | U98: BAS020 | V98: BAS021 | W98: BAS022 | X98: BAS023 | Y98: BAS024 | Z98: BAS025 | AA98: BAS026 | AB98: BAS027 | AC98: BAS028 | AD98: BAS029 | AE98: BAS030 | AF98: BAS031 | AG98: BAS032 | AH98: BAS033 | AI98: BAS034 | AJ98: BAS035 | AK98: BAS036 | AL98: BAS037 | AM98: BAS038 | AN98: BAS039 | AO98: BAS040 | AP98: BAS041 | AQ98: BAS042 | AR98: BAS043 | AS98: BAS044 | AT98: BAS045 | AU98: BAS046 | AV98: BAS047 | AW98: BAS048 | AX98: BAS049 | AY98: BAS050 | AZ98: BAS051 | BA98: BAS052 | BB98: BAS053 | BC98: BAS054 | BD98: BAS055 | BE98: BAS056 | BF98: BAS057 | BG98: BAS058 | BH98: BAS059 | BI98: BAS060 | BJ98: BAS061 | BK98: BAS062 | BL98: BAS063 | BM98: BAS064 | BN98: BAS065 | BO98: BAS066 | BP98: BAS067 | BQ98: BAS068 | BR98: BAS069 | BS98: BAS070 | BT98: BAS071 | BU98: BAS072 | BV98: BAS073 | BW98: BAS074 | BX98: BAS075 | BY98: BAS076 | BZ98: BAS077 | CA98: BAS078 | CB98: BAS079 | CC98: BAS080 | CD98: BAS081 | CE98: BAS082 | CF98: BAS083 | CG98: BAS084 | CH98: BAS085 | CI98: BAS086 | CJ98: BAS087 | CK98: BAS088 | CL98: BAS089 | CM98: BAS090 | CN98: BAS091 | CO98: BAS092 | CP98: BAS093 | CQ98: BAS094 | CR98: BAS095 | CS98: BAS096 | CT98: BAS097 | CU98: BAS098 | CV98: BAS099 | CW98: BAS100 | CX98: BAS101 | CY98: BAS102 | CZ98: BAS103 | DA98: BAS104 | DB98: BAS105 | DC98: BAS106 | DD98: BAS107 | DE98: BAS108 | DF98: BAS109 | DG98: BAS110 | DH98: BAS111 | DI98: BAS112 | DJ98: BAS113 | DK98: BAS114 | DL98: BAS115 | DM98: BAS116 | DN98: BAS117 | DO98: BAS118 | DP98: BAS119 | DQ98: BAS120 | DR98: BAS121 | DS98: BAS122 | DT98: BAS123 | DU98: BAS124 | DV98: BAS125 | DW98: BAS126 | DX98: BAS127 | DY98: BAS128 | DZ98: BAS129 | EA98: BAS130 | EB98: BAS131 | EC98: BAS132 | ED98: BAS133 | EE98: BAS134 | EF98: BAS135 | EG98: BAS136 | EH98: BAS137 | EI98: BAS138 | EJ98: BAS139 | EK98: BAS140 | EL98: BAS141 | EM98: BAS142 | EN98: BAS143 | EO98: BAS144 | EP98: BAS145 | EQ98: BAS146 | ER98: BAS147 | ES98: BAS148 | ET98: BAS149 | EU98: BAS150 | EV98: BAS151 | EW98: BAS152 | EX98: BAS153 | EY98: BAS154 | EZ98: BAS155 | FA98: BAS156 | FB98: BAS157 | FC98: BAS158 | FD98: BAS159 | FE98: BAS160 | FF98: BAS161 | FG98: BAS162 | FH98: BAS163 | FI98: BAS164 | FJ98: BAS165 | FK98: BAS166 | FL98: BAS167 | FM98: BAS168 | FN98: BAS169 | FO98: BAS170 | FP98: BAS171 | FQ98: BAS172 | FR98: BAS173 | FS98: BAS174 | FT98: BAS175 | FU98: BAS176 | FV98: BAS177 | FW98: BAS178 | FX98: BAS179 | FY98: BAS180 | FZ98: BAS181 | GA98: BAS182 | GB98: BAS183 | GC98: BAS184 | GD98: BAS185 | GE98: BAS186 | GF98: BAS187 | GG98: BAS188 | GH98: BAS189 | GI98: BAS190 | GJ98: BAS191 | GK98: BAS192 | GL98: BAS193 | GM98: BAS194 | GN98: BAS195 | GO98: BAS196 | GP98: BAS197 | GQ98: BAS198 | GR98: BAS199 | GS98: BAS200 | GT98: BAS201 | GU98: BAS202 | GV98: BAS203 | GW98: BAS204 | GX98: BAS205 | GY98: BAS206 | GZ98: BAS207 | HA98: BAS208 | HB98: BAS209 | HC98: BAS210 | HD98: BAS211 | HE98: BAS212 | HF98: BAS213 | HG98: BAS214 | HH98: BAS215 | HI98: BAS216 | HJ98: BAS217 | HK98: BAS218 | HL98: BAS219 | HM98: BAS220 | HN98: BAS221 | HO98: BAS222 | HP98: BAS223 | HQ98: BAS224 | HR98: BAS225 | HS98: BAS226 | HT98: BAS227 | HU98: BAS228 | HV98: BAS229 | HW98: BAS230
A99: 1 | B99: 0 | C99: 0 | D99: 0 | E99: 0 | F99: 0 | G99: 0 | H99: 0 | I99: 0 | J99: 3 | K99: 2 | L99: 3 | M99: 8 | N99: 21 | O99: 34 | P99: 21 | Q99: 32 | R99: 12 | S99: 22 | T99: 11 | U99: 21 | V99: 10 | W99: 0 | X99: 10 | Y99: 0 | Z99: 5 | AA99: 3 | AB99: 50 | AC99: 61 | AD99: 0 | AE99: 0 | AF99: 0 | AG99: 0 | AH99: 0 | AI99: 0 | AJ99: 0 | AK99: 0 | AL99: 0 | AM99: 0 | AN99: 0 | AO99: 0 | AP99: 2 | AQ99: 2 | AR99: 0 | AS99: 0 | AT99: 0 | AU99: 0 | AV99: 0 | AW99: 0 | AX99: 0 | AY99: 0 | AZ99: 1 | BA99: 0 | BB99: 0 | BC99: 0 | BD99: 1 | BE99: 0 | BF99: 0 | BG99: 0 | BH99: 0 | BI99: 0 | BJ99: 0 | BK99: 1 | BL99: 0 | BM99: 0 | BN99: 0 | BO99: 0 | BP99: 0 | BQ99: 0 | BR99: 0 | BS99: 1 | BT99: 0 | BU99: 0 | BV99: 0 | BW99: 0 | BX99: 0 | BY99: 1 | BZ99: 0 | CA99: 0 | CB99: 1 | CC99: 0 | CD99: 0 | CE99: 0 | CF99: 1 | CG99: 0 | CH99: 5 | CI99: 1 | CJ99: 109 | CK99: 0 | CL99: 9 | CM99: 0 | CN99: 7 | CO99: 0 | CP99: 7 | CQ99: 0 | CR99: 7 | CS99: 0 | CT99: 0 | CU99: 0 | CV99: 0 | CW99: 0 | CX99: 0 | CY99: 0 | CZ99: 0 | DA99: 0 | DB99: 0 | DC99: 0 | DD99: 0 | DE99: 0 | DF99: 0 | DG99: 0 | DH99: 0 | DI99: 0 | DJ99: 0 | DK99: 0 | DL99: 0 | DM99: 0 | DN99: 0 | DO99: 0 | DP99: 0 | DQ99: 0 | DR99: 0 | DS99: 0 | DT99: 0 | DU99: 0 | DV99: 0 | DW99: 0 | DX99: 0 | DY99: 0 | DZ99: 0 | EA99: 0 | EB99: 0 | EC99: 0 | ED99: 0 | EE99: 0 | EF99: 0 | EG99: 0 | EH99: 0 | EI99: 0 | EJ99: 0 | EK99: 0 | EL99: 0 | EM99: 0 | EN99: 0 | EO99: 0 | EP99: 0 | EQ99: 0 | ER99: 0 | ES99: 0 | ET99: 0 | EU99: 0 | EV99: 0 | EW99: 0 | EX99: 0 | EY99: 0 | EZ99: 0 | FA99: 0 | FB99: 0 | FC99: 0 | FD99: 0 | FE99: 0 | FF99: 0 | FG99: 0 | FH99: 0 | FI99: 0 | FJ99: 0 | FK99: 0 | FL99: 0 | FM99: 0 | FN99: 0 | FO99: 0 | FP99: 0 | FQ99: 0 | FR99: 0 | FS99: 0 | FT99: 0 | FU99: 0 | FV99: 0 | FW99: 0 | FX99: 0 | FY99: 0 | FZ99: 0 | GA99: 0 | GB99: 0 | GC99: 0 | GD99: 0 | GE99: 0 | GF99: 0 | GG99: 0 | GH99: 0 | GI99: 0 | GJ99: 0 | GK99: 0 | GL99: 0 | GM99: 0 | GN99: 0 | GO99: 0 | GP99: 0 | GQ99: 0 | GR99: 0 | GS99: 0 | GT99: 0 | GU99: 0 | GV99: 0 | GW99: 0 | GX99: 0 | GY99: 0 | GZ99: 0 | HA99: 0 | HB99: 0 | HC99: 0 | HD99: 0 | HE99: 0 | HF99: 0 | HG99: 0 | HH99: 0 | HI99: 0 | HJ99: 0 | HK99: 0 | HL99: 0 | HM99: 0 | HN99: 0 | HO99: 0 | HP99: 0 | HQ99: 0 | HR99: 0 | HS99: 0 | HT99: 0 | HU99: 0 | HV99: 0 | HW99: 0
A100: 2 | B100: 0 | C100: 0 | D100: 0 | E100: 0 | F100: 0 | G100: 0 | H100: 0 | I100: 0 | J100: 5 | K100: 1 | L100: 5 | M100: 4 | N100: 29 | O100: 36 | P100: 29 | Q100: 36 | R100: 14 | S100: 27 | T100: 14 | U100: 27 | V100: 7 | W100: 2 | X100: 7 | Y100: 2 | Z100: 8 | AA100: 3 | AB100: 140 | AC100: 90 | AD100: 0 | AE100: 0 | AF100: 0 | AG100: 0 | AH100: 0 | AI100: 0 | AJ100: 0 | AK100: 0 | AL100: 0 | AM100: 0 | AN100: 2 | AO100: 0 | AP100: 4 | AQ100: 4 | AR100: 0 | AS100: 0 | AT100: 0 | AU100: 0 | AV100: 0 | AW100: 0 | AX100: 0 | AY100: 0 | AZ100: 1 | BA100: 0 | BB100: 0 | BC100: 0 | BD100: 2 | BE100: 0 | BF100: 0 | BG100: 1 | BH100: 0 | BI100: 0 | BJ100: 0 | BK100: 0 | BL100: 0 | BM100: 0 | BN100: 0 | BO100: 0 | BP100: 0 | BQ100: 0 | BR100: 0 | BS100: 3 | BT100: 0 | BU100: 0 | BV100: 0 | BW100: 2 | BX100: 0 | BY100: 0 | BZ100: 0 | CA100: 0 | CB100: 22 | CC100: 3 | CD100: 0 | CE100: 0 | CF100: 1 | CG100: 0 | CH100: 7 | CI100: 2 | CJ100: 135 | CK100: 0 | CL100: 6 | CM100: 0 | CN100: 11 | CO100: 0 | CP100: 11 | CQ100: 0 | CR100: 8 | CS100: 0 | CT100: 0 | CU100: 0 | CV100: 0 | CW100: 0 | CX100: 0 | CY100: 0 | CZ100: 0 | DA100: 0 | DB100: 0 | DC100: 0 | DD100: 0 | DE100: 0 | DF100: 0 | DG100: 0 | DH100: 0 | DI100: 0 | DJ100: 0 | DK100: 0 | DL100: 0 | DM100: 0 | DN100: 0 | DO100: 0 | DP100: 0 | DQ100: 0 | DR100: 0 | DS100: 0 | DT100: 0 | DU100: 0 | DV100: 0 | DW100: 0 | DX100: 0 | DY100: 0 | DZ100: 0 | EA100: 0 | EB100: 0 | EC100: 0 | ED100: 0 | EE100: 0 | EF100: 0 | EG100: 0 | EH100: 0 | EI100: 0 | EJ100: 0 | EK100: 0 | EL100: 0 | EM100: 0 | EN100: 0 | EO100: 0 | EP100: 0 | EQ100: 0 | ER100: 0 | ES100: 0 | ET100: 0 | EU100: 0 | EV100: 0 | EW100: 0 | EX100: 0 | EY100: 0 | EZ100: 0 | FA100: 0 | FB100: 0 | FC100: 0 | FD100: 0 | FE100: 0 | FF100: 0 | FG100: 0 | FH100: 0 | FI100: 0 | FJ100: 0 | FK100: 0 | FL100: 0 | FM100: 0 | FN100: 0 | FO100: 0 | FP100: 0 | FQ100: 0 | FR100: 0 | FS100: 0 | FT100: 0 | FU100: 0 | FV100: 0 | FW100: 0 | FX100: 0 | FY100: 0 | FZ100: 0 | GA100: 0 | GB100: 0 | GC100: 0 | GD100: 0 | GE100: 0 | GF100: 0 | GG100: 0 | GH100: 0 | GI100: 0 | GJ100: 0 | GK100: 0 | GL100: 0 | GM100: 0 | GN100: 0 | GO100: 0 | GP100: 0 | GQ100: 0 | GR100: 0 | GS100: 0 | GT100: 0 | GU100: 0 | GV100: 0 | GW100: 0 | GX100: 0 | GY100: 0 | GZ100: 0 | HA100: 0 | HB100: 0 | HC100: 0 | HD100: 0 | HE100: 0 | HF100: 0 | HG100: 0 | HH100: 0 | HI100: 0 | HJ100: 0 | HK100: 0 | HL100: 0 | HM100: 0 | HN100: 0 | HO100: 0 | HP100: 0 | HQ100: 0 | HR100: 0 | HS100: 0 | HT100: 0 | HU100: 0 | HV100: 0 | HW100: 0
A101: 3 | B101: 0 | C101: 0 | D101: 0 | E101: 0 | F101: 0 | G101: 0 | H101: 0 | I101: 0 | J101: 5 | K101: 2 | L101: 5 | M101: 8 | N101: 24 | O101: 52 | P101: 24 | Q101: 52 | R101: 15 | S101: 29 | T101: 14 | U101: 29 | V101: 5 | W101: 1 | X101: 5 | Y101: 1 | Z101: 6 | AA101: 4 | AB101: 70 | AC101: 120 | AD101: 0 | AE101: 0 | AF101: 10 | AG101: 0 | AH101: 0 | AI101: 0 | AJ101: 0 | AK101: 0 | AL101: 0 | AM101: 0 | AN101: 0 | AO101: 0 | AP101: 5 | AQ101: 4 | AR101: 1 | AS101: 0 | AT101: 0 | AU101: 0 | AV101: 0 | AW101: 0 | AX101: 0 | AY101: 0 | AZ101: 0 | BA101: 0 | BB101: 0 | BC101: 0 | BD101: 0 | BE101: 0 | BF101: 0 | BG101: 0 | BH101: 0 | BI101: 0 | BJ101: 0 | BK101: 0 | BL101: 0 | BM101: 0 | BN101: 0 | BO101: 0 | BP101: 0 | BQ101: 0 | BR101: 0 | BS101: 0 | BT101: 0 | BU101: 0 | BV101: 0 | BW101: 0 | BX101: 0 | BY101: 0 | BZ101: 0 | CA101: 0 | CB101: 24 | CC101: 5 | CD101: 0 | CE101: 0 | CF101: 3 | CG101: 0 | CH101: 16 | CI101: 5 | CJ101: 136 | CK101: 0 | CL101: 8 | CM101: 0 | CN101: 15 | CO101: 0 | CP101: 15 | CQ101: 0 | CR101: 10 | CS101: 0 | CT101: 0 | CU101: 0 | CV101: 0 | CW101: 0 | CX101: 0 | CY101: 0 | CZ101: 0 | DA101: 0 | DB101: 0 | DC101: 0 | DD101: 0 | DE101: 0 | DF101: 0 | DG101: 0 | DH101: 0 | DI101: 0 | DJ101: 0 | DK101: 0 | DL101: 0 | DM101: 0 | DN101: 0 | DO101: 0 | DP101: 0 | DQ101: 0 | DR101: 0 | DS101: 0 | DT101: 0 | DU101: 0 | DV101: 0 | DW101: 0 | DX101: 0 | DY101: 0 | DZ101: 0 | EA101: 0 | EB101: 0 | EC101: 0 | ED101: 0 | EE101: 0 | EF101: 0 | EG101: 0 | EH101: 0 | EI101: 0 | EJ101: 0 | EK101: 0 | EL101: 0 | EM101: 0 | EN101: 0 | EO101: 0 | EP101: 0 | EQ101: 0 | ER101: 0 | ES101: 0 | ET101: 0 | EU101: 0 | EV101: 0 | EW101: 0 | EX101: 0 | EY101: 0 | EZ101: 0 | FA101: 0 | FB101: 0 | FC101: 0 | FD101: 0 | FE101: 0 | FF101: 0 | FG101: 0 | FH101: 0 | FI101: 0 | FJ101: 0 | FK101: 0 | FL101: 0 | FM101: 0 | FN101: 0 | FO101: 0 | FP101: 0 | FQ101: 0 | FR101: 0 | FS101: 0 | FT101: 0 | FU101: 0 | FV101: 0 | FW101: 0 | FX101: 0 | FY101: 0 | FZ101: 0 | GA101: 0 | GB101: 0 | GC101: 0 | GD101: 0 | GE101: 0 | GF101: 0 | GG101: 0 | GH101: 0 | GI101: 0 | GJ101: 0 | GK101: 0 | GL101: 0 | GM101: 0 | GN101: 0 | GO101: 0 | GP101: 0 | GQ101: 0 | GR101: 0 | GS101: 0 | GT101: 0 | GU101: 0 | GV101: 0 | GW101: 0 | GX101: 0 | GY101: 0 | GZ101: 0 | HA101: 0 | HB101: 0 | HC101: 0 | HD101: 0 | HE101: 0 | HF101: 0 | HG101: 0 | HH101: 0 | HI101: 0 | HJ101: 0 | HK101: 0 | HL101: 0 | HM101: 0 | HN101: 0 | HO101: 0 | HP101: 0 | HQ101: 0 | HR101: 0 | HS101: 0 | HT101: 0 | HU101: 0 | HV101: 0 | HW101: 0
A102: 4 | B102: 0 | C102: 0 | D102: 0 | E102: 0 | F102: 0 | G102: 0 | H102: 0 | I102: 0 | J102: 4 | K102: 5 | L102: 2 | M102: 20 | N102: 31 | O102: 38 | P102: 30 | Q102: 38 | R102: 13 | S102: 30 | T102: 11 | U102: 30 | V102: 5 | W102: 0 | X102: 5 | Y102: 0 | Z102: 7 | AA102: 3 | AB102: 70 | AC102: 90 | AD102: 0 | AE102: 0 | AF102: 0 | AG102: 0 | AH102: 0 | AI102: 0 | AJ102: 0 | AK102: 0 | AL102: 0 | AM102: 0 | AN102: 0 | AO102: 0 | AP102: 5 | AQ102: 5 | AR102: 2 | AS102: 2 | AT102: 0 | AU102: 0 | AV102: 0 | AW102: 0 | AX102: 0 | AY102: 0 | AZ102: 2 | BA102: 0 | BB102: 0 | BC102: 0 | BD102: 0 | BE102: 0 | BF102: 0 | BG102: 0 | BH102: 0 | BI102: 1 | BJ102: 0 | BK102: 0 | BL102: 0 | BM102: 0 | BN102: 0 | BO102: 0 | BP102: 0 | BQ102: 0 | BR102: 0 | BS102: 0 | BT102: 0 | BU102: 0 | BV102: 0 | BW102: 0 | BX102: 1 | BY102: 0 | BZ102: 0 | CA102: 0 | CB102: 69 | CC102: 5 | CD102: 0 | CE102: 0 | CF102: 4 | CG102: 0 | CH102: 14 | CI102: 2 | CJ102: 277 | CK102: 0 | CL102: 9 | CM102: 0 | CN102: 45 | CO102: 0 | CP102: 45 | CQ102: 0 | CR102: 25 | CS102: 0 | CT102: 0 | CU102: 0 | CV102: 0 | CW102: 0 | CX102: 0 | CY102: 0 | CZ102: 0 | DA102: 0 | DB102: 0 | DC102: 0 | DD102: 0 | DE102: 0 | DF102: 0 | DG102: 0 | DH102: 0 | DI102: 0 | DJ102: 0 | DK102: 0 | DL102: 0 | DM102: 0 | DN102: 0 | DO102: 0 | DP102: 0 | DQ102: 0 | DR102: 0 | DS102: 0 | DT102: 0 | DU102: 0 | DV102: 0 | DW102: 0 | DX102: 0 | DY102: 0 | DZ102: 0 | EA102: 0 | EB102: 0 | EC102: 0 | ED102: 0 | EE102: 0 | EF102: 0 | EG102: 0 | EH102: 0 | EI102: 0 | EJ102: 0 | EK102: 0 | EL102: 0 | EM102: 0 | EN102: 0 | EO102: 0 | EP102: 0 | EQ102: 0 | ER102: 0 | ES102: 0 | ET102: 0 | EU102: 0 | EV102: 0 | EW102: 0 | EX102: 0 | EY102: 0 | EZ102: 0 | FA102: 0 | FB102: 0 | FC102: 0 | FD102: 0 | FE102: 0 | FF102: 0 | FG102: 0 | FH102: 0 | FI102: 0 | FJ102: 0 | FK102: 0 | FL102: 0 | FM102: 0 | FN102: 0 | FO102: 0 | FP102: 0 | FQ102: 0 | FR102: 0 | FS102: 0 | FT102: 0 | FU102: 0 | FV102: 0 | FW102: 0 | FX102: 0 | FY102: 0 | FZ102: 0 | GA102: 0 | GB102: 0 | GC102: 0 | GD102: 0 | GE102: 0 | GF102: 0 | GG102: 0 | GH102: 0 | GI102: 0 | GJ102: 0 | GK102: 0 | GL102: 0 | GM102: 0 | GN102: 0 | GO102: 0 | GP102: 0 | GQ102: 0 | GR102: 0 | GS102: 0 | GT102: 0 | GU102: 0 | GV102: 0 | GW102: 0 | GX102: 0 | GY102: 0 | GZ102: 0 | HA102: 0 | HB102: 0 | HC102: 0 | HD102: 0 | HE102: 0 | HF102: 0 | HG102: 0 | HH102: 0 | HI102: 0 | HJ102: 0 | HK102: 0 | HL102: 0 | HM102: 0 | HN102: 0 | HO102: 0 | HP102: 0 | HQ102: 0 | HR102: 0 | HS102: 0 | HT102: 0 | HU102: 0 | HV102: 0 | HW102: 0
A103: 5 | B103: 0 | C103: 0 | D103: 0 | E103: 0 | F103: 0 | G103: 0 | H103: 0 | I103: 0 | J103: 4 | K103: 2 | L103: 4 | M103: 8 | N103: 20 | O103: 50 | P103: 20 | Q103: 50 | R103: 13 | S103: 27 | T103: 10 | U103: 27 | V103: 7 | W103: 0 | X103: 7 | Y103: 0 | Z103: 24 | AA103: 2 | AB103: 222 | AC103: 60 | AD103: 0 | AE103: 0 | AF103: 0 | AG103: 0 | AH103: 0 | AI103: 0 | AJ103: 0 | AK103: 0 | AL103: 0 | AM103: 0 | AN103: 0 | AO103: 0 | AP103: 3 | AQ103: 3 | AR103: 0 | AS103: 0 | AT103: 0 | AU103: 0 | AV103: 0 | AW103: 0 | AX103: 0 | AY103: 0 | AZ103: 1 | BA103: 0 | BB103: 0 | BC103: 0 | BD103: 0 | BE103: 0 | BF103: 0 | BG103: 0 | BH103: 0 | BI103: 0 | BJ103: 0 | BK103: 0 | BL103: 0 | BM103: 0 | BN103: 0 | BO103: 0 | BP103: 0 | BQ103: 0 | BR103: 0 | BS103: 0 | BT103: 0 | BU103: 0 | BV103: 0 | BW103: 1 | BX103: 0 | BY103: 0 | BZ103: 0 | CA103: 0 | CB103: 122 | CC103: 22 | CD103: 0 | CE103: 0 | CF103: 1 | CG103: 0 | CH103: 31 | CI103: 0 | CJ103: 427 | CK103: 0 | CL103: 8 | CM103: 0 | CN103: 46 | CO103: 1 | CP103: 46 | CQ103: 1 | CR103: 7 | CS103: 0 | CT103: 0 | CU103: 0 | CV103: 0 | CW103: 0 | CX103: 0 | CY103: 0 | CZ103: 0 | DA103: 0 | DB103: 0 | DC103: 0 | DD103: 1 | DE103: 0 | DF103: 0 | DG103: 0 | DH103: 0 | DI103: 1 | DJ103: 0 | DK103: 0 | DL103: 0 | DM103: 0 | DN103: 0 | DO103: 0 | DP103: 0 | DQ103: 0 | DR103: 0 | DS103: 0 | DT103: 0 | DU103: 0 | DV103: 0 | DW103: 0 | DX103: 0 | DY103: 0 | DZ103: 0 | EA103: 0 | EB103: 0 | EC103: 0 | ED103: 0 | EE103: 0 | EF103: 0 | EG103: 0 | EH103: 0 | EI103: 0 | EJ103: 0 | EK103: 0 | EL103: 0 | EM103: 0 | EN103: 0 | EO103: 0 | EP103: 0 | EQ103: 0 | ER103: 0 | ES103: 0 | ET103: 0 | EU103: 0 | EV103: 0 | EW103: 0 | EX103: 0 | EY103: 0 | EZ103: 0 | FA103: 0 | FB103: 0 | FC103: 0 | FD103: 0 | FE103: 0 | FF103: 0 | FG103: 0 | FH103: 0 | FI103: 0 | FJ103: 0 | FK103: 0 | FL103: 0 | FM103: 0 | FN103: 0 | FO103: 0 | FP103: 0 | FQ103: 0 | FR103: 0 | FS103: 0 | FT103: 0 | FU103: 0 | FV103: 0 | FW103: 0 | FX103: 0 | FY103: 0 | FZ103: 0 | GA103: 0 | GB103: 0 | GC103: 0 | GD103: 0 | GE103: 0 | GF103: 0 | GG103: 0 | GH103: 0 | GI103: 0 | GJ103: 0 | GK103: 0 | GL103: 0 | GM103: 0 | GN103: 0 | GO103: 0 | GP103: 0 | GQ103: 0 | GR103: 0 | GS103: 0 | GT103: 0 | GU103: 0 | GV103: 0 | GW103: 0 | GX103: 0 | GY103: 0 | GZ103: 0 | HA103: 0 | HB103: 0 | HC103: 0 | HD103: 0 | HE103: 0 | HF103: 0 | HG103: 0 | HH103: 0 | HI103: 0 | HJ103: 0 | HK103: 0 | HL103: 0 | HM103: 0 | HN103: 0 | HO103: 0 | HP103: 0 | HQ103: 0 | HR103: 0 | HS103: 0 | HT103: 0 | HU103: 0 | HV103: 0 | HW103: 0
A104: 6 | B104: 0 | C104: 0 | D104: 0 | E104: 0 | F104: 0 | G104: 0 | H104: 0 | I104: 0 | J104: 4 | K104: 4 | L104: 4 | M104: 10 | N104: 19 | O104: 53 | P104: 19 | Q104: 51 | R104: 15 | S104: 30 | T104: 15 | U104: 30 | V104: 6 | W104: 2 | X104: 6 | Y104: 2 | Z104: 9 | AA104: 6 | AB104: 90 | AC104: 180 | AD104: 0 | AE104: 0 | AF104: 0 | AG104: 0 | AH104: 0 | AI104: 0 | AJ104: 0 | AK104: 0 | AL104: 1 | AM104: 0 | AN104: 1 | AO104: 0 | AP104: 5 | AQ104: 5 | AR104: 1 | AS104: 1 | AT104: 0 | AU104: 0 | AV104: 0 | AW104: 0 | AX104: 0 | AY104: 0 | AZ104: 0 | BA104: 0 | BB104: 0 | BC104: 0 | BD104: 0 | BE104: 0 | BF104: 0 | BG104: 0 | BH104: 0 | BI104: 0 | BJ104: 1 | BK104: 0 | BL104: 0 | BM104: 0 | BN104: 0 | BO104: 0 | BP104: 0 | BQ104: 0 | BR104: 0 | BS104: 1 | BT104: 0 | BU104: 0 | BV104: 0 | BW104: 1 | BX104: 2 | BY104: 1 | BZ104: 0 | CA104: 0 | CB104: 152 | CC104: 113 | CD104: 0 | CE104: 0 | CF104: 6 | CG104: 1 | CH104: 75 | CI104: 77 | CJ104: 401 | CK104: 0 | CL104: 11 | CM104: 0 | CN104: 146 | CO104: 0 | CP104: 33 | CQ104: 0 | CR104: 32 | CS104: 0 | CT104: 0 | CU104: 0 | CV104: 0 | CW104: 0 | CX104: 0 | CY104: 0 | CZ104: 0 | DA104: 0 | DB104: 0 | DC104: 0 | DD104: 0 | DE104: 0 | DF104: 0 | DG104: 0 | DH104: 0 | DI104: 0 | DJ104: 0 | DK104: 0 | DL104: 0 | DM104: 0 | DN104: 0 | DO104: 0 | DP104: 0 | DQ104: 0 | DR104: 0 | DS104: 0 | DT104: 0 | DU104: 0 | DV104: 0 | DW104: 0 | DX104: 0 | DY104: 0 | DZ104: 0 | EA104: 0 | EB104: 0 | EC104: 0 | ED104: 0 | EE104: 0 | EF104: 0 | EG104: 0 | EH104: 0 | EI104: 0 | EJ104: 0 | EK104: 0 | EL104: 0 | EM104: 0 | EN104: 0 | EO104: 0 | EP104: 0 | EQ104: 0 | ER104: 0 | ES104: 0 | ET104: 0 | EU104: 0 | EV104: 0 | EW104: 0 | EX104: 0 | EY104: 0 | EZ104: 0 | FA104: 0 | FB104: 0 | FC104: 0 | FD104: 0 | FE104: 0 | FF104: 0 | FG104: 0 | FH104: 0 | FI104: 0 | FJ104: 0 | FK104: 0 | FL104: 0 | FM104: 0 | FN104: 0 | FO104: 0 | FP104: 0 | FQ104: 0 | FR104: 0 | FS104: 0 | FT104: 0 | FU104: 0 | FV104: 0 | FW104: 0 | FX104: 0 | FY104: 0 | FZ104: 0 | GA104: 0 | GB104: 0 | GC104: 0 | GD104: 0 | GE104: 0 | GF104: 0 | GG104: 0 | GH104: 0 | GI104: 0 | GJ104: 0 | GK104: 0 | GL104: 0 | GM104: 0 | GN104: 0 | GO104: 0 | GP104: 0 | GQ104: 0 | GR104: 0 | GS104: 0 | GT104: 0 | GU104: 0 | GV104: 0 | GW104: 0 | GX104: 0 | GY104: 0 | GZ104: 0 | HA104: 0 | HB104: 0 | HC104: 0 | HD104: 0 | HE104: 0 | HF104: 0 | HG104: 0 | HH104: 0 | HI104: 0 | HJ104: 0 | HK104: 0 | HL104: 0 | HM104: 0 | HN104: 0 | HO104: 0 | HP104: 0 | HQ104: 0 | HR104: 0 | HS104: 0 | HT104: 0 | HU104: 0 | HV104: 0 | HW104: 0
A105: 8 | B105: 0 | C105: 0 | D105: 0 | E105: 0 | F105: 0 | G105: 0 | H105: 0 | I105: 0 | J105: 5 | K105: 3 | L105: 8 | M105: 12 | N105: 22 | O105: 53 | P105: 21 | Q105: 53 | R105: 14 | S105: 30 | T105: 15 | U105: 30 | V105: 6 | W105: 0 | X105: 6 | Y105: 0 | Z105: 2 | AA105: 1 | AB105: 20 | AC105: 30 | AD105: 0 | AE105: 0 | AF105: 0 | AG105: 0 | AH105: 0 | AI105: 0 | AJ105: 0 | AK105: 0 | AL105: 0 | AM105: 0 | AN105: 1 | AO105: 0 | AP105: 4 | AQ105: 4 | AR105: 0 | AS105: 0 | AT105: 0 | AU105: 0 | AV105: 0 | AW105: 0 | AX105: 0 | AY105: 0 | AZ105: 0 | BA105: 0 | BB105: 0 | BC105: 0 | BD105: 0 | BE105: 0 | BF105: 0 | BG105: 0 | BH105: 0 | BI105: 2 | BJ105: 0 | BK105: 0 | BL105: 0 | BM105: 0 | BN105: 0 | BO105: 0 | BP105: 0 | BQ105: 0 | BR105: 0 | BS105: 0 | BT105: 0 | BU105: 0 | BV105: 0 | BW105: 2 | BX105: 0 | BY105: 0 | BZ105: 0 | CA105: 0 | CB105: 233 | CC105: 116 | CD105: 0 | CE105: 0 | CF105: 3 | CG105: 0 | CH105: 22 | CI105: 25 | CJ105: 151 | CK105: 0 | CL105: 11 | CM105: 0 | CN105: 84 | CO105: 0 | CP105: 84 | CQ105: 0 | CR105: 89 | CS105: 0 | CT105: 0 | CU105: 0 | CV105: 0 | CW105: 0 | CX105: 0 | CY105: 0 | CZ105: 0 | DA105: 0 | DB105: 0 | DC105: 0 | DD105: 0 | DE105: 0 | DF105: 0 | DG105: 0 | DH105: 0 | DI105: 0 | DJ105: 0 | DK105: 0 | DL105: 0 | DM105: 0 | DN105: 0 | DO105: 0 | DP105: 0 | DQ105: 0 | DR105: 0 | DS105: 0 | DT105: 0 | DU105: 0 | DV105: 0 | DW105: 0 | DX105: 0 | DY105: 0 | DZ105: 0 | EA105: 0 | EB105: 0 | EC105: 0 | ED105: 0 | EE105: 0 | EF105: 0 | EG105: 0 | EH105: 0 | EI105: 0 | EJ105: 0 | EK105: 0 | EL105: 0 | EM105: 0 | EN105: 0 | EO105: 0 | EP105: 0 | EQ105: 0 | ER105: 0 | ES105: 0 | ET105: 0 | EU105: 0 | EV105: 0 | EW105: 0 | EX105: 0 | EY105: 0 | EZ105: 0 | FA105: 0 | FB105: 0 | FC105: 0 | FD105: 0 | FE105: 0 | FF105: 0 | FG105: 0 | FH105: 0 | FI105: 0 | FJ105: 0 | FK105: 0 | FL105: 0 | FM105: 0 | FN105: 0 | FO105: 0 | FP105: 0 | FQ105: 0 | FR105: 0 | FS105: 0 | FT105: 0 | FU105: 0 | FV105: 0 | FW105: 0 | FX105: 0 | FY105: 0 | FZ105: 0 | GA105: 0 | GB105: 0 | GC105: 0 | GD105: 0 | GE105: 0 | GF105: 0 | GG105: 0 | GH105: 0 | GI105: 0 | GJ105: 0 | GK105: 0 | GL105: 0 | GM105: 0 | GN105: 0 | GO105: 0 | GP105: 0 | GQ105: 0 | GR105: 0 | GS105: 0 | GT105: 0 | GU105: 0 | GV105: 0 | GW105: 0 | GX105: 0 | GY105: 0 | GZ105: 0 | HA105: 0 | HB105: 0 | HC105: 0 | HD105: 0 | HE105: 0 | HF105: 0 | HG105: 0 | HH105: 0 | HI105: 0 | HJ105: 0 | HK105: 0 | HL105: 0 | HM105: 0 | HN105: 0 | HO105: 0 | HP105: 0 | HQ105: 0 | HR105: 0 | HS105: 0 | HT105: 0 | HU105: 0 | HV105: 0 | HW105: 0
A106: 7 | B106: 0 | C106: 0 | D106: 0 | E106: 0 | F106: 0 | G106: 0 | H106: 0 | I106: 0 | J106: 4 | K106: 0 | L106: 4 | M106: 0 | N106: 21 | O106: 55 | P106: 20 | Q106: 55 | R106: 9 | S106: 33 | T106: 7 | U106: 33 | V106: 5 | W106: 0 | X106: 5 | Y106: 0 | Z106: 2 | AA106: 4 | AB106: 10 | AC106: 120 | AD106: 0 | AE106: 0 | AF106: 0 | AG106: 0 | AH106: 0 | AI106: 0 | AJ106: 0 | AK106: 0 | AL106: 0 | AM106: 0 | AN106: 2 | AO106: 0 | AP106: 4 | AQ106: 4 | AR106: 1 | AS106: 1 | AT106: 0 | AU106: 0 | AV106: 0 | AW106: 0 | AX106: 0 | AY106: 0 | AZ106: 1 | BA106: 0 | BB106: 0 | BC106: 0 | BD106: 0 | BE106: 0 | BF106: 0 | BG106: 0 | BH106: 0 | BI106: 0 | BJ106: 0 | BK106: 0 | BL106: 0 | BM106: 0 | BN106: 0 | BO106: 0 | BP106: 0 | BQ106: 0 | BR106: 0 | BS106: 0 | BT106: 0 | BU106: 0 | BV106: 0 | BW106: 1 | BX106: 0 | BY106: 0 | BZ106: 0 | CA106: 0 | CB106: 108 | CC106: 55 | CD106: 0 | CE106: 0 | CF106: 3 | CG106: 2 | CH106: 33 | CI106: 29 | CJ106: 338 | CK106: 0 | CL106: 9 | CM106: 0 | CN106: 5 | CO106: 0 | CP106: 5 | CQ106: 0 | CR106: 5 | CS106: 0 | CT106: 0 | CU106: 0 | CV106: 0 | CW106: 0 | CX106: 0 | CY106: 0 | CZ106: 0 | DA106: 0 | DB106: 0 | DC106: 0 | DD106: 0 | DE106: 0 | DF106: 0 | DG106: 0 | DH106: 0 | DI106: 0 | DJ106: 0 | DK106: 0 | DL106: 0 | DM106: 0 | DN106: 0 | DO106: 0 | DP106: 0 | DQ106: 0 | DR106: 0 | DS106: 0 | DT106: 0 | DU106: 0 | DV106: 0 | DW106: 0 | DX106: 0 | DY106: 0 | DZ106: 0 | EA106: 0 | EB106: 0 | EC106: 0 | ED106: 0 | EE106: 0 | EF106: 0 | EG106: 0 | EH106: 0 | EI106: 0 | EJ106: 0 | EK106: 0 | EL106: 0 | EM106: 0 | EN106: 0 | EO106: 0 | EP106: 0 | EQ106: 0 | ER106: 0 | ES106: 0 | ET106: 0 | EU106: 0 | EV106: 0 | EW106: 0 | EX106: 0 | EY106: 0 | EZ106: 0 | FA106: 0 | FB106: 0 | FC106: 0 | FD106: 0 | FE106: 0 | FF106: 0 | FG106: 0 | FH106: 0 | FI106: 0 | FJ106: 0 | FK106: 0 | FL106: 0 | FM106: 0 | FN106: 0 | FO106: 0 | FP106: 0 | FQ106: 0 | FR106: 0 | FS106: 0 | FT106: 0 | FU106: 0 | FV106: 0 | FW106: 0 | FX106: 0 | FY106: 0 | FZ106: 0 | GA106: 0 | GB106: 0 | GC106: 0 | GD106: 0 | GE106: 0 | GF106: 0 | GG106: 0 | GH106: 0 | GI106: 0 | GJ106: 0 | GK106: 0 | GL106: 0 | GM106: 0 | GN106: 0 | GO106: 0 | GP106: 0 | GQ106: 0 | GR106: 0 | GS106: 0 | GT106: 0 | GU106: 0 | GV106: 0 | GW106: 0 | GX106: 0 | GY106: 0 | GZ106: 0 | HA106: 0 | HB106: 0 | HC106: 0 | HD106: 0 | HE106: 0 | HF106: 0 | HG106: 0 | HH106: 0 | HI106: 0 | HJ106: 0 | HK106: 0 | HL106: 0 | HM106: 0 | HN106: 0 | HO106: 0 | HP106: 0 | HQ106: 0 | HR106: 0 | HS106: 0 | HT106: 0 | HU106: 0 | HV106: 0 | HW106: 0
A107: 9 | B107: 0 | C107: 0 | D107: 0 | E107: 0 | F107: 0 | G107: 0 | H107: 0 | I107: 0 | J107: 5 | K107: 2 | L107: 8 | M107: 8 | N107: 15 | O107: 47 | P107: 14 | Q107: 47 | R107: 15 | S107: 27 | T107: 14 | U107: 27 | V107: 3 | W107: 0 | X107: 3 | Y107: 0 | Z107: 14 | AA107: 5 | AB107: 140 | AC107: 150 | AD107: 0 | AE107: 0 | AF107: 0 | AG107: 0 | AH107: 0 | AI107: 0 | AJ107: 0 | AK107: 0 | AL107: 0 | AM107: 0 | AN107: 5 | AO107: 0 | AP107: 9 | AQ107: 8 | AR107: 1 | AS107: 1 | AT107: 0 | AU107: 0 | AV107: 0 | AW107: 0 | AX107: 0 | AY107: 0 | AZ107: 0 | BA107: 0 | BB107: 0 | BC107: 0 | BD107: 1 | BE107: 0 | BF107: 0 | BG107: 0 | BH107: 0 | BI107: 1 | BJ107: 0 | BK107: 0 | BL107: 0 | BM107: 0 | BN107: 0 | BO107: 0 | BP107: 0 | BQ107: 0 | BR107: 0 | BS107: 1 | BT107: 0 | BU107: 0 | BV107: 0 | BW107: 0 | BX107: 0 | BY107: 0 | BZ107: 0 | CA107: 0 | CB107: 194 | CC107: 197 | CD107: 0 | CE107: 0 | CF107: 10 | CG107: 0 | CH107: 68 | CI107: 55 | CJ107: 347 | CK107: 0 | CL107: 6 | CM107: 0 | CN107: 5 | CO107: 0 | CP107: 5 | CQ107: 0 | CR107: 5 | CS107: 0 | CT107: 0 | CU107: 0 | CV107: 0 | CW107: 0 | CX107: 0 | CY107: 0 | CZ107: 0 | DA107: 0 | DB107: 0 | DC107: 0 | DD107: 0 | DE107: 0 | DF107: 0 | DG107: 0 | DH107: 0 | DI107: 0 | DJ107: 0 | DK107: 0 | DL107: 0 | DM107: 0 | DN107: 0 | DO107: 0 | DP107: 0 | DQ107: 0 | DR107: 0 | DS107: 0 | DT107: 0 | DU107: 0 | DV107: 0 | DW107: 0 | DX107: 0 | DY107: 0 | DZ107: 0 | EA107: 0 | EB107: 0 | EC107: 0 | ED107: 0 | EE107: 0 | EF107: 0 | EG107: 0 | EH107: 0 | EI107: 0 | EJ107: 0 | EK107: 0 | EL107: 0 | EM107: 0 | EN107: 0 | EO107: 0 | EP107: 0 | EQ107: 0 | ER107: 0 | ES107: 0 | ET107: 0 | EU107: 0 | EV107: 0 | EW107: 0 | EX107: 0 | EY107: 0 | EZ107: 0 | FA107: 0 | FB107: 0 | FC107: 0 | FD107: 0 | FE107: 0 | FF107: 0 | FG107: 0 | FH107: 0 | FI107: 0 | FJ107: 0 | FK107: 0 | FL107: 0 | FM107: 0 | FN107: 0 | FO107: 0 | FP107: 0 | FQ107: 0 | FR107: 0 | FS107: 0 | FT107: 0 | FU107: 0 | FV107: 0 | FW107: 0 | FX107: 0 | FY107: 0 | FZ107: 0 | GA107: 0 | GB107: 0 | GC107: 0 | GD107: 0 | GE107: 0 | GF107: 0 | GG107: 0 | GH107: 0 | GI107: 0 | GJ107: 0 | GK107: 0 | GL107: 0 | GM107: 0 | GN107: 0 | GO107: 0 | GP107: 0 | GQ107: 0 | GR107: 0 | GS107: 0 | GT107: 0 | GU107: 0 | GV107: 0 | GW107: 0 | GX107: 0 | GY107: 0 | GZ107: 0 | HA107: 0 | HB107: 0 | HC107: 0 | HD107: 0 | HE107: 0 | HF107: 0 | HG107: 0 | HH107: 0 | HI107: 0 | HJ107: 0 | HK107: 0 | HL107: 0 | HM107: 0 | HN107: 0 | HO107: 0 | HP107: 0 | HQ107: 0 | HR107: 0 | HS107: 0 | HT107: 0 | HU107: 0 | HV107: 0 | HW107: 0
A108: 10 | B108: 0 | C108: 0 | D108: 0 | E108: 0 | F108: 0 | G108: 0 | H108: 0 | I108: 0 | J108: 7 | K108: 1 | L108: 7 | M108: 4 | N108: 17 | O108: 44 | P108: 15 | Q108: 44 | R108: 16 | S108: 24 | T108: 15 | U108: 24 | V108: 9 | W108: 0 | X108: 9 | Y108: 0 | Z108: 16 | AA108: 5 | AB108: 140 | AC108: 150 | AD108: 0 | AE108: 0 | AF108: 0 | AG108: 0 | AH108: 0 | AI108: 0 | AJ108: 0 | AK108: 0 | AL108: 0 | AM108: 0 | AN108: 0 | AO108: 0 | AP108: 6 | AQ108: 5 | AR108: 1 | AS108: 1 | AT108: 0 | AU108: 0 | AV108: 0 | AW108: 0 | AX108: 0 | AY108: 0 | AZ108: 0 | BA108: 0 | BB108: 0 | BC108: 0 | BD108: 0 | BE108: 0 | BF108: 0 | BG108: 1 | BH108: 0 | BI108: 0 | BJ108: 0 | BK108: 0 | BL108: 0 | BM108: 0 | BN108: 0 | BO108: 0 | BP108: 0 | BQ108: 0 | BR108: 0 | BS108: 1 | BT108: 0 | BU108: 0 | BV108: 0 | BW108: 2 | BX108: 0 | BY108: 1 | BZ108: 0 | CA108: 0 | CB108: 136 | CC108: 80 | CD108: 0 | CE108: 0 | CF108: 3 | CG108: 0 | CH108: 29 | CI108: 7 | CJ108: 218 | CK108: 0 | CL108: 5 | CM108: 0 | CN108: 14 | CO108: 0 | CP108: 14 | CQ108: 0 | CR108: 12 | CS108: 0 | CT108: 0 | CU108: 0 | CV108: 0 | CW108: 0 | CX108: 0 | CY108: 0 | CZ108: 0 | DA108: 0 | DB108: 0 | DC108: 0 | DD108: 0 | DE108: 0 | DF108: 0 | DG108: 0 | DH108: 1 | DI108: 0 | DJ108: 0 | DK108: 1 | DL108: 0 | DM108: 0 | DN108: 0 | DO108: 0 | DP108: 0 | DQ108: 0 | DR108: 0 | DS108: 0 | DT108: 0 | DU108: 0 | DV108: 0 | DW108: 0 | DX108: 0 | DY108: 0 | DZ108: 0 | EA108: 0 | EB108: 0 | EC108: 0 | ED108: 0 | EE108: 0 | EF108: 0 | EG108: 0 | EH108: 0 | EI108: 0 | EJ108: 0 | EK108: 0 | EL108: 0 | EM108: 0 | EN108: 0 | EO108: 0 | EP108: 0 | EQ108: 0 | ER108: 0 | ES108: 0 | ET108: 0 | EU108: 0 | EV108: 0 | EW108: 0 | EX108: 0 | EY108: 0 | EZ108: 0 | FA108: 0 | FB108: 0 | FC108: 0 | FD108: 0 | FE108: 0 | FF108: 0 | FG108: 0 | FH108: 0 | FI108: 0 | FJ108: 0 | FK108: 0 | FL108: 0 | FM108: 0 | FN108: 0 | FO108: 0 | FP108: 0 | FQ108: 0 | FR108: 0 | FS108: 0 | FT108: 0 | FU108: 0 | FV108: 0 | FW108: 0 | FX108: 0 | FY108: 0 | FZ108: 0 | GA108: 0 | GB108: 0 | GC108: 0 | GD108: 0 | GE108: 0 | GF108: 0 | GG108: 0 | GH108: 0 | GI108: 0 | GJ108: 0 | GK108: 0 | GL108: 0 | GM108: 0 | GN108: 0 | GO108: 0 | GP108: 0 | GQ108: 0 | GR108: 0 | GS108: 0 | GT108: 0 | GU108: 0 | GV108: 0 | GW108: 0 | GX108: 0 | GY108: 0 | GZ108: 0 | HA108: 0 | HB108: 0 | HC108: 0 | HD108: 0 | HE108: 0 | HF108: 0 | HG108: 0 | HH108: 0 | HI108: 0 | HJ108: 0 | HK108: 0 | HL108: 0 | HM108: 0 | HN108: 0 | HO108: 0 | HP108: 0 | HQ108: 0 | HR108: 0 | HS108: 0 | HT108: 0 | HU108: 0 | HV108: 0 | HW108: 0
A109: 11 | B109: 0 | C109: 0 | D109: 0 | E109: 0 | F109: 0 | G109: 0 | H109: 0 | I109: 0 | J109: 0 | K109: 1 | L109: 0 | M109: 4 | N109: 15 | O109: 63 | P109: 15 | Q109: 62 | R109: 10 | S109: 27 | T109: 10 | U109: 27 | V109: 3 | W109: 1 | X109: 3 | Y109: 1 | Z109: 12 | AA109: 5 | AB109: 110 | AC109: 130 | AD109: 0 | AE109: 0 | AF109: 0 | AG109: 0 | AH109: 0 | AI109: 0 | AJ109: 0 | AK109: 0 | AL109: 0 | AM109: 0 | AN109: 0 | AO109: 0 | AP109: 1 | AQ109: 1 | AR109: 0 | AS109: 0 | AT109: 0 | AU109: 0 | AV109: 0 | AW109: 0 | AX109: 0 | AY109: 0 | AZ109: 0 | BA109: 0 | BB109: 0 | BC109: 0 | BD109: 0 | BE109: 0 | BF109: 0 | BG109: 0 | BH109: 0 | BI109: 0 | BJ109: 0 | BK109: 0 | BL109: 0 | BM109: 0 | BN109: 0 | BO109: 0 | BP109: 0 | BQ109: 0 | BR109: 0 | BS109: 0 | BT109: 0 | BU109: 0 | BV109: 0 | BW109: 0 | BX109: 0 | BY109: 0 | BZ109: 0 | CA109: 0 | CB109: 336 | CC109: 262 | CD109: 0 | CE109: 0 | CF109: 0 | CG109: 0 | CH109: 96 | CI109: 82 | CJ109: 364 | CK109: 0 | CL109: 8 | CM109: 0 | CN109: 0 | CO109: 0 | CP109: 0 | CQ109: 0 | CR109: 0 | CS109: 0 | CT109: 0 | CU109: 0 | CV109: 0 | CW109: 0 | CX109: 0 | CY109: 0 | CZ109: 0 | DA109: 0 | DB109: 0 | DC109: 0 | DD109: 0 | DE109: 0 | DF109: 0 | DG109: 0 | DH109: 1 | DI109: 0 | DJ109: 0 | DK109: 0 | DL109: 0 | DM109: 0 | DN109: 0 | DO109: 0 | DP109: 0 | DQ109: 0 | DR109: 0 | DS109: 0 | DT109: 0 | DU109: 0 | DV109: 0 | DW109: 0 | DX109: 0 | DY109: 0 | DZ109: 0 | EA109: 0 | EB109: 0 | EC109: 0 | ED109: 0 | EE109: 0 | EF109: 0 | EG109: 0 | EH109: 0 | EI109: 0 | EJ109: 0 | EK109: 0 | EL109: 0 | EM109: 0 | EN109: 0 | EO109: 0 | EP109: 0 | EQ109: 0 | ER109: 0 | ES109: 0 | ET109: 0 | EU109: 0 | EV109: 0 | EW109: 0 | EX109: 0 | EY109: 0 | EZ109: 0 | FA109: 0 | FB109: 0 | FC109: 0 | FD109: 0 | FE109: 0 | FF109: 0 | FG109: 0 | FH109: 0 | FI109: 0 | FJ109: 0 | FK109: 0 | FL109: 0 | FM109: 0 | FN109: 0 | FO109: 0 | FP109: 0 | FQ109: 0 | FR109: 0 | FS109: 0 | FT109: 0 | FU109: 0 | FV109: 0 | FW109: 0 | FX109: 0 | FY109: 0 | FZ109: 0 | GA109: 0 | GB109: 0 | GC109: 0 | GD109: 0 | GE109: 0 | GF109: 0 | GG109: 0 | GH109: 0 | GI109: 0 | GJ109: 0 | GK109: 0 | GL109: 0 | GM109: 0 | GN109: 0 | GO109: 0 | GP109: 0 | GQ109: 0 | GR109: 0 | GS109: 0 | GT109: 0 | GU109: 0 | GV109: 0 | GW109: 0 | GX109: 0 | GY109: 0 | GZ109: 0 | HA109: 0 | HB109: 0 | HC109: 0 | HD109: 0 | HE109: 0 | HF109: 0 | HG109: 0 | HH109: 0 | HI109: 0 | HJ109: 0 | HK109: 0 | HL109: 0 | HM109: 0 | HN109: 0 | HO109: 0 | HP109: 0 | HQ109: 0 | HR109: 0 | HS109: 0 | HT109: 0 | HU109: 0 | HV109: 0 | HW109: 0
A110: Total | B110: 0 | C110: 0 | D110: 0 | E110: 0 | F110: 0 | G110: 0 | H110: 0 | I110: 0 | J110: 46 | K110: 23 | L110: 50 | M110: 86 | N110: 234 | O110: 525 | P110: 228 | Q110: 520 | R110: 146 | S110: 306 | T110: 136 | U110: 305 | V110: 66 | W110: 6 | X110: 66 | Y110: 6 | Z110: 105 | AA110: 41 | AB110: 1062 | AC110: 1181 | AD110: 0 | AE110: 0 | AF110: 10 | AG110: 0 | AH110: 0 | AI110: 0 | AJ110: 0 | AK110: 0 | AL110: 1 | AM110: 0 | AN110: 11 | AO110: 0 | AP110: 48 | AQ110: 45 | AR110: 7 | AS110: 6 | AT110: 0 | AU110: 0 | AV110: 0 | AW110: 0 | AX110: 0 | AY110: 0 | AZ110: 6 | BA110: 0 | BB110: 0 | BC110: 0 | BD110: 4 | BE110: 0 | BF110: 0 | BG110: 2 | BH110: 0 | BI110: 4 | BJ110: 1 | BK110: 1 | BL110: 0 | BM110: 0 | BN110: 0 | BO110: 0 | BP110: 0 | BQ110: 0 | BR110: 0 | BS110: 7 | BT110: 0 | BU110: 0 | BV110: 0 | BW110: 9 | BX110: 3 | BY110: 3 | BZ110: 0 | CA110: 0 | CB110: 1397 | CC110: 858 | CD110: 0 | CE110: 0 | CF110: 35 | CG110: 3 | CH110: 396 | CI110: 285 | CJ110: 2903 | CK110: 0 | CL110: 90 | CM110: 0 | CN110: 378 | CO110: 1 | CP110: 265 | CQ110: 1 | CR110: 200 | CS110: 0 | CT110: 0 | CU110: 0 | CV110: 0 | CW110: 0 | CX110: 0 | CY110: 0 | CZ110: 0 | DA110: 0 | DB110: 0 | DC110: 0 | DD110: 1 | DE110: 0 | DF110: 0 | DG110: 0 | DH110: 2 | DI110: 1 | DJ110: 0 | DK110: 1 | DL110: 0 | DM110: 0 | DN110: 0 | DO110: 0 | DP110: 0 | DQ110: 0 | DR110: 0 | DS110: 0 | DT110: 0 | DU110: 0 | DV110: 0 | DW110: 0 | DX110: 0 | DY110: 0 | DZ110: 0 | EA110: 0 | EB110: 0 | EC110: 0 | ED110: 0 | EE110: 0 | EF110: 0 | EG110: 0 | EH110: 0 | EI110: 0 | EJ110: 0 | EK110: 0 | EL110: 0 | EM110: 0 | EN110: 0 | EO110: 0 | EP110: 0 | EQ110: 0 | ER110: 0 | ES110: 0 | ET110: 0 | EU110: 0 | EV110: 0 | EW110: 0 | EX110: 0 | EY110: 0 | EZ110: 0 | FA110: 0 | FB110: 0 | FC110: 0 | FD110: 0 | FE110: 0 | FF110: 0 | FG110: 0 | FH110: 0 | FI110: 0 | FJ110: 0 | FK110: 0 | FL110: 0 | FM110: 0 | FN110: 0 | FO110: 0 | FP110: 0 | FQ110: 0 | FR110: 0 | FS110: 0 | FT110: 0 | FU110: 0 | FV110: 0 | FW110: 0 | FX110: 0 | FY110: 0 | FZ110: 0 | GA110: 0 | GB110: 0 | GC110: 0 | GD110: 0 | GE110: 0 | GF110: 0 | GG110: 0 | GH110: 0 | GI110: 0 | GJ110: 0 | GK110: 0 | GL110: 0 | GM110: 0 | GN110: 0 | GO110: 0 | GP110: 0 | GQ110: 0 | GR110: 0 | GS110: 0 | GT110: 0 | GU110: 0 | GV110: 0 | GW110: 0 | GX110: 0 | GY110: 0 | GZ110: 0 | HA110: 0 | HB110: 0 | HC110: 0 | HD110: 0 | HE110: 0 | HF110: 0 | HG110: 0 | HH110: 0 | HI110: 0 | HJ110: 0 | HK110: 0 | HL110: 0 | HM110: 0 | HN110: 0 | HO110: 0 | HP110: 0 | HQ110: 0 | HR110: 0 | HS110: 0 | HT110: 0 | HU110: 0 | HV110: 0 | HW110: 0
A116: TOTAL
A117: =COUNT(A96:A114) -> 11 | B117: =SUM(B96:B114) -> 0 | C117: =SUM(C96:C114) -> 0 | D117: 0 | E117: 0 | F117: 0 | G117: 0 | H117: 0 | I117: 0 | J117: 92 | K117: 46 | L117: 100 | M117: 172 | N117: 468 | O117: 1050 | P117: 456 | Q117: 1040 | R117: 292 | S117: 612 | T117: 272 | U117: 610 | V117: 132 | W117: 12 | X117: 132 | Y117: 12 | Z117: 210 | AA117: 82 | AB117: 2124 | AC117: 2362 | AD117: 0 | AE117: 0 | AF117: 20 | AG117: 0 | AH117: 0 | AI117: 0 | AJ117: 0 | AK117: 0 | AL117: 2 | AM117: 0 | AN117: 22 | AO117: 0 | AP117: 96 | AQ117: 90 | AR117: 14 | AS117: 12 | AT117: 0 | AU117: 0 | AV117: 0 | AW117: 0 | AX117: 0 | AY117: 0 | AZ117: 12 | BA117: 0 | BB117: 0 | BC117: 0 | BD117: 8 | BE117: 0 | BF117: 0 | BG117: 4 | BH117: 0 | BI117: 8 | BJ117: 2 | BK117: 2 | BL117: 0 | BM117: 0 | BN117: 0 | BO117: =SUM(BO96:BO114) -> 0 | BP117: 0 | BQ117: 0 | BR117: 0 | BS117: 14 | BT117: 0 | BU117: 0 | BV117: 0 | BW117: 18 | BX117: 6 | BY117: 6 | BZ117: 0 | CA117: 0 | CB117: 2794 | CC117: 1716 | CD117: 0 | CE117: 0 | CF117: 70 | CG117: 6 | CH117: 792 | CI117: 570 | CJ117: 5806 | CK117: 0 | CL117: 180 | CM117: 0 | CN117: 756 | CO117: 2 | CP117: 530 | CQ117: 2 | CR117: 400 | CS117: 0 | CT117: 0 | CU117: 0 | CV117: 0 | CW117: 0 | CX117: 0 | CY117: 0 | CZ117: 0 | DA117: 0 | DB117: 0 | DC117: 0 | DD117: 2 | DE117: 0 | DF117: 0 | DG117: 0 | DH117: 4 | DI117: 2 | DJ117: 0 | DK117: 2 | DL117: 0 | DM117: 0 | DN117: 0 | DO117: 0 | DP117: 0 | DQ117: 0 | DR117: 0 | DS117: 0 | DT117: 0 | DU117: 0 | DV117: 0 | DW117: 0 | DX117: 0 | DY117: 0 | DZ117: 0 | EA117: =SUM(EA96:EA114) -> 0 | EB117: 0 | EC117: 0 | ED117: 0 | EE117: 0 | EF117: 0 | EG117: 0 | EH117: 0 | EI117: 0 | EJ117: 0 | EK117: 0 | EL117: 0 | EM117: 0 | EN117: 0 | EO117: 0 | EP117: 0 | EQ117: 0 | ER117: 0 | ES117: 0 | ET117: 0 | EU117: 0 | EV117: 0 | EW117: 0 | EX117: 0 | EY117: 0 | EZ117: 0 | FA117: 0 | FB117: 0 | FC117: 0 | FD117: 0 | FE117: 0 | FF117: 0 | FG117: 0 | FH117: 0 | FI117: 0 | FJ117: 0 | FK117: 0 | FL117: 0 | FM117: 0 | FN117: 0 | FO117: 0 | FP117: 0 | FQ117: 0 | FR117: 0 | FS117: 0 | FT117: 0 | FU117: 0 | FV117: 0 | FW117: 0 | FX117: 0 | FY117: 0 | FZ117: 0 | GA117: 0 | GB117: 0 | GC117: 0 | GD117: 0 | GE117: 0 | GF117: 0 | GG117: 0 | GH117: 0 | GI117: 0 | GJ117: 0 | GK117: 0 | GL117: 0 | GM117: =SUM(GM96:GM114) -> 0 | GN117: 0 | GO117: 0 | GP117: 0 | GQ117: 0 | GR117: 0 | GS117: 0 | GT117: 0 | GU117: 0 | GV117: 0 | GW117: 0 | GX117: 0 | GY117: 0 | GZ117: 0 | HA117: 0 | HB117: 0 | HC117: 0 | HD117: 0 | HE117: 0 | HF117: 0 | HG117: 0 | HH117: 0 | HI117: 0 | HJ117: 0 | HK117: 0 | HL117: 0 | HM117: 0 | HN117: 0 | HO117: 0 | HP117: 0 | HQ117: 0 | HR117: 0 | HS117: 0 | HT117: 0 | HU117: 0 | HV117: 0 | HW117: 0 | HX117: 0
A118: =CONCATENATE(A99,"-",A100,"-",A101,"-",A102,"-",A103,"-",A104,"-",A105,"-",A106,"-",A107,"-",A108,"-",A109,"-",A110) -> 1-2-3-4-5-6-8-7-9-10-11-Total
B119: BAS001 | C119: BAS002 | D119: BAS003 | E119: BAS004 | F119: BAS005 | G119: BAS006 | H119: BAS007 | I119: BAS008 | J119: BAS009 | K119: BAS010 | L119: BAS011 | M119: BAS012 | N119: BAS013 | O119: BAS014 | P119: BAS015 | Q119: BAS016 | R119: BAS017 | S119: BAS018 | T119: BAS019 | U119: BAS020 | V119: BAS021 | W119: BAS022 | X119: BAS023 | Y119: BAS024 | Z119: BAS025 | AA119: BAS026 | AB119: BAS027 | AC119: BAS028 | AD119: BAS029 | AE119: BAS030 | AF119: BAS031 | AG119: BAS032 | AH119: BAS033 | AI119: BAS034 | AJ119: BAS035 | AK119: BAS036 | AL119: BAS037 | AM119: BAS038 | AN119: BAS039 | AO119: BAS040 | AP119: BAS041 | AQ119: BAS042 | AR119: BAS043 | AS119: BAS044 | AT119: BAS045 | AU119: BAS046 | AV119: BAS047 | AW119: BAS048 | AX119: BAS049 | AY119: BAS050 | AZ119: BAS051 | BA119: BAS052 | BB119: BAS053 | BC119: BAS054 | BD119: BAS055 | BE119: BAS056 | BF119: BAS057 | BG119: BAS058 | BH119: BAS059 | BI119: BAS060 | BJ119: BAS061 | BK119: BAS062 | BL119: BAS063 | BM119: BAS064 | BN119: BAS065 | BO119: BAS066 | BP119: BAS067 | BQ119: BAS068 | BR119: BAS069 | BS119: BAS070 | BT119: BAS071 | BU119: BAS072 | BV119: BAS073 | BW119: BAS074 | BX119: BAS075 | BY119: BAS076 | BZ119: BAS077 | CA119: BAS078 | CB119: BAS079 | CC119: BAS080 | CD119: BAS081 | CE119: BAS082 | CF119: BAS083 | CG119: BAS084 | CH119: BAS085 | CI119: BAS086 | CJ119: BAS087 | CK119: BAS088 | CL119: BAS089 | CM119: BAS090 | CN119: BAS091 | CO119: BAS092 | CP119: BAS093 | CQ119: BAS094 | CR119: BAS095 | CS119: BAS096 | CT119: BAS097 | CU119: BAS098 | CV119: BAS099 | CW119: BAS100 | CX119: BAS101 | CY119: BAS102 | CZ119: BAS103 | DA119: BAS104 | DB119: BAS105 | DC119: BAS106 | DD119: BAS107 | DE119: BAS108 | DF119: BAS109 | DG119: BAS110 | DH119: BAS111 | DI119: BAS112 | DJ119: BAS113 | DK119: BAS114 | DL119: BAS115 | DM119: BAS116 | DN119: BAS117 | DO119: BAS118 | DP119: BAS119 | DQ119: BAS120 | DR119: BAS121 | DS119: BAS122 | DT119: BAS123 | DU119: BAS124 | DV119: BAS125 | DW119: BAS126 | DX119: BAS127 | DY119: BAS128 | DZ119: BAS129 | EA119: BAS130 | EB119: BAS131 | EC119: BAS132 | ED119: BAS133 | EE119: BAS134 | EF119: BAS135 | EG119: BAS136 | EH119: BAS137 | EI119: BAS138 | EJ119: BAS139 | EK119: BAS140 | EL119: BAS141 | EM119: BAS142 | EN119: BAS143 | EO119: BAS144 | EP119: BAS145 | EQ119: BAS146 | ER119: BAS147 | ES119: BAS148 | ET119: BAS149 | EU119: BAS150 | EV119: BAS151 | EW119: BAS152 | EX119: BAS153 | EY119: BAS154 | EZ119: BAS155 | FA119: BAS156 | FB119: BAS157 | FC119: BAS158 | FD119: BAS159 | FE119: BAS160 | FF119: BAS161 | FG119: BAS162 | FH119: BAS163 | FI119: BAS164 | FJ119: BAS165 | FK119: BAS166 | FL119: BAS167 | FM119: BAS168 | FN119: BAS169 | FO119: BAS170 | FP119: BAS171 | FQ119: BAS172 | FR119: BAS173 | FS119: BAS174 | FT119: BAS175 | FU119: BAS176 | FV119: BAS177 | FW119: BAS178 | FX119: BAS179 | FY119: BAS180 | FZ119: BAS181 | GA119: BAS182 | GB119: BAS183 | GC119: BAS184 | GD119: BAS185 | GE119: BAS186 | GF119: BAS187 | GG119: BAS188 | GH119: BAS189 | GI119: BAS190 | GJ119: BAS191 | GK119: BAS192 | GL119: BAS193 | GM119: BAS194 | GN119: BAS195 | GO119: BAS196 | GP119: BAS197 | GQ119: BAS198 | GR119: BAS199 | GS119: BAS200 | GT119: BAS201 | GU119: BAS202 | GV119: BAS203 | GW119: BAS204 | GX119: BAS205 | GY119: BAS206 | GZ119: BAS207 | HA119: BAS208 | HB119: BAS209 | HC119: BAS210 | HD119: BAS211 | HE119: BAS212 | HF119: BAS213 | HG119: BAS214 | HH119: BAS215 | HI119: BAS216 | HJ119: BAS217 | HK119: BAS218 | HL119: BAS219 | HM119: BAS220 | HN119: BAS221 | HO119: BAS222 | HP119: BAS223 | HQ119: BAS224 | HR119: BAS225 | HS119: BAS226 | HT119: BAS227 | HU119: BAS228 | HV119: BAS229 | HW119: BAS230
B120: =IF(B119=B98,"SI","NO") -> SI | C120: =IF(C119=C98,"SI","NO") -> SI | D120: SI | E120: SI | F120: SI | G120: SI | H120: SI | I120: SI | J120: SI | K120: SI | L120: SI | M120: SI | N120: SI | O120: SI | P120: SI | Q120: SI | R120: SI | S120: SI | T120: SI | U120: SI | V120: SI | W120: SI | X120: SI | Y120: SI | Z120: SI | AA120: SI | AB120: SI | AC120: SI | AD120: SI | AE120: SI | AF120: SI | AG120: SI | AH120: SI | AI120: SI | AJ120: SI | AK120: SI | AL120: SI | AM120: SI | AN120: SI | AO120: SI | AP120: SI | AQ120: SI | AR120: SI | AS120: SI | AT120: SI | AU120: SI | AV120: SI | AW120: SI | AX120: SI | AY120: SI | AZ120: SI | BA120: SI | BB120: SI | BC120: SI | BD120: SI | BE120: SI | BF120: SI | BG120: SI | BH120: SI | BI120: SI | BJ120: SI | BK120: SI | BL120: SI | BM120: SI | BN120: SI | BO120: =IF(BO119=BO98,"SI","NO") -> SI | BP120: SI | BQ120: SI | BR120: SI | BS120: SI | BT120: SI | BU120: SI | BV120: SI | BW120: SI | BX120: SI | BY120: SI | BZ120: SI | CA120: SI | CB120: SI | CC120: SI | CD120: SI | CE120: SI | CF120: SI | CG120: SI | CH120: SI | CI120: SI | CJ120: SI | CK120: SI | CL120: SI | CM120: SI | CN120: SI | CO120: SI | CP120: SI | CQ120: SI | CR120: SI | CS120: SI | CT120: SI | CU120: SI | CV120: SI | CW120: SI | CX120: SI | CY120: SI | CZ120: SI | DA120: SI | DB120: SI | DC120: SI | DD120: SI | DE120: SI | DF120: SI | DG120: SI | DH120: SI | DI120: SI | DJ120: SI | DK120: SI | DL120: SI | DM120: SI | DN120: SI | DO120: SI | DP120: SI | DQ120: SI | DR120: SI | DS120: SI | DT120: SI | DU120: SI | DV120: SI | DW120: SI | DX120: SI | DY120: SI | DZ120: SI | EA120: =IF(EA119=EA98,"SI","NO") -> SI | EB120: SI | EC120: SI | ED120: SI | EE120: SI | EF120: SI | EG120: SI | EH120: SI | EI120: SI | EJ120: SI | EK120: SI | EL120: SI | EM120: SI | EN120: SI | EO120: SI | EP120: SI | EQ120: SI | ER120: SI | ES120: SI | ET120: SI | EU120: SI | EV120: SI | EW120: SI | EX120: SI | EY120: SI | EZ120: SI | FA120: SI | FB120: SI | FC120: SI | FD120: SI | FE120: SI | FF120: SI | FG120: SI | FH120: SI | FI120: SI | FJ120: SI | FK120: SI | FL120: SI | FM120: SI | FN120: SI | FO120: SI | FP120: SI | FQ120: SI | FR120: SI | FS120: SI | FT120: SI | FU120: SI | FV120: SI | FW120: SI | FX120: SI | FY120: SI | FZ120: SI | GA120: SI | GB120: SI | GC120: SI | GD120: SI | GE120: SI | GF120: SI | GG120: SI | GH120: SI | GI120: SI | GJ120: SI | GK120: SI | GL120: SI | GM120: =IF(GM119=GM98,"SI","NO") -> SI | GN120: SI | GO120: SI | GP120: SI | GQ120: SI | GR120: SI | GS120: SI | GT120: SI | GU120: SI | GV120: SI | GW120: SI | GX120: SI | GY120: SI | GZ120: SI | HA120: SI | HB120: SI | HC120: SI | HD120: SI | HE120: SI | HF120: SI | HG120: SI | HH120: SI | HI120: SI | HJ120: SI | HK120: SI | HL120: SI | HM120: SI | HN120: SI | HO120: SI | HP120: SI | HQ120: SI | HR120: SI | HS120: SI | HT120: SI | HU120: SI | HV120: SI | HW120: SI
A123: PLANI_03
A124: ANNO | B124: 2024
A125: cod_red | B125: 03
A126: codmic | B126: (Todas)
A127: cod_prov | B127: (Todas)
A128: coddist | B128: (Todas)
A129: cod_estab | B129: (Todas)
A130: cod_eje | B130: (Todas)
B132: Valores
A133: Etiquetas de fila | B133: BAS001 | C133: BAS002 | D133: BAS003 | E133: BAS004 | F133: BAS005 | G133: BAS006 | H133: BAS007 | I133: BAS008 | J133: BAS009 | K133: BAS010 | L133: BAS011 | M133: BAS012 | N133: BAS013 | O133: BAS014 | P133: BAS015 | Q133: BAS016 | R133: BAS017 | S133: BAS018 | T133: BAS019 | U133: BAS020 | V133: BAS021 | W133: BAS022 | X133: BAS023 | Y133: BAS024 | Z133: BAS025 | AA133: BAS026 | AB133: BAS027 | AC133: BAS028 | AD133: BAS029 | AE133: BAS030 | AF133: BAS031 | AG133: BAS032 | AH133: BAS033 | AI133: BAS034 | AJ133: BAS035 | AK133: BAS036 | AL133: BAS037 | AM133: BAS038 | AN133: BAS039 | AO133: BAS040 | AP133: BAS041 | AQ133: BAS042 | AR133: BAS043 | AS133: BAS044 | AT133: BAS045 | AU133: BAS046 | AV133: BAS047 | AW133: BAS048 | AX133: BAS049 | AY133: BAS050 | AZ133: BAS051 | BA133: BAS052 | BB133: BAS053 | BC133: BAS054 | BD133: BAS055 | BE133: BAS056 | BF133: BAS057 | BG133: BAS058 | BH133: BAS059 | BI133: BAS060 | BJ133: BAS061 | BK133: BAS062 | BL133: BAS063 | BM133: BAS064 | BN133: BAS065 | BO133: BAS066 | BP133: BAS067 | BQ133: BAS068 | BR133: BAS069 | BS133: BAS070 | BT133: BAS071 | BU133: BAS072 | BV133: BAS073 | BW133: BAS074 | BX133: BAS075 | BY133: BAS076 | BZ133: BAS077 | CA133: BAS078 | CB133: BAS079 | CC133: BAS080 | CD133: BAS081 | CE133: BAS082 | CF133: BAS083 | CG133: BAS084 | CH133: BAS085 | CI133: BAS086 | CJ133: BAS087 | CK133: BAS088 | CL133: BAS089 | CM133: BAS090 | CN133: BAS091 | CO133: BAS092 | CP133: BAS093 | CQ133: BAS094 | CR133: BAS095 | CS133: BAS096 | CT133: BAS097 | CU133: BAS098 | CV133: BAS099 | CW133: BAS100 | CX133: BAS101 | CY133: BAS102 | CZ133: BAS103 | DA133: BAS104 | DB133: BAS105 | DC133: BAS106 | DD133: BAS107 | DE133: BAS108 | DF133: BAS109 | DG133: BAS110 | DH133: BAS111 | DI133: BAS112 | DJ133: BAS113 | DK133: BAS114 | DL133: BAS115 | DM133: BAS116 | DN133: BAS117 | DO133: BAS118 | DP133: BAS119 | DQ133: BAS120 | DR133: BAS121 | DS133: BAS122 | DT133: BAS123 | DU133: BAS124 | DV133: BAS125 | DW133: BAS126 | DX133: BAS127 | DY133: BAS128 | DZ133: BAS129 | EA133: BAS130 | EB133: BAS131 | EC133: BAS132 | ED133: BAS133 | EE133: BAS134 | EF133: BAS135 | EG133: BAS136 | EH133: BAS137 | EI133: BAS138 | EJ133: BAS139 | EK133: BAS140 | EL133: BAS141 | EM133: BAS142 | EN133: BAS143 | EO133: BAS144 | EP133: BAS145 | EQ133: BAS146 | ER133: BAS147 | ES133: BAS148 | ET133: BAS149 | EU133: BAS150 | EV133: BAS151 | EW133: BAS152 | EX133: BAS153 | EY133: BAS154 | EZ133: BAS155 | FA133: BAS156 | FB133: BAS157 | FC133: BAS158 | FD133: BAS159 | FE133: BAS160 | FF133: BAS161 | FG133: BAS162 | FH133: BAS163 | FI133: BAS164 | FJ133: BAS165 | FK133: BAS166 | FL133: BAS167 | FM133: BAS168 | FN133: BAS169 | FO133: BAS170 | FP133: BAS171 | FQ133: BAS172 | FR133: BAS173 | FS133: BAS174 | FT133: BAS175 | FU133: BAS176 | FV133: BAS177 | FW133: BAS178 | FX133: BAS179 | FY133: BAS180 | FZ133: BAS181 | GA133: BAS182 | GB133: BAS183 | GC133: BAS184 | GD133: BAS185 | GE133: BAS186 | GF133: BAS187 | GG133: BAS188 | GH133: BAS189 | GI133: BAS190 | GJ133: BAS191 | GK133: BAS192 | GL133: BAS193 | GM133: BAS194 | GN133: BAS195 | GO133: BAS196 | GP133: BAS197 | GQ133: BAS198 | GR133: BAS199 | GS133: BAS200 | GT133: BAS201 | GU133: BAS202 | GV133: BAS203 | GW133: BAS204 | GX133: BAS205 | GY133: BAS206 | GZ133: BAS207 | HA133: BAS208 | HB133: BAS209 | HC133: BAS210 | HD133: BAS211 | HE133: BAS212 | HF133: BAS213 | HG133: BAS214 | HH133: BAS215 | HI133: BAS216 | HJ133: BAS217 | HK133: BAS218 | HL133: BAS219 | HM133: BAS220 | HN133: BAS221 | HO133: BAS222 | HP133: BAS223 | HQ133: BAS224 | HR133: BAS225 | HS133: BAS226 | HT133: BAS227 | HU133: BAS228 | HV133: BAS229 | HW133: BAS230
A134: 1 | B134: 3 | C134: 0 | D134: 3 | E134: 0 | F134: 0 | G134: 0 | H134: 0 | I134: 0 | J134: 49 | K134: 71 | L134: 73 | M134: 280 | N134: 147 | O134: 265 | P134: 146 | Q134: 267 | R134: 110 | S134: 99 | T134: 108 | U134: 99 | V134: 34 | W134: 5 | X134: 34 | Y134: 5 | Z134: 40 | AA134: 45 | AB134: 420 | AC134: 1321 | AD134: 0 | AE134: 0 | AF134: 0 | AG134: 0 | AH134: 1 | AI134: 0 | AJ134: 0 | AK134: 0 | AL134: 0 | AM134: 0 | AN134: 2 | AO134: 2 | AP134: 6 | AQ134: 4 | AR134: 0 | AS134: 0 | AT134: 0 | AU134: 0 | AV134: 0 | AW134: 0 | AX134: 0 | AY134: 0 | AZ134: 1 | BA134: 0 | BB134: 0 | BC134: 0 | BD134: 0 | BE134: 0 | BF134: 0 | BG134: 3 | BH134: 0 | BI134: 0 | BJ134: 0 | BK134: 0 | BL134: 0 | BM134: 0 | BN134: 0 | BO134: 0 | BP134: 0 | BQ134: 0 | BR134: 1 | BS134: 3 | BT134: 0 | BU134: 0 | BV134: 0 | BW134: 5 | BX134: 0 | BY134: 0 | BZ134: 0 | CA134: 1 | CB134: 34 | CC134: 0 | CD134: 2 | CE134: 0 | CF134: 4 | CG134: 0 | CH134: 45 | CI134: 0 | CJ134: 830 | CK134: 0 | CL134: 18 | CM134: 0 | CN134: 113 | CO134: 0 | CP134: 111 | CQ134: 0 | CR134: 114 | CS134: 0 | CT134: 0 | CU134: 0 | CV134: 0 | CW134: 1 | CX134: 0 | CY134: 0 | CZ134: 0 | DA134: 0 | DB134: 0 | DC134: 0 | DD134: 0 | DE134: 0 | DF134: 0 | DG134: 1 | DH134: 0 | DI134: 1 | DJ134: 0 | DK134: 0 | DL134: 0 | DM134: 0 | DN134: 0 | DO134: 0 | DP134: 0 | DQ134: 0 | DR134: 0 | DS134: 0 | DT134: 0 | DU134: 0 | DV134: 0 | DW134: 0 | DX134: 0 | DY134: 0 | DZ134: 0 | EA134: 0 | EB134: 0 | EC134: 0 | ED134: 0 | EE134: 0 | EF134: 0 | EG134: 0 | EH134: 0 | EI134: 0 | EJ134: 0 | EK134: 0 | EL134: 0 | EM134: 0 | EN134: 0 | EO134: 0 | EP134: 0 | EQ134: 0 | ER134: 0 | ES134: 0 | ET134: 0 | EU134: 0 | EV134: 0 | EW134: 0 | EX134: 0 | EY134: 0 | EZ134: 0 | FA134: 0 | FB134: 0 | FC134: 0 | FD134: 0 | FE134: 0 | FF134: 0 | FG134: 0 | FH134: 0 | FI134: 0 | FJ134: 0 | FK134: 0 | FL134: 0 | FM134: 0 | FN134: 0 | FO134: 0 | FP134: 0 | FQ134: 0 | FR134: 0 | FS134: 0 | FT134: 0 | FU134: 0 | FV134: 0 | FW134: 0 | FX134: 0 | FY134: 0 | FZ134: 0 | GA134: 0 | GB134: 0 | GC134: 0 | GD134: 0 | GE134: 0 | GF134: 0 | GG134: 0 | GH134: 0 | GI134: 0 | GJ134: 0 | GK134: 0 | GL134: 0 | GM134: 0 | GN134: 0 | GO134: 0 | GP134: 0 | GQ134: 0 | GR134: 0 | GS134: 0 | GT134: 0 | GU134: 0 | GV134: 0 | GW134: 0 | GX134: 0 | GY134: 0 | GZ134: 0 | HA134: 0 | HB134: 0 | HC134: 0 | HD134: 0 | HE134: 0 | HF134: 0 | HG134: 0 | HH134: 0 | HI134: 0 | HJ134: 0 | HK134: 0 | HL134: 0 | HM134: 0 | HN134: 0 | HO134: 0 | HP134: 0 | HQ134: 0 | HR134: 0 | HS134: 0 | HT134: 0 | HU134: 0 | HV134: 0 | HW134: 0
A135: 2 | B135: 3 | C135: 0 | D135: 3 | E135: 0 | F135: 0 | G135: 0 | H135: 0 | I135: 0 | J135: 42 | K135: 59 | L135: 57 | M135: 236 | N135: 139 | O135: 303 | P135: 139 | Q135: 307 | R135: 80 | S135: 144 | T135: 81 | U135: 144 | V135: 32 | W135: 11 | X135: 32 | Y135: 11 | Z135: 61 | AA135: 35 | AB135: 970 | AC135: 1030 | AD135: 1 | AE135: 0 | AF135: 10 | AG135: 0 | AH135: 1 | AI135: 0 | AJ135: 0 | AK135: 0 | AL135: 0 | AM135: 0 | AN135: 9 | AO135: 1 | AP135: 5 | AQ135: 5 | AR135: 0 | AS135: 0 | AT135: 0 | AU135: 0 | AV135: 0 | AW135: 0 | AX135: 0 | AY135: 0 | AZ135: 0 | BA135: 0 | BB135: 2 | BC135: 0 | BD135: 1 | BE135: 0 | BF135: 0 | BG135: 2 | BH135: 0 | BI135: 2 | BJ135: 0 | BK135: 0 | BL135: 0 | BM135: 0 | BN135: 0 | BO135: 0 | BP135: 0 | BQ135: 0 | BR135: 1 | BS135: 3 | BT135: 0 | BU135: 0 | BV135: 0 | BW135: 3 | BX135: 0 | BY135: 0 | BZ135: 0 | CA135: 1 | CB135: 136 | CC135: 3 | CD135: 0 | CE135: 0 | CF135: 2 | CG135: 0 | CH135: 51 | CI135: 0 | CJ135: 768 | CK135: 0 | CL135: 19 | CM135: 0 | CN135: 72 | CO135: 0 | CP135: 71 | CQ135: 0 | CR135: 80 | CS135: 1 | CT135: 0 | CU135: 0 | CV135: 0 | CW135: 0 | CX135: 0 | CY135: 0 | CZ135: 0 | DA135: 0 | DB135: 0 | DC135: 0 | DD135: 0 | DE135: 0 | DF135: 0 | DG135: 0 | DH135: 1 | DI135: 0 | DJ135: 0 | DK135: 1 | DL135: 0 | DM135: 0 | DN135: 0 | DO135: 0 | DP135: 0 | DQ135: 0 | DR135: 0 | DS135: 0 | DT135: 0 | DU135: 0 | DV135: 0 | DW135: 0 | DX135: 0 | DY135: 0 | DZ135: 0 | EA135: 0 | EB135: 0 | EC135: 0 | ED135: 0 | EE135: 0 | EF135: 0 | EG135: 0 | EH135: 0 | EI135: 0 | EJ135: 0 | EK135: 0 | EL135: 0 | EM135: 0 | EN135: 0 | EO135: 0 | EP135: 0 | EQ135: 0 | ER135: 0 | ES135: 0 | ET135: 0 | EU135: 0 | EV135: 0 | EW135: 0 | EX135: 0 | EY135: 0 | EZ135: 0 | FA135: 0 | FB135: 0 | FC135: 0 | FD135: 0 | FE135: 0 | FF135: 0 | FG135: 0 | FH135: 0 | FI135: 0 | FJ135: 0 | FK135: 0 | FL135: 0 | FM135: 0 | FN135: 0 | FO135: 0 | FP135: 0 | FQ135: 0 | FR135: 0 | FS135: 0 | FT135: 0 | FU135: 0 | FV135: 0 | FW135: 0 | FX135: 0 | FY135: 0 | FZ135: 0 | GA135: 0 | GB135: 0 | GC135: 0 | GD135: 0 | GE135: 0 | GF135: 0 | GG135: 0 | GH135: 0 | GI135: 0 | GJ135: 0 | GK135: 0 | GL135: 0 | GM135: 0 | GN135: 0 | GO135: 0 | GP135: 0 | GQ135: 0 | GR135: 0 | GS135: 0 | GT135: 0 | GU135: 0 | GV135: 0 | GW135: 0 | GX135: 0 | GY135: 0 | GZ135: 0 | HA135: 0 | HB135: 0 | HC135: 0 | HD135: 0 | HE135: 0 | HF135: 0 | HG135: 0 | HH135: 0 | HI135: 0 | HJ135: 0 | HK135: 0 | HL135: 0 | HM135: 0 | HN135: 0 | HO135: 0 | HP135: 0 | HQ135: 0 | HR135: 0 | HS135: 0 | HT135: 0 | HU135: 0 | HV135: 0 | HW135: 0
A136: 3 | B136: 0 | C136: 0 | D136: 0 | E136: 0 | F136: 0 | G136: 0 | H136: 0 | I136: 0 | J136: 48 | K136: 57 | L136: 77 | M136: 225 | N136: 131 | O136: 279 | P136: 124 | Q136: 276 | R136: 82 | S136: 164 | T136: 80 | U136: 164 | V136: 37 | W136: 4 | X136: 37 | Y136: 4 | Z136: 51 | AA136: 51 | AB136: 550 | AC136: 1530 | AD136: 1 | AE136: 0 | AF136: 10 | AG136: 0 | AH136: 4 | AI136: 0 | AJ136: 0 | AK136: 0 | AL136: 2 | AM136: 0 | AN136: 2 | AO136: 0 | AP136: 11 | AQ136: 11 | AR136: 0 | AS136: 0 | AT136: 0 | AU136: 0 | AV136: 0 | AW136: 0 | AX136: 0 | AY136: 0 | AZ136: 0 | BA136: 0 | BB136: 0 | BC136: 0 | BD136: 3 | BE136: 0 | BF136: 0 | BG136: 4 | BH136: 0 | BI136: 1 | BJ136: 1 | BK136: 0 | BL136: 0 | BM136: 0 | BN136: 0 | BO136: 0 | BP136: 0 | BQ136: 0 | BR136: 3 | BS136: 8 | BT136: 1 | BU136: 0 | BV136: 0 | BW136: 0 | BX136: 1 | BY136: 4 | BZ136: 0 | CA136: 3 | CB136: 144 | CC136: 2 | CD136: 3 | CE136: 0 | CF136: 5 | CG136: 3 | CH136: 60 | CI136: 0 | CJ136: 696 | CK136: 0 | CL136: 16 | CM136: 0 | CN136: 61 | CO136: 0 | CP136: 61 | CQ136: 0 | CR136: 56 | CS136: 0 | CT136: 0 | CU136: 0 | CV136: 0 | CW136: 0 | CX136: 0 | CY136: 0 | CZ136: 0 | DA136: 0 | DB136: 0 | DC136: 0 | DD136: 0 | DE136: 0 | DF136: 0 | DG136: 2 | DH136: 0 | DI136: 0 | DJ136: 0 | DK136: 1 | DL136: 0 | DM136: 0 | DN136: 0 | DO136: 0 | DP136: 0 | DQ136: 0 | DR136: 0 | DS136: 0 | DT136: 0 | DU136: 0 | DV136: 0 | DW136: 0 | DX136: 0 | DY136: 0 | DZ136: 0 | EA136: 0 | EB136: 0 | EC136: 0 | ED136: 0 | EE136: 0 | EF136: 0 | EG136: 0 | EH136: 0 | EI136: 0 | EJ136: 0 | EK136: 0 | EL136: 0 | EM136: 0 | EN136: 0 | EO136: 0 | EP136: 0 | EQ136: 0 | ER136: 0 | ES136: 0 | ET136: 0 | EU136: 0 | EV136: 0 | EW136: 0 | EX136: 0 | EY136: 0 | EZ136: 0 | FA136: 0 | FB136: 0 | FC136: 0 | FD136: 0 | FE136: 0 | FF136: 0 | FG136: 0 | FH136: 0 | FI136: 0 | FJ136: 0 | FK136: 0 | FL136: 0 | FM136: 0 | FN136: 0 | FO136: 0 | FP136: 0 | FQ136: 0 | FR136: 0 | FS136: 0 | FT136: 0 | FU136: 0 | FV136: 0 | FW136: 0 | FX136: 0 | FY136: 0 | FZ136: 0 | GA136: 0 | GB136: 0 | GC136: 0 | GD136: 0 | GE136: 0 | GF136: 0 | GG136: 0 | GH136: 0 | GI136: 0 | GJ136: 0 | GK136: 0 | GL136: 0 | GM136: 0 | GN136: 0 | GO136: 0 | GP136: 0 | GQ136: 0 | GR136: 0 | GS136: 0 | GT136: 0 | GU136: 0 | GV136: 0 | GW136: 0 | GX136: 0 | GY136: 0 | GZ136: 0 | HA136: 0 | HB136: 0 | HC136: 0 | HD136: 0 | HE136: 0 | HF136: 0 | HG136: 0 | HH136: 0 | HI136: 0 | HJ136: 0 | HK136: 0 | HL136: 0 | HM136: 0 | HN136: 0 | HO136: 0 | HP136: 0 | HQ136: 0 | HR136: 0 | HS136: 0 | HT136: 0 | HU136: 0 | HV136: 0 | HW136: 0
A137: 4 | B137: 0 | C137: 0 | D137: 0 | E137: 0 | F137: 0 | G137: 0 | H137: 0 | I137: 0 | J137: 51 | K137: 52 | L137: 63 | M137: 204 | N137: 117 | O137: 333 | P137: 115 | Q137: 332 | R137: 71 | S137: 189 | T137: 73 | U137: 189 | V137: 36 | W137: 7 | X137: 36 | Y137: 7 | Z137: 64 | AA137: 53 | AB137: 660 | AC137: 1590 | AD137: 8 | AE137: 0 | AF137: 71 | AG137: 0 | AH137: 1 | AI137: 0 | AJ137: 0 | AK137: 0 | AL137: 0 | AM137: 0 | AN137: 0 | AO137: 0 | AP137: 6 | AQ137: 4 | AR137: 1 | AS137: 0 | AT137: 0 | AU137: 0 | AV137: 0 | AW137: 0 | AX137: 0 | AY137: 0 | AZ137: 2 | BA137: 0 | BB137: 1 | BC137: 0 | BD137: 1 | BE137: 0 | BF137: 0 | BG137: 3 | BH137: 0 | BI137: 1 | BJ137: 1 | BK137: 0 | BL137: 0 | BM137: 0 | BN137: 0 | BO137: 0 | BP137: 0 | BQ137: 0 | BR137: 1 | BS137: 5 | BT137: 0 | BU137: 0 | BV137: 0 | BW137: 2 | BX137: 1 | BY137: 0 | BZ137: 0 | CA137: 1 | CB137: 359 | CC137: 2 | CD137: 2 | CE137: 0 | CF137: 4 | CG137: 0 | CH137: 60 | CI137: 1 | CJ137: 512 | CK137: 0 | CL137: 17 | CM137: 0 | CN137: 30 | CO137: 0 | CP137: 30 | CQ137: 0 | CR137: 40 | CS137: 0 | CT137: 0 | CU137: 0 | CV137: 0 | CW137: 0 | CX137: 0 | CY137: 0 | CZ137: 0 | DA137: 0 | DB137: 0 | DC137: 0 | DD137: 0 | DE137: 0 | DF137: 0 | DG137: 0 | DH137: 0 | DI137: 0 | DJ137: 0 | DK137: 0 | DL137: 0 | DM137: 0 | DN137: 0 | DO137: 0 | DP137: 0 | DQ137: 0 | DR137: 0 | DS137: 0 | DT137: 0 | DU137: 0 | DV137: 0 | DW137: 0 | DX137: 0 | DY137: 0 | DZ137: 0 | EA137: 0 | EB137: 0 | EC137: 0 | ED137: 0 | EE137: 0 | EF137: 0 | EG137: 0 | EH137: 0 | EI137: 0 | EJ137: 0 | EK137: 0 | EL137: 0 | EM137: 0 | EN137: 0 | EO137: 0 | EP137: 0 | EQ137: 0 | ER137: 0 | ES137: 0 | ET137: 0 | EU137: 0 | EV137: 0 | EW137: 0 | EX137: 0 | EY137: 0 | EZ137: 0 | FA137: 0 | FB137: 0 | FC137: 0 | FD137: 0 | FE137: 0 | FF137: 0 | FG137: 0 | FH137: 0 | FI137: 0 | FJ137: 0 | FK137: 0 | FL137: 0 | FM137: 0 | FN137: 0 | FO137: 0 | FP137: 0 | FQ137: 0 | FR137: 0 | FS137: 0 | FT137: 0 | FU137: 0 | FV137: 0 | FW137: 0 | FX137: 0 | FY137: 0 | FZ137: 0 | GA137: 0 | GB137: 0 | GC137: 0 | GD137: 0 | GE137: 0 | GF137: 0 | GG137: 0 | GH137: 0 | GI137: 0 | GJ137: 0 | GK137: 0 | GL137: 0 | GM137: 0 | GN137: 0 | GO137: 0 | GP137: 0 | GQ137: 0 | GR137: 0 | GS137: 0 | GT137: 0 | GU137: 0 | GV137: 0 | GW137: 0 | GX137: 0 | GY137: 0 | GZ137: 0 | HA137: 0 | HB137: 0 | HC137: 0 | HD137: 0 | HE137: 0 | HF137: 0 | HG137: 0 | HH137: 0 | HI137: 0 | HJ137: 0 | HK137: 0 | HL137: 0 | HM137: 0 | HN137: 0 | HO137: 0 | HP137: 0 | HQ137: 0 | HR137: 0 | HS137: 0 | HT137: 0 | HU137: 0 | HV137: 0 | HW137: 0
A138: 5 | B138: 4 | C138: 0 | D138: 4 | E138: 0 | F138: 0 | G138: 0 | H138: 0 | I138: 0 | J138: 40 | K138: 72 | L138: 56 | M138: 286 | N138: 79 | O138: 345 | P138: 76 | Q138: 347 | R138: 63 | S138: 198 | T138: 59 | U138: 198 | V138: 25 | W138: 4 | X138: 25 | Y138: 4 | Z138: 54 | AA138: 37 | AB138: 560 | AC138: 1110 | AD138: 8 | AE138: 0 | AF138: 64 | AG138: 0 | AH138: 1 | AI138: 0 | AJ138: 0 | AK138: 0 | AL138: 0 | AM138: 0 | AN138: 1 | AO138: 0 | AP138: 10 | AQ138: 10 | AR138: 0 | AS138: 0 | AT138: 0 | AU138: 0 | AV138: 0 | AW138: 0 | AX138: 0 | AY138: 0 | AZ138: 2 | BA138: 0 | BB138: 0 | BC138: 0 | BD138: 2 | BE138: 0 | BF138: 0 | BG138: 7 | BH138: 0 | BI138: 0 | BJ138: 0 | BK138: 0 | BL138: 0 | BM138: 0 | BN138: 0 | BO138: 0 | BP138: 0 | BQ138: 0 | BR138: 1 | BS138: 10 | BT138: 0 | BU138: 0 | BV138: 0 | BW138: 1 | BX138: 1 | BY138: 2 | BZ138: 0 | CA138: 1 | CB138: 380 | CC138: 5 | CD138: 2 | CE138: 0 | CF138: 7 | CG138: 0 | CH138: 58 | CI138: 0 | CJ138: 371 | CK138: 0 | CL138: 15 | CM138: 0 | CN138: 32 | CO138: 0 | CP138: 29 | CQ138: 0 | CR138: 33 | CS138: 0 | CT138: 0 | CU138: 0 | CV138: 0 | CW138: 0 | CX138: 0 | CY138: 0 | CZ138: 0 | DA138: 0 | DB138: 0 | DC138: 0 | DD138: 0 | DE138: 0 | DF138: 0 | DG138: 0 | DH138: 0 | DI138: 3 | DJ138: 0 | DK138: 0 | DL138: 0 | DM138: 0 | DN138: 0 | DO138: 0 | DP138: 0 | DQ138: 0 | DR138: 0 | DS138: 0 | DT138: 0 | DU138: 0 | DV138: 0 | DW138: 0 | DX138: 0 | DY138: 0 | DZ138: 0 | EA138: 0 | EB138: 0 | EC138: 0 | ED138: 0 | EE138: 0 | EF138: 0 | EG138: 0 | EH138: 0 | EI138: 0 | EJ138: 0 | EK138: 0 | EL138: 0 | EM138: 0 | EN138: 0 | EO138: 0 | EP138: 0 | EQ138: 0 | ER138: 0 | ES138: 0 | ET138: 0 | EU138: 0 | EV138: 0 | EW138: 0 | EX138: 0 | EY138: 0 | EZ138: 0 | FA138: 0 | FB138: 0 | FC138: 0 | FD138: 0 | FE138: 0 | FF138: 0 | FG138: 0 | FH138: 0 | FI138: 0 | FJ138: 0 | FK138: 0 | FL138: 0 | FM138: 0 | FN138: 0 | FO138: 0 | FP138: 0 | FQ138: 0 | FR138: 0 | FS138: 0 | FT138: 0 | FU138: 0 | FV138: 0 | FW138: 0 | FX138: 0 | FY138: 0 | FZ138: 0 | GA138: 0 | GB138: 0 | GC138: 0 | GD138: 0 | GE138: 0 | GF138: 0 | GG138: 0 | GH138: 0 | GI138: 0 | GJ138: 0 | GK138: 0 | GL138: 0 | GM138: 0 | GN138: 0 | GO138: 0 | GP138: 0 | GQ138: 0 | GR138: 0 | GS138: 0 | GT138: 0 | GU138: 0 | GV138: 0 | GW138: 0 | GX138: 0 | GY138: 0 | GZ138: 0 | HA138: 0 | HB138: 0 | HC138: 0 | HD138: 0 | HE138: 0 | HF138: 0 | HG138: 0 | HH138: 0 | HI138: 0 | HJ138: 0 | HK138: 0 | HL138: 0 | HM138: 0 | HN138: 0 | HO138: 0 | HP138: 0 | HQ138: 0 | HR138: 0 | HS138: 0 | HT138: 0 | HU138: 0 | HV138: 0 | HW138: 0
A139: 6 | B139: 0 | C139: 0 | D139: 0 | E139: 0 | F139: 0 | G139: 0 | H139: 0 | I139: 0 | J139: 41 | K139: 68 | L139: 48 | M139: 266 | N139: 78 | O139: 332 | P139: 87 | Q139: 333 | R139: 59 | S139: 198 | T139: 62 | U139: 198 | V139: 44 | W139: 13 | X139: 44 | Y139: 13 | Z139: 75 | AA139: 54 | AB139: 741 | AC139: 1570 | AD139: 5 | AE139: 0 | AF139: 50 | AG139: 0 | AH139: 4 | AI139: 0 | AJ139: 0 | AK139: 0 | AL139: 0 | AM139: 0 | AN139: 2 | AO139: 0 | AP139: 16 | AQ139: 16 | AR139: 0 | AS139: 0 | AT139: 0 | AU139: 0 | AV139: 0 | AW139: 0 | AX139: 0 | AY139: 0 | AZ139: 3 | BA139: 1 | BB139: 2 | BC139: 0 | BD139: 2 | BE139: 0 | BF139: 0 | BG139: 5 | BH139: 0 | BI139: 3 | BJ139: 0 | BK139: 0 | BL139: 0 | BM139: 0 | BN139: 0 | BO139: 0 | BP139: 0 | BQ139: 0 | BR139: 3 | BS139: 9 | BT139: 0 | BU139: 0 | BV139: 0 | BW139: 1 | BX139: 1 | BY139: 4 | BZ139: 0 | CA139: 3 | CB139: 357 | CC139: 11 | CD139: 0 | CE139: 0 | CF139: 10 | CG139: 3 | CH139: 67 | CI139: 0 | CJ139: 372 | CK139: 0 | CL139: 9 | CM139: 0 | CN139: 31 | CO139: 0 | CP139: 31 | CQ139: 0 | CR139: 34 | CS139: 0 | CT139: 0 | CU139: 0 | CV139: 0 | CW139: 0 | CX139: 0 | CY139: 0 | CZ139: 0 | DA139: 0 | DB139: 0 | DC139: 0 | DD139: 0 | DE139: 0 | DF139: 0 | DG139: 0 | DH139: 0 | DI139: 1 | DJ139: 0 | DK139: 2 | DL139: 0 | DM139: 0 | DN139: 0 | DO139: 0 | DP139: 0 | DQ139: 0 | DR139: 0 | DS139: 0 | DT139: 0 | DU139: 0 | DV139: 0 | DW139: 0 | DX139: 0 | DY139: 0 | DZ139: 0 | EA139: 0 | EB139: 0 | EC139: 0 | ED139: 0 | EE139: 0 | EF139: 0 | EG139: 0 | EH139: 0 | EI139: 0 | EJ139: 0 | EK139: 0 | EL139: 0 | EM139: 0 | EN139: 0 | EO139: 0 | EP139: 0 | EQ139: 0 | ER139: 0 | ES139: 0 | ET139: 0 | EU139: 0 | EV139: 0 | EW139: 0 | EX139: 0 | EY139: 0 | EZ139: 0 | FA139: 0 | FB139: 0 | FC139: 0 | FD139: 0 | FE139: 0 | FF139: 0 | FG139: 0 | FH139: 0 | FI139: 0 | FJ139: 0 | FK139: 0 | FL139: 0 | FM139: 0 | FN139: 0 | FO139: 0 | FP139: 0 | FQ139: 0 | FR139: 0 | FS139: 0 | FT139: 0 | FU139: 0 | FV139: 0 | FW139: 0 | FX139: 0 | FY139: 0 | FZ139: 0 | GA139: 0 | GB139: 0 | GC139: 0 | GD139: 0 | GE139: 0 | GF139: 0 | GG139: 0 | GH139: 0 | GI139: 0 | GJ139: 0 | GK139: 0 | GL139: 0 | GM139: 0 | GN139: 0 | GO139: 0 | GP139: 0 | GQ139: 0 | GR139: 0 | GS139: 0 | GT139: 0 | GU139: 0 | GV139: 0 | GW139: 0 | GX139: 0 | GY139: 0 | GZ139: 0 | HA139: 0 | HB139: 0 | HC139: 0 | HD139: 0 | HE139: 0 | HF139: 0 | HG139: 0 | HH139: 0 | HI139: 0 | HJ139: 0 | HK139: 0 | HL139: 0 | HM139: 0 | HN139: 0 | HO139: 0 | HP139: 0 | HQ139: 0 | HR139: 0 | HS139: 0 | HT139: 0 | HU139: 0 | HV139: 0 | HW139: 0
A140: 8 | B140: 1 | C140: 0 | D140: 1 | E140: 0 | F140: 0 | G140: 0 | H140: 0 | I140: 0 | J140: 30 | K140: 63 | L140: 33 | M140: 246 | N140: 65 | O140: 353 | P140: 64 | Q140: 353 | R140: 61 | S140: 195 | T140: 60 | U140: 198 | V140: 43 | W140: 13 | X140: 43 | Y140: 13 | Z140: 67 | AA140: 39 | AB140: 700 | AC140: 1170 | AD140: 0 | AE140: 0 | AF140: 0 | AG140: 0 | AH140: 1 | AI140: 0 | AJ140: 0 | AK140: 0 | AL140: 0 | AM140: 0 | AN140: 2 | AO140: 1 | AP140: 47 | AQ140: 41 | AR140: 0 | AS140: 0 | AT140: 0 | AU140: 0 | AV140: 0 | AW140: 0 | AX140: 0 | AY140: 0 | AZ140: 1 | BA140: 1 | BB140: 1 | BC140: 0 | BD140: 1 | BE140: 0 | BF140: 0 | BG140: 5 | BH140: 0 | BI140: 2 | BJ140: 0 | BK140: 0 | BL140: 0 | BM140: 0 | BN140: 0 | BO140: 0 | BP140: 0 | BQ140: 0 | BR140: 1 | BS140: 7 | BT140: 0 | BU140: 0 | BV140: 0 | BW140: 0 | BX140: 0 | BY140: 1 | BZ140: 0 | CA140: 1 | CB140: 220 | CC140: 3 | CD140: 1 | CE140: 0 | CF140: 30 | CG140: 1 | CH140: 58 | CI140: 0 | CJ140: 286 | CK140: 0 | CL140: 8 | CM140: 0 | CN140: 31 | CO140: 0 | CP140: 28 | CQ140: 0 | CR140: 34 | CS140: 0 | CT140: 0 | CU140: 0 | CV140: 0 | CW140: 0 | CX140: 0 | CY140: 0 | CZ140: 0 | DA140: 0 | DB140: 0 | DC140: 0 | DD140: 0 | DE140: 0 | DF140: 0 | DG140: 0 | DH140: 0 | DI140: 2 | DJ140: 0 | DK140: 0 | DL140: 0 | DM140: 0 | DN140: 0 | DO140: 0 | DP140: 0 | DQ140: 0 | DR140: 0 | DS140: 0 | DT140: 0 | DU140: 0 | DV140: 0 | DW140: 0 | DX140: 0 | DY140: 0 | DZ140: 0 | EA140: 0 | EB140: 0 | EC140: 0 | ED140: 0 | EE140: 0 | EF140: 0 | EG140: 0 | EH140: 0 | EI140: 0 | EJ140: 0 | EK140: 0 | EL140: 0 | EM140: 0 | EN140: 0 | EO140: 0 | EP140: 0 | EQ140: 0 | ER140: 0 | ES140: 0 | ET140: 0 | EU140: 0 | EV140: 0 | EW140: 0 | EX140: 0 | EY140: 0 | EZ140: 0 | FA140: 0 | FB140: 0 | FC140: 0 | FD140: 0 | FE140: 0 | FF140: 0 | FG140: 0 | FH140: 0 | FI140: 0 | FJ140: 0 | FK140: 0 | FL140: 0 | FM140: 0 | FN140: 0 | FO140: 0 | FP140: 0 | FQ140: 0 | FR140: 0 | FS140: 0 | FT140: 0 | FU140: 0 | FV140: 0 | FW140: 0 | FX140: 0 | FY140: 0 | FZ140: 0 | GA140: 0 | GB140: 0 | GC140: 0 | GD140: 0 | GE140: 0 | GF140: 0 | GG140: 0 | GH140: 0 | GI140: 0 | GJ140: 0 | GK140: 0 | GL140: 0 | GM140: 0 | GN140: 0 | GO140: 0 | GP140: 0 | GQ140: 0 | GR140: 0 | GS140: 0 | GT140: 0 | GU140: 0 | GV140: 0 | GW140: 0 | GX140: 0 | GY140: 0 | GZ140: 0 | HA140: 0 | HB140: 0 | HC140: 0 | HD140: 0 | HE140: 0 | HF140: 0 | HG140: 0 | HH140: 0 | HI140: 0 | HJ140: 0 | HK140: 0 | HL140: 0 | HM140: 0 | HN140: 0 | HO140: 0 | HP140: 0 | HQ140: 0 | HR140: 0 | HS140: 0 | HT140: 0 | HU140: 0 | HV140: 0 | HW140: 0
A141: 7 | B141: 1 | C141: 0 | D141: 1 | E141: 0 | F141: 0 | G141: 0 | H141: 0 | I141: 0 | J141: 31 | K141: 62 | L141: 44 | M141: 248 | N141: 83 | O141: 345 | P141: 82 | Q141: 344 | R141: 70 | S141: 195 | T141: 72 | U141: 195 | V141: 24 | W141: 5 | X141: 24 | Y141: 5 | Z141: 51 | AA141: 47 | AB141: 510 | AC141: 1390 | AD141: 2 | AE141: 1 | AF141: 10 | AG141: 30 | AH141: 2 | AI141: 0 | AJ141: 0 | AK141: 0 | AL141: 2 | AM141: 0 | AN141: 2 | AO141: 1 | AP141: 12 | AQ141: 15 | AR141: 0 | AS141: 0 | AT141: 0 | AU141: 0 | AV141: 0 | AW141: 0 | AX141: 0 | AY141: 0 | AZ141: 3 | BA141: 1 | BB141: 0 | BC141: 0 | BD141: 1 | BE141: 0 | BF141: 0 | BG141: 5 | BH141: 0 | BI141: 0 | BJ141: 0 | BK141: 0 | BL141: 0 | BM141: 0 | BN141: 0 | BO141: 1 | BP141: 0 | BQ141: 0 | BR141: 3 | BS141: 7 | BT141: 0 | BU141: 0 | BV141: 0 | BW141: 1 | BX141: 0 | BY141: 2 | BZ141: 0 | CA141: 3 | CB141: 237 | CC141: 9 | CD141: 0 | CE141: 0 | CF141: 4 | CG141: 2 | CH141: 74 | CI141: 0 | CJ141: 304 | CK141: 0 | CL141: 18 | CM141: 0 | CN141: 22 | CO141: 0 | CP141: 22 | CQ141: 0 | CR141: 21 | CS141: 0 | CT141: 0 | CU141: 0 | CV141: 0 | CW141: 0 | CX141: 0 | CY141: 0 | CZ141: 0 | DA141: 0 | DB141: 0 | DC141: 0 | DD141: 0 | DE141: 0 | DF141: 0 | DG141: 0 | DH141: 0 | DI141: 1 | DJ141: 0 | DK141: 0 | DL141: 0 | DM141: 0 | DN141: 0 | DO141: 0 | DP141: 0 | DQ141: 0 | DR141: 0 | DS141: 0 | DT141: 0 | DU141: 0 | DV141: 0 | DW141: 0 | DX141: 0 | DY141: 0 | DZ141: 0 | EA141: 0 | EB141: 0 | EC141: 0 | ED141: 0 | EE141: 0 | EF141: 0 | EG141: 0 | EH141: 0 | EI141: 0 | EJ141: 0 | EK141: 0 | EL141: 0 | EM141: 0 | EN141: 0 | EO141: 0 | EP141: 0 | EQ141: 0 | ER141: 0 | ES141: 0 | ET141: 0 | EU141: 0 | EV141: 0 | EW141: 0 | EX141: 0 | EY141: 0 | EZ141: 0 | FA141: 0 | FB141: 0 | FC141: 0 | FD141: 0 | FE141: 0 | FF141: 0 | FG141: 0 | FH141: 0 | FI141: 0 | FJ141: 0 | FK141: 0 | FL141: 0 | FM141: 0 | FN141: 0 | FO141: 0 | FP141: 0 | FQ141: 0 | FR141: 0 | FS141: 0 | FT141: 0 | FU141: 0 | FV141: 0 | FW141: 0 | FX141: 0 | FY141: 0 | FZ141: 0 | GA141: 0 | GB141: 0 | GC141: 0 | GD141: 0 | GE141: 0 | GF141: 0 | GG141: 0 | GH141: 0 | GI141: 0 | GJ141: 0 | GK141: 0 | GL141: 0 | GM141: 0 | GN141: 0 | GO141: 0 | GP141: 0 | GQ141: 0 | GR141: 0 | GS141: 0 | GT141: 0 | GU141: 0 | GV141: 0 | GW141: 0 | GX141: 0 | GY141: 0 | GZ141: 0 | HA141: 0 | HB141: 0 | HC141: 0 | HD141: 0 | HE141: 0 | HF141: 0 | HG141: 0 | HH141: 0 | HI141: 0 | HJ141: 0 | HK141: 0 | HL141: 0 | HM141: 0 | HN141: 0 | HO141: 0 | HP141: 0 | HQ141: 0 | HR141: 0 | HS141: 0 | HT141: 0 | HU141: 0 | HV141: 0 | HW141: 0
A142: 9 | B142: 0 | C142: 0 | D142: 0 | E142: 0 | F142: 0 | G142: 0 | H142: 0 | I142: 0 | J142: 28 | K142: 78 | L142: 30 | M142: 312 | N142: 86 | O142: 338 | P142: 85 | Q142: 337 | R142: 51 | S142: 199 | T142: 47 | U142: 198 | V142: 30 | W142: 12 | X142: 30 | Y142: 12 | Z142: 77 | AA142: 49 | AB142: 780 | AC142: 1470 | AD142: 1 | AE142: 0 | AF142: 3 | AG142: 0 | AH142: 0 | AI142: 0 | AJ142: 0 | AK142: 0 | AL142: 0 | AM142: 0 | AN142: 3 | AO142: 0 | AP142: 46 | AQ142: 46 | AR142: 0 | AS142: 0 | AT142: 0 | AU142: 0 | AV142: 0 | AW142: 0 | AX142: 0 | AY142: 0 | AZ142: 1 | BA142: 1 | BB142: 0 | BC142: 0 | BD142: 0 | BE142: 0 | BF142: 0 | BG142: 2 | BH142: 0 | BI142: 0 | BJ142: 1 | BK142: 0 | BL142: 0 | BM142: 0 | BN142: 0 | BO142: 0 | BP142: 0 | BQ142: 0 | BR142: 0 | BS142: 6 | BT142: 0 | BU142: 0 | BV142: 0 | BW142: 2 | BX142: 1 | BY142: 1 | BZ142: 0 | CA142: 0 | CB142: 190 | CC142: 10 | CD142: 1 | CE142: 0 | CF142: 26 | CG142: 0 | CH142: 62 | CI142: 0 | CJ142: 285 | CK142: 0 | CL142: 20 | CM142: 0 | CN142: 25 | CO142: 0 | CP142: 24 | CQ142: 0 | CR142: 30 | CS142: 0 | CT142: 0 | CU142: 0 | CV142: 0 | CW142: 0 | CX142: 0 | CY142: 0 | CZ142: 0 | DA142: 0 | DB142: 0 | DC142: 1 | DD142: 0 | DE142: 0 | DF142: 0 | DG142: 0 | DH142: 0 | DI142: 1 | DJ142: 0 | DK142: 0 | DL142: 0 | DM142: 0 | DN142: 0 | DO142: 0 | DP142: 0 | DQ142: 0 | DR142: 0 | DS142: 0 | DT142: 0 | DU142: 0 | DV142: 0 | DW142: 0 | DX142: 0 | DY142: 0 | DZ142: 0 | EA142: 0 | EB142: 0 | EC142: 0 | ED142: 0 | EE142: 0 | EF142: 0 | EG142: 0 | EH142: 0 | EI142: 0 | EJ142: 0 | EK142: 0 | EL142: 0 | EM142: 0 | EN142: 0 | EO142: 0 | EP142: 0 | EQ142: 0 | ER142: 0 | ES142: 0 | ET142: 0 | EU142: 0 | EV142: 0 | EW142: 0 | EX142: 0 | EY142: 0 | EZ142: 0 | FA142: 0 | FB142: 0 | FC142: 0 | FD142: 0 | FE142: 0 | FF142: 0 | FG142: 0 | FH142: 0 | FI142: 0 | FJ142: 0 | FK142: 0 | FL142: 0 | FM142: 0 | FN142: 0 | FO142: 0 | FP142: 0 | FQ142: 0 | FR142: 0 | FS142: 0 | FT142: 0 | FU142: 0 | FV142: 0 | FW142: 0 | FX142: 0 | FY142: 0 | FZ142: 0 | GA142: 0 | GB142: 0 | GC142: 0 | GD142: 0 | GE142: 0 | GF142: 0 | GG142: 0 | GH142: 0 | GI142: 0 | GJ142: 0 | GK142: 0 | GL142: 0 | GM142: 0 | GN142: 0 | GO142: 0 | GP142: 0 | GQ142: 0 | GR142: 0 | GS142: 0 | GT142: 0 | GU142: 0 | GV142: 0 | GW142: 0 | GX142: 0 | GY142: 0 | GZ142: 0 | HA142: 0 | HB142: 0 | HC142: 0 | HD142: 0 | HE142: 0 | HF142: 0 | HG142: 0 | HH142: 0 | HI142: 0 | HJ142: 0 | HK142: 0 | HL142: 0 | HM142: 0 | HN142: 0 | HO142: 0 | HP142: 0 | HQ142: 0 | HR142: 0 | HS142: 0 | HT142: 0 | HU142: 0 | HV142: 0 | HW142: 0
A143: 10 | B143: 0 | C143: 0 | D143: 0 | E143: 0 | F143: 2 | G143: 0 | H143: 2 | I143: 0 | J143: 47 | K143: 80 | L143: 54 | M143: 313 | N143: 68 | O143: 326 | P143: 64 | Q143: 321 | R143: 56 | S143: 201 | T143: 54 | U143: 201 | V143: 25 | W143: 0 | X143: 25 | Y143: 0 | Z143: 65 | AA143: 48 | AB143: 690 | AC143: 1430 | AD143: 0 | AE143: 0 | AF143: 0 | AG143: 0 | AH143: 3 | AI143: 0 | AJ143: 0 | AK143: 0 | AL143: 2 | AM143: 0 | AN143: 2 | AO143: 0 | AP143: 3 | AQ143: 3 | AR143: 1 | AS143: 1 | AT143: 0 | AU143: 0 | AV143: 0 | AW143: 0 | AX143: 0 | AY143: 0 | AZ143: 3 | BA143: 1 | BB143: 0 | BC143: 0 | BD143: 2 | BE143: 0 | BF143: 0 | BG143: 4 | BH143: 0 | BI143: 0 | BJ143: 0 | BK143: 0 | BL143: 0 | BM143: 0 | BN143: 0 | BO143: 0 | BP143: 0 | BQ143: 0 | BR143: 3 | BS143: 7 | BT143: 0 | BU143: 0 | BV143: 0 | BW143: 4 | BX143: 0 | BY143: 2 | BZ143: 0 | CA143: 3 | CB143: 173 | CC143: 19 | CD143: 0 | CE143: 0 | CF143: 1 | CG143: 1 | CH143: 64 | CI143: 0 | CJ143: 321 | CK143: 0 | CL143: 12 | CM143: 0 | CN143: 20 | CO143: 0 | CP143: 20 | CQ143: 0 | CR143: 27 | CS143: 0 | CT143: 0 | CU143: 0 | CV143: 0 | CW143: 0 | CX143: 0 | CY143: 0 | CZ143: 0 | DA143: 0 | DB143: 0 | DC143: 0 | DD143: 0 | DE143: 0 | DF143: 0 | DG143: 0 | DH143: 1 | DI143: 2 | DJ143: 3 | DK143: 0 | DL143: 0 | DM143: 0 | DN143: 0 | DO143: 0 | DP143: 0 | DQ143: 0 | DR143: 0 | DS143: 0 | DT143: 0 | DU143: 0 | DV143: 0 | DW143: 0 | DX143: 0 | DY143: 0 | DZ143: 0 | EA143: 0 | EB143: 0 | EC143: 0 | ED143: 0 | EE143: 0 | EF143: 0 | EG143: 0 | EH143: 0 | EI143: 0 | EJ143: 0 | EK143: 0 | EL143: 0 | EM143: 0 | EN143: 0 | EO143: 0 | EP143: 0 | EQ143: 0 | ER143: 0 | ES143: 0 | ET143: 0 | EU143: 0 | EV143: 0 | EW143: 0 | EX143: 0 | EY143: 0 | EZ143: 0 | FA143: 0 | FB143: 0 | FC143: 0 | FD143: 0 | FE143: 0 | FF143: 0 | FG143: 0 | FH143: 0 | FI143: 0 | FJ143: 0 | FK143: 0 | FL143: 0 | FM143: 0 | FN143: 0 | FO143: 0 | FP143: 0 | FQ143: 0 | FR143: 0 | FS143: 0 | FT143: 0 | FU143: 0 | FV143: 0 | FW143: 0 | FX143: 0 | FY143: 0 | FZ143: 0 | GA143: 0 | GB143: 0 | GC143: 0 | GD143: 0 | GE143: 0 | GF143: 0 | GG143: 0 | GH143: 0 | GI143: 0 | GJ143: 0 | GK143: 0 | GL143: 0 | GM143: 0 | GN143: 0 | GO143: 0 | GP143: 0 | GQ143: 0 | GR143: 0 | GS143: 0 | GT143: 0 | GU143: 0 | GV143: 0 | GW143: 0 | GX143: 0 | GY143: 0 | GZ143: 0 | HA143: 0 | HB143: 0 | HC143: 0 | HD143: 0 | HE143: 0 | HF143: 0 | HG143: 0 | HH143: 0 | HI143: 0 | HJ143: 0 | HK143: 0 | HL143: 0 | HM143: 0 | HN143: 0 | HO143: 0 | HP143: 0 | HQ143: 0 | HR143: 0 | HS143: 0 | HT143: 0 | HU143: 0 | HV143: 0 | HW143: 0
A144: 11 | B144: 1 | C144: 0 | D144: 1 | E144: 0 | F144: 0 | G144: 0 | H144: 0 | I144: 0 | J144: 28 | K144: 58 | L144: 37 | M144: 229 | N144: 58 | O144: 338 | P144: 58 | Q144: 337 | R144: 46 | S144: 198 | T144: 43 | U144: 202 | V144: 16 | W144: 4 | X144: 16 | Y144: 4 | Z144: 71 | AA144: 50 | AB144: 750 | AC144: 1500 | AD144: 0 | AE144: 0 | AF144: 0 | AG144: 0 | AH144: 1 | AI144: 0 | AJ144: 0 | AK144: 0 | AL144: 0 | AM144: 0 | AN144: 0 | AO144: 0 | AP144: 6 | AQ144: 6 | AR144: 0 | AS144: 0 | AT144: 0 | AU144: 0 | AV144: 0 | AW144: 0 | AX144: 0 | AY144: 0 | AZ144: 2 | BA144: 0 | BB144: 1 | BC144: 0 | BD144: 0 | BE144: 0 | BF144: 0 | BG144: 3 | BH144: 0 | BI144: 2 | BJ144: 0 | BK144: 0 | BL144: 0 | BM144: 0 | BN144: 0 | BO144: 0 | BP144: 0 | BQ144: 0 | BR144: 1 | BS144: 3 | BT144: 0 | BU144: 0 | BV144: 0 | BW144: 2 | BX144: 0 | BY144: 0 | BZ144: 0 | CA144: 1 | CB144: 132 | CC144: 18 | CD144: 2 | CE144: 0 | CF144: 1 | CG144: 1 | CH144: 35 | CI144: 4 | CJ144: 237 | CK144: 0 | CL144: 21 | CM144: 0 | CN144: 17 | CO144: 0 | CP144: 17 | CQ144: 0 | CR144: 18 | CS144: 0 | CT144: 0 | CU144: 0 | CV144: 0 | CW144: 0 | CX144: 0 | CY144: 0 | CZ144: 0 | DA144: 0 | DB144: 0 | DC144: 0 | DD144: 0 | DE144: 0 | DF144: 0 | DG144: 0 | DH144: 1 | DI144: 1 | DJ144: 2 | DK144: 0 | DL144: 0 | DM144: 0 | DN144: 0 | DO144: 0 | DP144: 0 | DQ144: 0 | DR144: 0 | DS144: 0 | DT144: 0 | DU144: 0 | DV144: 0 | DW144: 0 | DX144: 0 | DY144: 0 | DZ144: 0 | EA144: 0 | EB144: 0 | EC144: 0 | ED144: 0 | EE144: 0 | EF144: 0 | EG144: 0 | EH144: 0 | EI144: 0 | EJ144: 0 | EK144: 0 | EL144: 0 | EM144: 0 | EN144: 0 | EO144: 0 | EP144: 0 | EQ144: 0 | ER144: 0 | ES144: 0 | ET144: 0 | EU144: 0 | EV144: 0 | EW144: 0 | EX144: 0 | EY144: 0 | EZ144: 0 | FA144: 0 | FB144: 0 | FC144: 0 | FD144: 0 | FE144: 0 | FF144: 0 | FG144: 0 | FH144: 0 | FI144: 0 | FJ144: 0 | FK144: 0 | FL144: 0 | FM144: 0 | FN144: 0 | FO144: 0 | FP144: 0 | FQ144: 0 | FR144: 0 | FS144: 0 | FT144: 0 | FU144: 0 | FV144: 0 | FW144: 0 | FX144: 0 | FY144: 0 | FZ144: 0 | GA144: 0 | GB144: 0 | GC144: 0 | GD144: 0 | GE144: 0 | GF144: 0 | GG144: 0 | GH144: 0 | GI144: 0 | GJ144: 0 | GK144: 0 | GL144: 0 | GM144: 0 | GN144: 0 | GO144: 0 | GP144: 0 | GQ144: 0 | GR144: 0 | GS144: 0 | GT144: 0 | GU144: 0 | GV144: 0 | GW144: 0 | GX144: 0 | GY144: 0 | GZ144: 0 | HA144: 0 | HB144: 0 | HC144: 0 | HD144: 0 | HE144: 0 | HF144: 0 | HG144: 0 | HH144: 0 | HI144: 0 | HJ144: 0 | HK144: 0 | HL144: 0 | HM144: 0 | HN144: 0 | HO144: 0 | HP144: 0 | HQ144: 0 | HR144: 0 | HS144: 0 | HT144: 0 | HU144: 0 | HV144: 0 | HW144: 0
A145: Total | B145: 13 | C145: 0 | D145: 13 | E145: 0 | F145: 2 | G145: 0 | H145: 2 | I145: 0 | J145: 435 | K145: 720 | L145: 572 | M145: 2845 | N145: 1051 | O145: 3557 | P145: 1040 | Q145: 3554 | R145: 749 | S145: 1980 | T145: 739 | U145: 1986 | V145: 346 | W145: 78 | X145: 346 | Y145: 78 | Z145: 676 | AA145: 508 | AB145: 7331 | AC145: 15111 | AD145: 26 | AE145: 1 | AF145: 218 | AG145: 30 | AH145: 19 | AI145: 0 | AJ145: 0 | AK145: 0 | AL145: 6 | AM145: 0 | AN145: 25 | AO145: 5 | AP145: 168 | AQ145: 161 | AR145: 2 | AS145: 1 | AT145: 0 | AU145: 0 | AV145: 0 | AW145: 0 | AX145: 0 | AY145: 0 | AZ145: 18 | BA145: 5 | BB145: 7 | BC145: 0 | BD145: 13 | BE145: 0 | BF145: 0 | BG145: 43 | BH145: 0 | BI145: 11 | BJ145: 3 | BK145: 0 | BL145: 0 | BM145: 0 | BN145: 0 | BO145: 1 | BP145: 0 | BQ145: 0 | BR145: 18 | BS145: 68 | BT145: 1 | BU145: 0 | BV145: 0 | BW145: 21 | BX145: 5 | BY145: 16 | BZ145: 0 | CA145: 18 | CB145: 2362 | CC145: 82 | CD145: 13 | CE145: 0 | CF145: 94 | CG145: 11 | CH145: 634 | CI145: 5 | CJ145: 4982 | CK145: 0 | CL145: 173 | CM145: 0 | CN145: 454 | CO145: 0 | CP145: 444 | CQ145: 0 | CR145: 487 | CS145: 1 | CT145: 0 | CU145: 0 | CV145: 0 | CW145: 1 | CX145: 0 | CY145: 0 | CZ145: 0 | DA145: 0 | DB145: 0 | DC145: 1 | DD145: 0 | DE145: 0 | DF145: 0 | DG145: 3 | DH145: 3 | DI145: 12 | DJ145: 5 | DK145: 4 | DL145: 0 | DM145: 0 | DN145: 0 | DO145: 0 | DP145: 0 | DQ145: 0 | DR145: 0 | DS145: 0 | DT145: 0 | DU145: 0 | DV145: 0 | DW145: 0 | DX145: 0 | DY145: 0 | DZ145: 0 | EA145: 0 | EB145: 0 | EC145: 0 | ED145: 0 | EE145: 0 | EF145: 0 | EG145: 0 | EH145: 0 | EI145: 0 | EJ145: 0 | EK145: 0 | EL145: 0 | EM145: 0 | EN145: 0 | EO145: 0 | EP145: 0 | EQ145: 0 | ER145: 0 | ES145: 0 | ET145: 0 | EU145: 0 | EV145: 0 | EW145: 0 | EX145: 0 | EY145: 0 | EZ145: 0 | FA145: 0 | FB145: 0 | FC145: 0 | FD145: 0 | FE145: 0 | FF145: 0 | FG145: 0 | FH145: 0 | FI145: 0 | FJ145: 0 | FK145: 0 | FL145: 0 | FM145: 0 | FN145: 0 | FO145: 0 | FP145: 0 | FQ145: 0 | FR145: 0 | FS145: 0 | FT145: 0 | FU145: 0 | FV145: 0 | FW145: 0 | FX145: 0 | FY145: 0 | FZ145: 0 | GA145: 0 | GB145: 0 | GC145: 0 | GD145: 0 | GE145: 0 | GF145: 0 | GG145: 0 | GH145: 0 | GI145: 0 | GJ145: 0 | GK145: 0 | GL145: 0 | GM145: 0 | GN145: 0 | GO145: 0 | GP145: 0 | GQ145: 0 | GR145: 0 | GS145: 0 | GT145: 0 | GU145: 0 | GV145: 0 | GW145: 0 | GX145: 0 | GY145: 0 | GZ145: 0 | HA145: 0 | HB145: 0 | HC145: 0 | HD145: 0 | HE145: 0 | HF145: 0 | HG145: 0 | HH145: 0 | HI145: 0 | HJ145: 0 | HK145: 0 | HL145: 0 | HM145: 0 | HN145: 0 | HO145: 0 | HP145: 0 | HQ145: 0 | HR145: 0 | HS145: 0 | HT145: 0 | HU145: 0 | HV145: 0 | HW145: 0
A151: TOTAL
A152: =COUNT(A131:A149) -> 11 | B152: =SUM(B131:B149) -> 26 | C152: =SUM(C131:C149) -> 0 | D152: 26 | E152: 0 | F152: 4 | G152: 0 | H152: 4 | I152: 0 | J152: 870 | K152: 1440 | L152: 1144 | M152: 5690 | N152: 2102 | O152: 7114 | P152: 2080 | Q152: 7108 | R152: 1498 | S152: 3960 | T152: 1478 | U152: 3972 | V152: 692 | W152: 156 | X152: 692 | Y152: 156 | Z152: 1352 | AA152: 1016 | AB152: 14662 | AC152: 30222 | AD152: 52 | AE152: 2 | AF152: 436 | AG152: 60 | AH152: 38 | AI152: 0 | AJ152: 0 | AK152: 0 | AL152: 12 | AM152: 0 | AN152: 50 | AO152: 10 | AP152: 336 | AQ152: 322 | AR152: 4 | AS152: 2 | AT152: 0 | AU152: 0 | AV152: 0 | AW152: 0 | AX152: 0 | AY152: 0 | AZ152: 36 | BA152: 10 | BB152: 14 | BC152: 0 | BD152: 26 | BE152: 0 | BF152: 0 | BG152: 86 | BH152: 0 | BI152: 22 | BJ152: 6 | BK152: 0 | BL152: 0 | BM152: 0 | BN152: 0 | BO152: =SUM(BO131:BO149) -> 2 | BP152: 0 | BQ152: 0 | BR152: 36 | BS152: 136 | BT152: 2 | BU152: 0 | BV152: 0 | BW152: 42 | BX152: 10 | BY152: 32 | BZ152: 0 | CA152: 36 | CB152: 4724 | CC152: 164 | CD152: 26 | CE152: 0 | CF152: 188 | CG152: 22 | CH152: 1268 | CI152: 10 | CJ152: 9964 | CK152: 0 | CL152: 346 | CM152: 0 | CN152: 908 | CO152: 0 | CP152: 888 | CQ152: 0 | CR152: 974 | CS152: 2 | CT152: 0 | CU152: 0 | CV152: 0 | CW152: 2 | CX152: 0 | CY152: 0 | CZ152: 0 | DA152: 0 | DB152: 0 | DC152: 2 | DD152: 0 | DE152: 0 | DF152: 0 | DG152: 6 | DH152: 6 | DI152: 24 | DJ152: 10 | DK152: 8 | DL152: 0 | DM152: 0 | DN152: 0 | DO152: 0 | DP152: 0 | DQ152: 0 | DR152: 0 | DS152: 0 | DT152: 0 | DU152: 0 | DV152: 0 | DW152: 0 | DX152: 0 | DY152: 0 | DZ152: 0 | EA152: =SUM(EA131:EA149) -> 0 | EB152: 0 | EC152: 0 | ED152: 0 | EE152: 0 | EF152: 0 | EG152: 0 | EH152: 0 | EI152: 0 | EJ152: 0 | EK152: 0 | EL152: 0 | EM152: 0 | EN152: 0 | EO152: 0 | EP152: 0 | EQ152: 0 | ER152: 0 | ES152: 0 | ET152: 0 | EU152: 0 | EV152: 0 | EW152: 0 | EX152: 0 | EY152: 0 | EZ152: 0 | FA152: 0 | FB152: 0 | FC152: 0 | FD152: 0 | FE152: 0 | FF152: 0 | FG152: 0 | FH152: 0 | FI152: 0 | FJ152: 0 | FK152: 0 | FL152: 0 | FM152: 0 | FN152: 0 | FO152: 0 | FP152: 0 | FQ152: 0 | FR152: 0 | FS152: 0 | FT152: 0 | FU152: 0 | FV152: 0 | FW152: 0 | FX152: 0 | FY152: 0 | FZ152: 0 | GA152: 0 | GB152: 0 | GC152: 0 | GD152: 0 | GE152: 0 | GF152: 0 | GG152: 0 | GH152: 0 | GI152: 0 | GJ152: 0 | GK152: 0 | GL152: 0 | GM152: =SUM(GM131:GM149) -> 0 | GN152: 0 | GO152: 0 | GP152: 0 | GQ152: 0 | GR152: 0 | GS152: 0 | GT152: 0 | GU152: 0 | GV152: 0 | GW152: 0 | GX152: 0 | GY152: 0 | GZ152: 0 | HA152: 0 | HB152: 0 | HC152: 0 | HD152: 0 | HE152: 0 | HF152: 0 | HG152: 0 | HH152: 0 | HI152: 0 | HJ152: 0 | HK152: 0 | HL152: 0 | HM152: 0 | HN152: 0 | HO152: 0 | HP152: 0 | HQ152: 0 | HR152: 0 | HS152: 0 | HT152: 0 | HU152: 0 | HV152: 0 | HW152: 0 | HX152: 0
A153: =CONCATENATE(A134,"-",A135,"-",A136,"-",A137,"-",A138,"-",A139,"-",A140,"-",A141,"-",A142,"-",A143,"-",A144,"-",A145) -> 1-2-3-4-5-6-8-7-9-10-11-Total
B154: BAS001 | C154: BAS002 | D154: BAS003 | E154: BAS004 | F154: BAS005 | G154: BAS006 | H154: BAS007 | I154: BAS008 | J154: BAS009 | K154: BAS010 | L154: BAS011 | M154: BAS012 | N154: BAS013 | O154: BAS014 | P154: BAS015 | Q154: BAS016 | R154: BAS017 | S154: BAS018 | T154: BAS019 | U154: BAS020 | V154: BAS021 | W154: BAS022 | X154: BAS023 | Y154: BAS024 | Z154: BAS025 | AA154: BAS026 | AB154: BAS027 | AC154: BAS028 | AD154: BAS029 | AE154: BAS030 | AF154: BAS031 | AG154: BAS032 | AH154: BAS033 | AI154: BAS034 | AJ154: BAS035 | AK154: BAS036 | AL154: BAS037 | AM154: BAS038 | AN154: BAS039 | AO154: BAS040 | AP154: BAS041 | AQ154: BAS042 | AR154: BAS043 | AS154: BAS044 | AT154: BAS045 | AU154: BAS046 | AV154: BAS047 | AW154: BAS048 | AX154: BAS049 | AY154: BAS050 | AZ154: BAS051 | BA154: BAS052 | BB154: BAS053 | BC154: BAS054 | BD154: BAS055 | BE154: BAS056 | BF154: BAS057 | BG154: BAS058 | BH154: BAS059 | BI154: BAS060 | BJ154: BAS061 | BK154: BAS062 | BL154: BAS063 | BM154: BAS064 | BN154: BAS065 | BO154: BAS066 | BP154: BAS067 | BQ154: BAS068 | BR154: BAS069 | BS154: BAS070 | BT154: BAS071 | BU154: BAS072 | BV154: BAS073 | BW154: BAS074 | BX154: BAS075 | BY154: BAS076 | BZ154: BAS077 | CA154: BAS078 | CB154: BAS079 | CC154: BAS080 | CD154: BAS081 | CE154: BAS082 | CF154: BAS083 | CG154: BAS084 | CH154: BAS085 | CI154: BAS086 | CJ154: BAS087 | CK154: BAS088 | CL154: BAS089 | CM154: BAS090 | CN154: BAS091 | CO154: BAS092 | CP154: BAS093 | CQ154: BAS094 | CR154: BAS095 | CS154: BAS096 | CT154: BAS097 | CU154: BAS098 | CV154: BAS099 | CW154: BAS100 | CX154: BAS101 | CY154: BAS102 | CZ154: BAS103 | DA154: BAS104 | DB154: BAS105 | DC154: BAS106 | DD154: BAS107 | DE154: BAS108 | DF154: BAS109 | DG154: BAS110 | DH154: BAS111 | DI154: BAS112 | DJ154: BAS113 | DK154: BAS114 | DL154: BAS115 | DM154: BAS116 | DN154: BAS117 | DO154: BAS118 | DP154: BAS119 | DQ154: BAS120 | DR154: BAS121 | DS154: BAS122 | DT154: BAS123 | DU154: BAS124 | DV154: BAS125 | DW154: BAS126 | DX154: BAS127 | DY154: BAS128 | DZ154: BAS129 | EA154: BAS130 | EB154: BAS131 | EC154: BAS132 | ED154: BAS133 | EE154: BAS134 | EF154: BAS135 | EG154: BAS136 | EH154: BAS137 | EI154: BAS138 | EJ154: BAS139 | EK154: BAS140 | EL154: BAS141 | EM154: BAS142 | EN154: BAS143 | EO154: BAS144 | EP154: BAS145 | EQ154: BAS146 | ER154: BAS147 | ES154: BAS148 | ET154: BAS149 | EU154: BAS150 | EV154: BAS151 | EW154: BAS152 | EX154: BAS153 | EY154: BAS154 | EZ154: BAS155 | FA154: BAS156 | FB154: BAS157 | FC154: BAS158 | FD154: BAS159 | FE154: BAS160 | FF154: BAS161 | FG154: BAS162 | FH154: BAS163 | FI154: BAS164 | FJ154: BAS165 | FK154: BAS166 | FL154: BAS167 | FM154: BAS168 | FN154: BAS169 | FO154: BAS170 | FP154: BAS171 | FQ154: BAS172 | FR154: BAS173 | FS154: BAS174 | FT154: BAS175 | FU154: BAS176 | FV154: BAS177 | FW154: BAS178 | FX154: BAS179 | FY154: BAS180 | FZ154: BAS181 | GA154: BAS182 | GB154: BAS183 | GC154: BAS184 | GD154: BAS185 | GE154: BAS186 | GF154: BAS187 | GG154: BAS188 | GH154: BAS189 | GI154: BAS190 | GJ154: BAS191 | GK154: BAS192 | GL154: BAS193 | GM154: BAS194 | GN154: BAS195 | GO154: BAS196 | GP154: BAS197 | GQ154: BAS198 | GR154: BAS199 | GS154: BAS200 | GT154: BAS201 | GU154: BAS202 | GV154: BAS203 | GW154: BAS204 | GX154: BAS205 | GY154: BAS206 | GZ154: BAS207 | HA154: BAS208 | HB154: BAS209 | HC154: BAS210 | HD154: BAS211 | HE154: BAS212 | HF154: BAS213 | HG154: BAS214 | HH154: BAS215 | HI154: BAS216 | HJ154: BAS217 | HK154: BAS218 | HL154: BAS219 | HM154: BAS220 | HN154: BAS221 | HO154: BAS222 | HP154: BAS223 | HQ154: BAS224 | HR154: BAS225 | HS154: BAS226 | HT154: BAS227 | HU154: BAS228 | HV154: BAS229 | HW154: BAS230
B155: =IF(B154=B133,"SI","NO") -> SI | C155: =IF(C154=C133,"SI","NO") -> SI | D155: SI | E155: SI | F155: SI | G155: SI | H155: SI | I155: SI | J155: SI | K155: SI | L155: SI | M155: SI | N155: SI | O155: SI | P155: SI | Q155: SI | R155: SI | S155: SI | T155: SI | U155: SI | V155: SI | W155: SI | X155: SI | Y155: SI | Z155: SI | AA155: SI | AB155: SI | AC155: SI | AD155: SI | AE155: SI | AF155: SI | AG155: SI | AH155: SI | AI155: SI | AJ155: SI | AK155: SI | AL155: SI | AM155: SI | AN155: SI | AO155: SI | AP155: SI | AQ155: SI | AR155: SI | AS155: SI | AT155: SI | AU155: SI | AV155: SI | AW155: SI | AX155: SI | AY155: SI | AZ155: SI | BA155: SI | BB155: SI | BC155: SI | BD155: SI | BE155: SI | BF155: SI | BG155: SI | BH155: SI | BI155: SI | BJ155: SI | BK155: SI | BL155: SI | BM155: SI | BN155: SI | BO155: =IF(BO154=BO133,"SI","NO") -> SI | BP155: SI | BQ155: SI | BR155: SI | BS155: SI | BT155: SI | BU155: SI | BV155: SI | BW155: SI | BX155: SI | BY155: SI | BZ155: SI | CA155: SI | CB155: SI | CC155: SI | CD155: SI | CE155: SI | CF155: SI | CG155: SI | CH155: SI | CI155: SI | CJ155: SI | CK155: SI | CL155: SI | CM155: SI | CN155: SI | CO155: SI | CP155: SI | CQ155: SI | CR155: SI | CS155: SI | CT155: SI | CU155: SI | CV155: SI | CW155: SI | CX155: SI | CY155: SI | CZ155: SI | DA155: SI | DB155: SI | DC155: SI | DD155: SI | DE155: SI | DF155: SI | DG155: SI | DH155: SI | DI155: SI | DJ155: SI | DK155: SI | DL155: SI | DM155: SI | DN155: SI | DO155: SI | DP155: SI | DQ155: SI | DR155: SI | DS155: SI | DT155: SI | DU155: SI | DV155: SI | DW155: SI | DX155: SI | DY155: SI | DZ155: SI | EA155: =IF(EA154=EA133,"SI","NO") -> SI | EB155: SI | EC155: SI | ED155: SI | EE155: SI | EF155: SI | EG155: SI | EH155: SI | EI155: SI | EJ155: SI | EK155: SI | EL155: SI | EM155: SI | EN155: SI | EO155: SI | EP155: SI | EQ155: SI | ER155: SI | ES155: SI | ET155: SI | EU155: SI | EV155: SI | EW155: SI | EX155: SI | EY155: SI | EZ155: SI | FA155: SI | FB155: SI | FC155: SI | FD155: SI | FE155: SI | FF155: SI | FG155: SI | FH155: SI | FI155: SI | FJ155: SI | FK155: SI | FL155: SI | FM155: SI | FN155: SI | FO155: SI | FP155: SI | FQ155: SI | FR155: SI | FS155: SI | FT155: SI | FU155: SI | FV155: SI | FW155: SI | FX155: SI | FY155: SI | FZ155: SI | GA155: SI | GB155: SI | GC155: SI | GD155: SI | GE155: SI | GF155: SI | GG155: SI | GH155: SI | GI155: SI | GJ155: SI | GK155: SI | GL155: SI | GM155: =IF(GM154=GM133,"SI","NO") -> SI | GN155: SI | GO155: SI | GP155: SI | GQ155: SI | GR155: SI | GS155: SI | GT155: SI | GU155: SI | GV155: SI | GW155: SI | GX155: SI | GY155: SI | GZ155: SI | HA155: SI | HB155: SI | HC155: SI | HD155: SI | HE155: SI | HF155: SI | HG155: SI | HH155: SI | HI155: SI | HJ155: SI | HK155: SI | HL155: SI | HM155: SI | HN155: SI | HO155: SI | HP155: SI | HQ155: SI | HR155: SI | HS155: SI | HT155: SI | HU155: SI | HV155: SI | HW155: SI
A158: PLANI_04
A159: ANNO | B159: 2024
A160: cod_red | B160: 03
A161: codmic | B161: (Todas)
A162: cod_prov | B162: (Todas)
A163: coddist | B163: (Todas)
A164: cod_estab | B164: (Todas)
A165: cod_eje | B165: (Todas)
B167: Valores
A168: Etiquetas de fila | B168: BAS001 | C168: BAS002 | D168: BAS003 | E168: BAS004 | F168: BAS005 | G168: BAS006 | H168: BAS007 | I168: BAS008 | J168: BAS009 | K168: BAS010 | L168: BAS011 | M168: BAS012 | N168: BAS013 | O168: BAS014 | P168: BAS015 | Q168: BAS016 | R168: BAS017 | S168: BAS018 | T168: BAS019 | U168: BAS020 | V168: BAS021 | W168: BAS022 | X168: BAS023 | Y168: BAS024 | Z168: BAS025 | AA168: BAS026 | AB168: BAS027 | AC168: BAS028 | AD168: BAS029 | AE168: BAS030 | AF168: BAS031 | AG168: BAS032 | AH168: BAS033 | AI168: BAS034 | AJ168: BAS035 | AK168: BAS036 | AL168: BAS037 | AM168: BAS038 | AN168: BAS039 | AO168: BAS040 | AP168: BAS041 | AQ168: BAS042 | AR168: BAS043 | AS168: BAS044 | AT168: BAS045 | AU168: BAS046 | AV168: BAS047 | AW168: BAS048 | AX168: BAS049 | AY168: BAS050 | AZ168: BAS051 | BA168: BAS052 | BB168: BAS053 | BC168: BAS054 | BD168: BAS055 | BE168: BAS056 | BF168: BAS057 | BG168: BAS058 | BH168: BAS059 | BI168: BAS060 | BJ168: BAS061 | BK168: BAS062 | BL168: BAS063 | BM168: BAS064 | BN168: BAS065 | BO168: BAS066 | BP168: BAS067 | BQ168: BAS068 | BR168: BAS069 | BS168: BAS070 | BT168: BAS071 | BU168: BAS072 | BV168: BAS073 | BW168: BAS074 | BX168: BAS075 | BY168: BAS076 | BZ168: BAS077 | CA168: BAS078 | CB168: BAS079 | CC168: BAS080 | CD168: BAS081 | CE168: BAS082 | CF168: BAS083 | CG168: BAS084 | CH168: BAS085 | CI168: BAS086 | CJ168: BAS087 | CK168: BAS088 | CL168: BAS089 | CM168: BAS090 | CN168: BAS091 | CO168: BAS092 | CP168: BAS093 | CQ168: BAS094 | CR168: BAS095 | CS168: BAS096 | CT168: BAS097 | CU168: BAS098 | CV168: BAS099 | CW168: BAS100 | CX168: BAS101 | CY168: BAS102 | CZ168: BAS103 | DA168: BAS104 | DB168: BAS105 | DC168: BAS106 | DD168: BAS107 | DE168: BAS108 | DF168: BAS109 | DG168: BAS110 | DH168: BAS111 | DI168: BAS112 | DJ168: BAS113 | DK168: BAS114 | DL168: BAS115 | DM168: BAS116 | DN168: BAS117 | DO168: BAS118 | DP168: BAS119 | DQ168: BAS120 | DR168: BAS121 | DS168: BAS122 | DT168: BAS123 | DU168: BAS124 | DV168: BAS125 | DW168: BAS126 | DX168: BAS127 | DY168: BAS128 | DZ168: BAS129 | EA168: BAS130 | EB168: BAS131 | EC168: BAS132 | ED168: BAS133 | EE168: BAS134 | EF168: BAS135 | EG168: BAS136 | EH168: BAS137 | EI168: BAS138 | EJ168: BAS139 | EK168: BAS140 | EL168: BAS141 | EM168: BAS142 | EN168: BAS143 | EO168: BAS144 | EP168: BAS145 | EQ168: BAS146 | ER168: BAS147 | ES168: BAS148 | ET168: BAS149 | EU168: BAS150 | EV168: BAS151 | EW168: BAS152 | EX168: BAS153 | EY168: BAS154 | EZ168: BAS155 | FA168: BAS156 | FB168: BAS157 | FC168: BAS158 | FD168: BAS159 | FE168: BAS160 | FF168: BAS161 | FG168: BAS162 | FH168: BAS163 | FI168: BAS164 | FJ168: BAS165 | FK168: BAS166 | FL168: BAS167 | FM168: BAS168 | FN168: BAS169 | FO168: BAS170 | FP168: BAS171 | FQ168: BAS172 | FR168: BAS173 | FS168: BAS174 | FT168: BAS175 | FU168: BAS176 | FV168: BAS177 | FW168: BAS178 | FX168: BAS179 | FY168: BAS180 | FZ168: BAS181 | GA168: BAS182 | GB168: BAS183 | GC168: BAS184 | GD168: BAS185 | GE168: BAS186 | GF168: BAS187 | GG168: BAS188 | GH168: BAS189 | GI168: BAS190 | GJ168: BAS191 | GK168: BAS192 | GL168: BAS193 | GM168: BAS194 | GN168: BAS195 | GO168: BAS196 | GP168: BAS197 | GQ168: BAS198 | GR168: BAS199 | GS168: BAS200 | GT168: BAS201 | GU168: BAS202 | GV168: BAS203 | GW168: BAS204 | GX168: BAS205 | GY168: BAS206 | GZ168: BAS207 | HA168: BAS208 | HB168: BAS209 | HC168: BAS210 | HD168: BAS211 | HE168: BAS212 | HF168: BAS213 | HG168: BAS214 | HH168: BAS215 | HI168: BAS216 | HJ168: BAS217 | HK168: BAS218 | HL168: BAS219 | HM168: BAS220 | HN168: BAS221 | HO168: BAS222 | HP168: BAS223 | HQ168: BAS224 | HR168: BAS225 | HS168: BAS226 | HT168: BAS227 | HU168: BAS228 | HV168: BAS229 | HW168: BAS230
A169: 1 | B169: 1 | C169: 0 | D169: 1 | E169: 0 | F169: 0 | G169: 0 | H169: 0 | I169: 0 | J169: 51 | K169: 176 | L169: 90 | M169: 704 | N169: 190 | O169: 435 | P169: 190 | Q169: 436 | R169: 131 | S169: 144 | T169: 129 | U169: 142 | V169: 24 | W169: 7 | X169: 24 | Y169: 7 | Z169: 69 | AA169: 110 | AB169: 790 | AC169: 3222 | AD169: 1 | AE169: 0 | AF169: 10 | AG169: 0 | AH169: 17 | AI169: 0 | AJ169: 0 | AK169: 0 | AL169: 2 | AM169: 0 | AN169: 4 | AO169: 0 | AP169: 4 | AQ169: 4 | AR169: 0 | AS169: 0 | AT169: 0 | AU169: 0 | AV169: 0 | AW169: 0 | AX169: 0 | AY169: 0 | AZ169: 0 | BA169: 3 | BB169: 0 | BC169: 0 | BD169: 0 | BE169: 0 | BF169: 0 | BG169: 0 | BH169: 0 | BI169: 1 | BJ169: 1 | BK169: 0 | BL169: 0 | BM169: 0 | BN169: 0 | BO169: 0 | BP169: 0 | BQ169: 0 | BR169: 10 | BS169: 8 | BT169: 4 | BU169: 0 | BV169: 0 | BW169: 3 | BX169: 1 | BY169: 1 | BZ169: 0 | CA169: 10 | CB169: 35 | CC169: 0 | CD169: 6 | CE169: 0 | CF169: 3 | CG169: 1 | CH169: 27 | CI169: 0 | CJ169: 1336 | CK169: 0 | CL169: 37 | CM169: 0 | CN169: 191 | CO169: 0 | CP169: 183 | CQ169: 0 | CR169: 194 | CS169: 1 | CT169: 0 | CU169: 0 | CV169: 0 | CW169: 0 | CX169: 0 | CY169: 0 | CZ169: 0 | DA169: 0 | DB169: 0 | DC169: 0 | DD169: 0 | DE169: 0 | DF169: 0 | DG169: 0 | DH169: 0 | DI169: 0 | DJ169: 1 | DK169: 0 | DL169: 0 | DM169: 0 | DN169: 0 | DO169: 0 | DP169: 0 | DQ169: 0 | DR169: 0 | DS169: 0 | DT169: 0 | DU169: 0 | DV169: 0 | DW169: 0 | DX169: 0 | DY169: 0 | DZ169: 0 | EA169: 0 | EB169: 0 | EC169: 0 | ED169: 0 | EE169: 0 | EF169: 0 | EG169: 0 | EH169: 0 | EI169: 0 | EJ169: 0 | EK169: 0 | EL169: 0 | EM169: 0 | EN169: 0 | EO169: 0 | EP169: 0 | EQ169: 0 | ER169: 0 | ES169: 0 | ET169: 0 | EU169: 0 | EV169: 0 | EW169: 0 | EX169: 0 | EY169: 0 | EZ169: 0 | FA169: 0 | FB169: 0 | FC169: 0 | FD169: 0 | FE169: 0 | FF169: 0 | FG169: 0 | FH169: 0 | FI169: 0 | FJ169: 0 | FK169: 0 | FL169: 0 | FM169: 0 | FN169: 0 | FO169: 0 | FP169: 0 | FQ169: 0 | FR169: 0 | FS169: 0 | FT169: 0 | FU169: 0 | FV169: 0 | FW169: 0 | FX169: 0 | FY169: 0 | FZ169: 0 | GA169: 0 | GB169: 0 | GC169: 0 | GD169: 0 | GE169: 0 | GF169: 0 | GG169: 0 | GH169: 0 | GI169: 0 | GJ169: 0 | GK169: 0 | GL169: 0 | GM169: 0 | GN169: 0 | GO169: 0 | GP169: 0 | GQ169: 0 | GR169: 0 | GS169: 0 | GT169: 0 | GU169: 0 | GV169: 0 | GW169: 0 | GX169: 0 | GY169: 0 | GZ169: 0 | HA169: 0 | HB169: 0 | HC169: 0 | HD169: 0 | HE169: 0 | HF169: 0 | HG169: 0 | HH169: 0 | HI169: 0 | HJ169: 0 | HK169: 0 | HL169: 0 | HM169: 0 | HN169: 0 | HO169: 0 | HP169: 0 | HQ169: 0 | HR169: 0 | HS169: 0 | HT169: 0 | HU169: 0 | HV169: 0 | HW169: 0
A170: 2 | B170: 10 | C170: 1 | D170: 10 | E170: 1 | F170: 0 | G170: 0 | H170: 0 | I170: 0 | J170: 62 | K170: 180 | L170: 107 | M170: 717 | N170: 150 | O170: 446 | P170: 149 | Q170: 454 | R170: 94 | S170: 218 | T170: 93 | U170: 218 | V170: 29 | W170: 13 | X170: 29 | Y170: 13 | Z170: 104 | AA170: 124 | AB170: 1530 | AC170: 3720 | AD170: 1 | AE170: 0 | AF170: 10 | AG170: 0 | AH170: 7 | AI170: 0 | AJ170: 0 | AK170: 0 | AL170: 0 | AM170: 0 | AN170: 6 | AO170: 0 | AP170: 4 | AQ170: 4 | AR170: 0 | AS170: 0 | AT170: 0 | AU170: 0 | AV170: 0 | AW170: 0 | AX170: 0 | AY170: 0 | AZ170: 0 | BA170: 0 | BB170: 0 | BC170: 0 | BD170: 1 | BE170: 0 | BF170: 0 | BG170: 4 | BH170: 0 | BI170: 1 | BJ170: 0 | BK170: 0 | BL170: 0 | BM170: 0 | BN170: 0 | BO170: 0 | BP170: 0 | BQ170: 0 | BR170: 6 | BS170: 6 | BT170: 1 | BU170: 0 | BV170: 0 | BW170: 1 | BX170: 1 | BY170: 0 | BZ170: 0 | CA170: 6 | CB170: 218 | CC170: 7 | CD170: 1 | CE170: 0 | CF170: 5 | CG170: 0 | CH170: 35 | CI170: 0 | CJ170: 1218 | CK170: 0 | CL170: 35 | CM170: 0 | CN170: 145 | CO170: 0 | CP170: 144 | CQ170: 0 | CR170: 152 | CS170: 0 | CT170: 0 | CU170: 0 | CV170: 0 | CW170: 0 | CX170: 0 | CY170: 0 | CZ170: 0 | DA170: 0 | DB170: 0 | DC170: 1 | DD170: 0 | DE170: 0 | DF170: 0 | DG170: 0 | DH170: 0 | DI170: 1 | DJ170: 0 | DK170: 0 | DL170: 0 | DM170: 0 | DN170: 0 | DO170: 0 | DP170: 0 | DQ170: 0 | DR170: 0 | DS170: 0 | DT170: 0 | DU170: 0 | DV170: 0 | DW170: 0 | DX170: 0 | DY170: 0 | DZ170: 0 | EA170: 0 | EB170: 0 | EC170: 0 | ED170: 0 | EE170: 0 | EF170: 0 | EG170: 0 | EH170: 0 | EI170: 0 | EJ170: 0 | EK170: 0 | EL170: 0 | EM170: 0 | EN170: 0 | EO170: 0 | EP170: 0 | EQ170: 0 | ER170: 0 | ES170: 0 | ET170: 0 | EU170: 0 | EV170: 0 | EW170: 0 | EX170: 0 | EY170: 0 | EZ170: 0 | FA170: 0 | FB170: 0 | FC170: 0 | FD170: 0 | FE170: 0 | FF170: 0 | FG170: 0 | FH170: 0 | FI170: 0 | FJ170: 0 | FK170: 0 | FL170: 0 | FM170: 0 | FN170: 0 | FO170: 0 | FP170: 0 | FQ170: 0 | FR170: 0 | FS170: 0 | FT170: 0 | FU170: 0 | FV170: 0 | FW170: 0 | FX170: 0 | FY170: 0 | FZ170: 0 | GA170: 0 | GB170: 0 | GC170: 0 | GD170: 0 | GE170: 0 | GF170: 0 | GG170: 0 | GH170: 0 | GI170: 0 | GJ170: 0 | GK170: 0 | GL170: 0 | GM170: 0 | GN170: 0 | GO170: 0 | GP170: 0 | GQ170: 0 | GR170: 0 | GS170: 0 | GT170: 0 | GU170: 0 | GV170: 0 | GW170: 0 | GX170: 0 | GY170: 0 | GZ170: 0 | HA170: 0 | HB170: 0 | HC170: 0 | HD170: 0 | HE170: 0 | HF170: 0 | HG170: 0 | HH170: 0 | HI170: 0 | HJ170: 0 | HK170: 0 | HL170: 0 | HM170: 0 | HN170: 0 | HO170: 0 | HP170: 0 | HQ170: 0 | HR170: 0 | HS170: 0 | HT170: 0 | HU170: 0 | HV170: 0 | HW170: 0
A171: 3 | B171: 3 | C171: 0 | D171: 3 | E171: 0 | F171: 0 | G171: 0 | H171: 0 | I171: 0 | J171: 38 | K171: 163 | L171: 65 | M171: 649 | N171: 143 | O171: 394 | P171: 141 | Q171: 398 | R171: 87 | S171: 236 | T171: 86 | U171: 236 | V171: 19 | W171: 13 | X171: 19 | Y171: 13 | Z171: 92 | AA171: 120 | AB171: 1140 | AC171: 3600 | AD171: 4 | AE171: 0 | AF171: 50 | AG171: 0 | AH171: 5 | AI171: 0 | AJ171: 0 | AK171: 0 | AL171: 1 | AM171: 0 | AN171: 4 | AO171: 2 | AP171: 8 | AQ171: 8 | AR171: 0 | AS171: 0 | AT171: 0 | AU171: 0 | AV171: 0 | AW171: 0 | AX171: 0 | AY171: 0 | AZ171: 0 | BA171: 0 | BB171: 0 | BC171: 0 | BD171: 3 | BE171: 0 | BF171: 0 | BG171: 5 | BH171: 0 | BI171: 0 | BJ171: 0 | BK171: 0 | BL171: 0 | BM171: 0 | BN171: 0 | BO171: 0 | BP171: 0 | BQ171: 0 | BR171: 5 | BS171: 10 | BT171: 0 | BU171: 0 | BV171: 0 | BW171: 2 | BX171: 1 | BY171: 0 | BZ171: 0 | CA171: 5 | CB171: 213 | CC171: 4 | CD171: 1 | CE171: 0 | CF171: 3 | CG171: 8 | CH171: 51 | CI171: 0 | CJ171: 1085 | CK171: 0 | CL171: 34 | CM171: 0 | CN171: 125 | CO171: 0 | CP171: 124 | CQ171: 0 | CR171: 123 | CS171: 0 | CT171: 0 | CU171: 0 | CV171: 0 | CW171: 0 | CX171: 0 | CY171: 1 | CZ171: 0 | DA171: 0 | DB171: 0 | DC171: 0 | DD171: 0 | DE171: 0 | DF171: 0 | DG171: 0 | DH171: 1 | DI171: 1 | DJ171: 1 | DK171: 0 | DL171: 0 | DM171: 0 | DN171: 0 | DO171: 0 | DP171: 0 | DQ171: 0 | DR171: 0 | DS171: 0 | DT171: 0 | DU171: 0 | DV171: 0 | DW171: 0 | DX171: 0 | DY171: 0 | DZ171: 0 | EA171: 0 | EB171: 0 | EC171: 0 | ED171: 0 | EE171: 0 | EF171: 0 | EG171: 0 | EH171: 0 | EI171: 0 | EJ171: 0 | EK171: 0 | EL171: 0 | EM171: 0 | EN171: 0 | EO171: 0 | EP171: 0 | EQ171: 0 | ER171: 0 | ES171: 0 | ET171: 0 | EU171: 0 | EV171: 0 | EW171: 0 | EX171: 0 | EY171: 0 | EZ171: 0 | FA171: 0 | FB171: 0 | FC171: 0 | FD171: 0 | FE171: 0 | FF171: 0 | FG171: 0 | FH171: 0 | FI171: 0 | FJ171: 0 | FK171: 0 | FL171: 0 | FM171: 0 | FN171: 0 | FO171: 0 | FP171: 0 | FQ171: 0 | FR171: 0 | FS171: 0 | FT171: 0 | FU171: 0 | FV171: 0 | FW171: 0 | FX171: 0 | FY171: 0 | FZ171: 0 | GA171: 0 | GB171: 0 | GC171: 0 | GD171: 0 | GE171: 0 | GF171: 0 | GG171: 0 | GH171: 0 | GI171: 0 | GJ171: 0 | GK171: 0 | GL171: 0 | GM171: 0 | GN171: 0 | GO171: 0 | GP171: 0 | GQ171: 0 | GR171: 0 | GS171: 0 | GT171: 0 | GU171: 0 | GV171: 0 | GW171: 0 | GX171: 0 | GY171: 0 | GZ171: 0 | HA171: 0 | HB171: 0 | HC171: 0 | HD171: 0 | HE171: 0 | HF171: 0 | HG171: 0 | HH171: 0 | HI171: 0 | HJ171: 0 | HK171: 0 | HL171: 0 | HM171: 0 | HN171: 0 | HO171: 0 | HP171: 0 | HQ171: 0 | HR171: 0 | HS171: 0 | HT171: 0 | HU171: 0 | HV171: 0 | HW171: 0
A172: 4 | B172: 2 | C172: 0 | D172: 2 | E172: 0 | F172: 0 | G172: 0 | H172: 0 | I172: 0 | J172: 39 | K172: 167 | L172: 53 | M172: 665 | N172: 127 | O172: 512 | P172: 124 | Q172: 511 | R172: 99 | S172: 264 | T172: 95 | U172: 264 | V172: 38 | W172: 10 | X172: 38 | Y172: 10 | Z172: 98 | AA172: 108 | AB172: 1082 | AC172: 3200 | AD172: 4 | AE172: 0 | AF172: 50 | AG172: 0 | AH172: 9 | AI172: 0 | AJ172: 0 | AK172: 0 | AL172: 0 | AM172: 0 | AN172: 0 | AO172: 1 | AP172: 13 | AQ172: 13 | AR172: 0 | AS172: 0 | AT172: 0 | AU172: 0 | AV172: 0 | AW172: 0 | AX172: 0 | AY172: 0 | AZ172: 0 | BA172: 2 | BB172: 0 | BC172: 0 | BD172: 2 | BE172: 0 | BF172: 0 | BG172: 4 | BH172: 0 | BI172: 0 | BJ172: 0 | BK172: 0 | BL172: 0 | BM172: 0 | BN172: 0 | BO172: 0 | BP172: 0 | BQ172: 0 | BR172: 8 | BS172: 12 | BT172: 1 | BU172: 0 | BV172: 0 | BW172: 1 | BX172: 1 | BY172: 0 | BZ172: 0 | CA172: 8 | CB172: 539 | CC172: 9 | CD172: 0 | CE172: 0 | CF172: 6 | CG172: 0 | CH172: 55 | CI172: 0 | CJ172: 756 | CK172: 0 | CL172: 34 | CM172: 0 | CN172: 78 | CO172: 0 | CP172: 76 | CQ172: 0 | CR172: 91 | CS172: 0 | CT172: 0 | CU172: 0 | CV172: 0 | CW172: 0 | CX172: 0 | CY172: 0 | CZ172: 0 | DA172: 0 | DB172: 0 | DC172: 0 | DD172: 1 | DE172: 0 | DF172: 0 | DG172: 1 | DH172: 0 | DI172: 0 | DJ172: 1 | DK172: 0 | DL172: 0 | DM172: 0 | DN172: 0 | DO172: 0 | DP172: 0 | DQ172: 0 | DR172: 0 | DS172: 0 | DT172: 0 | DU172: 0 | DV172: 0 | DW172: 0 | DX172: 0 | DY172: 0 | DZ172: 0 | EA172: 0 | EB172: 0 | EC172: 0 | ED172: 0 | EE172: 0 | EF172: 0 | EG172: 0 | EH172: 0 | EI172: 0 | EJ172: 0 | EK172: 0 | EL172: 0 | EM172: 0 | EN172: 0 | EO172: 0 | EP172: 0 | EQ172: 0 | ER172: 0 | ES172: 0 | ET172: 0 | EU172: 0 | EV172: 0 | EW172: 0 | EX172: 0 | EY172: 0 | EZ172: 0 | FA172: 0 | FB172: 0 | FC172: 0 | FD172: 0 | FE172: 0 | FF172: 0 | FG172: 0 | FH172: 0 | FI172: 0 | FJ172: 0 | FK172: 0 | FL172: 0 | FM172: 0 | FN172: 0 | FO172: 0 | FP172: 0 | FQ172: 0 | FR172: 0 | FS172: 0 | FT172: 0 | FU172: 0 | FV172: 0 | FW172: 0 | FX172: 0 | FY172: 0 | FZ172: 0 | GA172: 0 | GB172: 0 | GC172: 0 | GD172: 0 | GE172: 0 | GF172: 0 | GG172: 0 | GH172: 0 | GI172: 0 | GJ172: 0 | GK172: 0 | GL172: 0 | GM172: 0 | GN172: 0 | GO172: 0 | GP172: 0 | GQ172: 0 | GR172: 0 | GS172: 0 | GT172: 0 | GU172: 0 | GV172: 0 | GW172: 0 | GX172: 0 | GY172: 0 | GZ172: 0 | HA172: 0 | HB172: 0 | HC172: 0 | HD172: 0 | HE172: 0 | HF172: 0 | HG172: 0 | HH172: 0 | HI172: 0 | HJ172: 0 | HK172: 0 | HL172: 0 | HM172: 0 | HN172: 0 | HO172: 0 | HP172: 0 | HQ172: 0 | HR172: 0 | HS172: 0 | HT172: 0 | HU172: 0 | HV172: 0 | HW172: 0
A173: 5 | B173: 1 | C173: 0 | D173: 1 | E173: 0 | F173: 0 | G173: 0 | H173: 0 | I173: 0 | J173: 47 | K173: 184 | L173: 63 | M173: 739 | N173: 87 | O173: 522 | P173: 79 | Q173: 564 | R173: 61 | S173: 282 | T173: 59 | U173: 311 | V173: 24 | W173: 6 | X173: 24 | Y173: 6 | Z173: 86 | AA173: 123 | AB173: 850 | AC173: 3690 | AD173: 3 | AE173: 0 | AF173: 20 | AG173: 0 | AH173: 12 | AI173: 0 | AJ173: 0 | AK173: 0 | AL173: 0 | AM173: 0 | AN173: 2 | AO173: 0 | AP173: 15 | AQ173: 14 | AR173: 0 | AS173: 0 | AT173: 0 | AU173: 0 | AV173: 0 | AW173: 0 | AX173: 0 | AY173: 0 | AZ173: 0 | BA173: 3 | BB173: 0 | BC173: 0 | BD173: 3 | BE173: 0 | BF173: 0 | BG173: 5 | BH173: 0 | BI173: 2 | BJ173: 0 | BK173: 0 | BL173: 0 | BM173: 0 | BN173: 0 | BO173: 0 | BP173: 0 | BQ173: 0 | BR173: 9 | BS173: 11 | BT173: 3 | BU173: 0 | BV173: 0 | BW173: 1 | BX173: 1 | BY173: 4 | BZ173: 0 | CA173: 9 | CB173: 599 | CC173: 19 | CD173: 3 | CE173: 0 | CF173: 3 | CG173: 0 | CH173: 42 | CI173: 0 | CJ173: 451 | CK173: 0 | CL173: 21 | CM173: 0 | CN173: 38 | CO173: 1 | CP173: 36 | CQ173: 1 | CR173: 43 | CS173: 0 | CT173: 0 | CU173: 0 | CV173: 0 | CW173: 0 | CX173: 0 | CY173: 0 | CZ173: 0 | DA173: 0 | DB173: 0 | DC173: 0 | DD173: 1 | DE173: 0 | DF173: 0 | DG173: 0 | DH173: 0 | DI173: 1 | DJ173: 0 | DK173: 0 | DL173: 0 | DM173: 0 | DN173: 0 | DO173: 0 | DP173: 0 | DQ173: 0 | DR173: 0 | DS173: 0 | DT173: 0 | DU173: 0 | DV173: 0 | DW173: 0 | DX173: 0 | DY173: 0 | DZ173: 0 | EA173: 0 | EB173: 0 | EC173: 0 | ED173: 0 | EE173: 0 | EF173: 0 | EG173: 0 | EH173: 0 | EI173: 0 | EJ173: 0 | EK173: 0 | EL173: 0 | EM173: 0 | EN173: 0 | EO173: 0 | EP173: 0 | EQ173: 0 | ER173: 0 | ES173: 0 | ET173: 0 | EU173: 0 | EV173: 0 | EW173: 0 | EX173: 0 | EY173: 0 | EZ173: 0 | FA173: 0 | FB173: 0 | FC173: 0 | FD173: 0 | FE173: 0 | FF173: 0 | FG173: 0 | FH173: 0 | FI173: 0 | FJ173: 0 | FK173: 0 | FL173: 0 | FM173: 0 | FN173: 0 | FO173: 0 | FP173: 0 | FQ173: 0 | FR173: 0 | FS173: 0 | FT173: 0 | FU173: 0 | FV173: 0 | FW173: 0 | FX173: 0 | FY173: 0 | FZ173: 0 | GA173: 0 | GB173: 0 | GC173: 0 | GD173: 0 | GE173: 0 | GF173: 0 | GG173: 0 | GH173: 0 | GI173: 0 | GJ173: 0 | GK173: 0 | GL173: 0 | GM173: 0 | GN173: 0 | GO173: 0 | GP173: 0 | GQ173: 0 | GR173: 0 | GS173: 0 | GT173: 0 | GU173: 0 | GV173: 0 | GW173: 0 | GX173: 0 | GY173: 0 | GZ173: 0 | HA173: 0 | HB173: 0 | HC173: 0 | HD173: 0 | HE173: 0 | HF173: 0 | HG173: 0 | HH173: 0 | HI173: 0 | HJ173: 0 | HK173: 0 | HL173: 0 | HM173: 0 | HN173: 0 | HO173: 0 | HP173: 0 | HQ173: 0 | HR173: 0 | HS173: 0 | HT173: 0 | HU173: 0 | HV173: 0 | HW173: 0
A174: 6 | B174: 2 | C174: 0 | D174: 2 | E174: 0 | F174: 0 | G174: 0 | H174: 0 | I174: 0 | J174: 40 | K174: 161 | L174: 51 | M174: 644 | N174: 86 | O174: 460 | P174: 84 | Q174: 459 | R174: 67 | S174: 287 | T174: 64 | U174: 286 | V174: 21 | W174: 15 | X174: 21 | Y174: 15 | Z174: 76 | AA174: 148 | AB174: 820 | AC174: 4280 | AD174: 6 | AE174: 1 | AF174: 50 | AG174: 30 | AH174: 11 | AI174: 0 | AJ174: 0 | AK174: 0 | AL174: 0 | AM174: 0 | AN174: 5 | AO174: 0 | AP174: 16 | AQ174: 16 | AR174: 0 | AS174: 0 | AT174: 0 | AU174: 0 | AV174: 0 | AW174: 0 | AX174: 0 | AY174: 0 | AZ174: 1 | BA174: 1 | BB174: 0 | BC174: 0 | BD174: 1 | BE174: 0 | BF174: 0 | BG174: 4 | BH174: 0 | BI174: 0 | BJ174: 0 | BK174: 0 | BL174: 0 | BM174: 0 | BN174: 0 | BO174: 0 | BP174: 0 | BQ174: 0 | BR174: 8 | BS174: 6 | BT174: 3 | BU174: 0 | BV174: 0 | BW174: 2 | BX174: 2 | BY174: 1 | BZ174: 0 | CA174: 8 | CB174: 563 | CC174: 33 | CD174: 2 | CE174: 0 | CF174: 10 | CG174: 2 | CH174: 47 | CI174: 0 | CJ174: 449 | CK174: 0 | CL174: 32 | CM174: 0 | CN174: 47 | CO174: 0 | CP174: 47 | CQ174: 0 | CR174: 47 | CS174: 0 | CT174: 0 | CU174: 0 | CV174: 0 | CW174: 0 | CX174: 0 | CY174: 1 | CZ174: 0 | DA174: 1 | DB174: 0 | DC174: 0 | DD174: 0 | DE174: 0 | DF174: 0 | DG174: 0 | DH174: 0 | DI174: 2 | DJ174: 0 | DK174: 0 | DL174: 0 | DM174: 0 | DN174: 0 | DO174: 0 | DP174: 0 | DQ174: 0 | DR174: 0 | DS174: 0 | DT174: 0 | DU174: 0 | DV174: 0 | DW174: 0 | DX174: 0 | DY174: 0 | DZ174: 0 | EA174: 0 | EB174: 0 | EC174: 0 | ED174: 0 | EE174: 0 | EF174: 0 | EG174: 0 | EH174: 0 | EI174: 0 | EJ174: 0 | EK174: 0 | EL174: 0 | EM174: 0 | EN174: 0 | EO174: 0 | EP174: 0 | EQ174: 0 | ER174: 0 | ES174: 0 | ET174: 0 | EU174: 0 | EV174: 0 | EW174: 0 | EX174: 0 | EY174: 0 | EZ174: 0 | FA174: 0 | FB174: 0 | FC174: 0 | FD174: 0 | FE174: 0 | FF174: 0 | FG174: 0 | FH174: 0 | FI174: 0 | FJ174: 0 | FK174: 0 | FL174: 0 | FM174: 0 | FN174: 0 | FO174: 0 | FP174: 0 | FQ174: 0 | FR174: 0 | FS174: 0 | FT174: 0 | FU174: 0 | FV174: 0 | FW174: 0 | FX174: 0 | FY174: 0 | FZ174: 0 | GA174: 0 | GB174: 0 | GC174: 0 | GD174: 0 | GE174: 0 | GF174: 0 | GG174: 0 | GH174: 0 | GI174: 0 | GJ174: 0 | GK174: 0 | GL174: 0 | GM174: 0 | GN174: 0 | GO174: 0 | GP174: 0 | GQ174: 0 | GR174: 0 | GS174: 0 | GT174: 0 | GU174: 0 | GV174: 0 | GW174: 0 | GX174: 0 | GY174: 0 | GZ174: 0 | HA174: 0 | HB174: 0 | HC174: 0 | HD174: 0 | HE174: 0 | HF174: 0 | HG174: 0 | HH174: 0 | HI174: 0 | HJ174: 0 | HK174: 0 | HL174: 0 | HM174: 0 | HN174: 0 | HO174: 0 | HP174: 0 | HQ174: 0 | HR174: 0 | HS174: 0 | HT174: 0 | HU174: 0 | HV174: 0 | HW174: 0
A175: 7 | B175: 2 | C175: 0 | D175: 2 | E175: 0 | F175: 0 | G175: 0 | H175: 0 | I175: 0 | J175: 35 | K175: 158 | L175: 70 | M175: 632 | N175: 100 | O175: 519 | P175: 100 | Q175: 521 | R175: 69 | S175: 278 | T175: 64 | U175: 279 | V175: 22 | W175: 4 | X175: 22 | Y175: 4 | Z175: 66 | AA175: 117 | AB175: 690 | AC175: 3490 | AD175: 4 | AE175: 3 | AF175: 40 | AG175: 90 | AH175: 5 | AI175: 0 | AJ175: 0 | AK175: 0 | AL175: 1 | AM175: 0 | AN175: 3 | AO175: 0 | AP175: 17 | AQ175: 13 | AR175: 1 | AS175: 1 | AT175: 0 | AU175: 0 | AV175: 0 | AW175: 0 | AX175: 0 | AY175: 0 | AZ175: 0 | BA175: 0 | BB175: 1 | BC175: 0 | BD175: 4 | BE175: 0 | BF175: 0 | BG175: 0 | BH175: 0 | BI175: 0 | BJ175: 0 | BK175: 0 | BL175: 0 | BM175: 0 | BN175: 0 | BO175: 0 | BP175: 0 | BQ175: 0 | BR175: 4 | BS175: 4 | BT175: 1 | BU175: 0 | BV175: 0 | BW175: 0 | BX175: 0 | BY175: 2 | BZ175: 0 | CA175: 4 | CB175: 412 | CC175: 19 | CD175: 1 | CE175: 0 | CF175: 6 | CG175: 3 | CH175: 45 | CI175: 0 | CJ175: 392 | CK175: 0 | CL175: 36 | CM175: 0 | CN175: 31 | CO175: 0 | CP175: 31 | CQ175: 0 | CR175: 29 | CS175: 0 | CT175: 0 | CU175: 0 | CV175: 0 | CW175: 0 | CX175: 0 | CY175: 0 | CZ175: 0 | DA175: 0 | DB175: 0 | DC175: 0 | DD175: 0 | DE175: 0 | DF175: 0 | DG175: 0 | DH175: 0 | DI175: 1 | DJ175: 0 | DK175: 0 | DL175: 0 | DM175: 0 | DN175: 0 | DO175: 0 | DP175: 0 | DQ175: 0 | DR175: 0 | DS175: 0 | DT175: 0 | DU175: 0 | DV175: 0 | DW175: 0 | DX175: 0 | DY175: 0 | DZ175: 0 | EA175: 0 | EB175: 0 | EC175: 0 | ED175: 0 | EE175: 0 | EF175: 0 | EG175: 0 | EH175: 0 | EI175: 0 | EJ175: 0 | EK175: 0 | EL175: 0 | EM175: 0 | EN175: 0 | EO175: 0 | EP175: 0 | EQ175: 0 | ER175: 0 | ES175: 0 | ET175: 0 | EU175: 0 | EV175: 0 | EW175: 0 | EX175: 0 | EY175: 0 | EZ175: 0 | FA175: 0 | FB175: 0 | FC175: 0 | FD175: 0 | FE175: 0 | FF175: 0 | FG175: 0 | FH175: 0 | FI175: 0 | FJ175: 0 | FK175: 0 | FL175: 0 | FM175: 0 | FN175: 0 | FO175: 0 | FP175: 0 | FQ175: 0 | FR175: 0 | FS175: 0 | FT175: 0 | FU175: 0 | FV175: 0 | FW175: 0 | FX175: 0 | FY175: 0 | FZ175: 0 | GA175: 0 | GB175: 0 | GC175: 0 | GD175: 0 | GE175: 0 | GF175: 0 | GG175: 0 | GH175: 0 | GI175: 0 | GJ175: 0 | GK175: 0 | GL175: 0 | GM175: 0 | GN175: 0 | GO175: 0 | GP175: 0 | GQ175: 0 | GR175: 0 | GS175: 0 | GT175: 0 | GU175: 0 | GV175: 0 | GW175: 0 | GX175: 0 | GY175: 0 | GZ175: 0 | HA175: 0 | HB175: 0 | HC175: 0 | HD175: 0 | HE175: 0 | HF175: 0 | HG175: 0 | HH175: 0 | HI175: 0 | HJ175: 0 | HK175: 0 | HL175: 0 | HM175: 0 | HN175: 0 | HO175: 0 | HP175: 0 | HQ175: 0 | HR175: 0 | HS175: 0 | HT175: 0 | HU175: 0 | HV175: 0 | HW175: 0
A176: 8 | B176: 0 | C176: 0 | D176: 0 | E176: 0 | F176: 0 | G176: 0 | H176: 0 | I176: 0 | J176: 47 | K176: 171 | L176: 53 | M176: 675 | N176: 102 | O176: 517 | P176: 101 | Q176: 516 | R176: 78 | S176: 275 | T176: 73 | U176: 284 | V176: 25 | W176: 7 | X176: 25 | Y176: 7 | Z176: 91 | AA176: 117 | AB176: 946 | AC176: 3481 | AD176: 2 | AE176: 0 | AF176: 11 | AG176: 0 | AH176: 7 | AI176: 0 | AJ176: 0 | AK176: 0 | AL176: 0 | AM176: 0 | AN176: 5 | AO176: 0 | AP176: 58 | AQ176: 55 | AR176: 0 | AS176: 0 | AT176: 0 | AU176: 0 | AV176: 0 | AW176: 0 | AX176: 0 | AY176: 0 | AZ176: 2 | BA176: 0 | BB176: 0 | BC176: 0 | BD176: 2 | BE176: 0 | BF176: 0 | BG176: 4 | BH176: 0 | BI176: 0 | BJ176: 0 | BK176: 1 | BL176: 0 | BM176: 0 | BN176: 0 | BO176: 0 | BP176: 0 | BQ176: 0 | BR176: 6 | BS176: 6 | BT176: 1 | BU176: 0 | BV176: 0 | BW176: 0 | BX176: 0 | BY176: 1 | BZ176: 0 | CA176: 6 | CB176: 318 | CC176: 20 | CD176: 3 | CE176: 0 | CF176: 37 | CG176: 0 | CH176: 43 | CI176: 0 | CJ176: 418 | CK176: 0 | CL176: 41 | CM176: 0 | CN176: 30 | CO176: 0 | CP176: 30 | CQ176: 0 | CR176: 37 | CS176: 0 | CT176: 0 | CU176: 0 | CV176: 0 | CW176: 0 | CX176: 0 | CY176: 0 | CZ176: 0 | DA176: 0 | DB176: 0 | DC176: 0 | DD176: 0 | DE176: 0 | DF176: 0 | DG176: 0 | DH176: 1 | DI176: 2 | DJ176: 0 | DK176: 0 | DL176: 0 | DM176: 0 | DN176: 0 | DO176: 0 | DP176: 0 | DQ176: 0 | DR176: 0 | DS176: 0 | DT176: 0 | DU176: 0 | DV176: 0 | DW176: 0 | DX176: 0 | DY176: 0 | DZ176: 0 | EA176: 0 | EB176: 0 | EC176: 0 | ED176: 0 | EE176: 0 | EF176: 0 | EG176: 0 | EH176: 0 | EI176: 0 | EJ176: 0 | EK176: 0 | EL176: 0 | EM176: 0 | EN176: 0 | EO176: 0 | EP176: 0 | EQ176: 0 | ER176: 0 | ES176: 0 | ET176: 0 | EU176: 0 | EV176: 0 | EW176: 0 | EX176: 0 | EY176: 0 | EZ176: 0 | FA176: 0 | FB176: 0 | FC176: 0 | FD176: 0 | FE176: 0 | FF176: 0 | FG176: 0 | FH176: 0 | FI176: 0 | FJ176: 0 | FK176: 0 | FL176: 0 | FM176: 0 | FN176: 0 | FO176: 0 | FP176: 0 | FQ176: 0 | FR176: 0 | FS176: 0 | FT176: 0 | FU176: 0 | FV176: 0 | FW176: 0 | FX176: 0 | FY176: 0 | FZ176: 0 | GA176: 0 | GB176: 0 | GC176: 0 | GD176: 0 | GE176: 0 | GF176: 0 | GG176: 0 | GH176: 0 | GI176: 0 | GJ176: 0 | GK176: 0 | GL176: 0 | GM176: 0 | GN176: 0 | GO176: 0 | GP176: 0 | GQ176: 0 | GR176: 0 | GS176: 0 | GT176: 0 | GU176: 0 | GV176: 0 | GW176: 0 | GX176: 0 | GY176: 0 | GZ176: 0 | HA176: 0 | HB176: 0 | HC176: 0 | HD176: 0 | HE176: 0 | HF176: 0 | HG176: 0 | HH176: 0 | HI176: 0 | HJ176: 0 | HK176: 0 | HL176: 0 | HM176: 0 | HN176: 0 | HO176: 0 | HP176: 0 | HQ176: 0 | HR176: 0 | HS176: 0 | HT176: 0 | HU176: 0 | HV176: 0 | HW176: 0
A177: 9 | B177: 0 | C177: 0 | D177: 0 | E177: 0 | F177: 0 | G177: 0 | H177: 0 | I177: 0 | J177: 30 | K177: 193 | L177: 59 | M177: 776 | N177: 76 | O177: 476 | P177: 76 | Q177: 483 | R177: 100 | S177: 289 | T177: 72 | U177: 289 | V177: 25 | W177: 10 | X177: 25 | Y177: 10 | Z177: 69 | AA177: 140 | AB177: 690 | AC177: 4180 | AD177: 2 | AE177: 1 | AF177: 20 | AG177: 13 | AH177: 6 | AI177: 0 | AJ177: 0 | AK177: 0 | AL177: 0 | AM177: 0 | AN177: 1 | AO177: 2 | AP177: 50 | AQ177: 46 | AR177: 0 | AS177: 0 | AT177: 0 | AU177: 0 | AV177: 0 | AW177: 0 | AX177: 0 | AY177: 0 | AZ177: 0 | BA177: 1 | BB177: 1 | BC177: 0 | BD177: 2 | BE177: 0 | BF177: 0 | BG177: 1 | BH177: 0 | BI177: 0 | BJ177: 1 | BK177: 0 | BL177: 0 | BM177: 0 | BN177: 0 | BO177: 0 | BP177: 0 | BQ177: 0 | BR177: 5 | BS177: 6 | BT177: 1 | BU177: 0 | BV177: 0 | BW177: 1 | BX177: 0 | BY177: 2 | BZ177: 0 | CA177: 5 | CB177: 259 | CC177: 23 | CD177: 3 | CE177: 0 | CF177: 36 | CG177: 0 | CH177: 52 | CI177: 0 | CJ177: 391 | CK177: 0 | CL177: 41 | CM177: 0 | CN177: 37 | CO177: 0 | CP177: 37 | CQ177: 0 | CR177: 51 | CS177: 0 | CT177: 0 | CU177: 0 | CV177: 0 | CW177: 0 | CX177: 0 | CY177: 0 | CZ177: 0 | DA177: 0 | DB177: 0 | DC177: 0 | DD177: 0 | DE177: 0 | DF177: 0 | DG177: 0 | DH177: 0 | DI177: 0 | DJ177: 0 | DK177: 0 | DL177: 0 | DM177: 0 | DN177: 0 | DO177: 0 | DP177: 0 | DQ177: 0 | DR177: 0 | DS177: 0 | DT177: 0 | DU177: 0 | DV177: 0 | DW177: 0 | DX177: 0 | DY177: 0 | DZ177: 0 | EA177: 0 | EB177: 0 | EC177: 0 | ED177: 0 | EE177: 0 | EF177: 0 | EG177: 0 | EH177: 0 | EI177: 0 | EJ177: 0 | EK177: 0 | EL177: 0 | EM177: 0 | EN177: 0 | EO177: 0 | EP177: 0 | EQ177: 0 | ER177: 0 | ES177: 0 | ET177: 0 | EU177: 0 | EV177: 0 | EW177: 0 | EX177: 0 | EY177: 0 | EZ177: 0 | FA177: 0 | FB177: 0 | FC177: 0 | FD177: 0 | FE177: 0 | FF177: 0 | FG177: 0 | FH177: 0 | FI177: 0 | FJ177: 0 | FK177: 0 | FL177: 0 | FM177: 0 | FN177: 0 | FO177: 0 | FP177: 0 | FQ177: 0 | FR177: 0 | FS177: 0 | FT177: 0 | FU177: 0 | FV177: 0 | FW177: 0 | FX177: 0 | FY177: 0 | FZ177: 0 | GA177: 0 | GB177: 0 | GC177: 0 | GD177: 0 | GE177: 0 | GF177: 0 | GG177: 0 | GH177: 0 | GI177: 0 | GJ177: 0 | GK177: 0 | GL177: 0 | GM177: 0 | GN177: 0 | GO177: 0 | GP177: 0 | GQ177: 0 | GR177: 0 | GS177: 0 | GT177: 0 | GU177: 0 | GV177: 0 | GW177: 0 | GX177: 0 | GY177: 0 | GZ177: 0 | HA177: 0 | HB177: 0 | HC177: 0 | HD177: 0 | HE177: 0 | HF177: 0 | HG177: 0 | HH177: 0 | HI177: 0 | HJ177: 0 | HK177: 0 | HL177: 0 | HM177: 0 | HN177: 0 | HO177: 0 | HP177: 0 | HQ177: 0 | HR177: 0 | HS177: 0 | HT177: 0 | HU177: 0 | HV177: 0 | HW177: 0
A178: 10 | B178: 2 | C178: 0 | D178: 2 | E178: 0 | F178: 0 | G178: 0 | H178: 0 | I178: 0 | J178: 36 | K178: 163 | L178: 44 | M178: 671 | N178: 68 | O178: 541 | P178: 65 | Q178: 529 | R178: 64 | S178: 293 | T178: 62 | U178: 290 | V178: 28 | W178: 7 | X178: 28 | Y178: 7 | Z178: 77 | AA178: 149 | AB178: 770 | AC178: 4450 | AD178: 0 | AE178: 0 | AF178: 0 | AG178: 0 | AH178: 6 | AI178: 0 | AJ178: 0 | AK178: 0 | AL178: 4 | AM178: 0 | AN178: 2 | AO178: 0 | AP178: 1 | AQ178: 1 | AR178: 0 | AS178: 0 | AT178: 0 | AU178: 0 | AV178: 0 | AW178: 0 | AX178: 0 | AY178: 0 | AZ178: 1 | BA178: 0 | BB178: 1 | BC178: 0 | BD178: 2 | BE178: 0 | BF178: 0 | BG178: 3 | BH178: 0 | BI178: 0 | BJ178: 0 | BK178: 0 | BL178: 0 | BM178: 0 | BN178: 0 | BO178: 0 | BP178: 0 | BQ178: 0 | BR178: 6 | BS178: 6 | BT178: 0 | BU178: 0 | BV178: 0 | BW178: 2 | BX178: 0 | BY178: 2 | BZ178: 0 | CA178: 6 | CB178: 265 | CC178: 19 | CD178: 6 | CE178: 0 | CF178: 1 | CG178: 0 | CH178: 47 | CI178: 1 | CJ178: 399 | CK178: 0 | CL178: 28 | CM178: 0 | CN178: 40 | CO178: 0 | CP178: 40 | CQ178: 0 | CR178: 48 | CS178: 0 | CT178: 0 | CU178: 0 | CV178: 0 | CW178: 0 | CX178: 0 | CY178: 0 | CZ178: 0 | DA178: 0 | DB178: 0 | DC178: 0 | DD178: 0 | DE178: 0 | DF178: 0 | DG178: 0 | DH178: 0 | DI178: 0 | DJ178: 0 | DK178: 0 | DL178: 0 | DM178: 0 | DN178: 0 | DO178: 0 | DP178: 0 | DQ178: 0 | DR178: 0 | DS178: 0 | DT178: 0 | DU178: 0 | DV178: 0 | DW178: 0 | DX178: 0 | DY178: 0 | DZ178: 0 | EA178: 0 | EB178: 0 | EC178: 0 | ED178: 0 | EE178: 0 | EF178: 0 | EG178: 0 | EH178: 0 | EI178: 0 | EJ178: 0 | EK178: 0 | EL178: 0 | EM178: 0 | EN178: 0 | EO178: 0 | EP178: 0 | EQ178: 0 | ER178: 0 | ES178: 0 | ET178: 0 | EU178: 0 | EV178: 0 | EW178: 0 | EX178: 0 | EY178: 0 | EZ178: 0 | FA178: 0 | FB178: 0 | FC178: 0 | FD178: 0 | FE178: 0 | FF178: 0 | FG178: 0 | FH178: 0 | FI178: 0 | FJ178: 0 | FK178: 0 | FL178: 0 | FM178: 0 | FN178: 0 | FO178: 0 | FP178: 0 | FQ178: 0 | FR178: 0 | FS178: 0 | FT178: 0 | FU178: 0 | FV178: 0 | FW178: 0 | FX178: 0 | FY178: 0 | FZ178: 0 | GA178: 0 | GB178: 0 | GC178: 0 | GD178: 0 | GE178: 0 | GF178: 0 | GG178: 0 | GH178: 0 | GI178: 0 | GJ178: 0 | GK178: 0 | GL178: 0 | GM178: 0 | GN178: 0 | GO178: 0 | GP178: 0 | GQ178: 0 | GR178: 0 | GS178: 0 | GT178: 0 | GU178: 0 | GV178: 0 | GW178: 0 | GX178: 0 | GY178: 0 | GZ178: 0 | HA178: 0 | HB178: 0 | HC178: 0 | HD178: 0 | HE178: 0 | HF178: 0 | HG178: 0 | HH178: 0 | HI178: 0 | HJ178: 0 | HK178: 0 | HL178: 0 | HM178: 0 | HN178: 0 | HO178: 0 | HP178: 0 | HQ178: 0 | HR178: 0 | HS178: 0 | HT178: 0 | HU178: 0 | HV178: 0 | HW178: 0
A179: 11 | B179: 1 | C179: 0 | D179: 1 | E179: 0 | F179: 0 | G179: 0 | H179: 0 | I179: 0 | J179: 35 | K179: 150 | L179: 53 | M179: 592 | N179: 52 | O179: 518 | P179: 49 | Q179: 514 | R179: 64 | S179: 295 | T179: 59 | U179: 294 | V179: 22 | W179: 4 | X179: 22 | Y179: 4 | Z179: 100 | AA179: 113 | AB179: 1050 | AC179: 3370 | AD179: 1 | AE179: 0 | AF179: 10 | AG179: 0 | AH179: 3 | AI179: 0 | AJ179: 0 | AK179: 0 | AL179: 0 | AM179: 0 | AN179: 4 | AO179: 0 | AP179: 3 | AQ179: 3 | AR179: 0 | AS179: 0 | AT179: 0 | AU179: 0 | AV179: 0 | AW179: 0 | AX179: 0 | AY179: 0 | AZ179: 0 | BA179: 0 | BB179: 1 | BC179: 0 | BD179: 1 | BE179: 0 | BF179: 0 | BG179: 6 | BH179: 0 | BI179: 0 | BJ179: 0 | BK179: 0 | BL179: 0 | BM179: 0 | BN179: 0 | BO179: 0 | BP179: 0 | BQ179: 0 | BR179: 3 | BS179: 8 | BT179: 0 | BU179: 0 | BV179: 0 | BW179: 0 | BX179: 1 | BY179: 2 | BZ179: 0 | CA179: 3 | CB179: 180 | CC179: 18 | CD179: 5 | CE179: 0 | CF179: 1 | CG179: 0 | CH179: 47 | CI179: 0 | CJ179: 357 | CK179: 0 | CL179: 22 | CM179: 0 | CN179: 28 | CO179: 0 | CP179: 29 | CQ179: 0 | CR179: 30 | CS179: 0 | CT179: 0 | CU179: 0 | CV179: 0 | CW179: 0 | CX179: 0 | CY179: 1 | CZ179: 0 | DA179: 1 | DB179: 0 | DC179: 0 | DD179: 0 | DE179: 0 | DF179: 0 | DG179: 0 | DH179: 0 | DI179: 2 | DJ179: 0 | DK179: 0 | DL179: 0 | DM179: 0 | DN179: 1 | DO179: 0 | DP179: 0 | DQ179: 0 | DR179: 0 | DS179: 0 | DT179: 0 | DU179: 0 | DV179: 0 | DW179: 0 | DX179: 0 | DY179: 0 | DZ179: 0 | EA179: 0 | EB179: 0 | EC179: 0 | ED179: 0 | EE179: 0 | EF179: 0 | EG179: 0 | EH179: 0 | EI179: 0 | EJ179: 0 | EK179: 0 | EL179: 0 | EM179: 0 | EN179: 0 | EO179: 0 | EP179: 0 | EQ179: 0 | ER179: 0 | ES179: 0 | ET179: 0 | EU179: 0 | EV179: 0 | EW179: 0 | EX179: 0 | EY179: 0 | EZ179: 0 | FA179: 0 | FB179: 0 | FC179: 0 | FD179: 0 | FE179: 0 | FF179: 0 | FG179: 0 | FH179: 0 | FI179: 0 | FJ179: 0 | FK179: 0 | FL179: 0 | FM179: 0 | FN179: 0 | FO179: 0 | FP179: 0 | FQ179: 0 | FR179: 0 | FS179: 0 | FT179: 0 | FU179: 0 | FV179: 0 | FW179: 0 | FX179: 0 | FY179: 0 | FZ179: 0 | GA179: 0 | GB179: 0 | GC179: 0 | GD179: 0 | GE179: 0 | GF179: 0 | GG179: 0 | GH179: 0 | GI179: 0 | GJ179: 0 | GK179: 0 | GL179: 0 | GM179: 0 | GN179: 0 | GO179: 0 | GP179: 0 | GQ179: 0 | GR179: 0 | GS179: 0 | GT179: 0 | GU179: 0 | GV179: 0 | GW179: 0 | GX179: 0 | GY179: 0 | GZ179: 0 | HA179: 0 | HB179: 0 | HC179: 0 | HD179: 0 | HE179: 0 | HF179: 0 | HG179: 0 | HH179: 0 | HI179: 0 | HJ179: 0 | HK179: 0 | HL179: 0 | HM179: 0 | HN179: 0 | HO179: 0 | HP179: 0 | HQ179: 0 | HR179: 0 | HS179: 0 | HT179: 0 | HU179: 0 | HV179: 0 | HW179: 0
A180: Total | B180: 24 | C180: 1 | D180: 24 | E180: 1 | F180: 0 | G180: 0 | H180: 0 | I180: 0 | J180: 460 | K180: 1866 | L180: 708 | M180: 7464 | N180: 1181 | O180: 5340 | P180: 1158 | Q180: 5385 | R180: 914 | S180: 2861 | T180: 856 | U180: 2893 | V180: 277 | W180: 96 | X180: 277 | Y180: 96 | Z180: 928 | AA180: 1369 | AB180: 10358 | AC180: 40683 | AD180: 28 | AE180: 5 | AF180: 271 | AG180: 133 | AH180: 88 | AI180: 0 | AJ180: 0 | AK180: 0 | AL180: 8 | AM180: 0 | AN180: 36 | AO180: 5 | AP180: 189 | AQ180: 177 | AR180: 1 | AS180: 1 | AT180: 0 | AU180: 0 | AV180: 0 | AW180: 0 | AX180: 0 | AY180: 0 | AZ180: 4 | BA180: 10 | BB180: 4 | BC180: 0 | BD180: 21 | BE180: 0 | BF180: 0 | BG180: 36 | BH180: 0 | BI180: 4 | BJ180: 2 | BK180: 1 | BL180: 0 | BM180: 0 | BN180: 0 | BO180: 0 | BP180: 0 | BQ180: 0 | BR180: 70 | BS180: 83 | BT180: 15 | BU180: 0 | BV180: 0 | BW180: 13 | BX180: 8 | BY180: 15 | BZ180: 0 | CA180: 70 | CB180: 3601 | CC180: 171 | CD180: 31 | CE180: 0 | CF180: 111 | CG180: 14 | CH180: 491 | CI180: 1 | CJ180: 7252 | CK180: 0 | CL180: 361 | CM180: 0 | CN180: 790 | CO180: 1 | CP180: 777 | CQ180: 1 | CR180: 845 | CS180: 1 | CT180: 0 | CU180: 0 | CV180: 0 | CW180: 0 | CX180: 0 | CY180: 3 | CZ180: 0 | DA180: 2 | DB180: 0 | DC180: 1 | DD180: 2 | DE180: 0 | DF180: 0 | DG180: 1 | DH180: 2 | DI180: 10 | DJ180: 3 | DK180: 0 | DL180: 0 | DM180: 0 | DN180: 1 | DO180: 0 | DP180: 0 | DQ180: 0 | DR180: 0 | DS180: 0 | DT180: 0 | DU180: 0 | DV180: 0 | DW180: 0 | DX180: 0 | DY180: 0 | DZ180: 0 | EA180: 0 | EB180: 0 | EC180: 0 | ED180: 0 | EE180: 0 | EF180: 0 | EG180: 0 | EH180: 0 | EI180: 0 | EJ180: 0 | EK180: 0 | EL180: 0 | EM180: 0 | EN180: 0 | EO180: 0 | EP180: 0 | EQ180: 0 | ER180: 0 | ES180: 0 | ET180: 0 | EU180: 0 | EV180: 0 | EW180: 0 | EX180: 0 | EY180: 0 | EZ180: 0 | FA180: 0 | FB180: 0 | FC180: 0 | FD180: 0 | FE180: 0 | FF180: 0 | FG180: 0 | FH180: 0 | FI180: 0 | FJ180: 0 | FK180: 0 | FL180: 0 | FM180: 0 | FN180: 0 | FO180: 0 | FP180: 0 | FQ180: 0 | FR180: 0 | FS180: 0 | FT180: 0 | FU180: 0 | FV180: 0 | FW180: 0 | FX180: 0 | FY180: 0 | FZ180: 0 | GA180: 0 | GB180: 0 | GC180: 0 | GD180: 0 | GE180: 0 | GF180: 0 | GG180: 0 | GH180: 0 | GI180: 0 | GJ180: 0 | GK180: 0 | GL180: 0 | GM180: 0 | GN180: 0 | GO180: 0 | GP180: 0 | GQ180: 0 | GR180: 0 | GS180: 0 | GT180: 0 | GU180: 0 | GV180: 0 | GW180: 0 | GX180: 0 | GY180: 0 | GZ180: 0 | HA180: 0 | HB180: 0 | HC180: 0 | HD180: 0 | HE180: 0 | HF180: 0 | HG180: 0 | HH180: 0 | HI180: 0 | HJ180: 0 | HK180: 0 | HL180: 0 | HM180: 0 | HN180: 0 | HO180: 0 | HP180: 0 | HQ180: 0 | HR180: 0 | HS180: 0 | HT180: 0 | HU180: 0 | HV180: 0 | HW180: 0
A186: TOTAL
A187: =COUNT(A166:A184) -> 11 | B187: =SUM(B166:B184) -> 48 | C187: =SUM(C166:C184) -> 2 | D187: 48 | E187: 2 | F187: 0 | G187: 0 | H187: 0 | I187: 0 | J187: 920 | K187: 3732 | L187: 1416 | M187: 14928 | N187: 2362 | O187: 10680 | P187: 2316 | Q187: 10770 | R187: 1828 | S187: 5722 | T187: 1712 | U187: 5786 | V187: 554 | W187: 192 | X187: 554 | Y187: 192 | Z187: 1856 | AA187: 2738 | AB187: 20716 | AC187: 81366 | AD187: 56 | AE187: 10 | AF187: 542 | AG187: 266 | AH187: 176 | AI187: 0 | AJ187: 0 | AK187: 0 | AL187: 16 | AM187: 0 | AN187: 72 | AO187: 10 | AP187: 378 | AQ187: 354 | AR187: 2 | AS187: 2 | AT187: 0 | AU187: 0 | AV187: 0 | AW187: 0 | AX187: 0 | AY187: 0 | AZ187: 8 | BA187: 20 | BB187: 8 | BC187: 0 | BD187: 42 | BE187: 0 | BF187: 0 | BG187: 72 | BH187: 0 | BI187: 8 | BJ187: 4 | BK187: 2 | BL187: 0 | BM187: 0 | BN187: 0 | BO187: =SUM(BO166:BO184) -> 0 | BP187: 0 | BQ187: 0 | BR187: 140 | BS187: 166 | BT187: 30 | BU187: 0 | BV187: 0 | BW187: 26 | BX187: 16 | BY187: 30 | BZ187: 0 | CA187: 140 | CB187: 7202 | CC187: 342 | CD187: 62 | CE187: 0 | CF187: 222 | CG187: 28 | CH187: 982 | CI187: 2 | CJ187: 14504 | CK187: 0 | CL187: 722 | CM187: 0 | CN187: 1580 | CO187: 2 | CP187: 1554 | CQ187: 2 | CR187: 1690 | CS187: 2 | CT187: 0 | CU187: 0 | CV187: 0 | CW187: 0 | CX187: 0 | CY187: 6 | CZ187: 0 | DA187: 4 | DB187: 0 | DC187: 2 | DD187: 4 | DE187: 0 | DF187: 0 | DG187: 2 | DH187: 4 | DI187: 20 | DJ187: 6 | DK187: 0 | DL187: 0 | DM187: 0 | DN187: 2 | DO187: 0 | DP187: 0 | DQ187: 0 | DR187: 0 | DS187: 0 | DT187: 0 | DU187: 0 | DV187: 0 | DW187: 0 | DX187: 0 | DY187: 0 | DZ187: 0 | EA187: =SUM(EA166:EA184) -> 0 | EB187: 0 | EC187: 0 | ED187: 0 | EE187: 0 | EF187: 0 | EG187: 0 | EH187: 0 | EI187: 0 | EJ187: 0 | EK187: 0 | EL187: 0 | EM187: 0 | EN187: 0 | EO187: 0 | EP187: 0 | EQ187: 0 | ER187: 0 | ES187: 0 | ET187: 0 | EU187: 0 | EV187: 0 | EW187: 0 | EX187: 0 | EY187: 0 | EZ187: 0 | FA187: 0 | FB187: 0 | FC187: 0 | FD187: 0 | FE187: 0 | FF187: 0 | FG187: 0 | FH187: 0 | FI187: 0 | FJ187: 0 | FK187: 0 | FL187: 0 | FM187: 0 | FN187: 0 | FO187: 0 | FP187: 0 | FQ187: 0 | FR187: 0 | FS187: 0 | FT187: 0 | FU187: 0 | FV187: 0 | FW187: 0 | FX187: 0 | FY187: 0 | FZ187: 0 | GA187: 0 | GB187: 0 | GC187: 0 | GD187: 0 | GE187: 0 | GF187: 0 | GG187: 0 | GH187: 0 | GI187: 0 | GJ187: 0 | GK187: 0 | GL187: 0 | GM187: =SUM(GM166:GM184) -> 0 | GN187: 0 | GO187: 0 | GP187: 0 | GQ187: 0 | GR187: 0 | GS187: 0 | GT187: 0 | GU187: 0 | GV187: 0 | GW187: 0 | GX187: 0 | GY187: 0 | GZ187: 0 | HA187: 0 | HB187: 0 | HC187: 0 | HD187: 0 | HE187: 0 | HF187: 0 | HG187: 0 | HH187: 0 | HI187: 0 | HJ187: 0 | HK187: 0 | HL187: 0 | HM187: 0 | HN187: 0 | HO187: 0 | HP187: 0 | HQ187: 0 | HR187: 0 | HS187: 0 | HT187: 0 | HU187: 0 | HV187: 0 | HW187: 0 | HX187: 0
A188: =CONCATENATE(A169,"-",A170,"-",A171,"-",A172,"-",A173,"-",A174,"-",A175,"-",A176,"-",A177,"-",A178,"-",A179,"-",A180) -> 1-2-3-4-5-6-7-8-9-10-11-Total
B189: BAS001 | C189: BAS002 | D189: BAS003 | E189: BAS004 | F189: BAS005 | G189: BAS006 | H189: BAS007 | I189: BAS008 | J189: BAS009 | K189: BAS010 | L189: BAS011 | M189: BAS012 | N189: BAS013 | O189: BAS014 | P189: BAS015 | Q189: BAS016 | R189: BAS017 | S189: BAS018 | T189: BAS019 | U189: BAS020 | V189: BAS021 | W189: BAS022 | X189: BAS023 | Y189: BAS024 | Z189: BAS025 | AA189: BAS026 | AB189: BAS027 | AC189: BAS028 | AD189: BAS029 | AE189: BAS030 | AF189: BAS031 | AG189: BAS032 | AH189: BAS033 | AI189: BAS034 | AJ189: BAS035 | AK189: BAS036 | AL189: BAS037 | AM189: BAS038 | AN189: BAS039 | AO189: BAS040 | AP189: BAS041 | AQ189: BAS042 | AR189: BAS043 | AS189: BAS044 | AT189: BAS045 | AU189: BAS046 | AV189: BAS047 | AW189: BAS048 | AX189: BAS049 | AY189: BAS050 | AZ189: BAS051 | BA189: BAS052 | BB189: BAS053 | BC189: BAS054 | BD189: BAS055 | BE189: BAS056 | BF189: BAS057 | BG189: BAS058 | BH189: BAS059 | BI189: BAS060 | BJ189: BAS061 | BK189: BAS062 | BL189: BAS063 | BM189: BAS064 | BN189: BAS065 | BO189: BAS066 | BP189: BAS067 | BQ189: BAS068 | BR189: BAS069 | BS189: BAS070 | BT189: BAS071 | BU189: BAS072 | BV189: BAS073 | BW189: BAS074 | BX189: BAS075 | BY189: BAS076 | BZ189: BAS077 | CA189: BAS078 | CB189: BAS079 | CC189: BAS080 | CD189: BAS081 | CE189: BAS082 | CF189: BAS083 | CG189: BAS084 | CH189: BAS085 | CI189: BAS086 | CJ189: BAS087 | CK189: BAS088 | CL189: BAS089 | CM189: BAS090 | CN189: BAS091 | CO189: BAS092 | CP189: BAS093 | CQ189: BAS094 | CR189: BAS095 | CS189: BAS096 | CT189: BAS097 | CU189: BAS098 | CV189: BAS099 | CW189: BAS100 | CX189: BAS101 | CY189: BAS102 | CZ189: BAS103 | DA189: BAS104 | DB189: BAS105 | DC189: BAS106 | DD189: BAS107 | DE189: BAS108 | DF189: BAS109 | DG189: BAS110 | DH189: BAS111 | DI189: BAS112 | DJ189: BAS113 | DK189: BAS114 | DL189: BAS115 | DM189: BAS116 | DN189: BAS117 | DO189: BAS118 | DP189: BAS119 | DQ189: BAS120 | DR189: BAS121 | DS189: BAS122 | DT189: BAS123 | DU189: BAS124 | DV189: BAS125 | DW189: BAS126 | DX189: BAS127 | DY189: BAS128 | DZ189: BAS129 | EA189: BAS130 | EB189: BAS131 | EC189: BAS132 | ED189: BAS133 | EE189: BAS134 | EF189: BAS135 | EG189: BAS136 | EH189: BAS137 | EI189: BAS138 | EJ189: BAS139 | EK189: BAS140 | EL189: BAS141 | EM189: BAS142 | EN189: BAS143 | EO189: BAS144 | EP189: BAS145 | EQ189: BAS146 | ER189: BAS147 | ES189: BAS148 | ET189: BAS149 | EU189: BAS150 | EV189: BAS151 | EW189: BAS152 | EX189: BAS153 | EY189: BAS154 | EZ189: BAS155 | FA189: BAS156 | FB189: BAS157 | FC189: BAS158 | FD189: BAS159 | FE189: BAS160 | FF189: BAS161 | FG189: BAS162 | FH189: BAS163 | FI189: BAS164 | FJ189: BAS165 | FK189: BAS166 | FL189: BAS167 | FM189: BAS168 | FN189: BAS169 | FO189: BAS170 | FP189: BAS171 | FQ189: BAS172 | FR189: BAS173 | FS189: BAS174 | FT189: BAS175 | FU189: BAS176 | FV189: BAS177 | FW189: BAS178 | FX189: BAS179 | FY189: BAS180 | FZ189: BAS181 | GA189: BAS182 | GB189: BAS183 | GC189: BAS184 | GD189: BAS185 | GE189: BAS186 | GF189: BAS187 | GG189: BAS188 | GH189: BAS189 | GI189: BAS190 | GJ189: BAS191 | GK189: BAS192 | GL189: BAS193 | GM189: BAS194 | GN189: BAS195 | GO189: BAS196 | GP189: BAS197 | GQ189: BAS198 | GR189: BAS199 | GS189: BAS200 | GT189: BAS201 | GU189: BAS202 | GV189: BAS203 | GW189: BAS204 | GX189: BAS205 | GY189: BAS206 | GZ189: BAS207 | HA189: BAS208 | HB189: BAS209 | HC189: BAS210 | HD189: BAS211 | HE189: BAS212 | HF189: BAS213 | HG189: BAS214 | HH189: BAS215 | HI189: BAS216 | HJ189: BAS217 | HK189: BAS218 | HL189: BAS219 | HM189: BAS220 | HN189: BAS221 | HO189: BAS222 | HP189: BAS223 | HQ189: BAS224 | HR189: BAS225 | HS189: BAS226 | HT189: BAS227 | HU189: BAS228 | HV189: BAS229 | HW189: BAS230
B190: =IF(B189=B168,"SI","NO") -> SI | C190: =IF(C189=C168,"SI","NO") -> SI | D190: SI | E190: SI | F190: SI | G190: SI | H190: SI | I190: SI | J190: SI | K190: SI | L190: SI | M190: SI | N190: SI | O190: SI | P190: SI | Q190: SI | R190: SI | S190: SI | T190: SI | U190: SI | V190: SI | W190: SI | X190: SI | Y190: SI | Z190: SI | AA190: SI | AB190: SI | AC190: SI | AD190: SI | AE190: SI | AF190: SI | AG190: SI | AH190: SI | AI190: SI | AJ190: SI | AK190: SI | AL190: SI | AM190: SI | AN190: SI | AO190: SI | AP190: SI | AQ190: SI | AR190: SI | AS190: SI | AT190: SI | AU190: SI | AV190: SI | AW190: SI | AX190: SI | AY190: SI | AZ190: SI | BA190: SI | BB190: SI | BC190: SI | BD190: SI | BE190: SI | BF190: SI | BG190: SI | BH190: SI | BI190: SI | BJ190: SI | BK190: SI | BL190: SI | BM190: SI | BN190: SI | BO190: =IF(BO189=BO168,"SI","NO") -> SI | BP190: SI | BQ190: SI | BR190: SI | BS190: SI | BT190: SI | BU190: SI | BV190: SI | BW190: SI | BX190: SI | BY190: SI | BZ190: SI | CA190: SI | CB190: SI | CC190: SI | CD190: SI | CE190: SI | CF190: SI | CG190: SI | CH190: SI | CI190: SI | CJ190: SI | CK190: SI | CL190: SI | CM190: SI | CN190: SI | CO190: SI | CP190: SI | CQ190: SI | CR190: SI | CS190: SI | CT190: SI | CU190: SI | CV190: SI | CW190: SI | CX190: SI | CY190: SI | CZ190: SI | DA190: SI | DB190: SI | DC190: SI | DD190: SI | DE190: SI | DF190: SI | DG190: SI | DH190: SI | DI190: SI | DJ190: SI | DK190: SI | DL190: SI | DM190: SI | DN190: SI | DO190: SI | DP190: SI | DQ190: SI | DR190: SI | DS190: SI | DT190: SI | DU190: SI | DV190: SI | DW190: SI | DX190: SI | DY190: SI | DZ190: SI | EA190: =IF(EA189=EA168,"SI","NO") -> SI | EB190: SI | EC190: SI | ED190: SI | EE190: SI | EF190: SI | EG190: SI | EH190: SI | EI190: SI | EJ190: SI | EK190: SI | EL190: SI | EM190: SI | EN190: SI | EO190: SI | EP190: SI | EQ190: SI | ER190: SI | ES190: SI | ET190: SI | EU190: SI | EV190: SI | EW190: SI | EX190: SI | EY190: SI | EZ190: SI | FA190: SI | FB190: SI | FC190: SI | FD190: SI | FE190: SI | FF190: SI | FG190: SI | FH190: SI | FI190: SI | FJ190: SI | FK190: SI | FL190: SI | FM190: SI | FN190: SI | FO190: SI | FP190: SI | FQ190: SI | FR190: SI | FS190: SI | FT190: SI | FU190: SI | FV190: SI | FW190: SI | FX190: SI | FY190: SI | FZ190: SI | GA190: SI | GB190: SI | GC190: SI | GD190: SI | GE190: SI | GF190: SI | GG190: SI | GH190: SI | GI190: SI | GJ190: SI | GK190: SI | GL190: SI | GM190: =IF(GM189=GM168,"SI","NO") -> SI | GN190: SI | GO190: SI | GP190: SI | GQ190: SI | GR190: SI | GS190: SI | GT190: SI | GU190: SI | GV190: SI | GW190: SI | GX190: SI | GY190: SI | GZ190: SI | HA190: SI | HB190: SI | HC190: SI | HD190: SI | HE190: SI | HF190: SI | HG190: SI | HH190: SI | HI190: SI | HJ190: SI | HK190: SI | HL190: SI | HM190: SI | HN190: SI | HO190: SI | HP190: SI | HQ190: SI | HR190: SI | HS190: SI | HT190: SI | HU190: SI | HV190: SI | HW190: SI
A194: PLANI_05
A195: ANNO | B195: 2024
A196: cod_red | B196: 03
A197: codmic | B197: (Todas)
A198: cod_prov | B198: (Todas)
A199: coddist | B199: (Todas)
A200: cod_estab | B200: (Todas) | D200: =+GETPIVOTDATA(" BAS001",$A$203) -> 0
A201: cod_eje | B201: (Todas)
B203: Valores
A204: Etiquetas de fila | B204: BAS001 | C204: BAS002 | D204: BAS003 | E204: BAS004 | F204: BAS005 | G204: BAS006 | H204: BAS007 | I204: BAS008 | J204: BAS009 | K204: BAS010 | L204: BAS011 | M204: BAS012 | N204: BAS013 | O204: BAS014 | P204: BAS015 | Q204: BAS016 | R204: BAS017 | S204: BAS018 | T204: BAS019 | U204: BAS020 | V204: BAS021 | W204: BAS022 | X204: BAS023 | Y204: BAS024 | Z204: BAS025 | AA204: BAS026 | AB204: BAS027 | AC204: BAS028 | AD204: BAS029 | AE204: BAS030 | AF204: BAS031 | AG204: BAS032 | AH204: BAS033 | AI204: BAS034 | AJ204: BAS035 | AK204: BAS036 | AL204: BAS037 | AM204: BAS038 | AN204: BAS039 | AO204: BAS040 | AP204: BAS041 | AQ204: BAS042 | AR204: BAS043 | AS204: BAS044 | AT204: BAS045 | AU204: BAS046 | AV204: BAS047 | AW204: BAS048 | AX204: BAS049 | AY204: BAS050 | AZ204: BAS051 | BA204: BAS052 | BB204: BAS053 | BC204: BAS054 | BD204: BAS055 | BE204: BAS056 | BF204: BAS057 | BG204: BAS058 | BH204: BAS059 | BI204: BAS060 | BJ204: BAS061 | BK204: BAS062 | BL204: BAS063 | BM204: BAS064 | BN204: BAS065 | BO204: BAS066 | BP204: BAS067 | BQ204: BAS068 | BR204: BAS069 | BS204: BAS070 | BT204: BAS071 | BU204: BAS072 | BV204: BAS073 | BW204: BAS074 | BX204: BAS075 | BY204: BAS076 | BZ204: BAS077 | CA204: BAS078 | CB204: BAS079 | CC204: BAS080 | CD204: BAS081 | CE204: BAS082 | CF204: BAS083 | CG204: BAS084 | CH204: BAS085 | CI204: BAS086 | CJ204: BAS087 | CK204: BAS088 | CL204: BAS089 | CM204: BAS090 | CN204: BAS091 | CO204: BAS092 | CP204: BAS093 | CQ204: BAS094 | CR204: BAS095 | CS204: BAS096 | CT204: BAS097 | CU204: BAS098 | CV204: BAS099 | CW204: BAS100 | CX204: BAS101 | CY204: BAS102 | CZ204: BAS103 | DA204: BAS104 | DB204: BAS105 | DC204: BAS106 | DD204: BAS107 | DE204: BAS108 | DF204: BAS109 | DG204: BAS110 | DH204: BAS111 | DI204: BAS112 | DJ204: BAS113 | DK204: BAS114 | DL204: BAS115 | DM204: BAS116 | DN204: BAS117 | DO204: BAS118 | DP204: BAS119 | DQ204: BAS120 | DR204: BAS121 | DS204: BAS122 | DT204: BAS123 | DU204: BAS124 | DV204: BAS125 | DW204: BAS126 | DX204: BAS127 | DY204: BAS128 | DZ204: BAS129 | EA204: BAS130 | EB204: BAS131 | EC204: BAS132 | ED204: BAS133 | EE204: BAS134 | EF204: BAS135 | EG204: BAS136 | EH204: BAS137 | EI204: BAS138 | EJ204: BAS139 | EK204: BAS140 | EL204: BAS141 | EM204: BAS142 | EN204: BAS143 | EO204: BAS144 | EP204: BAS145 | EQ204: BAS146 | ER204: BAS147 | ES204: BAS148 | ET204: BAS149 | EU204: BAS150 | EV204: BAS151 | EW204: BAS152 | EX204: BAS153 | EY204: BAS154 | EZ204: BAS155 | FA204: BAS156 | FB204: BAS157 | FC204: BAS158 | FD204: BAS159 | FE204: BAS160 | FF204: BAS161 | FG204: BAS162 | FH204: BAS163 | FI204: BAS164 | FJ204: BAS165 | FK204: BAS166 | FL204: BAS167 | FM204: BAS168 | FN204: BAS169 | FO204: BAS170 | FP204: BAS171 | FQ204: BAS172 | FR204: BAS173 | FS204: BAS174 | FT204: BAS175 | FU204: BAS176 | FV204: BAS177 | FW204: BAS178 | FX204: BAS179 | FY204: BAS180 | FZ204: BAS181 | GA204: BAS182 | GB204: BAS183 | GC204: BAS184 | GD204: BAS185 | GE204: BAS186 | GF204: BAS187 | GG204: BAS188 | GH204: BAS189 | GI204: BAS190 | GJ204: BAS191 | GK204: BAS192 | GL204: BAS193 | GM204: BAS194 | GN204: BAS195 | GO204: BAS196 | GP204: BAS197 | GQ204: BAS198 | GR204: BAS199 | GS204: BAS200 | GT204: BAS201 | GU204: BAS202 | GV204: BAS203 | GW204: BAS204 | GX204: BAS205 | GY204: BAS206 | GZ204: BAS207 | HA204: BAS208 | HB204: BAS209 | HC204: BAS210 | HD204: BAS211 | HE204: BAS212 | HF204: BAS213 | HG204: BAS214 | HH204: BAS215 | HI204: BAS216 | HJ204: BAS217 | HK204: BAS218 | HL204: BAS219 | HM204: BAS220 | HN204: BAS221 | HO204: BAS222 | HP204: BAS223 | HQ204: BAS224 | HR204: BAS225 | HS204: BAS226 | HT204: BAS227 | HU204: BAS228 | HV204: BAS229 | HW204: BAS230
A205: 1 | B205: 0 | C205: 0 | D205: 0 | E205: 0 | F205: 0 | G205: 0 | H205: 0 | I205: 0 | J205: 0 | K205: 0 | L205: 0 | M205: 0 | N205: 0 | O205: 0 | P205: 0 | Q205: 0 | R205: 0 | S205: 0 | T205: 0 | U205: 0 | V205: 0 | W205: 0 | X205: 0 | Y205: 0 | Z205: 0 | AA205: 1 | AB205: 0 | AC205: 30 | AD205: 0 | AE205: 0 | AF205: 0 | AG205: 0 | AH205: 0 | AI205: 0 | AJ205: 0 | AK205: 0 | AL205: 0 | AM205: 0 | AN205: 0 | AO205: 0 | AP205: 0 | AQ205: 0 | AR205: 0 | AS205: 0 | AT205: 0 | AU205: 0 | AV205: 0 | AW205: 0 | AX205: 0 | AY205: 0 | AZ205: 0 | BA205: 0 | BB205: 0 | BC205: 0 | BD205: 0 | BE205: 0 | BF205: 0 | BG205: 0 | BH205: 0 | BI205: 0 | BJ205: 0 | BK205: 0 | BL205: 0 | BM205: 0 | BN205: 0 | BO205: 0 | BP205: 0 | BQ205: 0 | BR205: 0 | BS205: 0 | BT205: 0 | BU205: 0 | BV205: 0 | BW205: 0 | BX205: 0 | BY205: 0 | BZ205: 0 | CA205: 0 | CB205: 0 | CC205: 0 | CD205: 0 | CE205: 0 | CF205: 0 | CG205: 2 | CH205: 0 | CI205: 0 | CJ205: 49 | CK205: 0 | CL205: 1 | CM205: 0 | CN205: 0 | CO205: 0 | CP205: 0 | CQ205: 0 | CR205: 0 | CS205: 0 | CT205: 0 | CU205: 0 | CV205: 0 | CW205: 0 | CX205: 0 | CY205: 0 | CZ205: 0 | DA205: 0 | DB205: 0 | DC205: 0 | DD205: 0 | DE205: 0 | DF205: 0 | DG205: 0 | DH205: 0 | DI205: 0 | DJ205: 0 | DK205: 0 | DL205: 0 | DM205: 0 | DN205: 0 | DO205: 0 | DP205: 0 | DQ205: 0 | DR205: 0 | DS205: 0 | DT205: 0 | DU205: 0 | DV205: 0 | DW205: 0 | DX205: 0 | DY205: 0 | DZ205: 0 | EA205: 0 | EB205: 0 | EC205: 0 | ED205: 0 | EE205: 0 | EF205: 0 | EG205: 0 | EH205: 0 | EI205: 0 | EJ205: 0 | EK205: 0 | EL205: 0 | EM205: 0 | EN205: 0 | EO205: 0 | EP205: 0 | EQ205: 0 | ER205: 0 | ES205: 0 | ET205: 0 | EU205: 0 | EV205: 0 | EW205: 0 | EX205: 0 | EY205: 0 | EZ205: 0 | FA205: 0 | FB205: 0 | FC205: 0 | FD205: 0 | FE205: 0 | FF205: 0 | FG205: 0 | FH205: 0 | FI205: 0 | FJ205: 0 | FK205: 0 | FL205: 0 | FM205: 0 | FN205: 0 | FO205: 0 | FP205: 0 | FQ205: 0 | FR205: 0 | FS205: 0 | FT205: 0 | FU205: 0 | FV205: 0 | FW205: 0 | FX205: 0 | FY205: 0 | FZ205: 0 | GA205: 0 | GB205: 0 | GC205: 0 | GD205: 0 | GE205: 0 | GF205: 0 | GG205: 0 | GH205: 0 | GI205: 0 | GJ205: 0 | GK205: 0 | GL205: 0 | GM205: 0 | GN205: 0 | GO205: 0 | GP205: 0 | GQ205: 0 | GR205: 0 | GS205: 0 | GT205: 0 | GU205: 0 | GV205: 0 | GW205: 0 | GX205: 0 | GY205: 0 | GZ205: 0 | HA205: 0 | HB205: 0 | HC205: 0 | HD205: 0 | HE205: 0 | HF205: 0 | HG205: 0 | HH205: 0 | HI205: 0 | HJ205: 0 | HK205: 0 | HL205: 0 | HM205: 0 | HN205: 0 | HO205: 0 | HP205: 0 | HQ205: 0 | HR205: 0 | HS205: 0 | HT205: 0 | HU205: 0 | HV205: 0 | HW205: 0
A206: 2 | B206: 0 | C206: 0 | D206: 0 | E206: 0 | F206: 0 | G206: 0 | H206: 0 | I206: 0 | J206: 0 | K206: 0 | L206: 0 | M206: 0 | N206: 0 | O206: 0 | P206: 0 | Q206: 0 | R206: 0 | S206: 0 | T206: 0 | U206: 0 | V206: 0 | W206: 0 | X206: 0 | Y206: 0 | Z206: 10 | AA206: 0 | AB206: 260 | AC206: 0 | AD206: 0 | AE206: 0 | AF206: 0 | AG206: 0 | AH206: 0 | AI206: 0 | AJ206: 0 | AK206: 0 | AL206: 0 | AM206: 0 | AN206: 0 | AO206: 0 | AP206: 0 | AQ206: 0 | AR206: 0 | AS206: 0 | AT206: 0 | AU206: 0 | AV206: 0 | AW206: 0 | AX206: 0 | AY206: 0 | AZ206: 0 | BA206: 0 | BB206: 0 | BC206: 0 | BD206: 0 | BE206: 0 | BF206: 0 | BG206: 0 | BH206: 0 | BI206: 0 | BJ206: 0 | BK206: 0 | BL206: 0 | BM206: 0 | BN206: 0 | BO206: 0 | BP206: 0 | BQ206: 0 | BR206: 0 | BS206: 0 | BT206: 0 | BU206: 0 | BV206: 0 | BW206: 0 | BX206: 0 | BY206: 0 | BZ206: 0 | CA206: 0 | CB206: 1 | CC206: 0 | CD206: 0 | CE206: 0 | CF206: 0 | CG206: 0 | CH206: 0 | CI206: 0 | CJ206: 41 | CK206: 0 | CL206: 2 | CM206: 0 | CN206: 0 | CO206: 0 | CP206: 0 | CQ206: 0 | CR206: 0 | CS206: 0 | CT206: 0 | CU206: 0 | CV206: 0 | CW206: 0 | CX206: 0 | CY206: 0 | CZ206: 0 | DA206: 0 | DB206: 0 | DC206: 0 | DD206: 0 | DE206: 0 | DF206: 0 | DG206: 0 | DH206: 0 | DI206: 0 | DJ206: 0 | DK206: 0 | DL206: 0 | DM206: 0 | DN206: 0 | DO206: 0 | DP206: 0 | DQ206: 0 | DR206: 0 | DS206: 0 | DT206: 0 | DU206: 0 | DV206: 0 | DW206: 0 | DX206: 0 | DY206: 0 | DZ206: 0 | EA206: 0 | EB206: 0 | EC206: 0 | ED206: 0 | EE206: 0 | EF206: 0 | EG206: 0 | EH206: 0 | EI206: 0 | EJ206: 0 | EK206: 0 | EL206: 0 | EM206: 0 | EN206: 0 | EO206: 0 | EP206: 0 | EQ206: 0 | ER206: 0 | ES206: 0 | ET206: 0 | EU206: 0 | EV206: 0 | EW206: 0 | EX206: 0 | EY206: 0 | EZ206: 0 | FA206: 0 | FB206: 0 | FC206: 0 | FD206: 0 | FE206: 0 | FF206: 0 | FG206: 0 | FH206: 0 | FI206: 0 | FJ206: 0 | FK206: 0 | FL206: 0 | FM206: 0 | FN206: 0 | FO206: 0 | FP206: 0 | FQ206: 0 | FR206: 0 | FS206: 0 | FT206: 0 | FU206: 0 | FV206: 0 | FW206: 0 | FX206: 0 | FY206: 0 | FZ206: 0 | GA206: 0 | GB206: 0 | GC206: 0 | GD206: 0 | GE206: 0 | GF206: 0 | GG206: 0 | GH206: 0 | GI206: 0 | GJ206: 0 | GK206: 0 | GL206: 0 | GM206: 0 | GN206: 0 | GO206: 0 | GP206: 0 | GQ206: 0 | GR206: 0 | GS206: 0 | GT206: 0 | GU206: 0 | GV206: 0 | GW206: 0 | GX206: 0 | GY206: 0 | GZ206: 0 | HA206: 0 | HB206: 0 | HC206: 0 | HD206: 0 | HE206: 0 | HF206: 0 | HG206: 0 | HH206: 0 | HI206: 0 | HJ206: 0 | HK206: 0 | HL206: 0 | HM206: 0 | HN206: 0 | HO206: 0 | HP206: 0 | HQ206: 0 | HR206: 0 | HS206: 0 | HT206: 0 | HU206: 0 | HV206: 0 | HW206: 0
A207: 3 | B207: 0 | C207: 0 | D207: 0 | E207: 0 | F207: 0 | G207: 0 | H207: 0 | I207: 0 | J207: 0 | K207: 0 | L207: 0 | M207: 0 | N207: 0 | O207: 0 | P207: 0 | Q207: 0 | R207: 0 | S207: 0 | T207: 0 | U207: 0 | V207: 0 | W207: 0 | X207: 0 | Y207: 0 | Z207: 1 | AA207: 0 | AB207: 30 | AC207: 0 | AD207: 0 | AE207: 0 | AF207: 0 | AG207: 0 | AH207: 0 | AI207: 0 | AJ207: 0 | AK207: 0 | AL207: 0 | AM207: 0 | AN207: 0 | AO207: 0 | AP207: 0 | AQ207: 0 | AR207: 0 | AS207: 0 | AT207: 0 | AU207: 0 | AV207: 0 | AW207: 0 | AX207: 0 | AY207: 0 | AZ207: 0 | BA207: 0 | BB207: 0 | BC207: 0 | BD207: 0 | BE207: 0 | BF207: 0 | BG207: 0 | BH207: 0 | BI207: 0 | BJ207: 0 | BK207: 0 | BL207: 0 | BM207: 0 | BN207: 0 | BO207: 0 | BP207: 0 | BQ207: 0 | BR207: 0 | BS207: 0 | BT207: 0 | BU207: 0 | BV207: 0 | BW207: 0 | BX207: 0 | BY207: 0 | BZ207: 0 | CA207: 0 | CB207: 1 | CC207: 0 | CD207: 0 | CE207: 0 | CF207: 0 | CG207: 1 | CH207: 0 | CI207: 0 | CJ207: 47 | CK207: 0 | CL207: 2 | CM207: 0 | CN207: 0 | CO207: 0 | CP207: 0 | CQ207: 0 | CR207: 0 | CS207: 0 | CT207: 0 | CU207: 0 | CV207: 0 | CW207: 0 | CX207: 0 | CY207: 0 | CZ207: 0 | DA207: 0 | DB207: 0 | DC207: 0 | DD207: 0 | DE207: 0 | DF207: 0 | DG207: 0 | DH207: 0 | DI207: 0 | DJ207: 0 | DK207: 0 | DL207: 0 | DM207: 0 | DN207: 0 | DO207: 0 | DP207: 0 | DQ207: 0 | DR207: 0 | DS207: 0 | DT207: 0 | DU207: 0 | DV207: 0 | DW207: 0 | DX207: 0 | DY207: 0 | DZ207: 0 | EA207: 0 | EB207: 0 | EC207: 0 | ED207: 0 | EE207: 0 | EF207: 0 | EG207: 0 | EH207: 0 | EI207: 0 | EJ207: 0 | EK207: 0 | EL207: 0 | EM207: 0 | EN207: 0 | EO207: 0 | EP207: 0 | EQ207: 0 | ER207: 0 | ES207: 0 | ET207: 0 | EU207: 0 | EV207: 0 | EW207: 0 | EX207: 0 | EY207: 0 | EZ207: 0 | FA207: 0 | FB207: 0 | FC207: 0 | FD207: 0 | FE207: 0 | FF207: 0 | FG207: 0 | FH207: 0 | FI207: 0 | FJ207: 0 | FK207: 0 | FL207: 0 | FM207: 0 | FN207: 0 | FO207: 0 | FP207: 0 | FQ207: 0 | FR207: 0 | FS207: 0 | FT207: 0 | FU207: 0 | FV207: 0 | FW207: 0 | FX207: 0 | FY207: 0 | FZ207: 0 | GA207: 0 | GB207: 0 | GC207: 0 | GD207: 0 | GE207: 0 | GF207: 0 | GG207: 0 | GH207: 0 | GI207: 0 | GJ207: 0 | GK207: 0 | GL207: 0 | GM207: 0 | GN207: 0 | GO207: 0 | GP207: 0 | GQ207: 0 | GR207: 0 | GS207: 0 | GT207: 0 | GU207: 0 | GV207: 0 | GW207: 0 | GX207: 0 | GY207: 0 | GZ207: 0 | HA207: 0 | HB207: 0 | HC207: 0 | HD207: 0 | HE207: 0 | HF207: 0 | HG207: 0 | HH207: 0 | HI207: 0 | HJ207: 0 | HK207: 0 | HL207: 0 | HM207: 0 | HN207: 0 | HO207: 0 | HP207: 0 | HQ207: 0 | HR207: 0 | HS207: 0 | HT207: 0 | HU207: 0 | HV207: 0 | HW207: 0
A208: 4 | B208: 0 | C208: 0 | D208: 0 | E208: 0 | F208: 0 | G208: 0 | H208: 0 | I208: 0 | J208: 0 | K208: 0 | L208: 0 | M208: 0 | N208: 0 | O208: 1 | P208: 0 | Q208: 1 | R208: 0 | S208: 0 | T208: 0 | U208: 0 | V208: 0 | W208: 0 | X208: 0 | Y208: 0 | Z208: 0 | AA208: 0 | AB208: 0 | AC208: 0 | AD208: 0 | AE208: 0 | AF208: 0 | AG208: 0 | AH208: 0 | AI208: 0 | AJ208: 0 | AK208: 0 | AL208: 0 | AM208: 0 | AN208: 0 | AO208: 0 | AP208: 0 | AQ208: 0 | AR208: 0 | AS208: 0 | AT208: 0 | AU208: 0 | AV208: 0 | AW208: 0 | AX208: 0 | AY208: 0 | AZ208: 0 | BA208: 0 | BB208: 0 | BC208: 0 | BD208: 0 | BE208: 0 | BF208: 0 | BG208: 0 | BH208: 0 | BI208: 0 | BJ208: 0 | BK208: 0 | BL208: 0 | BM208: 0 | BN208: 0 | BO208: 0 | BP208: 0 | BQ208: 0 | BR208: 0 | BS208: 0 | BT208: 0 | BU208: 0 | BV208: 0 | BW208: 0 | BX208: 0 | BY208: 0 | BZ208: 0 | CA208: 0 | CB208: 1 | CC208: 0 | CD208: 0 | CE208: 0 | CF208: 0 | CG208: 0 | CH208: 0 | CI208: 0 | CJ208: 46 | CK208: 0 | CL208: 2 | CM208: 0 | CN208: 0 | CO208: 0 | CP208: 0 | CQ208: 0 | CR208: 0 | CS208: 0 | CT208: 0 | CU208: 0 | CV208: 0 | CW208: 0 | CX208: 0 | CY208: 0 | CZ208: 0 | DA208: 0 | DB208: 0 | DC208: 0 | DD208: 0 | DE208: 0 | DF208: 0 | DG208: 0 | DH208: 0 | DI208: 0 | DJ208: 0 | DK208: 0 | DL208: 0 | DM208: 0 | DN208: 0 | DO208: 0 | DP208: 0 | DQ208: 0 | DR208: 0 | DS208: 0 | DT208: 0 | DU208: 0 | DV208: 0 | DW208: 0 | DX208: 0 | DY208: 0 | DZ208: 0 | EA208: 0 | EB208: 0 | EC208: 0 | ED208: 0 | EE208: 0 | EF208: 0 | EG208: 0 | EH208: 0 | EI208: 0 | EJ208: 0 | EK208: 0 | EL208: 0 | EM208: 0 | EN208: 0 | EO208: 0 | EP208: 0 | EQ208: 0 | ER208: 0 | ES208: 0 | ET208: 0 | EU208: 0 | EV208: 0 | EW208: 0 | EX208: 0 | EY208: 0 | EZ208: 0 | FA208: 0 | FB208: 0 | FC208: 0 | FD208: 0 | FE208: 0 | FF208: 0 | FG208: 0 | FH208: 0 | FI208: 0 | FJ208: 0 | FK208: 0 | FL208: 0 | FM208: 0 | FN208: 0 | FO208: 0 | FP208: 0 | FQ208: 0 | FR208: 0 | FS208: 0 | FT208: 0 | FU208: 0 | FV208: 0 | FW208: 0 | FX208: 0 | FY208: 0 | FZ208: 0 | GA208: 0 | GB208: 0 | GC208: 0 | GD208: 0 | GE208: 0 | GF208: 0 | GG208: 0 | GH208: 0 | GI208: 0 | GJ208: 0 | GK208: 0 | GL208: 0 | GM208: 0 | GN208: 0 | GO208: 0 | GP208: 0 | GQ208: 0 | GR208: 0 | GS208: 0 | GT208: 0 | GU208: 0 | GV208: 0 | GW208: 0 | GX208: 0 | GY208: 0 | GZ208: 0 | HA208: 0 | HB208: 0 | HC208: 0 | HD208: 0 | HE208: 0 | HF208: 0 | HG208: 0 | HH208: 0 | HI208: 0 | HJ208: 0 | HK208: 0 | HL208: 0 | HM208: 0 | HN208: 0 | HO208: 0 | HP208: 0 | HQ208: 0 | HR208: 0 | HS208: 0 | HT208: 0 | HU208: 0 | HV208: 0 | HW208: 0
A209: 5 | B209: 0 | C209: 0 | D209: 0 | E209: 0 | F209: 0 | G209: 0 | H209: 0 | I209: 0 | J209: 0 | K209: 0 | L209: 0 | M209: 0 | N209: 0 | O209: 0 | P209: 0 | Q209: 0 | R209: 0 | S209: 0 | T209: 0 | U209: 0 | V209: 0 | W209: 0 | X209: 0 | Y209: 0 | Z209: 2 | AA209: 0 | AB209: 20 | AC209: 0 | AD209: 0 | AE209: 0 | AF209: 0 | AG209: 0 | AH209: 0 | AI209: 0 | AJ209: 0 | AK209: 0 | AL209: 0 | AM209: 0 | AN209: 0 | AO209: 0 | AP209: 0 | AQ209: 0 | AR209: 0 | AS209: 0 | AT209: 0 | AU209: 0 | AV209: 0 | AW209: 0 | AX209: 0 | AY209: 0 | AZ209: 0 | BA209: 0 | BB209: 0 | BC209: 0 | BD209: 0 | BE209: 0 | BF209: 0 | BG209: 0 | BH209: 0 | BI209: 0 | BJ209: 0 | BK209: 0 | BL209: 0 | BM209: 0 | BN209: 0 | BO209: 0 | BP209: 0 | BQ209: 0 | BR209: 0 | BS209: 0 | BT209: 0 | BU209: 0 | BV209: 0 | BW209: 0 | BX209: 0 | BY209: 0 | BZ209: 0 | CA209: 0 | CB209: 0 | CC209: 1 | CD209: 0 | CE209: 0 | CF209: 0 | CG209: 0 | CH209: 0 | CI209: 0 | CJ209: 23 | CK209: 0 | CL209: 2 | CM209: 0 | CN209: 0 | CO209: 0 | CP209: 0 | CQ209: 0 | CR209: 0 | CS209: 0 | CT209: 0 | CU209: 0 | CV209: 0 | CW209: 0 | CX209: 0 | CY209: 0 | CZ209: 0 | DA209: 0 | DB209: 0 | DC209: 0 | DD209: 0 | DE209: 0 | DF209: 0 | DG209: 0 | DH209: 0 | DI209: 0 | DJ209: 0 | DK209: 0 | DL209: 0 | DM209: 0 | DN209: 0 | DO209: 0 | DP209: 0 | DQ209: 0 | DR209: 0 | DS209: 0 | DT209: 0 | DU209: 0 | DV209: 0 | DW209: 0 | DX209: 0 | DY209: 0 | DZ209: 0 | EA209: 0 | EB209: 0 | EC209: 0 | ED209: 0 | EE209: 0 | EF209: 0 | EG209: 0 | EH209: 0 | EI209: 0 | EJ209: 0 | EK209: 0 | EL209: 0 | EM209: 0 | EN209: 0 | EO209: 0 | EP209: 0 | EQ209: 0 | ER209: 0 | ES209: 0 | ET209: 0 | EU209: 0 | EV209: 0 | EW209: 0 | EX209: 0 | EY209: 0 | EZ209: 0 | FA209: 0 | FB209: 0 | FC209: 0 | FD209: 0 | FE209: 0 | FF209: 0 | FG209: 0 | FH209: 0 | FI209: 0 | FJ209: 0 | FK209: 0 | FL209: 0 | FM209: 0 | FN209: 0 | FO209: 0 | FP209: 0 | FQ209: 0 | FR209: 0 | FS209: 0 | FT209: 0 | FU209: 0 | FV209: 0 | FW209: 0 | FX209: 0 | FY209: 0 | FZ209: 0 | GA209: 0 | GB209: 0 | GC209: 0 | GD209: 0 | GE209: 0 | GF209: 0 | GG209: 0 | GH209: 0 | GI209: 0 | GJ209: 0 | GK209: 0 | GL209: 0 | GM209: 0 | GN209: 0 | GO209: 0 | GP209: 0 | GQ209: 0 | GR209: 0 | GS209: 0 | GT209: 0 | GU209: 0 | GV209: 0 | GW209: 0 | GX209: 0 | GY209: 0 | GZ209: 0 | HA209: 0 | HB209: 0 | HC209: 0 | HD209: 0 | HE209: 0 | HF209: 0 | HG209: 0 | HH209: 0 | HI209: 0 | HJ209: 0 | HK209: 0 | HL209: 0 | HM209: 0 | HN209: 0 | HO209: 0 | HP209: 0 | HQ209: 0 | HR209: 0 | HS209: 0 | HT209: 0 | HU209: 0 | HV209: 0 | HW209: 0
A210: 6 | B210: 0 | C210: 0 | D210: 0 | E210: 0 | F210: 0 | G210: 0 | H210: 0 | I210: 0 | J210: 0 | K210: 0 | L210: 0 | M210: 0 | N210: 0 | O210: 0 | P210: 0 | Q210: 0 | R210: 0 | S210: 0 | T210: 0 | U210: 0 | V210: 0 | W210: 0 | X210: 0 | Y210: 0 | Z210: 2 | AA210: 1 | AB210: 20 | AC210: 30 | AD210: 0 | AE210: 0 | AF210: 0 | AG210: 0 | AH210: 0 | AI210: 0 | AJ210: 0 | AK210: 0 | AL210: 0 | AM210: 0 | AN210: 0 | AO210: 0 | AP210: 0 | AQ210: 0 | AR210: 0 | AS210: 0 | AT210: 0 | AU210: 0 | AV210: 0 | AW210: 0 | AX210: 0 | AY210: 0 | AZ210: 0 | BA210: 0 | BB210: 0 | BC210: 0 | BD210: 0 | BE210: 0 | BF210: 0 | BG210: 0 | BH210: 0 | BI210: 0 | BJ210: 0 | BK210: 0 | BL210: 0 | BM210: 0 | BN210: 0 | BO210: 0 | BP210: 0 | BQ210: 0 | BR210: 0 | BS210: 0 | BT210: 0 | BU210: 0 | BV210: 0 | BW210: 0 | BX210: 0 | BY210: 0 | BZ210: 0 | CA210: 0 | CB210: 0 | CC210: 2 | CD210: 0 | CE210: 0 | CF210: 0 | CG210: 0 | CH210: 0 | CI210: 0 | CJ210: 23 | CK210: 0 | CL210: 4 | CM210: 0 | CN210: 0 | CO210: 0 | CP210: 0 | CQ210: 0 | CR210: 0 | CS210: 0 | CT210: 0 | CU210: 0 | CV210: 0 | CW210: 0 | CX210: 0 | CY210: 0 | CZ210: 0 | DA210: 0 | DB210: 0 | DC210: 0 | DD210: 0 | DE210: 0 | DF210: 0 | DG210: 0 | DH210: 0 | DI210: 0 | DJ210: 0 | DK210: 0 | DL210: 0 | DM210: 0 | DN210: 0 | DO210: 0 | DP210: 0 | DQ210: 0 | DR210: 0 | DS210: 0 | DT210: 0 | DU210: 0 | DV210: 0 | DW210: 0 | DX210: 0 | DY210: 0 | DZ210: 0 | EA210: 0 | EB210: 0 | EC210: 0 | ED210: 0 | EE210: 0 | EF210: 0 | EG210: 0 | EH210: 0 | EI210: 0 | EJ210: 0 | EK210: 0 | EL210: 0 | EM210: 0 | EN210: 0 | EO210: 0 | EP210: 0 | EQ210: 0 | ER210: 0 | ES210: 0 | ET210: 0 | EU210: 0 | EV210: 0 | EW210: 0 | EX210: 0 | EY210: 0 | EZ210: 0 | FA210: 0 | FB210: 0 | FC210: 0 | FD210: 0 | FE210: 0 | FF210: 0 | FG210: 0 | FH210: 0 | FI210: 0 | FJ210: 0 | FK210: 0 | FL210: 0 | FM210: 0 | FN210: 0 | FO210: 0 | FP210: 0 | FQ210: 0 | FR210: 0 | FS210: 0 | FT210: 0 | FU210: 0 | FV210: 0 | FW210: 0 | FX210: 0 | FY210: 0 | FZ210: 0 | GA210: 0 | GB210: 0 | GC210: 0 | GD210: 0 | GE210: 0 | GF210: 0 | GG210: 0 | GH210: 0 | GI210: 0 | GJ210: 0 | GK210: 0 | GL210: 0 | GM210: 0 | GN210: 0 | GO210: 0 | GP210: 0 | GQ210: 0 | GR210: 0 | GS210: 0 | GT210: 0 | GU210: 0 | GV210: 0 | GW210: 0 | GX210: 0 | GY210: 0 | GZ210: 0 | HA210: 0 | HB210: 0 | HC210: 0 | HD210: 0 | HE210: 0 | HF210: 0 | HG210: 0 | HH210: 0 | HI210: 0 | HJ210: 0 | HK210: 0 | HL210: 0 | HM210: 0 | HN210: 0 | HO210: 0 | HP210: 0 | HQ210: 0 | HR210: 0 | HS210: 0 | HT210: 0 | HU210: 0 | HV210: 0 | HW210: 0
A211: 7 | B211: 0 | C211: 0 | D211: 0 | E211: 0 | F211: 0 | G211: 0 | H211: 0 | I211: 0 | J211: 0 | K211: 0 | L211: 0 | M211: 0 | N211: 0 | O211: 0 | P211: 0 | Q211: 0 | R211: 0 | S211: 0 | T211: 0 | U211: 0 | V211: 0 | W211: 0 | X211: 0 | Y211: 0 | Z211: 0 | AA211: 1 | AB211: 0 | AC211: 30 | AD211: 0 | AE211: 0 | AF211: 0 | AG211: 0 | AH211: 0 | AI211: 0 | AJ211: 0 | AK211: 0 | AL211: 0 | AM211: 0 | AN211: 0 | AO211: 0 | AP211: 0 | AQ211: 0 | AR211: 0 | AS211: 0 | AT211: 0 | AU211: 0 | AV211: 0 | AW211: 0 | AX211: 0 | AY211: 0 | AZ211: 0 | BA211: 0 | BB211: 0 | BC211: 0 | BD211: 0 | BE211: 0 | BF211: 0 | BG211: 0 | BH211: 0 | BI211: 0 | BJ211: 0 | BK211: 0 | BL211: 0 | BM211: 0 | BN211: 0 | BO211: 0 | BP211: 0 | BQ211: 0 | BR211: 0 | BS211: 0 | BT211: 0 | BU211: 0 | BV211: 0 | BW211: 0 | BX211: 0 | BY211: 0 | BZ211: 0 | CA211: 0 | CB211: 1 | CC211: 0 | CD211: 0 | CE211: 0 | CF211: 0 | CG211: 0 | CH211: 0 | CI211: 0 | CJ211: 17 | CK211: 0 | CL211: 1 | CM211: 0 | CN211: 0 | CO211: 0 | CP211: 0 | CQ211: 0 | CR211: 0 | CS211: 0 | CT211: 0 | CU211: 0 | CV211: 0 | CW211: 0 | CX211: 0 | CY211: 0 | CZ211: 0 | DA211: 0 | DB211: 0 | DC211: 0 | DD211: 0 | DE211: 0 | DF211: 0 | DG211: 0 | DH211: 0 | DI211: 0 | DJ211: 0 | DK211: 0 | DL211: 0 | DM211: 0 | DN211: 0 | DO211: 0 | DP211: 0 | DQ211: 0 | DR211: 0 | DS211: 0 | DT211: 0 | DU211: 0 | DV211: 0 | DW211: 0 | DX211: 0 | DY211: 0 | DZ211: 0 | EA211: 0 | EB211: 0 | EC211: 0 | ED211: 0 | EE211: 0 | EF211: 0 | EG211: 0 | EH211: 0 | EI211: 0 | EJ211: 0 | EK211: 0 | EL211: 0 | EM211: 0 | EN211: 0 | EO211: 0 | EP211: 0 | EQ211: 0 | ER211: 0 | ES211: 0 | ET211: 0 | EU211: 0 | EV211: 0 | EW211: 0 | EX211: 0 | EY211: 0 | EZ211: 0 | FA211: 0 | FB211: 0 | FC211: 0 | FD211: 0 | FE211: 0 | FF211: 0 | FG211: 0 | FH211: 0 | FI211: 0 | FJ211: 0 | FK211: 0 | FL211: 0 | FM211: 0 | FN211: 0 | FO211: 0 | FP211: 0 | FQ211: 0 | FR211: 0 | FS211: 0 | FT211: 0 | FU211: 0 | FV211: 0 | FW211: 0 | FX211: 0 | FY211: 0 | FZ211: 0 | GA211: 0 | GB211: 0 | GC211: 0 | GD211: 0 | GE211: 0 | GF211: 0 | GG211: 0 | GH211: 0 | GI211: 0 | GJ211: 0 | GK211: 0 | GL211: 0 | GM211: 0 | GN211: 0 | GO211: 0 | GP211: 0 | GQ211: 0 | GR211: 0 | GS211: 0 | GT211: 0 | GU211: 0 | GV211: 0 | GW211: 0 | GX211: 0 | GY211: 0 | GZ211: 0 | HA211: 0 | HB211: 0 | HC211: 0 | HD211: 0 | HE211: 0 | HF211: 0 | HG211: 0 | HH211: 0 | HI211: 0 | HJ211: 0 | HK211: 0 | HL211: 0 | HM211: 0 | HN211: 0 | HO211: 0 | HP211: 0 | HQ211: 0 | HR211: 0 | HS211: 0 | HT211: 0 | HU211: 0 | HV211: 0 | HW211: 0
A212: 8 | B212: 0 | C212: 0 | D212: 0 | E212: 0 | F212: 0 | G212: 0 | H212: 0 | I212: 0 | J212: 0 | K212: 0 | L212: 0 | M212: 0 | N212: 0 | O212: 1 | P212: 0 | Q212: 1 | R212: 0 | S212: 0 | T212: 0 | U212: 0 | V212: 0 | W212: 0 | X212: 0 | Y212: 0 | Z212: 1 | AA212: 2 | AB212: 10 | AC212: 60 | AD212: 0 | AE212: 0 | AF212: 0 | AG212: 0 | AH212: 0 | AI212: 0 | AJ212: 0 | AK212: 0 | AL212: 0 | AM212: 0 | AN212: 0 | AO212: 0 | AP212: 0 | AQ212: 0 | AR212: 0 | AS212: 0 | AT212: 0 | AU212: 0 | AV212: 0 | AW212: 0 | AX212: 0 | AY212: 0 | AZ212: 0 | BA212: 0 | BB212: 0 | BC212: 0 | BD212: 0 | BE212: 0 | BF212: 0 | BG212: 0 | BH212: 0 | BI212: 0 | BJ212: 0 | BK212: 0 | BL212: 0 | BM212: 0 | BN212: 0 | BO212: 0 | BP212: 0 | BQ212: 0 | BR212: 0 | BS212: 0 | BT212: 0 | BU212: 0 | BV212: 0 | BW212: 0 | BX212: 0 | BY212: 0 | BZ212: 0 | CA212: 0 | CB212: 0 | CC212: 1 | CD212: 0 | CE212: 0 | CF212: 0 | CG212: 0 | CH212: 0 | CI212: 0 | CJ212: 24 | CK212: 0 | CL212: 3 | CM212: 0 | CN212: 0 | CO212: 0 | CP212: 0 | CQ212: 0 | CR212: 0 | CS212: 0 | CT212: 0 | CU212: 0 | CV212: 0 | CW212: 0 | CX212: 0 | CY212: 0 | CZ212: 0 | DA212: 0 | DB212: 0 | DC212: 0 | DD212: 0 | DE212: 0 | DF212: 0 | DG212: 0 | DH212: 0 | DI212: 0 | DJ212: 0 | DK212: 0 | DL212: 0 | DM212: 0 | DN212: 0 | DO212: 0 | DP212: 0 | DQ212: 0 | DR212: 0 | DS212: 0 | DT212: 0 | DU212: 0 | DV212: 0 | DW212: 0 | DX212: 0 | DY212: 0 | DZ212: 0 | EA212: 0 | EB212: 0 | EC212: 0 | ED212: 0 | EE212: 0 | EF212: 0 | EG212: 0 | EH212: 0 | EI212: 0 | EJ212: 0 | EK212: 0 | EL212: 0 | EM212: 0 | EN212: 0 | EO212: 0 | EP212: 0 | EQ212: 0 | ER212: 0 | ES212: 0 | ET212: 0 | EU212: 0 | EV212: 0 | EW212: 0 | EX212: 0 | EY212: 0 | EZ212: 0 | FA212: 0 | FB212: 0 | FC212: 0 | FD212: 0 | FE212: 0 | FF212: 0 | FG212: 0 | FH212: 0 | FI212: 0 | FJ212: 0 | FK212: 0 | FL212: 0 | FM212: 0 | FN212: 0 | FO212: 0 | FP212: 0 | FQ212: 0 | FR212: 0 | FS212: 0 | FT212: 0 | FU212: 0 | FV212: 0 | FW212: 0 | FX212: 0 | FY212: 0 | FZ212: 0 | GA212: 0 | GB212: 0 | GC212: 0 | GD212: 0 | GE212: 0 | GF212: 0 | GG212: 0 | GH212: 0 | GI212: 0 | GJ212: 0 | GK212: 0 | GL212: 0 | GM212: 0 | GN212: 0 | GO212: 0 | GP212: 0 | GQ212: 0 | GR212: 0 | GS212: 0 | GT212: 0 | GU212: 0 | GV212: 0 | GW212: 0 | GX212: 0 | GY212: 0 | GZ212: 0 | HA212: 0 | HB212: 0 | HC212: 0 | HD212: 0 | HE212: 0 | HF212: 0 | HG212: 0 | HH212: 0 | HI212: 0 | HJ212: 0 | HK212: 0 | HL212: 0 | HM212: 0 | HN212: 0 | HO212: 0 | HP212: 0 | HQ212: 0 | HR212: 0 | HS212: 0 | HT212: 0 | HU212: 0 | HV212: 0 | HW212: 0
A213: 9 | B213: 0 | C213: 0 | D213: 0 | E213: 0 | F213: 0 | G213: 0 | H213: 0 | I213: 0 | J213: 0 | K213: 0 | L213: 0 | M213: 0 | N213: 0 | O213: 0 | P213: 0 | Q213: 0 | R213: 0 | S213: 0 | T213: 0 | U213: 0 | V213: 0 | W213: 0 | X213: 0 | Y213: 0 | Z213: 1 | AA213: 4 | AB213: 0 | AC213: 120 | AD213: 0 | AE213: 0 | AF213: 0 | AG213: 0 | AH213: 0 | AI213: 0 | AJ213: 0 | AK213: 0 | AL213: 0 | AM213: 0 | AN213: 0 | AO213: 0 | AP213: 0 | AQ213: 0 | AR213: 0 | AS213: 0 | AT213: 0 | AU213: 0 | AV213: 0 | AW213: 0 | AX213: 0 | AY213: 0 | AZ213: 0 | BA213: 0 | BB213: 0 | BC213: 0 | BD213: 0 | BE213: 0 | BF213: 0 | BG213: 0 | BH213: 0 | BI213: 0 | BJ213: 0 | BK213: 0 | BL213: 0 | BM213: 0 | BN213: 0 | BO213: 0 | BP213: 0 | BQ213: 0 | BR213: 0 | BS213: 0 | BT213: 0 | BU213: 0 | BV213: 0 | BW213: 0 | BX213: 0 | BY213: 0 | BZ213: 0 | CA213: 0 | CB213: 0 | CC213: 0 | CD213: 0 | CE213: 0 | CF213: 0 | CG213: 0 | CH213: 0 | CI213: 0 | CJ213: 26 | CK213: 0 | CL213: 1 | CM213: 0 | CN213: 0 | CO213: 0 | CP213: 0 | CQ213: 0 | CR213: 0 | CS213: 0 | CT213: 0 | CU213: 0 | CV213: 0 | CW213: 0 | CX213: 0 | CY213: 0 | CZ213: 0 | DA213: 0 | DB213: 0 | DC213: 0 | DD213: 0 | DE213: 0 | DF213: 0 | DG213: 0 | DH213: 0 | DI213: 0 | DJ213: 0 | DK213: 0 | DL213: 0 | DM213: 0 | DN213: 0 | DO213: 0 | DP213: 0 | DQ213: 0 | DR213: 0 | DS213: 0 | DT213: 0 | DU213: 0 | DV213: 0 | DW213: 0 | DX213: 0 | DY213: 0 | DZ213: 0 | EA213: 0 | EB213: 0 | EC213: 0 | ED213: 0 | EE213: 0 | EF213: 0 | EG213: 0 | EH213: 0 | EI213: 0 | EJ213: 0 | EK213: 0 | EL213: 0 | EM213: 0 | EN213: 0 | EO213: 0 | EP213: 0 | EQ213: 0 | ER213: 0 | ES213: 0 | ET213: 0 | EU213: 0 | EV213: 0 | EW213: 0 | EX213: 0 | EY213: 0 | EZ213: 0 | FA213: 0 | FB213: 0 | FC213: 0 | FD213: 0 | FE213: 0 | FF213: 0 | FG213: 0 | FH213: 0 | FI213: 0 | FJ213: 0 | FK213: 0 | FL213: 0 | FM213: 0 | FN213: 0 | FO213: 0 | FP213: 0 | FQ213: 0 | FR213: 0 | FS213: 0 | FT213: 0 | FU213: 0 | FV213: 0 | FW213: 0 | FX213: 0 | FY213: 0 | FZ213: 0 | GA213: 0 | GB213: 0 | GC213: 0 | GD213: 0 | GE213: 0 | GF213: 0 | GG213: 0 | GH213: 0 | GI213: 0 | GJ213: 0 | GK213: 0 | GL213: 0 | GM213: 0 | GN213: 0 | GO213: 0 | GP213: 0 | GQ213: 0 | GR213: 0 | GS213: 0 | GT213: 0 | GU213: 0 | GV213: 0 | GW213: 0 | GX213: 0 | GY213: 0 | GZ213: 0 | HA213: 0 | HB213: 0 | HC213: 0 | HD213: 0 | HE213: 0 | HF213: 0 | HG213: 0 | HH213: 0 | HI213: 0 | HJ213: 0 | HK213: 0 | HL213: 0 | HM213: 0 | HN213: 0 | HO213: 0 | HP213: 0 | HQ213: 0 | HR213: 0 | HS213: 0 | HT213: 0 | HU213: 0 | HV213: 0 | HW213: 0
A214: 10 | B214: 0 | C214: 0 | D214: 0 | E214: 0 | F214: 0 | G214: 0 | H214: 0 | I214: 0 | J214: 0 | K214: 0 | L214: 0 | M214: 0 | N214: 0 | O214: 0 | P214: 0 | Q214: 0 | R214: 0 | S214: 0 | T214: 0 | U214: 0 | V214: 0 | W214: 0 | X214: 0 | Y214: 0 | Z214: 2 | AA214: 2 | AB214: 20 | AC214: 60 | AD214: 0 | AE214: 0 | AF214: 0 | AG214: 0 | AH214: 0 | AI214: 0 | AJ214: 0 | AK214: 0 | AL214: 0 | AM214: 0 | AN214: 0 | AO214: 0 | AP214: 0 | AQ214: 0 | AR214: 0 | AS214: 0 | AT214: 0 | AU214: 0 | AV214: 0 | AW214: 0 | AX214: 0 | AY214: 0 | AZ214: 0 | BA214: 0 | BB214: 0 | BC214: 0 | BD214: 0 | BE214: 0 | BF214: 0 | BG214: 0 | BH214: 0 | BI214: 0 | BJ214: 0 | BK214: 0 | BL214: 0 | BM214: 0 | BN214: 0 | BO214: 0 | BP214: 0 | BQ214: 0 | BR214: 0 | BS214: 0 | BT214: 0 | BU214: 0 | BV214: 0 | BW214: 0 | BX214: 0 | BY214: 0 | BZ214: 0 | CA214: 0 | CB214: 0 | CC214: 0 | CD214: 0 | CE214: 0 | CF214: 0 | CG214: 0 | CH214: 0 | CI214: 0 | CJ214: 27 | CK214: 0 | CL214: 0 | CM214: 0 | CN214: 0 | CO214: 0 | CP214: 0 | CQ214: 0 | CR214: 0 | CS214: 0 | CT214: 0 | CU214: 0 | CV214: 0 | CW214: 0 | CX214: 0 | CY214: 0 | CZ214: 0 | DA214: 0 | DB214: 0 | DC214: 0 | DD214: 0 | DE214: 0 | DF214: 0 | DG214: 0 | DH214: 0 | DI214: 0 | DJ214: 0 | DK214: 0 | DL214: 0 | DM214: 0 | DN214: 0 | DO214: 0 | DP214: 0 | DQ214: 0 | DR214: 0 | DS214: 0 | DT214: 0 | DU214: 0 | DV214: 0 | DW214: 0 | DX214: 0 | DY214: 0 | DZ214: 0 | EA214: 0 | EB214: 0 | EC214: 0 | ED214: 0 | EE214: 0 | EF214: 0 | EG214: 0 | EH214: 0 | EI214: 0 | EJ214: 0 | EK214: 0 | EL214: 0 | EM214: 0 | EN214: 0 | EO214: 0 | EP214: 0 | EQ214: 0 | ER214: 0 | ES214: 0 | ET214: 0 | EU214: 0 | EV214: 0 | EW214: 0 | EX214: 0 | EY214: 0 | EZ214: 0 | FA214: 0 | FB214: 0 | FC214: 0 | FD214: 0 | FE214: 0 | FF214: 0 | FG214: 0 | FH214: 0 | FI214: 0 | FJ214: 0 | FK214: 0 | FL214: 0 | FM214: 0 | FN214: 0 | FO214: 0 | FP214: 0 | FQ214: 0 | FR214: 0 | FS214: 0 | FT214: 0 | FU214: 0 | FV214: 0 | FW214: 0 | FX214: 0 | FY214: 0 | FZ214: 0 | GA214: 0 | GB214: 0 | GC214: 0 | GD214: 0 | GE214: 0 | GF214: 0 | GG214: 0 | GH214: 0 | GI214: 0 | GJ214: 0 | GK214: 0 | GL214: 0 | GM214: 0 | GN214: 0 | GO214: 0 | GP214: 0 | GQ214: 0 | GR214: 0 | GS214: 0 | GT214: 0 | GU214: 0 | GV214: 0 | GW214: 0 | GX214: 0 | GY214: 0 | GZ214: 0 | HA214: 0 | HB214: 0 | HC214: 0 | HD214: 0 | HE214: 0 | HF214: 0 | HG214: 0 | HH214: 0 | HI214: 0 | HJ214: 0 | HK214: 0 | HL214: 0 | HM214: 0 | HN214: 0 | HO214: 0 | HP214: 0 | HQ214: 0 | HR214: 0 | HS214: 0 | HT214: 0 | HU214: 0 | HV214: 0 | HW214: 0
A215: 11 | B215: 0 | C215: 0 | D215: 0 | E215: 0 | F215: 0 | G215: 0 | H215: 0 | I215: 0 | J215: 0 | K215: 0 | L215: 0 | M215: 0 | N215: 0 | O215: 0 | P215: 0 | Q215: 0 | R215: 0 | S215: 0 | T215: 0 | U215: 0 | V215: 0 | W215: 0 | X215: 0 | Y215: 0 | Z215: 1 | AA215: 1 | AB215: 0 | AC215: 30 | AD215: 0 | AE215: 0 | AF215: 0 | AG215: 0 | AH215: 0 | AI215: 0 | AJ215: 0 | AK215: 0 | AL215: 0 | AM215: 0 | AN215: 0 | AO215: 0 | AP215: 0 | AQ215: 0 | AR215: 0 | AS215: 0 | AT215: 0 | AU215: 0 | AV215: 0 | AW215: 0 | AX215: 0 | AY215: 0 | AZ215: 0 | BA215: 0 | BB215: 0 | BC215: 0 | BD215: 0 | BE215: 0 | BF215: 0 | BG215: 0 | BH215: 0 | BI215: 0 | BJ215: 0 | BK215: 0 | BL215: 0 | BM215: 0 | BN215: 0 | BO215: 0 | BP215: 0 | BQ215: 0 | BR215: 0 | BS215: 0 | BT215: 0 | BU215: 0 | BV215: 0 | BW215: 0 | BX215: 0 | BY215: 0 | BZ215: 0 | CA215: 0 | CB215: 0 | CC215: 0 | CD215: 0 | CE215: 0 | CF215: 0 | CG215: 0 | CH215: 0 | CI215: 0 | CJ215: 31 | CK215: 0 | CL215: 0 | CM215: 0 | CN215: 1 | CO215: 0 | CP215: 1 | CQ215: 0 | CR215: 1 | CS215: 0 | CT215: 0 | CU215: 0 | CV215: 0 | CW215: 0 | CX215: 0 | CY215: 0 | CZ215: 0 | DA215: 0 | DB215: 0 | DC215: 0 | DD215: 0 | DE215: 0 | DF215: 0 | DG215: 0 | DH215: 0 | DI215: 0 | DJ215: 0 | DK215: 0 | DL215: 0 | DM215: 0 | DN215: 0 | DO215: 0 | DP215: 0 | DQ215: 0 | DR215: 0 | DS215: 0 | DT215: 0 | DU215: 0 | DV215: 0 | DW215: 0 | DX215: 0 | DY215: 0 | DZ215: 0 | EA215: 0 | EB215: 0 | EC215: 0 | ED215: 0 | EE215: 0 | EF215: 0 | EG215: 0 | EH215: 0 | EI215: 0 | EJ215: 0 | EK215: 0 | EL215: 0 | EM215: 0 | EN215: 0 | EO215: 0 | EP215: 0 | EQ215: 0 | ER215: 0 | ES215: 0 | ET215: 0 | EU215: 0 | EV215: 0 | EW215: 0 | EX215: 0 | EY215: 0 | EZ215: 0 | FA215: 0 | FB215: 0 | FC215: 0 | FD215: 0 | FE215: 0 | FF215: 0 | FG215: 0 | FH215: 0 | FI215: 0 | FJ215: 0 | FK215: 0 | FL215: 0 | FM215: 0 | FN215: 0 | FO215: 0 | FP215: 0 | FQ215: 0 | FR215: 0 | FS215: 0 | FT215: 0 | FU215: 0 | FV215: 0 | FW215: 0 | FX215: 0 | FY215: 0 | FZ215: 0 | GA215: 0 | GB215: 0 | GC215: 0 | GD215: 0 | GE215: 0 | GF215: 0 | GG215: 0 | GH215: 0 | GI215: 0 | GJ215: 0 | GK215: 0 | GL215: 0 | GM215: 0 | GN215: 0 | GO215: 0 | GP215: 0 | GQ215: 0 | GR215: 0 | GS215: 0 | GT215: 0 | GU215: 0 | GV215: 0 | GW215: 0 | GX215: 0 | GY215: 0 | GZ215: 0 | HA215: 0 | HB215: 0 | HC215: 0 | HD215: 0 | HE215: 0 | HF215: 0 | HG215: 0 | HH215: 0 | HI215: 0 | HJ215: 0 | HK215: 0 | HL215: 0 | HM215: 0 | HN215: 0 | HO215: 0 | HP215: 0 | HQ215: 0 | HR215: 0 | HS215: 0 | HT215: 0 | HU215: 0 | HV215: 0 | HW215: 0
A216: Total | B216: 0 | C216: 0 | D216: 0 | E216: 0 | F216: 0 | G216: 0 | H216: 0 | I216: 0 | J216: 0 | K216: 0 | L216: 0 | M216: 0 | N216: 0 | O216: 2 | P216: 0 | Q216: 2 | R216: 0 | S216: 0 | T216: 0 | U216: 0 | V216: 0 | W216: 0 | X216: 0 | Y216: 0 | Z216: 20 | AA216: 12 | AB216: 360 | AC216: 360 | AD216: 0 | AE216: 0 | AF216: 0 | AG216: 0 | AH216: 0 | AI216: 0 | AJ216: 0 | AK216: 0 | AL216: 0 | AM216: 0 | AN216: 0 | AO216: 0 | AP216: 0 | AQ216: 0 | AR216: 0 | AS216: 0 | AT216: 0 | AU216: 0 | AV216: 0 | AW216: 0 | AX216: 0 | AY216: 0 | AZ216: 0 | BA216: 0 | BB216: 0 | BC216: 0 | BD216: 0 | BE216: 0 | BF216: 0 | BG216: 0 | BH216: 0 | BI216: 0 | BJ216: 0 | BK216: 0 | BL216: 0 | BM216: 0 | BN216: 0 | BO216: 0 | BP216: 0 | BQ216: 0 | BR216: 0 | BS216: 0 | BT216: 0 | BU216: 0 | BV216: 0 | BW216: 0 | BX216: 0 | BY216: 0 | BZ216: 0 | CA216: 0 | CB216: 4 | CC216: 4 | CD216: 0 | CE216: 0 | CF216: 0 | CG216: 3 | CH216: 0 | CI216: 0 | CJ216: 354 | CK216: 0 | CL216: 18 | CM216: 0 | CN216: 1 | CO216: 0 | CP216: 1 | CQ216: 0 | CR216: 1 | CS216: 0 | CT216: 0 | CU216: 0 | CV216: 0 | CW216: 0 | CX216: 0 | CY216: 0 | CZ216: 0 | DA216: 0 | DB216: 0 | DC216: 0 | DD216: 0 | DE216: 0 | DF216: 0 | DG216: 0 | DH216: 0 | DI216: 0 | DJ216: 0 | DK216: 0 | DL216: 0 | DM216: 0 | DN216: 0 | DO216: 0 | DP216: 0 | DQ216: 0 | DR216: 0 | DS216: 0 | DT216: 0 | DU216: 0 | DV216: 0 | DW216: 0 | DX216: 0 | DY216: 0 | DZ216: 0 | EA216: 0 | EB216: 0 | EC216: 0 | ED216: 0 | EE216: 0 | EF216: 0 | EG216: 0 | EH216: 0 | EI216: 0 | EJ216: 0 | EK216: 0 | EL216: 0 | EM216: 0 | EN216: 0 | EO216: 0 | EP216: 0 | EQ216: 0 | ER216: 0 | ES216: 0 | ET216: 0 | EU216: 0 | EV216: 0 | EW216: 0 | EX216: 0 | EY216: 0 | EZ216: 0 | FA216: 0 | FB216: 0 | FC216: 0 | FD216: 0 | FE216: 0 | FF216: 0 | FG216: 0 | FH216: 0 | FI216: 0 | FJ216: 0 | FK216: 0 | FL216: 0 | FM216: 0 | FN216: 0 | FO216: 0 | FP216: 0 | FQ216: 0 | FR216: 0 | FS216: 0 | FT216: 0 | FU216: 0 | FV216: 0 | FW216: 0 | FX216: 0 | FY216: 0 | FZ216: 0 | GA216: 0 | GB216: 0 | GC216: 0 | GD216: 0 | GE216: 0 | GF216: 0 | GG216: 0 | GH216: 0 | GI216: 0 | GJ216: 0 | GK216: 0 | GL216: 0 | GM216: 0 | GN216: 0 | GO216: 0 | GP216: 0 | GQ216: 0 | GR216: 0 | GS216: 0 | GT216: 0 | GU216: 0 | GV216: 0 | GW216: 0 | GX216: 0 | GY216: 0 | GZ216: 0 | HA216: 0 | HB216: 0 | HC216: 0 | HD216: 0 | HE216: 0 | HF216: 0 | HG216: 0 | HH216: 0 | HI216: 0 | HJ216: 0 | HK216: 0 | HL216: 0 | HM216: 0 | HN216: 0 | HO216: 0 | HP216: 0 | HQ216: 0 | HR216: 0 | HS216: 0 | HT216: 0 | HU216: 0 | HV216: 0 | HW216: 0
A222: TOTAL
A223: =COUNT(A202:A220) -> 11 | B223: =SUM(B202:B220) -> 0 | C223: =SUM(C202:C220) -> 0 | D223: 0 | E223: 0 | F223: 0 | G223: 0 | H223: 0 | I223: 0 | J223: 0 | K223: 0 | L223: 0 | M223: 0 | N223: 0 | O223: 4 | P223: 0 | Q223: 4 | R223: 0 | S223: 0 | T223: 0 | U223: 0 | V223: 0 | W223: 0 | X223: 0 | Y223: 0 | Z223: 40 | AA223: 24 | AB223: 720 | AC223: 720 | AD223: 0 | AE223: 0 | AF223: 0 | AG223: 0 | AH223: 0 | AI223: 0 | AJ223: 0 | AK223: 0 | AL223: 0 | AM223: 0 | AN223: 0 | AO223: 0 | AP223: 0 | AQ223: 0 | AR223: 0 | AS223: 0 | AT223: 0 | AU223: 0 | AV223: 0 | AW223: 0 | AX223: 0 | AY223: 0 | AZ223: 0 | BA223: 0 | BB223: 0 | BC223: 0 | BD223: 0 | BE223: 0 | BF223: 0 | BG223: 0 | BH223: 0 | BI223: 0 | BJ223: 0 | BK223: 0 | BL223: 0 | BM223: 0 | BN223: 0 | BO223: =SUM(BO202:BO220) -> 0 | BP223: 0 | BQ223: 0 | BR223: 0 | BS223: 0 | BT223: 0 | BU223: 0 | BV223: 0 | BW223: 0 | BX223: 0 | BY223: 0 | BZ223: 0 | CA223: 0 | CB223: 8 | CC223: 8 | CD223: 0 | CE223: 0 | CF223: 0 | CG223: 6 | CH223: 0 | CI223: 0 | CJ223: 708 | CK223: 0 | CL223: 36 | CM223: 0 | CN223: 2 | CO223: 0 | CP223: 2 | CQ223: 0 | CR223: 2 | CS223: 0 | CT223: 0 | CU223: 0 | CV223: 0 | CW223: 0 | CX223: 0 | CY223: 0 | CZ223: 0 | DA223: 0 | DB223: 0 | DC223: 0 | DD223: 0 | DE223: 0 | DF223: 0 | DG223: 0 | DH223: 0 | DI223: 0 | DJ223: 0 | DK223: 0 | DL223: 0 | DM223: 0 | DN223: 0 | DO223: 0 | DP223: 0 | DQ223: 0 | DR223: 0 | DS223: 0 | DT223: 0 | DU223: 0 | DV223: 0 | DW223: 0 | DX223: 0 | DY223: 0 | DZ223: 0 | EA223: =SUM(EA202:EA220) -> 0 | EB223: 0 | EC223: 0 | ED223: 0 | EE223: 0 | EF223: 0 | EG223: 0 | EH223: 0 | EI223: 0 | EJ223: 0 | EK223: 0 | EL223: 0 | EM223: 0 | EN223: 0 | EO223: 0 | EP223: 0 | EQ223: 0 | ER223: 0 | ES223: 0 | ET223: 0 | EU223: 0 | EV223: 0 | EW223: 0 | EX223: 0 | EY223: 0 | EZ223: 0 | FA223: 0 | FB223: 0 | FC223: 0 | FD223: 0 | FE223: 0 | FF223: 0 | FG223: 0 | FH223: 0 | FI223: 0 | FJ223: 0 | FK223: 0 | FL223: 0 | FM223: 0 | FN223: 0 | FO223: 0 | FP223: 0 | FQ223: 0 | FR223: 0 | FS223: 0 | FT223: 0 | FU223: 0 | FV223: 0 | FW223: 0 | FX223: 0 | FY223: 0 | FZ223: 0 | GA223: 0 | GB223: 0 | GC223: 0 | GD223: 0 | GE223: 0 | GF223: 0 | GG223: 0 | GH223: 0 | GI223: 0 | GJ223: 0 | GK223: 0 | GL223: 0 | GM223: =SUM(GM202:GM220) -> 0 | GN223: 0 | GO223: 0 | GP223: 0 | GQ223: 0 | GR223: 0 | GS223: 0 | GT223: 0 | GU223: 0 | GV223: 0 | GW223: 0 | GX223: 0 | GY223: 0 | GZ223: 0 | HA223: 0 | HB223: 0 | HC223: 0 | HD223: 0 | HE223: 0 | HF223: 0 | HG223: 0 | HH223: 0 | HI223: 0 | HJ223: 0 | HK223: 0 | HL223: 0 | HM223: 0 | HN223: 0 | HO223: 0 | HP223: 0 | HQ223: 0 | HR223: 0 | HS223: 0 | HT223: 0 | HU223: 0 | HV223: 0 | HW223: 0 | HX223: 0
A224: =CONCATENATE(A205,"-",A206,"-",A207,"-",A208,"-",A209,"-",A210,"-",A211,"-",A212,"-",A213,"-",A214,"-",A215,"-",A216) -> 1-2-3-4-5-6-7-8-9-10-11-Total
B225: BAS001 | C225: BAS002 | D225: BAS003 | E225: BAS004 | F225: BAS005 | G225: BAS006 | H225: BAS007 | I225: BAS008 | J225: BAS009 | K225: BAS010 | L225: BAS011 | M225: BAS012 | N225: BAS013 | O225: BAS014 | P225: BAS015 | Q225: BAS016 | R225: BAS017 | S225: BAS018 | T225: BAS019 | U225: BAS020 | V225: BAS021 | W225: BAS022 | X225: BAS023 | Y225: BAS024 | Z225: BAS025 | AA225: BAS026 | AB225: BAS027 | AC225: BAS028 | AD225: BAS029 | AE225: BAS030 | AF225: BAS031 | AG225: BAS032 | AH225: BAS033 | AI225: BAS034 | AJ225: BAS035 | AK225: BAS036 | AL225: BAS037 | AM225: BAS038 | AN225: BAS039 | AO225: BAS040 | AP225: BAS041 | AQ225: BAS042 | AR225: BAS043 | AS225: BAS044 | AT225: BAS045 | AU225: BAS046 | AV225: BAS047 | AW225: BAS048 | AX225: BAS049 | AY225: BAS050 | AZ225: BAS051 | BA225: BAS052 | BB225: BAS053 | BC225: BAS054 | BD225: BAS055 | BE225: BAS056 | BF225: BAS057 | BG225: BAS058 | BH225: BAS059 | BI225: BAS060 | BJ225: BAS061 | BK225: BAS062 | BL225: BAS063 | BM225: BAS064 | BN225: BAS065 | BO225: BAS066 | BP225: BAS067 | BQ225: BAS068 | BR225: BAS069 | BS225: BAS070 | BT225: BAS071 | BU225: BAS072 | BV225: BAS073 | BW225: BAS074 | BX225: BAS075 | BY225: BAS076 | BZ225: BAS077 | CA225: BAS078 | CB225: BAS079 | CC225: BAS080 | CD225: BAS081 | CE225: BAS082 | CF225: BAS083 | CG225: BAS084 | CH225: BAS085 | CI225: BAS086 | CJ225: BAS087 | CK225: BAS088 | CL225: BAS089 | CM225: BAS090 | CN225: BAS091 | CO225: BAS092 | CP225: BAS093 | CQ225: BAS094 | CR225: BAS095 | CS225: BAS096 | CT225: BAS097 | CU225: BAS098 | CV225: BAS099 | CW225: BAS100 | CX225: BAS101 | CY225: BAS102 | CZ225: BAS103 | DA225: BAS104 | DB225: BAS105 | DC225: BAS106 | DD225: BAS107 | DE225: BAS108 | DF225: BAS109 | DG225: BAS110 | DH225: BAS111 | DI225: BAS112 | DJ225: BAS113 | DK225: BAS114 | DL225: BAS115 | DM225: BAS116 | DN225: BAS117 | DO225: BAS118 | DP225: BAS119 | DQ225: BAS120 | DR225: BAS121 | DS225: BAS122 | DT225: BAS123 | DU225: BAS124 | DV225: BAS125 | DW225: BAS126 | DX225: BAS127 | DY225: BAS128 | DZ225: BAS129 | EA225: BAS130 | EB225: BAS131 | EC225: BAS132 | ED225: BAS133 | EE225: BAS134 | EF225: BAS135 | EG225: BAS136 | EH225: BAS137 | EI225: BAS138 | EJ225: BAS139 | EK225: BAS140 | EL225: BAS141 | EM225: BAS142 | EN225: BAS143 | EO225: BAS144 | EP225: BAS145 | EQ225: BAS146 | ER225: BAS147 | ES225: BAS148 | ET225: BAS149 | EU225: BAS150 | EV225: BAS151 | EW225: BAS152 | EX225: BAS153 | EY225: BAS154 | EZ225: BAS155 | FA225: BAS156 | FB225: BAS157 | FC225: BAS158 | FD225: BAS159 | FE225: BAS160 | FF225: BAS161 | FG225: BAS162 | FH225: BAS163 | FI225: BAS164 | FJ225: BAS165 | FK225: BAS166 | FL225: BAS167 | FM225: BAS168 | FN225: BAS169 | FO225: BAS170 | FP225: BAS171 | FQ225: BAS172 | FR225: BAS173 | FS225: BAS174 | FT225: BAS175 | FU225: BAS176 | FV225: BAS177 | FW225: BAS178 | FX225: BAS179 | FY225: BAS180 | FZ225: BAS181 | GA225: BAS182 | GB225: BAS183 | GC225: BAS184 | GD225: BAS185 | GE225: BAS186 | GF225: BAS187 | GG225: BAS188 | GH225: BAS189 | GI225: BAS190 | GJ225: BAS191 | GK225: BAS192 | GL225: BAS193 | GM225: BAS194 | GN225: BAS195 | GO225: BAS196 | GP225: BAS197 | GQ225: BAS198 | GR225: BAS199 | GS225: BAS200 | GT225: BAS201 | GU225: BAS202 | GV225: BAS203 | GW225: BAS204 | GX225: BAS205 | GY225: BAS206 | GZ225: BAS207 | HA225: BAS208 | HB225: BAS209 | HC225: BAS210 | HD225: BAS211 | HE225: BAS212 | HF225: BAS213 | HG225: BAS214 | HH225: BAS215 | HI225: BAS216 | HJ225: BAS217 | HK225: BAS218 | HL225: BAS219 | HM225: BAS220 | HN225: BAS221 | HO225: BAS222 | HP225: BAS223 | HQ225: BAS224 | HR225: BAS225 | HS225: BAS226 | HT225: BAS227 | HU225: BAS228 | HV225: BAS229 | HW225: BAS230
B226: =IF(B225=B204,"SI","NO") -> SI | C226: =IF(C225=C204,"SI","NO") -> SI | D226: SI | E226: SI | F226: SI | G226: SI | H226: SI | I226: SI | J226: SI | K226: SI | L226: SI | M226: SI | N226: SI | O226: SI | P226: SI | Q226: SI | R226: SI | S226: SI | T226: SI | U226: SI | V226: SI | W226: SI | X226: SI | Y226: SI | Z226: SI | AA226: SI | AB226: SI | AC226: SI | AD226: SI | AE226: SI | AF226: SI | AG226: SI | AH226: SI | AI226: SI | AJ226: SI | AK226: SI | AL226: SI | AM226: SI | AN226: SI | AO226: SI | AP226: SI | AQ226: SI | AR226: SI | AS226: SI | AT226: SI | AU226: SI | AV226: SI | AW226: SI | AX226: SI | AY226: SI | AZ226: SI | BA226: SI | BB226: SI | BC226: SI | BD226: SI | BE226: SI | BF226: SI | BG226: SI | BH226: SI | BI226: SI | BJ226: SI | BK226: SI | BL226: SI | BM226: SI | BN226: SI | BO226: =IF(BO225=BO204,"SI","NO") -> SI | BP226: SI | BQ226: SI | BR226: SI | BS226: SI | BT226: SI | BU226: SI | BV226: SI | BW226: SI | BX226: SI | BY226: SI | BZ226: SI | CA226: SI | CB226: SI | CC226: SI | CD226: SI | CE226: SI | CF226: SI | CG226: SI | CH226: SI | CI226: SI | CJ226: SI | CK226: SI | CL226: SI | CM226: SI | CN226: SI | CO226: SI | CP226: SI | CQ226: SI | CR226: SI | CS226: SI | CT226: SI | CU226: SI | CV226: SI | CW226: SI | CX226: SI | CY226: SI | CZ226: SI | DA226: SI | DB226: SI | DC226: SI | DD226: SI | DE226: SI | DF226: SI | DG226: SI | DH226: SI | DI226: SI | DJ226: SI | DK226: SI | DL226: SI | DM226: SI | DN226: SI | DO226: SI | DP226: SI | DQ226: SI | DR226: SI | DS226: SI | DT226: SI | DU226: SI | DV226: SI | DW226: SI | DX226: SI | DY226: SI | DZ226: SI | EA226: =IF(EA225=EA204,"SI","NO") -> SI | EB226: SI | EC226: SI | ED226: SI | EE226: SI | EF226: SI | EG226: SI | EH226: SI | EI226: SI | EJ226: SI | EK226: SI | EL226: SI | EM226: SI | EN226: SI | EO226: SI | EP226: SI | EQ226: SI | ER226: SI | ES226: SI | ET226: SI | EU226: SI | EV226: SI | EW226: SI | EX226: SI | EY226: SI | EZ226: SI | FA226: SI | FB226: SI | FC226: SI | FD226: SI | FE226: SI | FF226: SI | FG226: SI | FH226: SI | FI226: SI | FJ226: SI | FK226: SI | FL226: SI | FM226: SI | FN226: SI | FO226: SI | FP226: SI | FQ226: SI | FR226: SI | FS226: SI | FT226: SI | FU226: SI | FV226: SI | FW226: SI | FX226: SI | FY226: SI | FZ226: SI | GA226: SI | GB226: SI | GC226: SI | GD226: SI | GE226: SI | GF226: SI | GG226: SI | GH226: SI | GI226: SI | GJ226: SI | GK226: SI | GL226: SI | GM226: =IF(GM225=GM204,"SI","NO") -> SI | GN226: SI | GO226: SI | GP226: SI | GQ226: SI | GR226: SI | GS226: SI | GT226: SI | GU226: SI | GV226: SI | GW226: SI | GX226: SI | GY226: SI | GZ226: SI | HA226: SI | HB226: SI | HC226: SI | HD226: SI | HE226: SI | HF226: SI | HG226: SI | HH226: SI | HI226: SI | HJ226: SI | HK226: SI | HL226: SI | HM226: SI | HN226: SI | HO226: SI | HP226: SI | HQ226: SI | HR226: SI | HS226: SI | HT226: SI | HU226: SI | HV226: SI | HW226: SI
A229: PLANI_06
A230: ANNO | B230: 2024
A231: cod_red | B231: 03
A232: codmic | B232: (Todas)
A233: cod_prov | B233: (Todas)
A234: coddist | B234: (Todas)
A235: cod_estab | B235: (Todas)
A236: cod_eje | B236: (Todas) | E236: =+GETPIVOTDATA(" BAS001",$A$238) -> 1
B238: Valores
A239: Etiquetas de fila | B239: BAS001 | C239: BAS002 | D239: BAS003 | E239: BAS004 | F239: BAS005 | G239: BAS006 | H239: BAS007 | I239: BAS008 | J239: BAS009 | K239: BAS010 | L239: BAS011 | M239: BAS012 | N239: BAS013 | O239: BAS014 | P239: BAS015 | Q239: BAS016 | R239: BAS017 | S239: BAS018 | T239: BAS019 | U239: BAS020 | V239: BAS021 | W239: BAS022 | X239: BAS023 | Y239: BAS024 | Z239: BAS025 | AA239: BAS026 | AB239: BAS027 | AC239: BAS028 | AD239: BAS029 | AE239: BAS030 | AF239: BAS031 | AG239: BAS032 | AH239: BAS033 | AI239: BAS034 | AJ239: BAS035 | AK239: BAS036 | AL239: BAS037 | AM239: BAS038 | AN239: BAS039 | AO239: BAS040 | AP239: BAS041 | AQ239: BAS042 | AR239: BAS043 | AS239: BAS044 | AT239: BAS045 | AU239: BAS046 | AV239: BAS047 | AW239: BAS048 | AX239: BAS049 | AY239: BAS050 | AZ239: BAS051 | BA239: BAS052 | BB239: BAS053 | BC239: BAS054 | BD239: BAS055 | BE239: BAS056 | BF239: BAS057 | BG239: BAS058 | BH239: BAS059 | BI239: BAS060 | BJ239: BAS061 | BK239: BAS062 | BL239: BAS063 | BM239: BAS064 | BN239: BAS065 | BO239: BAS066 | BP239: BAS067 | BQ239: BAS068 | BR239: BAS069 | BS239: BAS070 | BT239: BAS071 | BU239: BAS072 | BV239: BAS073 | BW239: BAS074 | BX239: BAS075 | BY239: BAS076 | BZ239: BAS077 | CA239: BAS078 | CB239: BAS079 | CC239: BAS080 | CD239: BAS081 | CE239: BAS082 | CF239: BAS083 | CG239: BAS084 | CH239: BAS085 | CI239: BAS086 | CJ239: BAS087 | CK239: BAS088 | CL239: BAS089 | CM239: BAS090 | CN239: BAS091 | CO239: BAS092 | CP239: BAS093 | CQ239: BAS094 | CR239: BAS095 | CS239: BAS096 | CT239: BAS097 | CU239: BAS098 | CV239: BAS099 | CW239: BAS100 | CX239: BAS101 | CY239: BAS102 | CZ239: BAS103 | DA239: BAS104 | DB239: BAS105 | DC239: BAS106 | DD239: BAS107 | DE239: BAS108 | DF239: BAS109 | DG239: BAS110 | DH239: BAS111 | DI239: BAS112 | DJ239: BAS113 | DK239: BAS114 | DL239: BAS115 | DM239: BAS116 | DN239: BAS117 | DO239: BAS118 | DP239: BAS119 | DQ239: BAS120 | DR239: BAS121 | DS239: BAS122 | DT239: BAS123 | DU239: BAS124 | DV239: BAS125 | DW239: BAS126 | DX239: BAS127 | DY239: BAS128 | DZ239: BAS129 | EA239: BAS130 | EB239: BAS131 | EC239: BAS132 | ED239: BAS133 | EE239: BAS134 | EF239: BAS135 | EG239: BAS136 | EH239: BAS137 | EI239: BAS138 | EJ239: BAS139 | EK239: BAS140 | EL239: BAS141 | EM239: BAS142 | EN239: BAS143 | EO239: BAS144 | EP239: BAS145 | EQ239: BAS146 | ER239: BAS147 | ES239: BAS148 | ET239: BAS149 | EU239: BAS150 | EV239: BAS151 | EW239: BAS152 | EX239: BAS153 | EY239: BAS154 | EZ239: BAS155 | FA239: BAS156 | FB239: BAS157 | FC239: BAS158 | FD239: BAS159 | FE239: BAS160 | FF239: BAS161 | FG239: BAS162 | FH239: BAS163 | FI239: BAS164 | FJ239: BAS165 | FK239: BAS166 | FL239: BAS167 | FM239: BAS168 | FN239: BAS169 | FO239: BAS170 | FP239: BAS171 | FQ239: BAS172 | FR239: BAS173 | FS239: BAS174 | FT239: BAS175 | FU239: BAS176 | FV239: BAS177 | FW239: BAS178 | FX239: BAS179 | FY239: BAS180 | FZ239: BAS181 | GA239: BAS182 | GB239: BAS183 | GC239: BAS184 | GD239: BAS185 | GE239: BAS186 | GF239: BAS187 | GG239: BAS188 | GH239: BAS189 | GI239: BAS190 | GJ239: BAS191 | GK239: BAS192 | GL239: BAS193 | GM239: BAS194 | GN239: BAS195 | GO239: BAS196 | GP239: BAS197 | GQ239: BAS198 | GR239: BAS199 | GS239: BAS200 | GT239: BAS201 | GU239: BAS202 | GV239: BAS203 | GW239: BAS204 | GX239: BAS205 | GY239: BAS206 | GZ239: BAS207 | HA239: BAS208 | HB239: BAS209 | HC239: BAS210 | HD239: BAS211 | HE239: BAS212 | HF239: BAS213 | HG239: BAS214 | HH239: BAS215 | HI239: BAS216 | HJ239: BAS217 | HK239: BAS218 | HL239: BAS219 | HM239: BAS220 | HN239: BAS221 | HO239: BAS222 | HP239: BAS223 | HQ239: BAS224 | HR239: BAS225 | HS239: BAS226 | HT239: BAS227 | HU239: BAS228 | HV239: BAS229 | HW239: BAS230
A240: 1 | B240: 0 | C240: 0 | D240: 3 | E240: 4 | F240: 4 | G240: 0 | H240: 0 | I240: 0 | J240: 0 | K240: 0 | L240: 3 | M240: 0 | N240: 6 | O240: 61 | P240: 1158 | Q240: 11 | R240: 0 | S240: 18 | T240: 245 | U240: 1091 | V240: 5 | W240: 0 | X240: 8 | Y240: 20 | Z240: 509 | AA240: 6 | AB240: 0 | AC240: 1 | AD240: 81 | AE240: 81 | AF240: 6 | AG240: 0 | AH240: 3 | AI240: 36 | AJ240: 5894 | AK240: 0 | AL240: 0 | AM240: 0 | AN240: 0 | AO240: 10 | AP240: 0 | AQ240: 0 | AR240: 0 | AS240: 18 | AT240: 18 | AU240: 0 | AV240: 0 | AW240: 0 | AX240: 0 | AY240: 0 | AZ240: 0 | BA240: 0 | BB240: 0 | BC240: 0 | BD240: 0 | BE240: 0 | BF240: 0 | BG240: 0 | BH240: 0 | BI240: 8 | BJ240: 1 | BK240: 51 | BL240: 16 | BM240: 1 | BN240: 868 | BO240: 195 | BP240: 179 | BQ240: 1 | BR240: 383 | BS240: 381 | BT240: 381 | BU240: 0 | BV240: 0 | BW240: 0 | BX240: 0 | BY240: 0 | BZ240: 0 | CA240: 0 | CB240: 0 | CC240: 0 | CD240: 0 | CE240: 0 | CF240: 0 | CG240: 0 | CH240: 0 | CI240: 0 | CJ240: 0 | CK240: 0 | CL240: 0 | CM240: 0 | CN240: 0 | CO240: 0 | CP240: 0 | CQ240: 0 | CR240: 0 | CS240: 0 | CT240: 0 | CU240: 0 | CV240: 0 | CW240: 0 | CX240: 0 | CY240: 0 | CZ240: 0 | DA240: 0 | DB240: 0 | DC240: 0 | DD240: 0 | DE240: 0 | DF240: 0 | DG240: 0 | DH240: 0 | DI240: 0 | DJ240: 0 | DK240: 0 | DL240: 0 | DM240: 0 | DN240: 0 | DO240: 0 | DP240: 0 | DQ240: 0 | DR240: 0 | DS240: 0 | DT240: 0 | DU240: 0 | DV240: 0 | DW240: 0 | DX240: 0 | DY240: 0 | DZ240: 0 | EA240: 0 | EB240: 0 | EC240: 0 | ED240: 0 | EE240: 0 | EF240: 0 | EG240: 0 | EH240: 0 | EI240: 0 | EJ240: 0 | EK240: 0 | EL240: 0 | EM240: 0 | EN240: 0 | EO240: 0 | EP240: 0 | EQ240: 0 | ER240: 0 | ES240: 0 | ET240: 0 | EU240: 0 | EV240: 0 | EW240: 0 | EX240: 0 | EY240: 0 | EZ240: 0 | FA240: 0 | FB240: 0 | FC240: 0 | FD240: 0 | FE240: 0 | FF240: 0 | FG240: 0 | FH240: 0 | FI240: 0 | FJ240: 0 | FK240: 0 | FL240: 0 | FM240: 0 | FN240: 0 | FO240: 0 | FP240: 0 | FQ240: 0 | FR240: 0 | FS240: 0 | FT240: 0 | FU240: 0 | FV240: 0 | FW240: 0 | FX240: 0 | FY240: 0 | FZ240: 0 | GA240: 0 | GB240: 0 | GC240: 0 | GD240: 0 | GE240: 0 | GF240: 0 | GG240: 0 | GH240: 0 | GI240: 0 | GJ240: 0 | GK240: 0 | GL240: 0 | GM240: 0 | GN240: 0 | GO240: 0 | GP240: 0 | GQ240: 0 | GR240: 0 | GS240: 0 | GT240: 0 | GU240: 0 | GV240: 0 | GW240: 0 | GX240: 0 | GY240: 0 | GZ240: 0 | HA240: 0 | HB240: 0 | HC240: 0 | HD240: 0 | HE240: 0 | HF240: 0 | HG240: 0 | HH240: 0 | HI240: 0 | HJ240: 0 | HK240: 0 | HL240: 0 | HM240: 0 | HN240: 0 | HO240: 0 | HP240: 0 | HQ240: 0 | HR240: 0 | HS240: 0 | HT240: 0 | HU240: 0 | HV240: 0 | HW240: 0
A241: 2 | B241: 1 | C241: 0 | D241: 0 | E241: 14 | F241: 14 | G241: 0 | H241: 0 | I241: 0 | J241: 0 | K241: 0 | L241: 7 | M241: 0 | N241: 8 | O241: 58 | P241: 1126 | Q241: 8 | R241: 0 | S241: 27 | T241: 250 | U241: 1113 | V241: 12 | W241: 0 | X241: 12 | Y241: 22 | Z241: 577 | AA241: 5 | AB241: 0 | AC241: 7 | AD241: 94 | AE241: 94 | AF241: 9 | AG241: 0 | AH241: 5 | AI241: 53 | AJ241: 7740 | AK241: 0 | AL241: 0 | AM241: 0 | AN241: 0 | AO241: 20 | AP241: 0 | AQ241: 0 | AR241: 0 | AS241: 8 | AT241: 8 | AU241: 0 | AV241: 0 | AW241: 0 | AX241: 0 | AY241: 0 | AZ241: 0 | BA241: 0 | BB241: 0 | BC241: 0 | BD241: 0 | BE241: 0 | BF241: 0 | BG241: 0 | BH241: 1 | BI241: 18 | BJ241: 3 | BK241: 59 | BL241: 20 | BM241: 10 | BN241: 1050 | BO241: 289 | BP241: 218 | BQ241: 1 | BR241: 279 | BS241: 277 | BT241: 277 | BU241: 0 | BV241: 0 | BW241: 0 | BX241: 0 | BY241: 0 | BZ241: 0 | CA241: 0 | CB241: 0 | CC241: 0 | CD241: 0 | CE241: 0 | CF241: 0 | CG241: 0 | CH241: 0 | CI241: 0 | CJ241: 0 | CK241: 0 | CL241: 0 | CM241: 0 | CN241: 0 | CO241: 0 | CP241: 0 | CQ241: 0 | CR241: 0 | CS241: 0 | CT241: 0 | CU241: 0 | CV241: 0 | CW241: 0 | CX241: 0 | CY241: 0 | CZ241: 0 | DA241: 0 | DB241: 0 | DC241: 0 | DD241: 0 | DE241: 0 | DF241: 0 | DG241: 0 | DH241: 0 | DI241: 0 | DJ241: 0 | DK241: 0 | DL241: 0 | DM241: 0 | DN241: 0 | DO241: 0 | DP241: 0 | DQ241: 0 | DR241: 0 | DS241: 0 | DT241: 0 | DU241: 0 | DV241: 0 | DW241: 0 | DX241: 0 | DY241: 0 | DZ241: 0 | EA241: 0 | EB241: 0 | EC241: 0 | ED241: 0 | EE241: 0 | EF241: 0 | EG241: 0 | EH241: 0 | EI241: 0 | EJ241: 0 | EK241: 0 | EL241: 0 | EM241: 0 | EN241: 0 | EO241: 0 | EP241: 0 | EQ241: 0 | ER241: 0 | ES241: 0 | ET241: 0 | EU241: 0 | EV241: 0 | EW241: 0 | EX241: 0 | EY241: 0 | EZ241: 0 | FA241: 0 | FB241: 0 | FC241: 0 | FD241: 0 | FE241: 0 | FF241: 0 | FG241: 0 | FH241: 0 | FI241: 0 | FJ241: 0 | FK241: 0 | FL241: 0 | FM241: 0 | FN241: 0 | FO241: 0 | FP241: 0 | FQ241: 0 | FR241: 0 | FS241: 0 | FT241: 0 | FU241: 0 | FV241: 0 | FW241: 0 | FX241: 0 | FY241: 0 | FZ241: 0 | GA241: 0 | GB241: 0 | GC241: 0 | GD241: 0 | GE241: 0 | GF241: 0 | GG241: 0 | GH241: 0 | GI241: 0 | GJ241: 0 | GK241: 0 | GL241: 0 | GM241: 0 | GN241: 0 | GO241: 0 | GP241: 0 | GQ241: 0 | GR241: 0 | GS241: 0 | GT241: 0 | GU241: 0 | GV241: 0 | GW241: 0 | GX241: 0 | GY241: 0 | GZ241: 0 | HA241: 0 | HB241: 0 | HC241: 0 | HD241: 0 | HE241: 0 | HF241: 0 | HG241: 0 | HH241: 0 | HI241: 0 | HJ241: 0 | HK241: 0 | HL241: 0 | HM241: 0 | HN241: 0 | HO241: 0 | HP241: 0 | HQ241: 0 | HR241: 0 | HS241: 0 | HT241: 0 | HU241: 0 | HV241: 0 | HW241: 0
A242: 3 | B242: 0 | C242: 0 | D242: 1 | E242: 3 | F242: 3 | G242: 0 | H242: 0 | I242: 0 | J242: 0 | K242: 0 | L242: 5 | M242: 0 | N242: 19 | O242: 48 | P242: 1029 | Q242: 9 | R242: 0 | S242: 34 | T242: 227 | U242: 1012 | V242: 13 | W242: 0 | X242: 8 | Y242: 26 | Z242: 609 | AA242: 2 | AB242: 0 | AC242: 5 | AD242: 79 | AE242: 79 | AF242: 13 | AG242: 0 | AH242: 3 | AI242: 45 | AJ242: 7040 | AK242: 0 | AL242: 0 | AM242: 0 | AN242: 0 | AO242: 70 | AP242: 0 | AQ242: 0 | AR242: 0 | AS242: 10 | AT242: 10 | AU242: 0 | AV242: 0 | AW242: 0 | AX242: 0 | AY242: 0 | AZ242: 0 | BA242: 0 | BB242: 0 | BC242: 0 | BD242: 0 | BE242: 0 | BF242: 0 | BG242: 0 | BH242: 0 | BI242: 8 | BJ242: 0 | BK242: 48 | BL242: 14 | BM242: 4 | BN242: 1117 | BO242: 306 | BP242: 311 | BQ242: 0 | BR242: 391 | BS242: 389 | BT242: 389 | BU242: 0 | BV242: 0 | BW242: 0 | BX242: 0 | BY242: 0 | BZ242: 0 | CA242: 0 | CB242: 0 | CC242: 0 | CD242: 0 | CE242: 0 | CF242: 0 | CG242: 0 | CH242: 0 | CI242: 0 | CJ242: 0 | CK242: 0 | CL242: 0 | CM242: 0 | CN242: 0 | CO242: 0 | CP242: 0 | CQ242: 0 | CR242: 0 | CS242: 0 | CT242: 0 | CU242: 0 | CV242: 0 | CW242: 0 | CX242: 0 | CY242: 0 | CZ242: 0 | DA242: 0 | DB242: 0 | DC242: 0 | DD242: 0 | DE242: 0 | DF242: 0 | DG242: 0 | DH242: 0 | DI242: 0 | DJ242: 0 | DK242: 0 | DL242: 0 | DM242: 0 | DN242: 0 | DO242: 0 | DP242: 0 | DQ242: 0 | DR242: 0 | DS242: 0 | DT242: 0 | DU242: 0 | DV242: 0 | DW242: 0 | DX242: 0 | DY242: 0 | DZ242: 0 | EA242: 0 | EB242: 0 | EC242: 0 | ED242: 0 | EE242: 0 | EF242: 0 | EG242: 0 | EH242: 0 | EI242: 0 | EJ242: 0 | EK242: 0 | EL242: 0 | EM242: 0 | EN242: 0 | EO242: 0 | EP242: 0 | EQ242: 0 | ER242: 0 | ES242: 0 | ET242: 0 | EU242: 0 | EV242: 0 | EW242: 0 | EX242: 0 | EY242: 0 | EZ242: 0 | FA242: 0 | FB242: 0 | FC242: 0 | FD242: 0 | FE242: 0 | FF242: 0 | FG242: 0 | FH242: 0 | FI242: 0 | FJ242: 0 | FK242: 0 | FL242: 0 | FM242: 0 | FN242: 0 | FO242: 0 | FP242: 0 | FQ242: 0 | FR242: 0 | FS242: 0 | FT242: 0 | FU242: 0 | FV242: 0 | FW242: 0 | FX242: 0 | FY242: 0 | FZ242: 0 | GA242: 0 | GB242: 0 | GC242: 0 | GD242: 0 | GE242: 0 | GF242: 0 | GG242: 0 | GH242: 0 | GI242: 0 | GJ242: 0 | GK242: 0 | GL242: 0 | GM242: 0 | GN242: 0 | GO242: 0 | GP242: 0 | GQ242: 0 | GR242: 0 | GS242: 0 | GT242: 0 | GU242: 0 | GV242: 0 | GW242: 0 | GX242: 0 | GY242: 0 | GZ242: 0 | HA242: 0 | HB242: 0 | HC242: 0 | HD242: 0 | HE242: 0 | HF242: 0 | HG242: 0 | HH242: 0 | HI242: 0 | HJ242: 0 | HK242: 0 | HL242: 0 | HM242: 0 | HN242: 0 | HO242: 0 | HP242: 0 | HQ242: 0 | HR242: 0 | HS242: 0 | HT242: 0 | HU242: 0 | HV242: 0 | HW242: 0
A243: 5 | B243: 0 | C243: 0 | D243: 0 | E243: 5 | F243: 5 | G243: 0 | H243: 0 | I243: 0 | J243: 0 | K243: 0 | L243: 7 | M243: 0 | N243: 6 | O243: 58 | P243: 1156 | Q243: 18 | R243: 0 | S243: 10 | T243: 259 | U243: 1133 | V243: 10 | W243: 0 | X243: 0 | Y243: 30 | Z243: 665 | AA243: 5 | AB243: 0 | AC243: 6 | AD243: 66 | AE243: 66 | AF243: 9 | AG243: 0 | AH243: 0 | AI243: 43 | AJ243: 6542 | AK243: 0 | AL243: 0 | AM243: 0 | AN243: 0 | AO243: 84 | AP243: 0 | AQ243: 0 | AR243: 0 | AS243: 13 | AT243: 13 | AU243: 0 | AV243: 0 | AW243: 0 | AX243: 0 | AY243: 0 | AZ243: 0 | BA243: 0 | BB243: 0 | BC243: 0 | BD243: 0 | BE243: 0 | BF243: 0 | BG243: 0 | BH243: 0 | BI243: 3 | BJ243: 1 | BK243: 41 | BL243: 20 | BM243: 11 | BN243: 1044 | BO243: 433 | BP243: 280 | BQ243: 1 | BR243: 195 | BS243: 192 | BT243: 192 | BU243: 0 | BV243: 0 | BW243: 0 | BX243: 0 | BY243: 0 | BZ243: 0 | CA243: 0 | CB243: 0 | CC243: 0 | CD243: 0 | CE243: 0 | CF243: 0 | CG243: 0 | CH243: 0 | CI243: 0 | CJ243: 0 | CK243: 0 | CL243: 0 | CM243: 0 | CN243: 0 | CO243: 0 | CP243: 0 | CQ243: 0 | CR243: 0 | CS243: 0 | CT243: 0 | CU243: 0 | CV243: 0 | CW243: 0 | CX243: 0 | CY243: 0 | CZ243: 0 | DA243: 0 | DB243: 0 | DC243: 0 | DD243: 0 | DE243: 0 | DF243: 0 | DG243: 0 | DH243: 0 | DI243: 0 | DJ243: 0 | DK243: 0 | DL243: 0 | DM243: 0 | DN243: 0 | DO243: 0 | DP243: 0 | DQ243: 0 | DR243: 0 | DS243: 0 | DT243: 0 | DU243: 0 | DV243: 0 | DW243: 0 | DX243: 0 | DY243: 0 | DZ243: 0 | EA243: 0 | EB243: 0 | EC243: 0 | ED243: 0 | EE243: 0 | EF243: 0 | EG243: 0 | EH243: 0 | EI243: 0 | EJ243: 0 | EK243: 0 | EL243: 0 | EM243: 0 | EN243: 0 | EO243: 0 | EP243: 0 | EQ243: 0 | ER243: 0 | ES243: 0 | ET243: 0 | EU243: 0 | EV243: 0 | EW243: 0 | EX243: 0 | EY243: 0 | EZ243: 0 | FA243: 0 | FB243: 0 | FC243: 0 | FD243: 0 | FE243: 0 | FF243: 0 | FG243: 0 | FH243: 0 | FI243: 0 | FJ243: 0 | FK243: 0 | FL243: 0 | FM243: 0 | FN243: 0 | FO243: 0 | FP243: 0 | FQ243: 0 | FR243: 0 | FS243: 0 | FT243: 0 | FU243: 0 | FV243: 0 | FW243: 0 | FX243: 0 | FY243: 0 | FZ243: 0 | GA243: 0 | GB243: 0 | GC243: 0 | GD243: 0 | GE243: 0 | GF243: 0 | GG243: 0 | GH243: 0 | GI243: 0 | GJ243: 0 | GK243: 0 | GL243: 0 | GM243: 0 | GN243: 0 | GO243: 0 | GP243: 0 | GQ243: 0 | GR243: 0 | GS243: 0 | GT243: 0 | GU243: 0 | GV243: 0 | GW243: 0 | GX243: 0 | GY243: 0 | GZ243: 0 | HA243: 0 | HB243: 0 | HC243: 0 | HD243: 0 | HE243: 0 | HF243: 0 | HG243: 0 | HH243: 0 | HI243: 0 | HJ243: 0 | HK243: 0 | HL243: 0 | HM243: 0 | HN243: 0 | HO243: 0 | HP243: 0 | HQ243: 0 | HR243: 0 | HS243: 0 | HT243: 0 | HU243: 0 | HV243: 0 | HW243: 0
A244: 4 | B244: 0 | C244: 0 | D244: 0 | E244: 2 | F244: 2 | G244: 0 | H244: 0 | I244: 0 | J244: 0 | K244: 0 | L244: 4 | M244: 0 | N244: 12 | O244: 42 | P244: 1007 | Q244: 13 | R244: 0 | S244: 13 | T244: 258 | U244: 1150 | V244: 7 | W244: 0 | X244: 4 | Y244: 27 | Z244: 663 | AA244: 8 | AB244: 0 | AC244: 11 | AD244: 96 | AE244: 96 | AF244: 12 | AG244: 0 | AH244: 6 | AI244: 39 | AJ244: 6694 | AK244: 0 | AL244: 0 | AM244: 0 | AN244: 0 | AO244: 121 | AP244: 0 | AQ244: 0 | AR244: 0 | AS244: 10 | AT244: 10 | AU244: 0 | AV244: 0 | AW244: 0 | AX244: 0 | AY244: 0 | AZ244: 0 | BA244: 0 | BB244: 0 | BC244: 0 | BD244: 0 | BE244: 0 | BF244: 0 | BG244: 0 | BH244: 0 | BI244: 1 | BJ244: 0 | BK244: 47 | BL244: 22 | BM244: 8 | BN244: 1116 | BO244: 346 | BP244: 319 | BQ244: 0 | BR244: 365 | BS244: 362 | BT244: 362 | BU244: 0 | BV244: 0 | BW244: 0 | BX244: 0 | BY244: 0 | BZ244: 0 | CA244: 0 | CB244: 0 | CC244: 0 | CD244: 0 | CE244: 0 | CF244: 0 | CG244: 0 | CH244: 0 | CI244: 0 | CJ244: 0 | CK244: 0 | CL244: 0 | CM244: 0 | CN244: 0 | CO244: 0 | CP244: 0 | CQ244: 0 | CR244: 0 | CS244: 0 | CT244: 0 | CU244: 0 | CV244: 0 | CW244: 0 | CX244: 0 | CY244: 0 | CZ244: 0 | DA244: 0 | DB244: 0 | DC244: 0 | DD244: 0 | DE244: 0 | DF244: 0 | DG244: 0 | DH244: 0 | DI244: 0 | DJ244: 0 | DK244: 0 | DL244: 0 | DM244: 0 | DN244: 0 | DO244: 0 | DP244: 0 | DQ244: 0 | DR244: 0 | DS244: 0 | DT244: 0 | DU244: 0 | DV244: 0 | DW244: 0 | DX244: 0 | DY244: 0 | DZ244: 0 | EA244: 0 | EB244: 0 | EC244: 0 | ED244: 0 | EE244: 0 | EF244: 0 | EG244: 0 | EH244: 0 | EI244: 0 | EJ244: 0 | EK244: 0 | EL244: 0 | EM244: 0 | EN244: 0 | EO244: 0 | EP244: 0 | EQ244: 0 | ER244: 0 | ES244: 0 | ET244: 0 | EU244: 0 | EV244: 0 | EW244: 0 | EX244: 0 | EY244: 0 | EZ244: 0 | FA244: 0 | FB244: 0 | FC244: 0 | FD244: 0 | FE244: 0 | FF244: 0 | FG244: 0 | FH244: 0 | FI244: 0 | FJ244: 0 | FK244: 0 | FL244: 0 | FM244: 0 | FN244: 0 | FO244: 0 | FP244: 0 | FQ244: 0 | FR244: 0 | FS244: 0 | FT244: 0 | FU244: 0 | FV244: 0 | FW244: 0 | FX244: 0 | FY244: 0 | FZ244: 0 | GA244: 0 | GB244: 0 | GC244: 0 | GD244: 0 | GE244: 0 | GF244: 0 | GG244: 0 | GH244: 0 | GI244: 0 | GJ244: 0 | GK244: 0 | GL244: 0 | GM244: 0 | GN244: 0 | GO244: 0 | GP244: 0 | GQ244: 0 | GR244: 0 | GS244: 0 | GT244: 0 | GU244: 0 | GV244: 0 | GW244: 0 | GX244: 0 | GY244: 0 | GZ244: 0 | HA244: 0 | HB244: 0 | HC244: 0 | HD244: 0 | HE244: 0 | HF244: 0 | HG244: 0 | HH244: 0 | HI244: 0 | HJ244: 0 | HK244: 0 | HL244: 0 | HM244: 0 | HN244: 0 | HO244: 0 | HP244: 0 | HQ244: 0 | HR244: 0 | HS244: 0 | HT244: 0 | HU244: 0 | HV244: 0 | HW244: 0
A245: 6 | B245: 0 | C245: 0 | D245: 0 | E245: 2 | F245: 2 | G245: 0 | H245: 0 | I245: 0 | J245: 0 | K245: 0 | L245: 4 | M245: 0 | N245: 1 | O245: 46 | P245: 1023 | Q245: 18 | R245: 0 | S245: 8 | T245: 228 | U245: 1033 | V245: 7 | W245: 0 | X245: 3 | Y245: 27 | Z245: 653 | AA245: 6 | AB245: 0 | AC245: 13 | AD245: 101 | AE245: 101 | AF245: 9 | AG245: 0 | AH245: 0 | AI245: 51 | AJ245: 7731 | AK245: 1 | AL245: 0 | AM245: 0 | AN245: 0 | AO245: 130 | AP245: 0 | AQ245: 0 | AR245: 0 | AS245: 15 | AT245: 15 | AU245: 0 | AV245: 0 | AW245: 0 | AX245: 0 | AY245: 0 | AZ245: 0 | BA245: 0 | BB245: 0 | BC245: 0 | BD245: 0 | BE245: 0 | BF245: 0 | BG245: 0 | BH245: 0 | BI245: 8 | BJ245: 2 | BK245: 47 | BL245: 11 | BM245: 5 | BN245: 1169 | BO245: 372 | BP245: 285 | BQ245: 0 | BR245: 208 | BS245: 208 | BT245: 208 | BU245: 0 | BV245: 0 | BW245: 0 | BX245: 0 | BY245: 0 | BZ245: 0 | CA245: 0 | CB245: 0 | CC245: 0 | CD245: 0 | CE245: 0 | CF245: 0 | CG245: 0 | CH245: 0 | CI245: 0 | CJ245: 0 | CK245: 0 | CL245: 0 | CM245: 0 | CN245: 0 | CO245: 0 | CP245: 0 | CQ245: 0 | CR245: 0 | CS245: 0 | CT245: 0 | CU245: 0 | CV245: 0 | CW245: 0 | CX245: 0 | CY245: 0 | CZ245: 0 | DA245: 0 | DB245: 0 | DC245: 0 | DD245: 0 | DE245: 0 | DF245: 0 | DG245: 0 | DH245: 0 | DI245: 0 | DJ245: 0 | DK245: 0 | DL245: 0 | DM245: 0 | DN245: 0 | DO245: 0 | DP245: 0 | DQ245: 0 | DR245: 0 | DS245: 0 | DT245: 0 | DU245: 0 | DV245: 0 | DW245: 0 | DX245: 0 | DY245: 0 | DZ245: 0 | EA245: 0 | EB245: 0 | EC245: 0 | ED245: 0 | EE245: 0 | EF245: 0 | EG245: 0 | EH245: 0 | EI245: 0 | EJ245: 0 | EK245: 0 | EL245: 0 | EM245: 0 | EN245: 0 | EO245: 0 | EP245: 0 | EQ245: 0 | ER245: 0 | ES245: 0 | ET245: 0 | EU245: 0 | EV245: 0 | EW245: 0 | EX245: 0 | EY245: 0 | EZ245: 0 | FA245: 0 | FB245: 0 | FC245: 0 | FD245: 0 | FE245: 0 | FF245: 0 | FG245: 0 | FH245: 0 | FI245: 0 | FJ245: 0 | FK245: 0 | FL245: 0 | FM245: 0 | FN245: 0 | FO245: 0 | FP245: 0 | FQ245: 0 | FR245: 0 | FS245: 0 | FT245: 0 | FU245: 0 | FV245: 0 | FW245: 0 | FX245: 0 | FY245: 0 | FZ245: 0 | GA245: 0 | GB245: 0 | GC245: 0 | GD245: 0 | GE245: 0 | GF245: 0 | GG245: 0 | GH245: 0 | GI245: 0 | GJ245: 0 | GK245: 0 | GL245: 0 | GM245: 0 | GN245: 0 | GO245: 0 | GP245: 0 | GQ245: 0 | GR245: 0 | GS245: 0 | GT245: 0 | GU245: 0 | GV245: 0 | GW245: 0 | GX245: 0 | GY245: 0 | GZ245: 0 | HA245: 0 | HB245: 0 | HC245: 0 | HD245: 0 | HE245: 0 | HF245: 0 | HG245: 0 | HH245: 0 | HI245: 0 | HJ245: 0 | HK245: 0 | HL245: 0 | HM245: 0 | HN245: 0 | HO245: 0 | HP245: 0 | HQ245: 0 | HR245: 0 | HS245: 0 | HT245: 0 | HU245: 0 | HV245: 0 | HW245: 0
A246: 8 | B246: 0 | C246: 0 | D246: 0 | E246: 1 | F246: 1 | G246: 0 | H246: 0 | I246: 0 | J246: 0 | K246: 0 | L246: 4 | M246: 0 | N246: 1 | O246: 51 | P246: 1027 | Q246: 11 | R246: 0 | S246: 3 | T246: 247 | U246: 1109 | V246: 5 | W246: 0 | X246: 0 | Y246: 29 | Z246: 659 | AA246: 4 | AB246: 0 | AC246: 4 | AD246: 94 | AE246: 94 | AF246: 10 | AG246: 0 | AH246: 0 | AI246: 42 | AJ246: 6417 | AK246: 0 | AL246: 0 | AM246: 0 | AN246: 0 | AO246: 11 | AP246: 0 | AQ246: 0 | AR246: 0 | AS246: 8 | AT246: 8 | AU246: 0 | AV246: 0 | AW246: 0 | AX246: 0 | AY246: 0 | AZ246: 0 | BA246: 0 | BB246: 0 | BC246: 0 | BD246: 0 | BE246: 0 | BF246: 0 | BG246: 0 | BH246: 0 | BI246: 9 | BJ246: 1 | BK246: 58 | BL246: 16 | BM246: 4 | BN246: 1127 | BO246: 423 | BP246: 325 | BQ246: 0 | BR246: 80 | BS246: 76 | BT246: 76 | BU246: 0 | BV246: 0 | BW246: 0 | BX246: 0 | BY246: 0 | BZ246: 0 | CA246: 0 | CB246: 0 | CC246: 0 | CD246: 0 | CE246: 0 | CF246: 0 | CG246: 0 | CH246: 0 | CI246: 0 | CJ246: 0 | CK246: 0 | CL246: 0 | CM246: 0 | CN246: 0 | CO246: 0 | CP246: 0 | CQ246: 0 | CR246: 0 | CS246: 0 | CT246: 0 | CU246: 0 | CV246: 0 | CW246: 0 | CX246: 0 | CY246: 0 | CZ246: 0 | DA246: 0 | DB246: 0 | DC246: 0 | DD246: 0 | DE246: 0 | DF246: 0 | DG246: 0 | DH246: 0 | DI246: 0 | DJ246: 0 | DK246: 0 | DL246: 0 | DM246: 0 | DN246: 0 | DO246: 0 | DP246: 0 | DQ246: 0 | DR246: 0 | DS246: 0 | DT246: 0 | DU246: 0 | DV246: 0 | DW246: 0 | DX246: 0 | DY246: 0 | DZ246: 0 | EA246: 0 | EB246: 0 | EC246: 0 | ED246: 0 | EE246: 0 | EF246: 0 | EG246: 0 | EH246: 0 | EI246: 0 | EJ246: 0 | EK246: 0 | EL246: 0 | EM246: 0 | EN246: 0 | EO246: 0 | EP246: 0 | EQ246: 0 | ER246: 0 | ES246: 0 | ET246: 0 | EU246: 0 | EV246: 0 | EW246: 0 | EX246: 0 | EY246: 0 | EZ246: 0 | FA246: 0 | FB246: 0 | FC246: 0 | FD246: 0 | FE246: 0 | FF246: 0 | FG246: 0 | FH246: 0 | FI246: 0 | FJ246: 0 | FK246: 0 | FL246: 0 | FM246: 0 | FN246: 0 | FO246: 0 | FP246: 0 | FQ246: 0 | FR246: 0 | FS246: 0 | FT246: 0 | FU246: 0 | FV246: 0 | FW246: 0 | FX246: 0 | FY246: 0 | FZ246: 0 | GA246: 0 | GB246: 0 | GC246: 0 | GD246: 0 | GE246: 0 | GF246: 0 | GG246: 0 | GH246: 0 | GI246: 0 | GJ246: 0 | GK246: 0 | GL246: 0 | GM246: 0 | GN246: 0 | GO246: 0 | GP246: 0 | GQ246: 0 | GR246: 0 | GS246: 0 | GT246: 0 | GU246: 0 | GV246: 0 | GW246: 0 | GX246: 0 | GY246: 0 | GZ246: 0 | HA246: 0 | HB246: 0 | HC246: 0 | HD246: 0 | HE246: 0 | HF246: 0 | HG246: 0 | HH246: 0 | HI246: 0 | HJ246: 0 | HK246: 0 | HL246: 0 | HM246: 0 | HN246: 0 | HO246: 0 | HP246: 0 | HQ246: 0 | HR246: 0 | HS246: 0 | HT246: 0 | HU246: 0 | HV246: 0 | HW246: 0
A247: 7 | B247: 0 | C247: 0 | D247: 0 | E247: 3 | F247: 3 | G247: 0 | H247: 0 | I247: 0 | J247: 0 | K247: 0 | L247: 3 | M247: 0 | N247: 3 | O247: 43 | P247: 998 | Q247: 11 | R247: 0 | S247: 8 | T247: 253 | U247: 1122 | V247: 8 | W247: 0 | X247: 1 | Y247: 26 | Z247: 647 | AA247: 3 | AB247: 0 | AC247: 3 | AD247: 60 | AE247: 60 | AF247: 7 | AG247: 0 | AH247: 2 | AI247: 40 | AJ247: 6240 | AK247: 0 | AL247: 0 | AM247: 0 | AN247: 1 | AO247: 170 | AP247: 0 | AQ247: 0 | AR247: 0 | AS247: 8 | AT247: 8 | AU247: 0 | AV247: 0 | AW247: 0 | AX247: 0 | AY247: 0 | AZ247: 0 | BA247: 0 | BB247: 0 | BC247: 0 | BD247: 0 | BE247: 0 | BF247: 0 | BG247: 0 | BH247: 0 | BI247: 8 | BJ247: 1 | BK247: 45 | BL247: 8 | BM247: 5 | BN247: 1044 | BO247: 408 | BP247: 360 | BQ247: 0 | BR247: 186 | BS247: 184 | BT247: 184 | BU247: 0 | BV247: 0 | BW247: 0 | BX247: 0 | BY247: 0 | BZ247: 0 | CA247: 0 | CB247: 0 | CC247: 0 | CD247: 0 | CE247: 0 | CF247: 0 | CG247: 0 | CH247: 0 | CI247: 0 | CJ247: 0 | CK247: 0 | CL247: 0 | CM247: 0 | CN247: 0 | CO247: 0 | CP247: 0 | CQ247: 0 | CR247: 0 | CS247: 0 | CT247: 0 | CU247: 0 | CV247: 0 | CW247: 0 | CX247: 0 | CY247: 0 | CZ247: 0 | DA247: 0 | DB247: 0 | DC247: 0 | DD247: 0 | DE247: 0 | DF247: 0 | DG247: 0 | DH247: 0 | DI247: 0 | DJ247: 0 | DK247: 0 | DL247: 0 | DM247: 0 | DN247: 0 | DO247: 0 | DP247: 0 | DQ247: 0 | DR247: 0 | DS247: 0 | DT247: 0 | DU247: 0 | DV247: 0 | DW247: 0 | DX247: 0 | DY247: 0 | DZ247: 0 | EA247: 0 | EB247: 0 | EC247: 0 | ED247: 0 | EE247: 0 | EF247: 0 | EG247: 0 | EH247: 0 | EI247: 0 | EJ247: 0 | EK247: 0 | EL247: 0 | EM247: 0 | EN247: 0 | EO247: 0 | EP247: 0 | EQ247: 0 | ER247: 0 | ES247: 0 | ET247: 0 | EU247: 0 | EV247: 0 | EW247: 0 | EX247: 0 | EY247: 0 | EZ247: 0 | FA247: 0 | FB247: 0 | FC247: 0 | FD247: 0 | FE247: 0 | FF247: 0 | FG247: 0 | FH247: 0 | FI247: 0 | FJ247: 0 | FK247: 0 | FL247: 0 | FM247: 0 | FN247: 0 | FO247: 0 | FP247: 0 | FQ247: 0 | FR247: 0 | FS247: 0 | FT247: 0 | FU247: 0 | FV247: 0 | FW247: 0 | FX247: 0 | FY247: 0 | FZ247: 0 | GA247: 0 | GB247: 0 | GC247: 0 | GD247: 0 | GE247: 0 | GF247: 0 | GG247: 0 | GH247: 0 | GI247: 0 | GJ247: 0 | GK247: 0 | GL247: 0 | GM247: 0 | GN247: 0 | GO247: 0 | GP247: 0 | GQ247: 0 | GR247: 0 | GS247: 0 | GT247: 0 | GU247: 0 | GV247: 0 | GW247: 0 | GX247: 0 | GY247: 0 | GZ247: 0 | HA247: 0 | HB247: 0 | HC247: 0 | HD247: 0 | HE247: 0 | HF247: 0 | HG247: 0 | HH247: 0 | HI247: 0 | HJ247: 0 | HK247: 0 | HL247: 0 | HM247: 0 | HN247: 0 | HO247: 0 | HP247: 0 | HQ247: 0 | HR247: 0 | HS247: 0 | HT247: 0 | HU247: 0 | HV247: 0 | HW247: 0
A248: 9 | B248: 0 | C248: 0 | D248: 0 | E248: 0 | F248: 0 | G248: 0 | H248: 0 | I248: 0 | J248: 0 | K248: 0 | L248: 3 | M248: 0 | N248: 3 | O248: 58 | P248: 1193 | Q248: 16 | R248: 0 | S248: 1 | T248: 231 | U248: 1042 | V248: 6 | W248: 0 | X248: 0 | Y248: 28 | Z248: 647 | AA248: 5 | AB248: 0 | AC248: 4 | AD248: 80 | AE248: 80 | AF248: 4 | AG248: 0 | AH248: 0 | AI248: 51 | AJ248: 7530 | AK248: 0 | AL248: 0 | AM248: 0 | AN248: 0 | AO248: 36 | AP248: 0 | AQ248: 0 | AR248: 0 | AS248: 6 | AT248: 6 | AU248: 0 | AV248: 0 | AW248: 0 | AX248: 0 | AY248: 0 | AZ248: 0 | BA248: 0 | BB248: 0 | BC248: 0 | BD248: 0 | BE248: 0 | BF248: 0 | BG248: 0 | BH248: 0 | BI248: 11 | BJ248: 0 | BK248: 60 | BL248: 10 | BM248: 11 | BN248: 1121 | BO248: 407 | BP248: 322 | BQ248: 0 | BR248: 87 | BS248: 85 | BT248: 85 | BU248: 0 | BV248: 0 | BW248: 0 | BX248: 0 | BY248: 0 | BZ248: 0 | CA248: 0 | CB248: 0 | CC248: 0 | CD248: 0 | CE248: 0 | CF248: 0 | CG248: 0 | CH248: 0 | CI248: 0 | CJ248: 0 | CK248: 0 | CL248: 0 | CM248: 0 | CN248: 0 | CO248: 0 | CP248: 0 | CQ248: 0 | CR248: 0 | CS248: 0 | CT248: 0 | CU248: 0 | CV248: 0 | CW248: 0 | CX248: 0 | CY248: 0 | CZ248: 0 | DA248: 0 | DB248: 0 | DC248: 0 | DD248: 0 | DE248: 0 | DF248: 0 | DG248: 0 | DH248: 0 | DI248: 0 | DJ248: 0 | DK248: 0 | DL248: 0 | DM248: 0 | DN248: 0 | DO248: 0 | DP248: 0 | DQ248: 0 | DR248: 0 | DS248: 0 | DT248: 0 | DU248: 0 | DV248: 0 | DW248: 0 | DX248: 0 | DY248: 0 | DZ248: 0 | EA248: 0 | EB248: 0 | EC248: 0 | ED248: 0 | EE248: 0 | EF248: 0 | EG248: 0 | EH248: 0 | EI248: 0 | EJ248: 0 | EK248: 0 | EL248: 0 | EM248: 0 | EN248: 0 | EO248: 0 | EP248: 0 | EQ248: 0 | ER248: 0 | ES248: 0 | ET248: 0 | EU248: 0 | EV248: 0 | EW248: 0 | EX248: 0 | EY248: 0 | EZ248: 0 | FA248: 0 | FB248: 0 | FC248: 0 | FD248: 0 | FE248: 0 | FF248: 0 | FG248: 0 | FH248: 0 | FI248: 0 | FJ248: 0 | FK248: 0 | FL248: 0 | FM248: 0 | FN248: 0 | FO248: 0 | FP248: 0 | FQ248: 0 | FR248: 0 | FS248: 0 | FT248: 0 | FU248: 0 | FV248: 0 | FW248: 0 | FX248: 0 | FY248: 0 | FZ248: 0 | GA248: 0 | GB248: 0 | GC248: 0 | GD248: 0 | GE248: 0 | GF248: 0 | GG248: 0 | GH248: 0 | GI248: 0 | GJ248: 0 | GK248: 0 | GL248: 0 | GM248: 0 | GN248: 0 | GO248: 0 | GP248: 0 | GQ248: 0 | GR248: 0 | GS248: 0 | GT248: 0 | GU248: 0 | GV248: 0 | GW248: 0 | GX248: 0 | GY248: 0 | GZ248: 0 | HA248: 0 | HB248: 0 | HC248: 0 | HD248: 0 | HE248: 0 | HF248: 0 | HG248: 0 | HH248: 0 | HI248: 0 | HJ248: 0 | HK248: 0 | HL248: 0 | HM248: 0 | HN248: 0 | HO248: 0 | HP248: 0 | HQ248: 0 | HR248: 0 | HS248: 0 | HT248: 0 | HU248: 0 | HV248: 0 | HW248: 0
A249: 10 | B249: 0 | C249: 0 | D249: 0 | E249: 2 | F249: 2 | G249: 0 | H249: 0 | I249: 0 | J249: 2 | K249: 2 | L249: 5 | M249: 0 | N249: 1 | O249: 55 | P249: 1093 | Q249: 8 | R249: 0 | S249: 33 | T249: 229 | U249: 1038 | V249: 6 | W249: 0 | X249: 3 | Y249: 29 | Z249: 645 | AA249: 3 | AB249: 0 | AC249: 1 | AD249: 71 | AE249: 71 | AF249: 10 | AG249: 0 | AH249: 0 | AI249: 49 | AJ249: 7710 | AK249: 0 | AL249: 0 | AM249: 0 | AN249: 0 | AO249: 0 | AP249: 0 | AQ249: 0 | AR249: 0 | AS249: 9 | AT249: 9 | AU249: 0 | AV249: 0 | AW249: 0 | AX249: 0 | AY249: 0 | AZ249: 0 | BA249: 0 | BB249: 0 | BC249: 0 | BD249: 0 | BE249: 0 | BF249: 0 | BG249: 0 | BH249: 0 | BI249: 4 | BJ249: 0 | BK249: 31 | BL249: 10 | BM249: 2 | BN249: 1155 | BO249: 274 | BP249: 382 | BQ249: 0 | BR249: 139 | BS249: 135 | BT249: 135 | BU249: 0 | BV249: 0 | BW249: 0 | BX249: 0 | BY249: 0 | BZ249: 0 | CA249: 0 | CB249: 0 | CC249: 0 | CD249: 0 | CE249: 0 | CF249: 0 | CG249: 0 | CH249: 0 | CI249: 0 | CJ249: 0 | CK249: 0 | CL249: 0 | CM249: 0 | CN249: 0 | CO249: 0 | CP249: 0 | CQ249: 0 | CR249: 0 | CS249: 0 | CT249: 0 | CU249: 0 | CV249: 0 | CW249: 0 | CX249: 0 | CY249: 0 | CZ249: 0 | DA249: 0 | DB249: 0 | DC249: 0 | DD249: 0 | DE249: 0 | DF249: 0 | DG249: 0 | DH249: 0 | DI249: 0 | DJ249: 0 | DK249: 0 | DL249: 0 | DM249: 0 | DN249: 0 | DO249: 0 | DP249: 0 | DQ249: 0 | DR249: 0 | DS249: 0 | DT249: 0 | DU249: 0 | DV249: 0 | DW249: 0 | DX249: 0 | DY249: 0 | DZ249: 0 | EA249: 0 | EB249: 0 | EC249: 0 | ED249: 0 | EE249: 0 | EF249: 0 | EG249: 0 | EH249: 0 | EI249: 0 | EJ249: 0 | EK249: 0 | EL249: 0 | EM249: 0 | EN249: 0 | EO249: 0 | EP249: 0 | EQ249: 0 | ER249: 0 | ES249: 0 | ET249: 0 | EU249: 0 | EV249: 0 | EW249: 0 | EX249: 0 | EY249: 0 | EZ249: 0 | FA249: 0 | FB249: 0 | FC249: 0 | FD249: 0 | FE249: 0 | FF249: 0 | FG249: 0 | FH249: 0 | FI249: 0 | FJ249: 0 | FK249: 0 | FL249: 0 | FM249: 0 | FN249: 0 | FO249: 0 | FP249: 0 | FQ249: 0 | FR249: 0 | FS249: 0 | FT249: 0 | FU249: 0 | FV249: 0 | FW249: 0 | FX249: 0 | FY249: 0 | FZ249: 0 | GA249: 0 | GB249: 0 | GC249: 0 | GD249: 0 | GE249: 0 | GF249: 0 | GG249: 0 | GH249: 0 | GI249: 0 | GJ249: 0 | GK249: 0 | GL249: 0 | GM249: 0 | GN249: 0 | GO249: 0 | GP249: 0 | GQ249: 0 | GR249: 0 | GS249: 0 | GT249: 0 | GU249: 0 | GV249: 0 | GW249: 0 | GX249: 0 | GY249: 0 | GZ249: 0 | HA249: 0 | HB249: 0 | HC249: 0 | HD249: 0 | HE249: 0 | HF249: 0 | HG249: 0 | HH249: 0 | HI249: 0 | HJ249: 0 | HK249: 0 | HL249: 0 | HM249: 0 | HN249: 0 | HO249: 0 | HP249: 0 | HQ249: 0 | HR249: 0 | HS249: 0 | HT249: 0 | HU249: 0 | HV249: 0 | HW249: 0
A250: 11 | B250: 0 | C250: 0 | D250: 0 | E250: 2 | F250: 2 | G250: 0 | H250: 0 | I250: 0 | J250: 0 | K250: 0 | L250: 3 | M250: 0 | N250: 5 | O250: 44 | P250: 911 | Q250: 7 | R250: 0 | S250: 67 | T250: 233 | U250: 1035 | V250: 5 | W250: 0 | X250: 5 | Y250: 27 | Z250: 632 | AA250: 1 | AB250: 0 | AC250: 2 | AD250: 80 | AE250: 80 | AF250: 10 | AG250: 0 | AH250: 3 | AI250: 44 | AJ250: 6940 | AK250: 0 | AL250: 0 | AM250: 0 | AN250: 0 | AO250: 10 | AP250: 0 | AQ250: 0 | AR250: 0 | AS250: 4 | AT250: 4 | AU250: 0 | AV250: 0 | AW250: 0 | AX250: 0 | AY250: 0 | AZ250: 0 | BA250: 0 | BB250: 0 | BC250: 0 | BD250: 0 | BE250: 0 | BF250: 0 | BG250: 0 | BH250: 0 | BI250: 4 | BJ250: 0 | BK250: 38 | BL250: 11 | BM250: 4 | BN250: 1103 | BO250: 302 | BP250: 283 | BQ250: 0 | BR250: 125 | BS250: 122 | BT250: 122 | BU250: 0 | BV250: 0 | BW250: 0 | BX250: 0 | BY250: 0 | BZ250: 0 | CA250: 0 | CB250: 0 | CC250: 0 | CD250: 0 | CE250: 0 | CF250: 0 | CG250: 0 | CH250: 0 | CI250: 0 | CJ250: 0 | CK250: 0 | CL250: 0 | CM250: 0 | CN250: 0 | CO250: 0 | CP250: 0 | CQ250: 0 | CR250: 0 | CS250: 0 | CT250: 0 | CU250: 0 | CV250: 0 | CW250: 0 | CX250: 0 | CY250: 0 | CZ250: 0 | DA250: 0 | DB250: 0 | DC250: 0 | DD250: 0 | DE250: 0 | DF250: 0 | DG250: 0 | DH250: 0 | DI250: 0 | DJ250: 0 | DK250: 0 | DL250: 0 | DM250: 0 | DN250: 0 | DO250: 0 | DP250: 0 | DQ250: 0 | DR250: 0 | DS250: 0 | DT250: 0 | DU250: 0 | DV250: 0 | DW250: 0 | DX250: 0 | DY250: 0 | DZ250: 0 | EA250: 0 | EB250: 0 | EC250: 0 | ED250: 0 | EE250: 0 | EF250: 0 | EG250: 0 | EH250: 0 | EI250: 0 | EJ250: 0 | EK250: 0 | EL250: 0 | EM250: 0 | EN250: 0 | EO250: 0 | EP250: 0 | EQ250: 0 | ER250: 0 | ES250: 0 | ET250: 0 | EU250: 0 | EV250: 0 | EW250: 0 | EX250: 0 | EY250: 0 | EZ250: 0 | FA250: 0 | FB250: 0 | FC250: 0 | FD250: 0 | FE250: 0 | FF250: 0 | FG250: 0 | FH250: 0 | FI250: 0 | FJ250: 0 | FK250: 0 | FL250: 0 | FM250: 0 | FN250: 0 | FO250: 0 | FP250: 0 | FQ250: 0 | FR250: 0 | FS250: 0 | FT250: 0 | FU250: 0 | FV250: 0 | FW250: 0 | FX250: 0 | FY250: 0 | FZ250: 0 | GA250: 0 | GB250: 0 | GC250: 0 | GD250: 0 | GE250: 0 | GF250: 0 | GG250: 0 | GH250: 0 | GI250: 0 | GJ250: 0 | GK250: 0 | GL250: 0 | GM250: 0 | GN250: 0 | GO250: 0 | GP250: 0 | GQ250: 0 | GR250: 0 | GS250: 0 | GT250: 0 | GU250: 0 | GV250: 0 | GW250: 0 | GX250: 0 | GY250: 0 | GZ250: 0 | HA250: 0 | HB250: 0 | HC250: 0 | HD250: 0 | HE250: 0 | HF250: 0 | HG250: 0 | HH250: 0 | HI250: 0 | HJ250: 0 | HK250: 0 | HL250: 0 | HM250: 0 | HN250: 0 | HO250: 0 | HP250: 0 | HQ250: 0 | HR250: 0 | HS250: 0 | HT250: 0 | HU250: 0 | HV250: 0 | HW250: 0
A251: Total | B251: 1 | C251: 0 | D251: 4 | E251: 38 | F251: 38 | G251: 0 | H251: 0 | I251: 0 | J251: 2 | K251: 2 | L251: 48 | M251: 0 | N251: 65 | O251: 564 | P251: 11721 | Q251: 130 | R251: 0 | S251: 222 | T251: 2660 | U251: 11878 | V251: 84 | W251: 0 | X251: 44 | Y251: 291 | Z251: 6906 | AA251: 48 | AB251: 0 | AC251: 57 | AD251: 902 | AE251: 902 | AF251: 99 | AG251: 0 | AH251: 22 | AI251: 493 | AJ251: 76478 | AK251: 1 | AL251: 0 | AM251: 0 | AN251: 1 | AO251: 662 | AP251: 0 | AQ251: 0 | AR251: 0 | AS251: 109 | AT251: 109 | AU251: 0 | AV251: 0 | AW251: 0 | AX251: 0 | AY251: 0 | AZ251: 0 | BA251: 0 | BB251: 0 | BC251: 0 | BD251: 0 | BE251: 0 | BF251: 0 | BG251: 0 | BH251: 1 | BI251: 82 | BJ251: 9 | BK251: 525 | BL251: 158 | BM251: 65 | BN251: 11914 | BO251: 3755 | BP251: 3264 | BQ251: 3 | BR251: 2438 | BS251: 2411 | BT251: 2411 | BU251: 0 | BV251: 0 | BW251: 0 | BX251: 0 | BY251: 0 | BZ251: 0 | CA251: 0 | CB251: 0 | CC251: 0 | CD251: 0 | CE251: 0 | CF251: 0 | CG251: 0 | CH251: 0 | CI251: 0 | CJ251: 0 | CK251: 0 | CL251: 0 | CM251: 0 | CN251: 0 | CO251: 0 | CP251: 0 | CQ251: 0 | CR251: 0 | CS251: 0 | CT251: 0 | CU251: 0 | CV251: 0 | CW251: 0 | CX251: 0 | CY251: 0 | CZ251: 0 | DA251: 0 | DB251: 0 | DC251: 0 | DD251: 0 | DE251: 0 | DF251: 0 | DG251: 0 | DH251: 0 | DI251: 0 | DJ251: 0 | DK251: 0 | DL251: 0 | DM251: 0 | DN251: 0 | DO251: 0 | DP251: 0 | DQ251: 0 | DR251: 0 | DS251: 0 | DT251: 0 | DU251: 0 | DV251: 0 | DW251: 0 | DX251: 0 | DY251: 0 | DZ251: 0 | EA251: 0 | EB251: 0 | EC251: 0 | ED251: 0 | EE251: 0 | EF251: 0 | EG251: 0 | EH251: 0 | EI251: 0 | EJ251: 0 | EK251: 0 | EL251: 0 | EM251: 0 | EN251: 0 | EO251: 0 | EP251: 0 | EQ251: 0 | ER251: 0 | ES251: 0 | ET251: 0 | EU251: 0 | EV251: 0 | EW251: 0 | EX251: 0 | EY251: 0 | EZ251: 0 | FA251: 0 | FB251: 0 | FC251: 0 | FD251: 0 | FE251: 0 | FF251: 0 | FG251: 0 | FH251: 0 | FI251: 0 | FJ251: 0 | FK251: 0 | FL251: 0 | FM251: 0 | FN251: 0 | FO251: 0 | FP251: 0 | FQ251: 0 | FR251: 0 | FS251: 0 | FT251: 0 | FU251: 0 | FV251: 0 | FW251: 0 | FX251: 0 | FY251: 0 | FZ251: 0 | GA251: 0 | GB251: 0 | GC251: 0 | GD251: 0 | GE251: 0 | GF251: 0 | GG251: 0 | GH251: 0 | GI251: 0 | GJ251: 0 | GK251: 0 | GL251: 0 | GM251: 0 | GN251: 0 | GO251: 0 | GP251: 0 | GQ251: 0 | GR251: 0 | GS251: 0 | GT251: 0 | GU251: 0 | GV251: 0 | GW251: 0 | GX251: 0 | GY251: 0 | GZ251: 0 | HA251: 0 | HB251: 0 | HC251: 0 | HD251: 0 | HE251: 0 | HF251: 0 | HG251: 0 | HH251: 0 | HI251: 0 | HJ251: 0 | HK251: 0 | HL251: 0 | HM251: 0 | HN251: 0 | HO251: 0 | HP251: 0 | HQ251: 0 | HR251: 0 | HS251: 0 | HT251: 0 | HU251: 0 | HV251: 0 | HW251: 0
A257: TOTAL
A258: =COUNT(A237:A255) -> 11 | B258: =SUM(B237:B255) -> 2 | C258: =SUM(C237:C255) -> 0 | D258: 8 | E258: 76 | F258: 76 | G258: 0 | H258: 0 | I258: 0 | J258: 4 | K258: 4 | L258: 96 | M258: 0 | N258: 130 | O258: 1128 | P258: 23442 | Q258: 260 | R258: 0 | S258: 444 | T258: 5320 | U258: 23756 | V258: 168 | W258: 0 | X258: 88 | Y258: 582 | Z258: 13812 | AA258: 96 | AB258: 0 | AC258: 114 | AD258: 1804 | AE258: 1804 | AF258: 198 | AG258: 0 | AH258: 44 | AI258: 986 | AJ258: 152956 | AK258: 2 | AL258: 0 | AM258: 0 | AN258: 2 | AO258: 1324 | AP258: 0 | AQ258: 0 | AR258: 0 | AS258: 218 | AT258: 218 | AU258: 0 | AV258: 0 | AW258: 0 | AX258: 0 | AY258: 0 | AZ258: 0 | BA258: 0 | BB258: 0 | BC258: 0 | BD258: 0 | BE258: 0 | BF258: 0 | BG258: 0 | BH258: 2 | BI258: 164 | BJ258: 18 | BK258: 1050 | BL258: 316 | BM258: 130 | BN258: 23828 | BO258: =SUM(BO237:BO255) -> 7510 | BP258: 6528 | BQ258: 6 | BR258: 4876 | BS258: 4822 | BT258: 4822 | BU258: 0 | BV258: 0 | BW258: 0 | BX258: 0 | BY258: 0 | BZ258: 0 | CA258: 0 | CB258: 0 | CC258: 0 | CD258: 0 | CE258: 0 | CF258: 0 | CG258: 0 | CH258: 0 | CI258: 0 | CJ258: 0 | CK258: 0 | CL258: 0 | CM258: 0 | CN258: 0 | CO258: 0 | CP258: 0 | CQ258: 0 | CR258: 0 | CS258: 0 | CT258: 0 | CU258: 0 | CV258: 0 | CW258: 0 | CX258: 0 | CY258: 0 | CZ258: 0 | DA258: 0 | DB258: 0 | DC258: 0 | DD258: 0 | DE258: 0 | DF258: 0 | DG258: 0 | DH258: 0 | DI258: 0 | DJ258: 0 | DK258: 0 | DL258: 0 | DM258: 0 | DN258: 0 | DO258: 0 | DP258: 0 | DQ258: 0 | DR258: 0 | DS258: 0 | DT258: 0 | DU258: 0 | DV258: 0 | DW258: 0 | DX258: 0 | DY258: 0 | DZ258: 0 | EA258: =SUM(EA237:EA255) -> 0 | EB258: 0 | EC258: 0 | ED258: 0 | EE258: 0 | EF258: 0 | EG258: 0 | EH258: 0 | EI258: 0 | EJ258: 0 | EK258: 0 | EL258: 0 | EM258: 0 | EN258: 0 | EO258: 0 | EP258: 0 | EQ258: 0 | ER258: 0 | ES258: 0 | ET258: 0 | EU258: 0 | EV258: 0 | EW258: 0 | EX258: 0 | EY258: 0 | EZ258: 0 | FA258: 0 | FB258: 0 | FC258: 0 | FD258: 0 | FE258: 0 | FF258: 0 | FG258: 0 | FH258: 0 | FI258: 0 | FJ258: 0 | FK258: 0 | FL258: 0 | FM258: 0 | FN258: 0 | FO258: 0 | FP258: 0 | FQ258: 0 | FR258: 0 | FS258: 0 | FT258: 0 | FU258: 0 | FV258: 0 | FW258: 0 | FX258: 0 | FY258: 0 | FZ258: 0 | GA258: 0 | GB258: 0 | GC258: 0 | GD258: 0 | GE258: 0 | GF258: 0 | GG258: 0 | GH258: 0 | GI258: 0 | GJ258: 0 | GK258: 0 | GL258: 0 | GM258: =SUM(GM237:GM255) -> 0 | GN258: 0 | GO258: 0 | GP258: 0 | GQ258: 0 | GR258: 0 | GS258: 0 | GT258: 0 | GU258: 0 | GV258: 0 | GW258: 0 | GX258: 0 | GY258: 0 | GZ258: 0 | HA258: 0 | HB258: 0 | HC258: 0 | HD258: 0 | HE258: 0 | HF258: 0 | HG258: 0 | HH258: 0 | HI258: 0 | HJ258: 0 | HK258: 0 | HL258: 0 | HM258: 0 | HN258: 0 | HO258: 0 | HP258: 0 | HQ258: 0 | HR258: 0 | HS258: 0 | HT258: 0 | HU258: 0 | HV258: 0 | HW258: 0 | HX258: 0
A259: =CONCATENATE(A240,"-",A241,"-",A242,"-",A243,"-",A244,"-",A245,"-",A246,"-",A247,"-",A248,"-",A249,"-",A250,"-",A251) -> 1-2-3-5-4-6-8-7-9-10-11-Total
B260: BAS001 | C260: BAS002 | D260: BAS003 | E260: BAS004 | F260: BAS005 | G260: BAS006 | H260: BAS007 | I260: BAS008 | J260: BAS009 | K260: BAS010 | L260: BAS011 | M260: BAS012 | N260: BAS013 | O260: BAS014 | P260: BAS015 | Q260: BAS016 | R260: BAS017 | S260: BAS018 | T260: BAS019 | U260: BAS020 | V260: BAS021 | W260: BAS022 | X260: BAS023 | Y260: BAS024 | Z260: BAS025 | AA260: BAS026 | AB260: BAS027 | AC260: BAS028 | AD260: BAS029 | AE260: BAS030 | AF260: BAS031 | AG260: BAS032 | AH260: BAS033 | AI260: BAS034 | AJ260: BAS035 | AK260: BAS036 | AL260: BAS037 | AM260: BAS038 | AN260: BAS039 | AO260: BAS040 | AP260: BAS041 | AQ260: BAS042 | AR260: BAS043 | AS260: BAS044 | AT260: BAS045 | AU260: BAS046 | AV260: BAS047 | AW260: BAS048 | AX260: BAS049 | AY260: BAS050 | AZ260: BAS051 | BA260: BAS052 | BB260: BAS053 | BC260: BAS054 | BD260: BAS055 | BE260: BAS056 | BF260: BAS057 | BG260: BAS058 | BH260: BAS059 | BI260: BAS060 | BJ260: BAS061 | BK260: BAS062 | BL260: BAS063 | BM260: BAS064 | BN260: BAS065 | BO260: BAS066 | BP260: BAS067 | BQ260: BAS068 | BR260: BAS069 | BS260: BAS070 | BT260: BAS071 | BU260: BAS072 | BV260: BAS073 | BW260: BAS074 | BX260: BAS075 | BY260: BAS076 | BZ260: BAS077 | CA260: BAS078 | CB260: BAS079 | CC260: BAS080 | CD260: BAS081 | CE260: BAS082 | CF260: BAS083 | CG260: BAS084 | CH260: BAS085 | CI260: BAS086 | CJ260: BAS087 | CK260: BAS088 | CL260: BAS089 | CM260: BAS090 | CN260: BAS091 | CO260: BAS092 | CP260: BAS093 | CQ260: BAS094 | CR260: BAS095 | CS260: BAS096 | CT260: BAS097 | CU260: BAS098 | CV260: BAS099 | CW260: BAS100 | CX260: BAS101 | CY260: BAS102 | CZ260: BAS103 | DA260: BAS104 | DB260: BAS105 | DC260: BAS106 | DD260: BAS107 | DE260: BAS108 | DF260: BAS109 | DG260: BAS110 | DH260: BAS111 | DI260: BAS112 | DJ260: BAS113 | DK260: BAS114 | DL260: BAS115 | DM260: BAS116 | DN260: BAS117 | DO260: BAS118 | DP260: BAS119 | DQ260: BAS120 | DR260: BAS121 | DS260: BAS122 | DT260: BAS123 | DU260: BAS124 | DV260: BAS125 | DW260: BAS126 | DX260: BAS127 | DY260: BAS128 | DZ260: BAS129 | EA260: BAS130 | EB260: BAS131 | EC260: BAS132 | ED260: BAS133 | EE260: BAS134 | EF260: BAS135 | EG260: BAS136 | EH260: BAS137 | EI260: BAS138 | EJ260: BAS139 | EK260: BAS140 | EL260: BAS141 | EM260: BAS142 | EN260: BAS143 | EO260: BAS144 | EP260: BAS145 | EQ260: BAS146 | ER260: BAS147 | ES260: BAS148 | ET260: BAS149 | EU260: BAS150 | EV260: BAS151 | EW260: BAS152 | EX260: BAS153 | EY260: BAS154 | EZ260: BAS155 | FA260: BAS156 | FB260: BAS157 | FC260: BAS158 | FD260: BAS159 | FE260: BAS160 | FF260: BAS161 | FG260: BAS162 | FH260: BAS163 | FI260: BAS164 | FJ260: BAS165 | FK260: BAS166 | FL260: BAS167 | FM260: BAS168 | FN260: BAS169 | FO260: BAS170 | FP260: BAS171 | FQ260: BAS172 | FR260: BAS173 | FS260: BAS174 | FT260: BAS175 | FU260: BAS176 | FV260: BAS177 | FW260: BAS178 | FX260: BAS179 | FY260: BAS180 | FZ260: BAS181 | GA260: BAS182 | GB260: BAS183 | GC260: BAS184 | GD260: BAS185 | GE260: BAS186 | GF260: BAS187 | GG260: BAS188 | GH260: BAS189 | GI260: BAS190 | GJ260: BAS191 | GK260: BAS192 | GL260: BAS193 | GM260: BAS194 | GN260: BAS195 | GO260: BAS196 | GP260: BAS197 | GQ260: BAS198 | GR260: BAS199 | GS260: BAS200 | GT260: BAS201 | GU260: BAS202 | GV260: BAS203 | GW260: BAS204 | GX260: BAS205 | GY260: BAS206 | GZ260: BAS207 | HA260: BAS208 | HB260: BAS209 | HC260: BAS210 | HD260: BAS211 | HE260: BAS212 | HF260: BAS213 | HG260: BAS214 | HH260: BAS215 | HI260: BAS216 | HJ260: BAS217 | HK260: BAS218 | HL260: BAS219 | HM260: BAS220 | HN260: BAS221 | HO260: BAS222 | HP260: BAS223 | HQ260: BAS224 | HR260: BAS225 | HS260: BAS226 | HT260: BAS227 | HU260: BAS228 | HV260: BAS229 | HW260: BAS230
B261: =IF(B260=B239,"SI","NO") -> SI | C261: =IF(C260=C239,"SI","NO") -> SI | D261: SI | E261: SI | F261: SI | G261: SI | H261: SI | I261: SI | J261: SI | K261: SI | L261: SI | M261: SI | N261: SI | O261: SI | P261: SI | Q261: SI | R261: SI | S261: SI | T261: SI | U261: SI | V261: SI | W261: SI | X261: SI | Y261: SI | Z261: SI | AA261: SI | AB261: SI | AC261: SI | AD261: SI | AE261: SI | AF261: SI | AG261: SI | AH261: SI | AI261: SI | AJ261: SI | AK261: SI | AL261: SI | AM261: SI | AN261: SI | AO261: SI | AP261: SI | AQ261: SI | AR261: SI | AS261: SI | AT261: SI | AU261: SI | AV261: SI | AW261: SI | AX261: SI | AY261: SI | AZ261: SI | BA261: SI | BB261: SI | BC261: SI | BD261: SI | BE261: SI | BF261: SI | BG261: SI | BH261: SI | BI261: SI | BJ261: SI | BK261: SI | BL261: SI | BM261: SI | BN261: SI | BO261: =IF(BO260=BO239,"SI","NO") -> SI | BP261: SI | BQ261: SI | BR261: SI | BS261: SI | BT261: SI | BU261: SI | BV261: SI | BW261: SI | BX261: SI | BY261: SI | BZ261: SI | CA261: SI | CB261: SI | CC261: SI | CD261: SI | CE261: SI | CF261: SI | CG261: SI | CH261: SI | CI261: SI | CJ261: SI | CK261: SI | CL261: SI | CM261: SI | CN261: SI | CO261: SI | CP261: SI | CQ261: SI | CR261: SI | CS261: SI | CT261: SI | CU261: SI | CV261: SI | CW261: SI | CX261: SI | CY261: SI | CZ261: SI | DA261: SI | DB261: SI | DC261: SI | DD261: SI | DE261: SI | DF261: SI | DG261: SI | DH261: SI | DI261: SI | DJ261: SI | DK261: SI | DL261: SI | DM261: SI | DN261: SI | DO261: SI | DP261: SI | DQ261: SI | DR261: SI | DS261: SI | DT261: SI | DU261: SI | DV261: SI | DW261: SI | DX261: SI | DY261: SI | DZ261: SI | EA261: =IF(EA260=EA239,"SI","NO") -> SI | EB261: SI | EC261: SI | ED261: SI | EE261: SI | EF261: SI | EG261: SI | EH261: SI | EI261: SI | EJ261: SI | EK261: SI | EL261: SI | EM261: SI | EN261: SI | EO261: SI | EP261: SI | EQ261: SI | ER261: SI | ES261: SI | ET261: SI | EU261: SI | EV261: SI | EW261: SI | EX261: SI | EY261: SI | EZ261: SI | FA261: SI | FB261: SI | FC261: SI | FD261: SI | FE261: SI | FF261: SI | FG261: SI | FH261: SI | FI261: SI | FJ261: SI | FK261: SI | FL261: SI | FM261: SI | FN261: SI | FO261: SI | FP261: SI | FQ261: SI | FR261: SI | FS261: SI | FT261: SI | FU261: SI | FV261: SI | FW261: SI | FX261: SI | FY261: SI | FZ261: SI | GA261: SI | GB261: SI | GC261: SI | GD261: SI | GE261: SI | GF261: SI | GG261: SI | GH261: SI | GI261: SI | GJ261: SI | GK261: SI | GL261: SI | GM261: =IF(GM260=GM239,"SI","NO") -> SI | GN261: SI | GO261: SI | GP261: SI | GQ261: SI | GR261: SI | GS261: SI | GT261: SI | GU261: SI | GV261: SI | GW261: SI | GX261: SI | GY261: SI | GZ261: SI | HA261: SI | HB261: SI | HC261: SI | HD261: SI | HE261: SI | HF261: SI | HG261: SI | HH261: SI | HI261: SI | HJ261: SI | HK261: SI | HL261: SI | HM261: SI | HN261: SI | HO261: SI | HP261: SI | HQ261: SI | HR261: SI | HS261: SI | HT261: SI | HU261: SI | HV261: SI | HW261: SI
A267: METAS
A268: ANNO | B268: 2024
A269: cod_red | B269: 03
A270: codmic | B270: (Todas)
A271: cod_prov | B271: (Todas)
A272: coddist | B272: (Todas)
A273: cod_estab | B273: (Todas)
A274: cod_eje | B274: (Todas)
A276: Valores
A277: f20087901 | B277: f23317201 | C277: f23317203 | D277: f23317204 | E277: f23317205 | F277: f23317206 | G277: f23317209 | H277: f23317210 | I277: f23317211 | J277: f23328701 | K277: f23328702 | L277: f23329101 | M277: f23329102 | N277: f23329103 | O277: f23329104 | P277: f23329105 | Q277: f23329106 | R277: f23329107 | S277: f23329108 | T277: f23329109 | U277: f23329110 | V277: f23329111 | W277: f23329112 | X277: f23329113 | Y277: f23329114 | Z277: f23329115 | AA277: f23329116 | AB277: f23329117 | AC277: f23329201 | AD277: f23329202 | AE277: f23329203 | AF277: f23329404 | AG277: f23329406 | AH277: f23329407 | AI277: f23329408 | AJ277: f23329409 | AK277: f23329413 | AL277: f23329414 | AM277: f23329415 | AN277: f23329416 | AO277: f23329417 | AP277: f23329418 | AQ277: f23329501 | AR277: f23329601 | AS277: f23329602 | AT277: f23329701 | AU277: f23329801 | AV277: f23329901 | AW277: f23329902 | AX277: f23329903 | AY277: f23330001 | AZ277: f23330002 | BA277: f23330003 | BB277: f23330004 | BC277: f23330005 | BD277: f23330401 | BE277: f23330402 | BF277: f23330403 | BG277: f23330501 | BH277: f23330503 | BI277: f23330504 | BJ277: f23330505 | BK277: f23330506 | BL277: f23330601 | BM277: f23330602 | BN277: f23330603 | BO277: f23330604 | BP277: f23330605 | BQ277: f23330606 | BR277: f23330608 | BS277: f23330609 | BT277: f23330610 | BU277: f23330611 | BV277: f23330612 | BW277: f23330613 | BX277: f23330614 | BY277: f23330615 | BZ277: f23330616 | CA277: f23330617 | CB277: f23330618 | CC277: f23330619 | CD277: f23330701 | CE277: f23330702 | CF277: f23330703 | CG277: f23330704 | CH277: f23330705 | CI277: f23330706 | CJ277: f23330707 | CK277: f23330708 | CL277: f23330709 | CM277: f23330710 | CN277: f23341201 | CO277: f23341202 | CP277: f23341203 | CQ277: f23341204 | CR277: f23341205 | CS277: f24427702 | CT277: f24427703 | CU277: f24427704 | CV277: f25000201 | CW277: f25000202 | CX277: f25000203 | CY277: f25000502 | CZ277: f25000503
A278: 4783 | B278: 1964 | C278: 1713 | D278: 1964 | E278: 1105 | F278: 1106 | G278: 652 | H278: 1558 | I278: 1211 | J278: 0 | K278: 0 | L278: 0 | M278: 0 | N278: 70 | O278: 0 | P278: 62 | Q278: 3964 | R278: 1116 | S278: 1373 | T278: 465 | U278: 11 | V278: 40 | W278: 0 | X278: 817 | Y278: 41 | Z278: 1042 | AA278: 5 | AB278: 280 | AC278: 10439 | AD278: 1305 | AE278: 179 | AF278: 27 | AG278: 197 | AH278: 40 | AI278: 57 | AJ278: 1860 | AK278: 27 | AL278: 13 | AM278: 38 | AN278: 8 | AO278: 140 | AP278: 490 | AQ278: 1433 | AR278: 241 | AS278: 136 | AT278: 379 | AU278: 1674 | AV278: 4 | AW278: 6 | AX278: 3 | AY278: 0 | AZ278: 0 | BA278: 0 | BB278: 0 | BC278: 0 | BD278: 180 | BE278: 100 | BF278: 30 | BG278: 1812 | BH278: 1591 | BI278: 0 | BJ278: 1682 | BK278: 1812 | BL278: 28 | BM278: 2 | BN278: 4 | BO278: 11 | BP278: 110 | BQ278: 4 | BR278: 7 | BS278: 2 | BT278: 8 | BU278: 34 | BV278: 15 | BW278: 0 | BX278: 0 | BY278: 7 | BZ278: 1 | CA278: 1 | CB278: 0 | CC278: 0 | CD278: 0 | CE278: 0 | CF278: 0 | CG278: 0 | CH278: 0 | CI278: 0 | CJ278: 0 | CK278: 0 | CL278: 0 | CM278: 0 | CN278: 570 | CO278: 226 | CP278: 1350 | CQ278: 228 | CR278: 11 | CS278: 2 | CT278: 2 | CU278: 0 | CV278: 0 | CW278: 0 | CX278: 0 | CY278: 8793 | CZ278: 0

Sheet INFORME
B3: GERENCIA REGIONAL DE SALUD CUSCO
B4: DIRECCION DE ESTADISTICA, INFORMATICA Y TELECOMUNICACIONES
B5: ESTRATEGIA SANITARIA DE SALUD SEXUAL Y REPRODUCTIVA
B7: REPORTE MENSUAL DE ACTIVIDADES DE PLANIFICACIÓN FAMILIAR
C9: GERESA | F9: CUSCO
C11: RED DE SALUD | F11: =+TABLAS!O9 -> 03 - LA CONVENCION | L11: PROVINCIA | N11: =+TABLAS!O12 ->  | R11: AÑO | S11: =+TABLAS!I16 -> 2024
C13: MICRO RED | F13: =+TABLAS!O10 ->  | L13: DISTRITO | N13: =+TABLAS!O13 ->  | R13: MES | S13: =+TABLAS!N26 -> ENE - NOV | T13: =+TABLAS!N20 -> 11
C15: ESTABLECIMIENTO DE SALUD | F15: =+TABLAS!O11 ->  | L15: EJECUTORA | N15: =+TABLAS!O14 ->  | S15: =IF(T13=1,MID(F15,1,9)&"_"&MID(F15,13,20)&"_"&MID(S13,1,3)&"_"&S11,MID(F15,1,9)&"_"&MID(F15,13,20)&"_"&MID(S13,1,3)&"_"&MID(S13,7,3)&"_"&S11) -> __ENE_NOV_2024
T16: CONTAR LOS TA | U16: FACTOR DE CONVERSIÓN
H17: 1 | I17: 2 | R17: 1 | S17: =+R17+1 -> 2 | T17: =+S17+1 -> 3 | U17: 4 | W17: =+U17+1 -> 5
C18: METODO | E18: Tipo de Usuaria | F18: TOTAL | H18: 10 a 11 a. | J18: 12 a 17 a. | L18: 18 a 29 a | N18: 30 a 59 a | P18: > 60 a. | R18: Usuaria Captada para PF | S18: Embarazo por Falla de Método | T18: Persona Protegida con Método Moderno (Los 12 últimos meses) | U18: Pareja Protegida con (Factor de Conversión) | V18: Factor de Conversión | W18: Control
F20: Nuevas | G20: Continuadoras | H20: Nuevas | I20: Continua-doras | J20: Nuevas | K20: Continua-doras | L20: Nuevas | M20: Continua-doras | N20: Nuevas | O20: Continua-doras | P20: Nuevas | Q20: Continua-doras
C21: TOTAL 5000043 | E21: A | F21: =+F23+F26+F29+F32+F35+F38+F41+F44+F47+F48+F49+F50 -> 7927 | G21: =+G23+G26+G29+G32+G35+G38+G41+G44+G47+G48+G49+G50 -> 19308 | H21: 6 | I21: 1 | J21: 609 | K21: 901 | L21: 3348 | M21: 6849 | N21: 3944 | O21: 11543 | P21: 20 | Q21: 14 | R21: =SUM(R23:R50) -> 411 | S21: =SUM(S23:S50) -> 0 | T21: 414 | U21: 6282.682051 | W21: =SUM(W23:W50) -> 217330 | AH21: =+GETPIVOTDATA(" BAS001",TABLAS!$A$97) -> 0
E22: I | F22: =+F24+F27+F30+F33+F36+F39+F42+F45 -> 25832 | G22: =+G24+G27+G30+G33+G36+G39+G42+G45 -> 82720 | H22: 7 | I22: 1 | J22: 1552 | K22: 2098 | L22: 10261 | M22: 23604 | N22: 13652 | O22: 56655 | P22: 360 | Q22: 362 | AH22: =+IMPORTARDATOSDINAMICOS(" BAS | AJ22: ",TABLAS!$A$238)
C23: DIU 3329105 | E23: A | F23: =+H23+J23+L23+N23+P23 -> 37 | G23: =+I23+K23+M23+O23+Q23 -> 1 | H23: =+GETPIVOTDATA(" BAS001",TABLAS!$A$59) -> 0 | I23: =+GETPIVOTDATA(" BAS002",TABLAS!$A$59) -> 0 | J23: =+GETPIVOTDATA(" BAS001",TABLAS!$A$97) -> 0 | K23: =+GETPIVOTDATA(" BAS002",TABLAS!$A$97) -> 0 | L23: =+GETPIVOTDATA(" BAS001",TABLAS!$A$132) -> 13 | M23: =+GETPIVOTDATA(" BAS002",TABLAS!$A$132) -> 0 | N23: =+GETPIVOTDATA(" BAS001",TABLAS!$A$167) -> 24 | O23: =+GETPIVOTDATA(" BAS002",TABLAS!$A$167) -> 1 | P23: =+GETPIVOTDATA(" BAS001",TABLAS!$A$203) -> 0 | Q23: =+GETPIVOTDATA(" BAS002",TABLAS!$A$203) -> 0 | R23: =+GETPIVOTDATA(" BAS001",TABLAS!$A$238) -> 1 | S23: =+GETPIVOTDATA(" BAS002",TABLAS!$A$238) -> 0 | T23: =+GETPIVOTDATA(" BAS003",TABLAS!$A$238) -> 4 | U23: =+W23/V23 -> 38 | V23: 1 | W23: =+GETPIVOTDATA(" BAS005",TABLAS!$A$238) -> 38 | X23: =+GETPIVOTDATA(" f23329105",TABLAS!$A$276) -> 62 | Y23: =+U23*100/X23 -> 61.29032258
E24: I | F24: =+H24+J24+L24+N24+P24 -> 37 | G24: =+I24+K24+M24+O24+Q24 -> 1 | H24: =+GETPIVOTDATA(" BAS003",TABLAS!$A$59) -> 0 | I24: =+GETPIVOTDATA(" BAS004",TABLAS!$A$59) -> 0 | J24: =+GETPIVOTDATA(" BAS003",TABLAS!$A$97) -> 0 | K24: =+GETPIVOTDATA(" BAS004",TABLAS!$A$97) -> 0 | L24: =+GETPIVOTDATA(" BAS003",TABLAS!$A$132) -> 13 | M24: =+GETPIVOTDATA(" BAS004",TABLAS!$A$132) -> 0 | N24: =+GETPIVOTDATA(" BAS003",TABLAS!$A$167) -> 24 | O24: =+GETPIVOTDATA(" BAS004",TABLAS!$A$167) -> 1 | P24: =+GETPIVOTDATA(" BAS003",TABLAS!$A$203) -> 0 | Q24: =+GETPIVOTDATA(" BAS004",TABLAS!$A$203) -> 0 | W24: =+F24+G24 -> 38 | X24: =+W23-W24 -> 0
H25: =+H23*1 -> 0 | I25: =+I23*1 -> 0 | J25: 0 | K25: 0 | L25: 13 | M25: 0 | N25: 24 | O25: 1 | P25: 0 | Q25: 0
C26: DIU LIBERADOR DE PROGESTÁGENO 3329105 | E26: A | F26: 2 | G26: 0 | H26: =+GETPIVOTDATA(" BAS005",TABLAS!$A$59) -> 0 | I26: =+GETPIVOTDATA(" BAS006",TABLAS!$A$59) -> 0 | J26: =+GETPIVOTDATA(" BAS005",TABLAS!$A$97) -> 0 | K26: =+GETPIVOTDATA(" BAS006",TABLAS!$A$97) -> 0 | L26: =+GETPIVOTDATA(" BAS005",TABLAS!$A$132) -> 2 | M26: =+GETPIVOTDATA(" BAS006",TABLAS!$A$132) -> 0 | N26: =+GETPIVOTDATA(" BAS005",TABLAS!$A$167) -> 0 | O26: =+GETPIVOTDATA(" BAS006",TABLAS!$A$167) -> 0 | P26: =+GETPIVOTDATA(" BAS005",TABLAS!$A$203) -> 0 | Q26: =+GETPIVOTDATA(" BAS006",TABLAS!$A$203) -> 0 | R26: =+GETPIVOTDATA(" BAS006",TABLAS!$A$238) -> 0 | S26: =+GETPIVOTDATA(" BAS007",TABLAS!$A$238) -> 0 | T26: =+GETPIVOTDATA(" BAS008",TABLAS!$A$238) -> 0 | U26: =+W26/V26 -> 2 | V26: 1 | W26: =+GETPIVOTDATA(" BAS010",TABLAS!$A$238) -> 2 | X26: =+GETPIVOTDATA(" f23329105",TABLAS!$A$276) -> 62 | Y26: =+U26*100/X26 -> 3.225806452
E27: I | F27: 2 | G27: 0 | H27: =+GETPIVOTDATA(" BAS007",TABLAS!$A$59) -> 0 | I27: =+GETPIVOTDATA(" BAS008",TABLAS!$A$59) -> 0 | J27: =+GETPIVOTDATA(" BAS007",TABLAS!$A$97) -> 0 | K27: =+GETPIVOTDATA(" BAS008",TABLAS!$A$97) -> 0 | L27: =+GETPIVOTDATA(" BAS007",TABLAS!$A$132) -> 2 | M27: =+GETPIVOTDATA(" BAS008",TABLAS!$A$132) -> 0 | N27: =+GETPIVOTDATA(" BAS007",TABLAS!$A$167) -> 0 | O27: =+GETPIVOTDATA(" BAS008",TABLAS!$A$167) -> 0 | P27: =+GETPIVOTDATA(" BAS007",TABLAS!$A$203) -> 0 | Q27: =+GETPIVOTDATA(" BAS008",TABLAS!$A$203) -> 0 | W27: =+F27+G27 -> 2 | X27: =+W26-W27 -> 0
H28: =+H26*1 -> 0 | I28: =+I26*1 -> 0 | J28: 0 | K28: 0 | L28: 2 | M28: 0 | N28: 0 | O28: 0 | P28: 0 | Q28: 0
C29: HORMONAL | D29: ORAL COMBINADO 3329108 | E29: A | F29: 941 | G29: 2609 | H29: =+GETPIVOTDATA(" BAS009",TABLAS!$A$59) -> 0 | I29: =+GETPIVOTDATA(" BAS010",TABLAS!$A$59) -> 0 | J29: =+GETPIVOTDATA(" BAS009",TABLAS!$A$97) -> 46 | K29: =+GETPIVOTDATA(" BAS010",TABLAS!$A$97) -> 23 | L29: =+GETPIVOTDATA(" BAS009",TABLAS!$A$132) -> 435 | M29: =+GETPIVOTDATA(" BAS010",TABLAS!$A$132) -> 720 | N29: =+GETPIVOTDATA(" BAS009",TABLAS!$A$167) -> 460 | O29: =+GETPIVOTDATA(" BAS010",TABLAS!$A$167) -> 1866 | P29: =+GETPIVOTDATA(" BAS009",TABLAS!$A$203) -> 0 | Q29: =+GETPIVOTDATA(" BAS010",TABLAS!$A$203) -> 0 | R29: =+GETPIVOTDATA(" BAS011",TABLAS!$A$238) -> 48 | S29: =+GETPIVOTDATA(" BAS012",TABLAS!$A$238) -> 0 | T29: =+GETPIVOTDATA(" BAS013",TABLAS!$A$238) -> 65 | U29: =+W29/V29 -> 901.6153846 | V29: 13 | W29: =+GETPIVOTDATA(" BAS015",TABLAS!$A$238) -> 11721 | X29: =+GETPIVOTDATA(" f23329108",TABLAS!$A$276) -> 1373 | Y29: =+U29*100/X29 -> 65.6675444
E30: I | F30: 1330 | G30: 10395 | H30: =+GETPIVOTDATA(" BAS011",TABLAS!$A$59) -> 0 | I30: =+GETPIVOTDATA(" BAS012",TABLAS!$A$59) -> 0 | J30: =+GETPIVOTDATA(" BAS011",TABLAS!$A$97) -> 50 | K30: =+GETPIVOTDATA(" BAS012",TABLAS!$A$97) -> 86 | L30: =+GETPIVOTDATA(" BAS011",TABLAS!$A$132) -> 572 | M30: =+GETPIVOTDATA(" BAS012",TABLAS!$A$132) -> 2845 | N30: =+GETPIVOTDATA(" BAS011",TABLAS!$A$167) -> 708 | O30: =+GETPIVOTDATA(" BAS012",TABLAS!$A$167) -> 7464 | P30: =+GETPIVOTDATA(" BAS011",TABLAS!$A$203) -> 0 | Q30: =+GETPIVOTDATA(" BAS012",TABLAS!$A$203) -> 0 | W30: =+F30+G30 -> 11725 | X30: =+W29-W30 -> -4 | AB30: =+AC29+1 -> 1 | AC30: =+AB30+1 -> 2 | AE30: =IF(AB30<9,CONCATENATE("00",AB30),IF(AND(AB30>9,AB30<100),CONCATENATE("0",AB30),AB30)) -> 001 | AF30: =IF(AC30<9,CONCATENATE("00",AC30),IF(AND(AC30>9,AC30<100),CONCATENATE("0",AC30),AC30)) -> 002 | AH30: =CONCATENATE($AH$22,AE30,$AJ$22) -> =+IMPORTARDATOSDINAMICOS(" BAS001",TABLAS!$A$238) | AI30: =CONCATENATE($AH$22,AF30,$AJ$22) -> =+IMPORTARDATOSDINAMICOS(" BAS002",TABLAS!$A$238)
H31: =+H29*1 -> 0 | I31: =+I29*4 -> 0 | J31: =+J29*1 -> 46 | K31: =+K29*4 -> 92 | L31: =+L29*1 -> 435 | M31: =+M29*4 -> 2880 | N31: =+N29*1 -> 460 | O31: =+O29*4 -> 7464 | P31: =+P29*1 -> 0 | Q31: =+Q29*4 -> 0
D32: INYECTABLE TRIMESTRAL 3329106 | E32: A | F32: 2467 | G32: 9424 | H32: =+GETPIVOTDATA(" BAS013",TABLAS!$A$59) -> 1 | I32: =+GETPIVOTDATA(" BAS014",TABLAS!$A$59) -> 0 | J32: =+GETPIVOTDATA(" BAS013",TABLAS!$A$97) -> 234 | K32: =+GETPIVOTDATA(" BAS014",TABLAS!$A$97) -> 525 | L32: =+GETPIVOTDATA(" BAS013",TABLAS!$A$132) -> 1051 | M32: =+GETPIVOTDATA(" BAS014",TABLAS!$A$132) -> 3557 | N32: =+GETPIVOTDATA(" BAS013",TABLAS!$A$167) -> 1181 | O32: =+GETPIVOTDATA(" BAS014",TABLAS!$A$167) -> 5340 | P32: =+GETPIVOTDATA(" BAS013",TABLAS!$A$203) -> 0 | Q32: =+GETPIVOTDATA(" BAS014",TABLAS!$A$203) -> 2 | R32: =+GETPIVOTDATA(" BAS016",TABLAS!$A$238) -> 130 | S32: =+GETPIVOTDATA(" BAS017",TABLAS!$A$238) -> 0 | T32: =+GETPIVOTDATA(" BAS018",TABLAS!$A$238) -> 222 | U32: =+W32/V32 -> 2969.5 | V32: 4 | W32: =+GETPIVOTDATA(" BAS020",TABLAS!$A$238) -> 11878 | X32: =+GETPIVOTDATA(" f23329106",TABLAS!$A$276) -> 3964 | Y32: =+U32*100/X32 -> 74.91170535 | AB32: =+AC30+1 -> 3 | AC32: 4 | AE32: 003 | AF32: 004 | AH32: =+IMPORTARDATOSDINAMICOS(" BAS003",TABLAS!$A$238) | AI32: =+IMPORTARDATOSDINAMICOS(" BAS004",TABLAS!$A$238)
E33: I | F33: 2428 | G33: 9461 | H33: =+GETPIVOTDATA(" BAS015",TABLAS!$A$59) -> 2 | I33: =+GETPIVOTDATA(" BAS016",TABLAS!$A$59) -> 0 | J33: =+GETPIVOTDATA(" BAS015",TABLAS!$A$97) -> 228 | K33: =+GETPIVOTDATA(" BAS016",TABLAS!$A$97) -> 520 | L33: =+GETPIVOTDATA(" BAS015",TABLAS!$A$132) -> 1040 | M33: =+GETPIVOTDATA(" BAS016",TABLAS!$A$132) -> 3554 | N33: =+GETPIVOTDATA(" BAS015",TABLAS!$A$167) -> 1158 | O33: =+GETPIVOTDATA(" BAS016",TABLAS!$A$167) -> 5385 | P33: =+GETPIVOTDATA(" BAS015",TABLAS!$A$203) -> 0 | Q33: =+GETPIVOTDATA(" BAS016",TABLAS!$A$203) -> 2 | W33: =+F33+G33 -> 11889 | X33: =+W32-W33 -> -11 | AB33: 5 | AC33: 6 | AE33: 005 | AF33: 006 | AH33: =+IMPORTARDATOSDINAMICOS(" BAS005",TABLAS!$A$238) | AI33: =+IMPORTARDATOSDINAMICOS(" BAS006",TABLAS!$A$238)
H34: =+H32*1 -> 1 | I34: =+I32*1 -> 0 | J34: 234 | K34: 525 | L34: 1051 | M34: 3557 | N34: 1181 | O34: 5340 | P34: 0 | Q34: 2
D35: INYECTABLE MENSUAL 3329113 | E35: A | F35: 1811 | G35: 5148 | H35: =+GETPIVOTDATA(" BAS017",TABLAS!$A$59) -> 2 | I35: =+GETPIVOTDATA(" BAS018",TABLAS!$A$59) -> 1 | J35: =+GETPIVOTDATA(" BAS017",TABLAS!$A$97) -> 146 | K35: =+GETPIVOTDATA(" BAS018",TABLAS!$A$97) -> 306 | L35: =+GETPIVOTDATA(" BAS017",TABLAS!$A$132) -> 749 | M35: =+GETPIVOTDATA(" BAS018",TABLAS!$A$132) -> 1980 | N35: =+GETPIVOTDATA(" BAS017",TABLAS!$A$167) -> 914 | O35: =+GETPIVOTDATA(" BAS018",TABLAS!$A$167) -> 2861 | P35: =+GETPIVOTDATA(" BAS017",TABLAS!$A$203) -> 0 | Q35: =+GETPIVOTDATA(" BAS018",TABLAS!$A$203) -> 0 | R35: =+GETPIVOTDATA(" BAS021",TABLAS!$A$238) -> 84 | S35: =+GETPIVOTDATA(" BAS022",TABLAS!$A$238) -> 0 | T35: =+GETPIVOTDATA(" BAS023",TABLAS!$A$238) -> 44 | U35: =+W35/V35 -> 575.5 | V35: 12 | W35: =+GETPIVOTDATA(" BAS025",TABLAS!$A$238) -> 6906 | X35: =+GETPIVOTDATA(" f23329113",TABLAS!$A$276) -> 817 | Y35: =+U35*100/X35 -> 70.44063647 | AB35: =+AC33+1 -> 7 | AC35: 8 | AE35: 007 | AF35: 008 | AH35: =+IMPORTARDATOSDINAMICOS(" BAS007",TABLAS!$A$238) | AI35: =+IMPORTARDATOSDINAMICOS(" BAS008",TABLAS!$A$238)
E36: I | F36: 1733 | G36: 5185 | H36: =+GETPIVOTDATA(" BAS019",TABLAS!$A$59) -> 2 | I36: =+GETPIVOTDATA(" BAS020",TABLAS!$A$59) -> 1 | J36: =+GETPIVOTDATA(" BAS019",TABLAS!$A$97) -> 136 | K36: =+GETPIVOTDATA(" BAS020",TABLAS!$A$97) -> 305 | L36: =+GETPIVOTDATA(" BAS019",TABLAS!$A$132) -> 739 | M36: =+GETPIVOTDATA(" BAS020",TABLAS!$A$132) -> 1986 | N36: =+GETPIVOTDATA(" BAS019",TABLAS!$A$167) -> 856 | O36: =+GETPIVOTDATA(" BAS020",TABLAS!$A$167) -> 2893 | P36: =+GETPIVOTDATA(" BAS019",TABLAS!$A$203) -> 0 | Q36: =+GETPIVOTDATA(" BAS020",TABLAS!$A$203) -> 0 | W36: =+F36+G36 -> 6918 | X36: =+W35-W36 -> -12 | AB36: 9 | AC36: 10 | AE36: 9 | AF36: 010 | AH36: =+IMPORTARDATOSDINAMICOS(" BAS9",TABLAS!$A$238) | AI36: =+IMPORTARDATOSDINAMICOS(" BAS010",TABLAS!$A$238)
H37: =+H35*1 -> 2 | I37: =+I35*1 -> 1 | J37: 146 | K37: 306 | L37: 749 | M37: 1980 | N37: 914 | O37: 2861 | P37: 0 | Q37: 0
D38: IMPLANTE 3329115 | E38: A | F38: 690 | G38: 180 | H38: =+GETPIVOTDATA(" BAS021",TABLAS!$A$59) -> 1 | I38: =+GETPIVOTDATA(" BAS022",TABLAS!$A$59) -> 0 | J38: =+GETPIVOTDATA(" BAS021",TABLAS!$A$97) -> 66 | K38: =+GETPIVOTDATA(" BAS022",TABLAS!$A$97) -> 6 | L38: =+GETPIVOTDATA(" BAS021",TABLAS!$A$132) -> 346 | M38: =+GETPIVOTDATA(" BAS022",TABLAS!$A$132) -> 78 | N38: =+GETPIVOTDATA(" BAS021",TABLAS!$A$167) -> 277 | O38: =+GETPIVOTDATA(" BAS022",TABLAS!$A$167) -> 96 | P38: =+GETPIVOTDATA(" BAS021",TABLAS!$A$203) -> 0 | Q38: =+GETPIVOTDATA(" BAS022",TABLAS!$A$203) -> 0 | R38: =+GETPIVOTDATA(" BAS026",TABLAS!$A$238) -> 48 | S38: =+GETPIVOTDATA(" BAS027",TABLAS!$A$238) -> 0 | T38: =+GETPIVOTDATA(" BAS028",TABLAS!$A$238) -> 57 | U38: =+W38/V38 -> 902 | V38: 1 | W38: =+GETPIVOTDATA(" BAS030",TABLAS!$A$238) -> 902 | X38: =+GETPIVOTDATA(" f23329115",TABLAS!$A$276) -> 1042 | Y38: =+U38*100/X38 -> 86.56429942 | AB38: =+AC36+1 -> 11 | AC38: 12 | AE38: 011 | AF38: 012 | AH38: =+IMPORTARDATOSDINAMICOS(" BAS011",TABLAS!$A$238) | AI38: =+IMPORTARDATOSDINAMICOS(" BAS012",TABLAS!$A$238)
E39: I | F39: 690 | G39: 180 | H39: =+GETPIVOTDATA(" BAS023",TABLAS!$A$59) -> 1 | I39: =+GETPIVOTDATA(" BAS024",TABLAS!$A$59) -> 0 | J39: =+GETPIVOTDATA(" BAS023",TABLAS!$A$97) -> 66 | K39: =+GETPIVOTDATA(" BAS024",TABLAS!$A$97) -> 6 | L39: =+GETPIVOTDATA(" BAS023",TABLAS!$A$132) -> 346 | M39: =+GETPIVOTDATA(" BAS024",TABLAS!$A$132) -> 78 | N39: =+GETPIVOTDATA(" BAS023",TABLAS!$A$167) -> 277 | O39: =+GETPIVOTDATA(" BAS024",TABLAS!$A$167) -> 96 | P39: =+GETPIVOTDATA(" BAS023",TABLAS!$A$203) -> 0 | Q39: =+GETPIVOTDATA(" BAS024",TABLAS!$A$203) -> 0 | W39: =+F39+G39 -> 870 | X39: =+W38-W39 -> 32 | AB39: 13 | AC39: 14 | AE39: 013 | AF39: 014 | AH39: =+IMPORTARDATOSDINAMICOS(" BAS013",TABLAS!$A$238) | AI39: =+IMPORTARDATOSDINAMICOS(" BAS014",TABLAS!$A$238)
H40: =+H38*1 -> 1 | J40: =+J38*1 -> 66 | L40: =+L38*1 -> 346 | N40: =+N38*1 -> 277 | P40: =+P38*1 -> 0
C41: BARRERA | D41: CONDON MASCULINO 3329107 | E41: A | F41: 1731 | G41: 1930 | H41: =+GETPIVOTDATA(" BAS025",TABLAS!$A$59) -> 2 | I41: =+GETPIVOTDATA(" BAS026",TABLAS!$A$59) -> 0 | J41: =+GETPIVOTDATA(" BAS025",TABLAS!$A$97) -> 105 | K41: =+GETPIVOTDATA(" BAS026",TABLAS!$A$97) -> 41 | L41: =+GETPIVOTDATA(" BAS025",TABLAS!$A$132) -> 676 | M41: =+GETPIVOTDATA(" BAS026",TABLAS!$A$132) -> 508 | N41: =+GETPIVOTDATA(" BAS025",TABLAS!$A$167) -> 928 | O41: =+GETPIVOTDATA(" BAS026",TABLAS!$A$167) -> 1369 | P41: =+GETPIVOTDATA(" BAS025",TABLAS!$A$203) -> 20 | Q41: =+GETPIVOTDATA(" BAS026",TABLAS!$A$203) -> 12 | R41: =+GETPIVOTDATA(" BAS031",TABLAS!$A$238) -> 99 | S41: =+GETPIVOTDATA(" BAS032",TABLAS!$A$238) -> 0 | T41: =+GETPIVOTDATA(" BAS033",TABLAS!$A$238) -> 22 | U41: =+W41/V41 -> 764.78 | V41: 100 | W41: =+GETPIVOTDATA(" BAS035",TABLAS!$A$238) -> 76478 | X41: =+GETPIVOTDATA(" f23329107",TABLAS!$A$276) -> 1116 | Y41: =+U41*100/X41 -> 68.52867384 | AB41: =+AC39+1 -> 15 | AC41: 16 | AE41: 015 | AF41: 016 | AH41: =+IMPORTARDATOSDINAMICOS(" BAS015",TABLAS!$A$238) | AI41: =+IMPORTARDATOSDINAMICOS(" BAS016",TABLAS!$A$238)
E42: I | F42: 19113 | G42: 57335 | H42: =+GETPIVOTDATA(" BAS027",TABLAS!$A$59) -> 2 | I42: =+GETPIVOTDATA(" BAS028",TABLAS!$A$59) -> 0 | J42: =+GETPIVOTDATA(" BAS027",TABLAS!$A$97) -> 1062 | K42: =+GETPIVOTDATA(" BAS028",TABLAS!$A$97) -> 1181 | L42: =+GETPIVOTDATA(" BAS027",TABLAS!$A$132) -> 7331 | M42: =+GETPIVOTDATA(" BAS028",TABLAS!$A$132) -> 15111 | N42: =+GETPIVOTDATA(" BAS027",TABLAS!$A$167) -> 10358 | O42: =+GETPIVOTDATA(" BAS028",TABLAS!$A$167) -> 40683 | P42: =+GETPIVOTDATA(" BAS027",TABLAS!$A$203) -> 360 | Q42: =+GETPIVOTDATA(" BAS028",TABLAS!$A$203) -> 360 | W42: =+F42+G42 -> 76448 | X42: =+W41-W42 -> 30 | AB42: 17 | AC42: 18 | AE42: 017 | AF42: 018 | AH42: =+IMPORTARDATOSDINAMICOS(" BAS017",TABLAS!$A$238) | AI42: =+IMPORTARDATOSDINAMICOS(" BAS018",TABLAS!$A$238)
H43: =+H41*10 -> 20 | I43: =+I41*30 -> 0 | J43: =+J41*10 -> 1050 | K43: =+K41*30 -> 1230 | L43: =+L41*10 -> 6760 | M43: =+M41*30 -> 15240 | N43: =+N41*10 -> 9280 | O43: =+O41*30 -> 41070 | P43: =+P41*10 -> 200 | Q43: =+Q41*30 -> 360
D44: CONDON FEMENINO 3329114 | E44: A | F44: 54 | G44: 6 | H44: =+GETPIVOTDATA(" BAS029",TABLAS!$A$59) -> 0 | I44: =+GETPIVOTDATA(" BAS030",TABLAS!$A$59) -> 0 | J44: =+GETPIVOTDATA(" BAS029",TABLAS!$A$97) -> 0 | K44: =+GETPIVOTDATA(" BAS030",TABLAS!$A$97) -> 0 | L44: =+GETPIVOTDATA(" BAS029",TABLAS!$A$132) -> 26 | M44: =+GETPIVOTDATA(" BAS030",TABLAS!$A$132) -> 1 | N44: =+GETPIVOTDATA(" BAS029",TABLAS!$A$167) -> 28 | O44: =+GETPIVOTDATA(" BAS030",TABLAS!$A$167) -> 5 | P44: =+GETPIVOTDATA(" BAS029",TABLAS!$A$203) -> 0 | Q44: =+GETPIVOTDATA(" BAS030",TABLAS!$A$203) -> 0 | R44: =+GETPIVOTDATA(" BAS036",TABLAS!$A$238) -> 1 | S44: =+GETPIVOTDATA(" BAS037",TABLAS!$A$238) -> 0 | T44: =+GETPIVOTDATA(" BAS038",TABLAS!$A$238) -> 0 | U44: =+W44/V44 -> 6.62 | V44: 100 | W44: =+GETPIVOTDATA(" BAS040",TABLAS!$A$238) -> 662 | X44: =+GETPIVOTDATA(" f23329114",TABLAS!$A$276) -> 41 | Y44: =+U44*100/X44 -> 16.14634146 | AB44: =+AC42+1 -> 19 | AC44: 20 | AE44: 019 | AF44: 020 | AH44: =+IMPORTARDATOSDINAMICOS(" BAS019",TABLAS!$A$238) | AI44: =+IMPORTARDATOSDINAMICOS(" BAS020",TABLAS!$A$238)
E45: I | F45: 499 | G45: 163 | H45: =+GETPIVOTDATA(" BAS031",TABLAS!$A$59) -> 0 | I45: =+GETPIVOTDATA(" BAS032",TABLAS!$A$59) -> 0 | J45: =+GETPIVOTDATA(" BAS031",TABLAS!$A$97) -> 10 | K45: =+GETPIVOTDATA(" BAS032",TABLAS!$A$97) -> 0 | L45: =+GETPIVOTDATA(" BAS031",TABLAS!$A$132) -> 218 | M45: =+GETPIVOTDATA(" BAS032",TABLAS!$A$132) -> 30 | N45: =+GETPIVOTDATA(" BAS031",TABLAS!$A$167) -> 271 | O45: =+GETPIVOTDATA(" BAS032",TABLAS!$A$167) -> 133 | P45: =+GETPIVOTDATA(" BAS031",TABLAS!$A$203) -> 0 | Q45: =+GETPIVOTDATA(" BAS032",TABLAS!$A$203) -> 0 | W45: =+F45+G45 -> 662 | X45: =+W44-W45 -> 0 | AB45: 21 | AC45: 22 | AE45: 021 | AF45: 022 | AH45: =+IMPORTARDATOSDINAMICOS(" BAS021",TABLAS!$A$238) | AI45: =+IMPORTARDATOSDINAMICOS(" BAS022",TABLAS!$A$238)
H46: =+H44*10 -> 0 | I46: =+I44*30 -> 0 | J46: =+J44*10 -> 0 | K46: =+K44*30 -> 0 | L46: =+L44*10 -> 260 | M46: =+M44*30 -> 30 | N46: =+N44*10 -> 280 | O46: =+O44*30 -> 150 | P46: =+P44*10 -> 0 | Q46: =+Q44*30 -> 0
C47: AQV FEMENINO 3329103 | E47: A | F47: 107 | G47: 0 | H47: =+GETPIVOTDATA(" BAS033",TABLAS!$A$59) -> 0 | I47: =+GETPIVOTDATA(" BAS034",TABLAS!$A$59) -> 0 | J47: =+GETPIVOTDATA(" BAS033",TABLAS!$A$97) -> 0 | K47: =+GETPIVOTDATA(" BAS034",TABLAS!$A$97) -> 0 | L47: =+GETPIVOTDATA(" BAS033",TABLAS!$A$132) -> 19 | M47: =+GETPIVOTDATA(" BAS034",TABLAS!$A$132) -> 0 | N47: =+GETPIVOTDATA(" BAS033",TABLAS!$A$167) -> 88 | O47: =+GETPIVOTDATA(" BAS034",TABLAS!$A$167) -> 0 | P47: =+GETPIVOTDATA(" BAS033",TABLAS!$A$203) -> 0 | Q47: =+GETPIVOTDATA(" BAS034",TABLAS!$A$203) -> 0 | R47: =+GETPIVOTDATA(" BAS041",TABLAS!$A$238) -> 0 | S47: =+GETPIVOTDATA(" BAS042",TABLAS!$A$238) -> 0 | T47: =+GETPIVOTDATA(" BAS043",TABLAS!$A$238) -> 0 | U47: =+W47/V47 -> 109 | V47: 1 | W47: =+GETPIVOTDATA(" BAS045",TABLAS!$A$238) -> 109 | X47: =+GETPIVOTDATA(" f23329103",TABLAS!$A$276) -> 70 | Y47: =+U47*100/X47 -> 155.7142857 | AB47: =+AC45+1 -> 23 | AC47: 24 | AE47: 023 | AF47: 024 | AH47: =+IMPORTARDATOSDINAMICOS(" BAS023",TABLAS!$A$238) | AI47: =+IMPORTARDATOSDINAMICOS(" BAS024",TABLAS!$A$238)
C48: AQV MASCULINO 3329101 | E48: A | F48: 0 | G48: 0 | H48: =+GETPIVOTDATA(" BAS035",TABLAS!$A$59) -> 0 | I48: =+GETPIVOTDATA(" BAS036",TABLAS!$A$59) -> 0 | J48: =+GETPIVOTDATA(" BAS035",TABLAS!$A$97) -> 0 | K48: =+GETPIVOTDATA(" BAS036",TABLAS!$A$97) -> 0 | L48: =+GETPIVOTDATA(" BAS035",TABLAS!$A$132) -> 0 | M48: =+GETPIVOTDATA(" BAS036",TABLAS!$A$132) -> 0 | N48: =+GETPIVOTDATA(" BAS035",TABLAS!$A$167) -> 0 | O48: =+GETPIVOTDATA(" BAS036",TABLAS!$A$167) -> 0 | P48: =+GETPIVOTDATA(" BAS035",TABLAS!$A$203) -> 0 | Q48: =+GETPIVOTDATA(" BAS036",TABLAS!$A$203) -> 0 | R48: =+GETPIVOTDATA(" BAS046",TABLAS!$A$238) -> 0 | S48: =+GETPIVOTDATA(" BAS047",TABLAS!$A$238) -> 0 | T48: =+GETPIVOTDATA(" BAS048",TABLAS!$A$238) -> 0 | U48: =+W48/V48 -> 0 | V48: 1 | W48: =+GETPIVOTDATA(" BAS050",TABLAS!$A$238) -> 0 | X48: =+GETPIVOTDATA(" f23329101",TABLAS!$A$276) -> 0 | Y48: =+U48*100/X48 ->  | AB48: 25 | AC48: 26 | AE48: 025 | AF48: 026 | AH48: =+IMPORTARDATOSDINAMICOS(" BAS025",TABLAS!$A$238) | AI48: =+IMPORTARDATOSDINAMICOS(" BAS026",TABLAS!$A$238)
C49: MELA 3329111 | E49: A | F49: 15 | G49: 0 | H49: =+GETPIVOTDATA(" BAS037",TABLAS!$A$59) -> 0 | I49: =+GETPIVOTDATA(" BAS038",TABLAS!$A$59) -> 0 | J49: =+GETPIVOTDATA(" BAS037",TABLAS!$A$97) -> 1 | K49: =+GETPIVOTDATA(" BAS038",TABLAS!$A$97) -> 0 | L49: =+GETPIVOTDATA(" BAS037",TABLAS!$A$132) -> 6 | M49: =+GETPIVOTDATA(" BAS038",TABLAS!$A$132) -> 0 | N49: =+GETPIVOTDATA(" BAS037",TABLAS!$A$167) -> 8 | O49: =+GETPIVOTDATA(" BAS038",TABLAS!$A$167) -> 0 | P49: =+GETPIVOTDATA(" BAS037",TABLAS!$A$203) -> 0 | Q49: =+GETPIVOTDATA(" BAS038",TABLAS!$A$203) -> 0 | R49: =+GETPIVOTDATA(" BAS051",TABLAS!$A$238) -> 0 | S49: =+GETPIVOTDATA(" BAS052",TABLAS!$A$238) -> 0 | T49: =+GETPIVOTDATA(" BAS053",TABLAS!$A$238) -> 0 | U49: 0 | V49: 2 | W49: =+GETPIVOTDATA(" BAS055",TABLAS!$A$238) -> 0 | X49: =+GETPIVOTDATA(" f23329111",TABLAS!$A$276) -> 40 | Y49: =+U49*100/X49 -> 0 | AB49: 27 | AC49: 28 | AE49: 027 | AF49: 028 | AH49: =+IMPORTARDATOSDINAMICOS(" BAS027",TABLAS!$A$238) | AI49: =+IMPORTARDATOSDINAMICOS(" BAS028",TABLAS!$A$238)
C50: ABSTINENCIA PERIODICA 3329110 | E50: A | F50: 72 | G50: 10 | H50: =+GETPIVOTDATA(" BAS039",TABLAS!$A$59) -> 0 | I50: =+GETPIVOTDATA(" BAS040",TABLAS!$A$59) -> 0 | J50: =+GETPIVOTDATA(" BAS039",TABLAS!$A$97) -> 11 | K50: =+GETPIVOTDATA(" BAS040",TABLAS!$A$97) -> 0 | L50: =+GETPIVOTDATA(" BAS039",TABLAS!$A$132) -> 25 | M50: =+GETPIVOTDATA(" BAS040",TABLAS!$A$132) -> 5 | N50: =+GETPIVOTDATA(" BAS039",TABLAS!$A$167) -> 36 | O50: =+GETPIVOTDATA(" BAS040",TABLAS!$A$167) -> 5 | P50: =+GETPIVOTDATA(" BAS039",TABLAS!$A$203) -> 0 | Q50: =+GETPIVOTDATA(" BAS040",TABLAS!$A$203) -> 0 | R50: =+GETPIVOTDATA(" BAS056",TABLAS!$A$238) -> 0 | S50: =+GETPIVOTDATA(" BAS057",TABLAS!$A$238) -> 0 | T50: =+GETPIVOTDATA(" BAS058",TABLAS!$A$238) -> 0 | U50: 13.66666667 | V50: 6 | W50: =+GETPIVOTDATA(" BAS060",TABLAS!$A$238) -> 82 | X50: =+GETPIVOTDATA(" f23329110",TABLAS!$A$276) -> 11 | Y50: =+U50*100/X50 -> 124.2424242 | AB50: 29 | AC50: 30 | AE50: 029 | AF50: 030 | AH50: =+IMPORTARDATOSDINAMICOS(" BAS029",TABLAS!$A$238) | AI50: =+IMPORTARDATOSDINAMICOS(" BAS030",TABLAS!$A$238)
H51: 39 | I51: 40 | R51: 56 | S51: =+R51+1 -> 57 | T51: =+S51+1 -> 58 | U51: 59 | W51: =+U51+1 -> 60
G52: 41
C53: METODO | E53: Tipo de Usuaria | F53: TOTAL 3329109 | G53: 10 a 11 a. | H53: 12 a 17 a. | I53: 18 a 29 a | J53: 30 a 59 a | K53: <60 a
C55: ANTICONCEPCIÓN ORAL DE EMERGENCIA/PROGESTAGENO | D55: Total General | E55: A | F55: =SUM(H55:K55) -> 405 | G55: =+GETPIVOTDATA(" BAS041",TABLAS!$A$59) -> 3 | H55: =+GETPIVOTDATA(" BAS041",TABLAS!$A$97) -> 48 | I55: =+GETPIVOTDATA(" BAS041",TABLAS!$A$132) -> 168 | J55: =+GETPIVOTDATA(" BAS041",TABLAS!$A$167) -> 189 | K55: =+GETPIVOTDATA(" BAS041",TABLAS!$A$238) -> 0 | L55: =+GETPIVOTDATA(" f23329109",TABLAS!$A$276) -> 465 | M55: =+F55*100/L55 -> 87.09677419 | U55: =+W51+1 -> 61 | AB55: =+AC50+1 -> 31 | AE55: =IF(AB55<9,CONCATENATE("00",AB55),IF(AND(AB55>9,AB55<100),CONCATENATE("0",AB55),AB55)) -> 031 | AH55: =CONCATENATE($AH$22,AE55,$AJ$22) -> =+IMPORTARDATOSDINAMICOS(" BAS031",TABLAS!$A$238)
E56: I | F56: =SUM(H56:K56) -> 383 | G56: =+GETPIVOTDATA(" BAS042",TABLAS!$A$59) -> 2 | H56: =+GETPIVOTDATA(" BAS042",TABLAS!$A$97) -> 45 | I56: =+GETPIVOTDATA(" BAS042",TABLAS!$A$132) -> 161 | J56: =+GETPIVOTDATA(" BAS042",TABLAS!$A$167) -> 177 | K56: =+GETPIVOTDATA(" BAS042",TABLAS!$A$238) -> 0 | L56: =+GETPIVOTDATA(" f23329109",TABLAS!$A$276) -> 465 | M56: =+F56*100/L56 -> 82.3655914 | S56: OTROS PROCEDIMIENTOS | U56: Nº | AB56: =+AB55+1 -> 32 | AE56: 032 | AH56: =+IMPORTARDATOSDINAMICOS(" BAS032",TABLAS!$A$238)
D57: Victimas de Violacion Sexual | E57: A | F57: 10 | G57: =+GETPIVOTDATA(" BAS043",TABLAS!$A$59) -> 2 | H57: =+GETPIVOTDATA(" BAS043",TABLAS!$A$97) -> 7 | I57: =+GETPIVOTDATA(" BAS043",TABLAS!$A$132) -> 2 | J57: =+GETPIVOTDATA(" BAS043",TABLAS!$A$167) -> 1 | K57: =+GETPIVOTDATA(" BAS043",TABLAS!$A$238) -> 0 | L57: =+GETPIVOTDATA(" f23329109",TABLAS!$A$276) -> 465 | M57: 2.150537634 | S57: REMOCIÓN DE DIU | U57: =+GETPIVOTDATA(" BAS061",TABLAS!$A$238) -> 9 | AB57: =+AB56+1 -> 33 | AE57: 033 | AH57: =+IMPORTARDATOSDINAMICOS(" BAS033",TABLAS!$A$238)
E58: I | F58: 117 | G58: =+GETPIVOTDATA(" BAS044",TABLAS!$A$59) -> 1 | H58: =+GETPIVOTDATA(" BAS044",TABLAS!$A$97) -> 6 | I58: =+GETPIVOTDATA(" BAS044",TABLAS!$A$132) -> 1 | J58: =+GETPIVOTDATA(" BAS044",TABLAS!$A$167) -> 1 | K58: =+GETPIVOTDATA(" BAS044",TABLAS!$A$238) -> 109 | L58: =+GETPIVOTDATA(" f23329109",TABLAS!$A$276) -> 465 | M58: 25.16129032 | S58: REMOCIÓN DE IMPLANTE 3329117 | U58: =+GETPIVOTDATA(" BAS062",TABLAS!$A$238) -> 525 | X58: =+GETPIVOTDATA(" f23329117",TABLAS!$A$276) -> 280 | Y58: =+U58*100/X58 -> 187.5 | AB58: 34 | AE58: 034 | AH58: =+IMPORTARDATOSDINAMICOS(" BAS034",TABLAS!$A$238)
G59: 44 | U59: 62
C61: ANTICONCEPCÓN POST EVENTO OBSTETRICO
F62: 45 | G62: =+F62+1 -> 46 | H62: =+G62+1 -> 47 | S62: =+U59+1 -> 63 | T62: =+S62+1 -> 64
C63: METODO | E63: TOTAL | F63: 10 a 11a | I63: 12 A 17a | L63: 18 A 29a | O63: 30 a 59a | S63: ATENCIÓN PRE CONCEPCIONAL 3329203
F64: CESAREA | G64: POST ABORTO | H64: POST PARTO | I64: CESAREA | J64: POST ABORTO | K64: POST PARTO | L64: CESAREA | M64: POST ABORTO | N64: POST PARTO | O64: CESAREA | P64: POST ABORTO | Q64: POST PARTO | S64: 1º | T64: 2º
C65: TOTAL | E65: =SUM(F65:Q65) -> 465 | F65: =SUM(F66:F74) -> 0 | G65: =SUM(G66:G74) -> 2 | H65: 0 | I65: 10 | J65: 14 | K65: 1 | L65: 48 | M65: 132 | N65: 8 | O65: 78 | P65: 152 | Q65: 20 | S65: =+GETPIVOTDATA(" BAS063",TABLAS!$A$238) -> 158 | T65: =+GETPIVOTDATA(" BAS064",TABLAS!$A$238) -> 65
C66: DIU | E66: =SUM(F66:Q66) -> 0 | F66: =+GETPIVOTDATA(" BAS045",TABLAS!$A$59) -> 0 | G66: =+GETPIVOTDATA(" BAS046",TABLAS!$A$59) -> 0 | H66: =+GETPIVOTDATA(" BAS047",TABLAS!$A$59) -> 0 | I66: =+GETPIVOTDATA(" BAS045",TABLAS!$A$97) -> 0 | J66: =+GETPIVOTDATA(" BAS046",TABLAS!$A$97) -> 0 | K66: =+GETPIVOTDATA(" BAS047",TABLAS!$A$97) -> 0 | L66: =+GETPIVOTDATA(" BAS045",TABLAS!$A$132) -> 0 | M66: =+GETPIVOTDATA(" BAS046",TABLAS!$A$132) -> 0 | N66: =+GETPIVOTDATA(" BAS047",TABLAS!$A$132) -> 0 | O66: =+GETPIVOTDATA(" BAS045",TABLAS!$A$167) -> 0 | P66: =+GETPIVOTDATA(" BAS046",TABLAS!$A$167) -> 0 | Q66: =+GETPIVOTDATA(" BAS047",TABLAS!$A$167) -> 0 | S66: =+GETPIVOTDATA(" f23329203",TABLAS!$A$276) -> 179 | T66: =+GETPIVOTDATA(" f23329203",TABLAS!$A$276) -> 179 | AB66: =+AB58+1 -> 35 | AC66: =+AB66+1 -> 36 | AD66: 37 | AE66: =IF(AB66<9,CONCATENATE("00",AB66),IF(AND(AB66>9,AB66<100),CONCATENATE("0",AB66),AB66)) -> 035 | AF66: =IF(AC66<9,CONCATENATE("00",AC66),IF(AND(AC66>9,AC66<100),CONCATENATE("0",AC66),AC66)) -> 036 | AG66: =IF(AD66<9,CONCATENATE("00",AD66),IF(AND(AD66>9,AD66<100),CONCATENATE("0",AD66),AD66)) -> 037 | AH66: =CONCATENATE($AH$22,AE66,$AJ$22) -> =+IMPORTARDATOSDINAMICOS(" BAS035",TABLAS!$A$238) | AI66: =CONCATENATE($AH$22,AF66,$AJ$22) -> =+IMPORTARDATOSDINAMICOS(" BAS036",TABLAS!$A$238) | AJ66: =CONCATENATE($AH$22,AG66,$AJ$22) -> =+IMPORTARDATOSDINAMICOS(" BAS037",TABLAS!$A$238)
C67: DIU LIBERADOR | E67: 0 | F67: =+GETPIVOTDATA(" BAS048",TABLAS!$A$59) -> 0 | G67: =+GETPIVOTDATA(" BAS049",TABLAS!$A$59) -> 0 | H67: =+GETPIVOTDATA(" BAS050",TABLAS!$A$59) -> 0 | I67: =+GETPIVOTDATA(" BAS048",TABLAS!$A$97) -> 0 | J67: =+GETPIVOTDATA(" BAS049",TABLAS!$A$97) -> 0 | K67: =+GETPIVOTDATA(" BAS050",TABLAS!$A$97) -> 0 | L67: =+GETPIVOTDATA(" BAS048",TABLAS!$A$132) -> 0 | M67: =+GETPIVOTDATA(" BAS049",TABLAS!$A$132) -> 0 | N67: =+GETPIVOTDATA(" BAS050",TABLAS!$A$132) -> 0 | O67: =+GETPIVOTDATA(" BAS048",TABLAS!$A$167) -> 0 | P67: =+GETPIVOTDATA(" BAS049",TABLAS!$A$167) -> 0 | Q67: =+GETPIVOTDATA(" BAS050",TABLAS!$A$167) -> 0 | S67: =+S65*100/S66 -> 88.26815642 | T67: =+T65*100/T66 -> 36.31284916 | AB67: =+AD66+1 -> 38 | AC67: 39 | AD67: 40 | AE67: =IF(AB67<9,CONCATENATE("00",AB67),IF(AND(AB67>9,AB67<100),CONCATENATE("0",AB67),AB67)) -> 038 | AF67: =IF(AC67<9,CONCATENATE("00",AC67),IF(AND(AC67>9,AC67<100),CONCATENATE("0",AC67),AC67)) -> 039 | AG67: =IF(AD67<9,CONCATENATE("00",AD67),IF(AND(AD67>9,AD67<100),CONCATENATE("0",AD67),AD67)) -> 040 | AH67: =CONCATENATE($AH$22,AE67,$AJ$22) -> =+IMPORTARDATOSDINAMICOS(" BAS038",TABLAS!$A$238) | AI67: =CONCATENATE($AH$22,AF67,$AJ$22) -> =+IMPORTARDATOSDINAMICOS(" BAS039",TABLAS!$A$238) | AJ67: =CONCATENATE($AH$22,AG67,$AJ$22) -> =+IMPORTARDATOSDINAMICOS(" BAS040",TABLAS!$A$238)
C68: INYECTABLE TRIMESTRAL | E68: 54 | F68: =+GETPIVOTDATA(" BAS051",TABLAS!$A$59) -> 0 | G68: =+GETPIVOTDATA(" BAS052",TABLAS!$A$59) -> 0 | H68: =+GETPIVOTDATA(" BAS053",TABLAS!$A$59) -> 0 | I68: =+GETPIVOTDATA(" BAS051",TABLAS!$A$97) -> 6 | J68: =+GETPIVOTDATA(" BAS052",TABLAS!$A$97) -> 0 | K68: =+GETPIVOTDATA(" BAS053",TABLAS!$A$97) -> 0 | L68: =+GETPIVOTDATA(" BAS051",TABLAS!$A$132) -> 18 | M68: =+GETPIVOTDATA(" BAS052",TABLAS!$A$132) -> 5 | N68: =+GETPIVOTDATA(" BAS053",TABLAS!$A$132) -> 7 | O68: =+GETPIVOTDATA(" BAS051",TABLAS!$A$167) -> 4 | P68: =+GETPIVOTDATA(" BAS052",TABLAS!$A$167) -> 10 | Q68: =+GETPIVOTDATA(" BAS053",TABLAS!$A$167) -> 4 | AB68: =+AD67+1 -> 41 | AC68: =+AB68+1 -> 42 | AD68: 43 | AE68: 041 | AF68: 042 | AG68: 043 | AH68: =+IMPORTARDATOSDINAMICOS(" BAS041",TABLAS!$A$238) | AI68: =+IMPORTARDATOSDINAMICOS(" BAS042",TABLAS!$A$238) | AJ68: =+IMPORTARDATOSDINAMICOS(" BAS043",TABLAS!$A$238)
C69: INYECTABLE MENSUAL | E69: 39 | F69: =+GETPIVOTDATA(" BAS054",TABLAS!$A$59) -> 0 | G69: =+GETPIVOTDATA(" BAS055",TABLAS!$A$59) -> 1 | H69: =+GETPIVOTDATA(" BAS056",TABLAS!$A$59) -> 0 | I69: =+GETPIVOTDATA(" BAS054",TABLAS!$A$97) -> 0 | J69: =+GETPIVOTDATA(" BAS055",TABLAS!$A$97) -> 4 | K69: =+GETPIVOTDATA(" BAS056",TABLAS!$A$97) -> 0 | L69: =+GETPIVOTDATA(" BAS054",TABLAS!$A$132) -> 0 | M69: =+GETPIVOTDATA(" BAS055",TABLAS!$A$132) -> 13 | N69: =+GETPIVOTDATA(" BAS056",TABLAS!$A$132) -> 0 | O69: =+GETPIVOTDATA(" BAS054",TABLAS!$A$167) -> 0 | P69: =+GETPIVOTDATA(" BAS055",TABLAS!$A$167) -> 21 | Q69: =+GETPIVOTDATA(" BAS056",TABLAS!$A$167) -> 0 | S69: USUARIAS CON RIESGO REPRODUCTIVO / DISCAPACIDAD | AB69: 44 | AC69: =+AB69+1 -> 45 | AD69: 46 | AE69: 044 | AF69: 045 | AG69: 046 | AH69: =+IMPORTARDATOSDINAMICOS(" BAS044",TABLAS!$A$238) | AI69: =+IMPORTARDATOSDINAMICOS(" BAS045",TABLAS!$A$238) | AJ69: =+IMPORTARDATOSDINAMICOS(" BAS046",TABLAS!$A$238)
C70: ORAL COMBINADO | E70: 81 | F70: =+GETPIVOTDATA(" BAS057",TABLAS!$A$59) -> 0 | G70: =+GETPIVOTDATA(" BAS058",TABLAS!$A$59) -> 0 | H70: =+GETPIVOTDATA(" BAS059",TABLAS!$A$59) -> 0 | I70: =+GETPIVOTDATA(" BAS057",TABLAS!$A$97) -> 0 | J70: =+GETPIVOTDATA(" BAS058",TABLAS!$A$97) -> 2 | K70: =+GETPIVOTDATA(" BAS059",TABLAS!$A$97) -> 0 | L70: =+GETPIVOTDATA(" BAS057",TABLAS!$A$132) -> 0 | M70: =+GETPIVOTDATA(" BAS058",TABLAS!$A$132) -> 43 | N70: =+GETPIVOTDATA(" BAS059",TABLAS!$A$132) -> 0 | O70: =+GETPIVOTDATA(" BAS057",TABLAS!$A$167) -> 0 | P70: =+GETPIVOTDATA(" BAS058",TABLAS!$A$167) -> 36 | Q70: =+GETPIVOTDATA(" BAS059",TABLAS!$A$167) -> 0 | AB70: 47 | AC70: =+AB70+1 -> 48 | AD70: 49 | AE70: 047 | AF70: 048 | AG70: 049 | AH70: =+IMPORTARDATOSDINAMICOS(" BAS047",TABLAS!$A$238) | AI70: =+IMPORTARDATOSDINAMICOS(" BAS048",TABLAS!$A$238) | AJ70: =+IMPORTARDATOSDINAMICOS(" BAS049",TABLAS!$A$238)
C71: IMPLANTE | E71: 27 | F71: =+GETPIVOTDATA(" BAS060",TABLAS!$A$59) -> 0 | G71: =+GETPIVOTDATA(" BAS061",TABLAS!$A$59) -> 0 | H71: =+GETPIVOTDATA(" BAS062",TABLAS!$A$59) -> 0 | I71: =+GETPIVOTDATA(" BAS060",TABLAS!$A$97) -> 4 | J71: =+GETPIVOTDATA(" BAS061",TABLAS!$A$97) -> 1 | K71: =+GETPIVOTDATA(" BAS062",TABLAS!$A$97) -> 1 | L71: =+GETPIVOTDATA(" BAS060",TABLAS!$A$132) -> 11 | M71: =+GETPIVOTDATA(" BAS061",TABLAS!$A$132) -> 3 | N71: =+GETPIVOTDATA(" BAS062",TABLAS!$A$132) -> 0 | O71: =+GETPIVOTDATA(" BAS060",TABLAS!$A$167) -> 4 | P71: =+GETPIVOTDATA(" BAS061",TABLAS!$A$167) -> 2 | Q71: =+GETPIVOTDATA(" BAS062",TABLAS!$A$167) -> 1 | S71: RIESGO BAJO | T71: =+GETPIVOTDATA(" BAS065",TABLAS!$A$238) -> 11914 | U71: =+T62+1 -> 65 | AB71: 50 | AC71: =+AB71+1 -> 51 | AD71: 52 | AE71: 050 | AF71: 051 | AG71: 052 | AH71: =+IMPORTARDATOSDINAMICOS(" BAS050",TABLAS!$A$238) | AI71: =+IMPORTARDATOSDINAMICOS(" BAS051",TABLAS!$A$238) | AJ71: =+IMPORTARDATOSDINAMICOS(" BAS052",TABLAS!$A$238)
C72: CONDON MASCULINO | E72: 0 | F72: =+GETPIVOTDATA(" BAS063",TABLAS!$A$59) -> 0 | G72: =+GETPIVOTDATA(" BAS064",TABLAS!$A$59) -> 0 | H72: =+GETPIVOTDATA(" BAS065",TABLAS!$A$59) -> 0 | I72: =+GETPIVOTDATA(" BAS063",TABLAS!$A$97) -> 0 | J72: =+GETPIVOTDATA(" BAS064",TABLAS!$A$97) -> 0 | K72: =+GETPIVOTDATA(" BAS065",TABLAS!$A$97) -> 0 | L72: =+GETPIVOTDATA(" BAS063",TABLAS!$A$132) -> 0 | M72: =+GETPIVOTDATA(" BAS064",TABLAS!$A$132) -> 0 | N72: =+GETPIVOTDATA(" BAS065",TABLAS!$A$132) -> 0 | O72: =+GETPIVOTDATA(" BAS063",TABLAS!$A$167) -> 0 | P72: =+GETPIVOTDATA(" BAS064",TABLAS!$A$167) -> 0 | Q72: =+GETPIVOTDATA(" BAS065",TABLAS!$A$167) -> 0 | S72: RIESGO MEDIO | T72: =+GETPIVOTDATA(" BAS066",TABLAS!$A$238) -> 3755 | U72: =+U71+1 -> 66 | AB72: 53 | AC72: =+AB72+1 -> 54 | AD72: 55 | AE72: 053 | AF72: 054 | AG72: 055 | AH72: =+IMPORTARDATOSDINAMICOS(" BAS053",TABLAS!$A$238) | AI72: =+IMPORTARDATOSDINAMICOS(" BAS054",TABLAS!$A$238) | AJ72: =+IMPORTARDATOSDINAMICOS(" BAS055",TABLAS!$A$238)
